Workbook

Sheet Alert (hidden)
A1: =Tags!B72 -> The ESPA Worksheet uses Macros. Please enable content or close and reopen with Macros Enabled

Sheet General Info
A1: =Tags!B54 -> Espa Award
B3: =Tags!B4 -> Date | C3: =NOW() -> 2022-10-21T10:00:31.850
B4: =Tags!B5 -> Language | C4: English
B5: =Tags!B6 -> Country
C6: EUROPEAN STANDARD PARKING AWARD
B8: =Tags!B7 -> Name of Car Park
B10: =Tags!B8 -> Address
B13: =Tags!B9 -> City
B15: =Tags!B11 -> Operator
B17: =Tags!B12 -> Contact Name
B19: =Tags!B13 -> e-Mail | D19: =Tags!B14 -> Phone
B21: =Tags!B15 -> Judged by
B24: =Tags!B79 -> Car Park Main Characteristics
B26: =Tags!B73 -> Year of Construction
B28: =Tags!B10 -> Number of Spaces
B30: =Tags!B78 -> Number of Floors
B32: =Tags!B77 -> Number of Lifts
B34: =Tags!B74 -> Structure
B36: =Tags!B75 -> Type
B38: =Tags!B76 -> Access Control System

Sheet Evaluation Sheet
A1: =Tags!B38&" - "&Tags!B54 -> Global Evaluation - Espa Award | I1: =Tags!B38&" - "&Tags!B70 -> Global Evaluation - ESPA Gold Award
A3: =Tags!B39 -> Category | C3: =Tags!B44 -> % Obtained | D3: =Tags!B45 -> Minimum | E3: =Tags!B46 -> Category Points | F3: =Tags!B47 -> Points Obtained | G3: =Tags!B48 -> Status | I3: =A3 -> Category | K3: =C3 -> % Obtained | L3: =D3 -> Minimum | M3: =E3 -> Category Points | N3: =F3 -> Points Obtained | O3: =G3 -> Status
A4: 1 | B4: ='1. Mandatory Conditions'!C1 -> Mandatory Minimum Conditions | G4: =+'Detailed Results'!M4 -> Fail | I4: 1 | J4: =B4 -> Mandatory Minimum Conditions | O4: ='Mandatory Conditions Gold Award'!I9 -> Fail
A5: ='2. Lighting'!$A$1 -> 2 | B5: ='2. Lighting'!$D$1 -> Lighting | C5: =+'Detailed Results'!I7 -> 0 | D5: 0.4 | E5: 16 | F5: =C5*E5 -> 0 | G5: =IF(C5>=D5,pass,IF('Detailed Results'!F7=0,fail,incomplete)) -> Incomplete | I5: ='2. Lighting'!$A$1 -> 2 | J5: ='2. Lighting'!$D$1 -> Lighting | K5: =+C5 -> 0 | L5: =+D5+10% -> 0.5 | M5: 16 | N5: =K5*M5 -> 0 | O5: =IF(K5>=L5,pass,IF('Detailed Results'!F33=0,fail,incomplete)) -> Fail
A6: ='3. Entry Exit'!$A$1 -> 3 | B6: ='3. Entry Exit'!$D$1 -> Car Entry / Car Exit | C6: =+'Detailed Results'!I8 -> 0 | D6: 0.4 | E6: 8 | F6: 0 | G6: =IF(C6>=D6,pass,IF('Detailed Results'!F8=0,fail,incomplete)) -> Incomplete | I6: ='3. Entry Exit'!$A$1 -> 3 | J6: ='3. Entry Exit'!$D$1 -> Car Entry / Car Exit | K6: 0 | L6: 0.5 | M6: 8 | N6: 0 | O6: =IF(K6>=L6,pass,IF('Detailed Results'!F34=0,fail,incomplete)) -> Fail
A7: ='4. Parking Area'!$A$1 -> 4 | B7: ='4. Parking Area'!$D$1 -> Parking Area | C7: =+'Detailed Results'!I9 -> 0 | D7: 0.4 | E7: 18 | F7: 0 | G7: =IF(C7>=D7,pass,IF('Detailed Results'!F9=0,fail,incomplete)) -> Incomplete | I7: ='4. Parking Area'!$A$1 -> 4 | J7: ='4. Parking Area'!$D$1 -> Parking Area | K7: 0 | L7: 0.5 | M7: 18 | N7: 0 | O7: =IF(K7>=L7,pass,IF('Detailed Results'!F35=0,fail,incomplete)) -> Fail
A8: ='5. Ramps'!$A$1 -> 5 | B8: ='5. Ramps'!$D$1 -> Vehicle Ramps | C8: =+'Detailed Results'!I10 -> 0 | D8: 0.4 | E8: 8 | F8: 0 | G8: =IF(C8>=D8,pass,IF('Detailed Results'!F10=0,fail,incomplete)) -> Incomplete | I8: ='5. Ramps'!$A$1 -> 5 | J8: ='5. Ramps'!$D$1 -> Vehicle Ramps | K8: 0 | L8: 0.5 | M8: 8 | N8: 0 | O8: =IF(K8>=L8,pass,IF('Detailed Results'!F36=0,fail,incomplete)) -> Fail
A9: ='6. Pedestrian Access'!$A$1 -> 6 | B9: ='6. Pedestrian Access'!$D$1 -> Pedestrian Access | C9: =+'Detailed Results'!I11 -> 0 | D9: 0.4 | E9: 16 | F9: 0 | G9: =IF(C9>=D9,pass,IF('Detailed Results'!F11=0,fail,incomplete)) -> Incomplete | I9: ='6. Pedestrian Access'!$A$1 -> 6 | J9: ='6. Pedestrian Access'!$D$1 -> Pedestrian Access | K9: 0 | L9: 0.5 | M9: 16 | N9: 0 | O9: =IF(K9>=L9,pass,IF('Detailed Results'!F37=0,fail,incomplete)) -> Fail
A10: 7 | B10: ='7. Security equipment'!$D$1 -> Security Equipment | C10: =+'Detailed Results'!I12 -> 0 | D10: 0.4 | E10: 8 | F10: 0 | G10: =IF(C10>=D10,pass,IF('Detailed Results'!F12=0,fail,incomplete)) -> Incomplete | I10: 7 | J10: ='7. Security equipment'!$D$1 -> Security Equipment | K10: 0 | L10: 0.5 | M10: 8 | N10: 0 | O10: =IF(K10>=L10,pass,IF('Detailed Results'!F38=0,fail,incomplete)) -> Fail
A11: 8 | B11: ='8. Wayfinding'!$D$1 -> Wayfinding Inside and Outside | C11: =+'Detailed Results'!I13 -> 0 | D11: 0.4 | E11: 8 | F11: 0 | G11: =IF(C11>=D11,pass,IF('Detailed Results'!F13=0,fail,incomplete)) -> Incomplete | I11: 8 | J11: ='8. Wayfinding'!$D$1 -> Wayfinding Inside and Outside | K11: 0 | L11: 0.5 | M11: 8 | N11: 0 | O11: =IF(K11>=L11,pass,IF('Detailed Results'!F39=0,fail,incomplete)) -> Fail
A12: 9 | B12: ='9. Comfort'!$D$1 -> Comfort and Miscellaneous | C12: =+'Detailed Results'!I14 -> 0.06818181818 | D12: 0.3 | E12: 8 | F12: 0.5454545455 | G12: =IF(C12>=D12,pass,IF('Detailed Results'!F14=0,fail,incomplete)) -> Incomplete | I12: 9 | J12: ='9. Comfort'!$D$1 -> Comfort and Miscellaneous | K12: 0.06818181818 | L12: 0.4 | M12: 8 | N12: 0.5454545455 | O12: =IF(K12>=L12,pass,IF('Detailed Results'!F40=0,fail,incomplete)) -> Fail
A13: 10 | B13: ='10. Energy Environment'!$D$1 -> Energy and Environment | C13: =+'Detailed Results'!I15 -> 0 | D13: 0.2 | E13: 10 | F13: 0 | G13: =IF(C13>=D13,pass,IF('Detailed Results'!F15=0,fail,incomplete)) -> Fail | I13: 10 | J13: ='10. Energy Environment'!$D$1 -> Energy and Environment | K13: 0 | L13: 0.3 | M13: 10 | N13: 0 | O13: =IF(K13>=L13,pass,IF('Detailed Results'!F41=0,fail,incomplete)) -> Fail
A14: =Tags!B50 -> Subtotals | E14: =SUM(E5:E13) -> 100 | F14: =SUM(F5:F13) -> 0.5454545455 | I14: =+A14 -> Subtotals | M14: =SUM(M5:M13) -> 100 | N14: =SUM(N5:N13) -> 0.5454545455
A16: =Minus!$A$1 -> M | B16: =Minus!$D$1 -> Minus Points | C16: =+'Detailed Results'!I18 -> 0 | D16: - | E16: -15 | F16: =E16*C16 -> 0 | I16: =Minus!$A$1 -> M | J16: =Minus!$D$1 -> Minus Points | K16: =+'Evaluation Sheet'!C16 -> 0 | L16: - | M16: -15 | N16: =M16*K16 -> 0
A17: =Bonus!$A$1 -> B | B17: =Bonus!$D$1 -> Bonus Points | C17: =+'Detailed Results'!I19 -> 0 | D17: - | E17: 15 | F17: =C17*E17 -> 0 | I17: =Bonus!$A$1 -> B | J17: =Bonus!$D$1 -> Bonus Points | K17: =+C17 -> 0 | L17: . | M17: 15 | N17: =K17*M17 -> 0
A18: =A14 -> Subtotals | E18: =SUM(E16:E17) -> 0 | F18: =SUM(F16:F17) -> 0 | I18: =I14 -> Subtotals | M18: =SUM(M16:M17) -> 0 | N18: =SUM(N16:N17) -> 0
A20: =Tags!B51 -> Totals | E20: =E14+E18 -> 100 | F20: =F14+F18 -> 0.5454545455 | I20: =+A20 -> Totals | M20: =M14+M18 -> 100 | N20: =N14+N18 -> 0.5454545455
A22: =Tags!B52 -> Minimum Requirement for ESPA Award | C22: 0.5 | D22: =Tags!B54 -> Espa Award | I22: =+A22 -> Minimum Requirement for ESPA Award | K22: 0.65 | L22: =Tags!B70 -> ESPA Gold Award
A23: =B4 -> Mandatory Minimum Conditions | C23: =IF(G4=pass,"OK",IF(G4=fail,"KO","-")) -> KO | I23: =+A23 -> Mandatory Minimum Conditions | K23: =IF(O4=pass,"OK",IF(O4=fail,"KO","-")) -> KO
A24: =Tags!B53 -> Categories Minimum Points | C24: =IF(COUNTIF(G5:G13,pass)<9,"KO","OK") -> KO | D24: =UPPER(IF(AND(C25>=C22,C24="OK",C23="OK"),yes,IF(OR(C25<C22,C23="KO",C24="KO"),no,"NA"))) -> NO | I24: =+A24 -> Categories Minimum Points | K24: =IF(COUNTIF(O5:O13,pass)<9,"KO","OK") -> KO | L24: =UPPER(IF(AND(K25>=K22,K24="OK",K23="OK"),yes,IF(OR(K25<K22,K23="KO",K24="KO"),no,"NA"))) -> NO
A25: =Tags!B44 -> % Obtained | C25: =+F20/100 -> 0.005454545455 | I25: =+A25 -> % Obtained | K25: =+N20/100 -> 0.005454545455

Sheet Detailed Results
A1: =Tags!B38 -> Global Evaluation | C1: ='General Info'!C8 -> 0 | L1: =Tags!B49 -> % Completion: | M1: =E22/D22 -> 0
A3: =Tags!B39 -> Category | C3: =Tags!B40 -> Number of Items | D3: =Tags!B41 -> Number of Oks | E3: =Tags!B42 -> Number of Fails | F3: =Tags!B43 -> To be Completed | M3: =M6 -> Status
A4: 1 | B4: ='1. Mandatory Conditions'!C1 -> Mandatory Minimum Conditions | C4: ='1. Mandatory Conditions'!E16+'1. Mandatory Conditions'!E17+'1. Mandatory Conditions'!E18 -> 11 | D4: ='1. Mandatory Conditions'!E16 -> 0 | E4: =C4-D4 -> 11 | F4: ='1. Mandatory Conditions'!E18 -> 11 | M4: =IF(E4>0,fail,IF(F4=0,pass,incomplete)) -> Fail
A6: =A3 -> Category | C6: =Tags!B30 -> Total Items | D6: =Tags!B31 -> Total Items + SubItems | E6: =Tags!B32 -> Itens Completed | F6: =Tags!B33 -> Not measured | G6: =Tags!B35 -> Maximum Score | H6: =Tags!B34 -> Score | I6: =Tags!B44 -> % Obtained | J6: =Tags!B45 -> Minimum | K6: =Tags!B46 -> Category Points | L6: =Tags!B47 -> Points Obtained | M6: =Tags!B48 -> Status
A7: ='2. Lighting'!$A$1 -> 2 | B7: ='2. Lighting'!$D$1 -> Lighting | C7: ='2. Lighting'!$E$24 -> 8 | D7: ='2. Lighting'!$E$25 -> 17 | E7: ='2. Lighting'!$E$26 -> 0 | F7: ='2. Lighting'!$E$27 -> 17 | G7: ='2. Lighting'!$I$25 -> 46 | H7: ='2. Lighting'!$I$24 -> 0 | I7: =+H7/G7 -> 0 | J7: 0.4 | K7: 16 | L7: =I7*K7 -> 0 | M7: =IF(I7>=J7,pass,IF(F7=0,fail,incomplete)) -> Incomplete
A8: ='3. Entry Exit'!$A$1 -> 3 | B8: ='3. Entry Exit'!$D$1 -> Car Entry / Car Exit | C8: ='3. Entry Exit'!$E$35 -> 12 | D8: ='3. Entry Exit'!$E$36 -> 24 | E8: ='3. Entry Exit'!$E$37 -> 0 | F8: ='3. Entry Exit'!$E$38 -> 24 | G8: ='3. Entry Exit'!$I$36 -> 31 | H8: ='3. Entry Exit'!$I$35 -> 0 | I8: =+H8/G8 -> 0 | J8: 0.4 | K8: 8 | L8: 0 | M8: Incomplete
A9: ='4. Parking Area'!$A$1 -> 4 | B9: ='4. Parking Area'!$D$1 -> Parking Area | C9: ='4. Parking Area'!$E$38 -> 11 | D9: ='4. Parking Area'!$E$39 -> 24 | E9: ='4. Parking Area'!$E$40 -> 0 | F9: ='4. Parking Area'!$E$41 -> 24 | G9: ='4. Parking Area'!$I$39 -> 46 | H9: ='4. Parking Area'!$I$38 -> 0 | I9: 0 | J9: 0.4 | K9: 18 | L9: 0 | M9: Incomplete
A10: ='5. Ramps'!$A$1 -> 5 | B10: ='5. Ramps'!$D$1 -> Vehicle Ramps | C10: ='5. Ramps'!$E$14 -> 6 | D10: ='5. Ramps'!$E$15 -> 7 | E10: ='5. Ramps'!$E$16 -> 0 | F10: ='5. Ramps'!$E$17 -> 7 | G10: ='5. Ramps'!$I$15 -> 14 | H10: ='5. Ramps'!$I$14 -> 0 | I10: 0 | J10: 0.4 | K10: 8 | L10: 0 | M10: Incomplete
A11: ='6. Pedestrian Access'!$A$1 -> 6 | B11: ='6. Pedestrian Access'!$D$1 -> Pedestrian Access | C11: ='6. Pedestrian Access'!$E$33 -> 13 | D11: ='6. Pedestrian Access'!$E$34 -> 23 | E11: ='6. Pedestrian Access'!$E$35 -> 0 | F11: ='6. Pedestrian Access'!$E$36 -> 23 | G11: ='6. Pedestrian Access'!$I$34 -> 43 | H11: ='6. Pedestrian Access'!$I$33 -> 0 | I11: 0 | J11: 0.4 | K11: 16 | L11: 0 | M11: Incomplete
A12: 7 | B12: ='7. Security equipment'!$D$1 -> Security Equipment | C12: ='7. Security equipment'!$E$25 -> 8 | D12: ='7. Security equipment'!$E$26 -> 16 | E12: ='7. Security equipment'!$E$27 -> 0 | F12: ='7. Security equipment'!$E$28 -> 16 | G12: ='7. Security equipment'!$I$26 -> 37 | H12: ='7. Security equipment'!$I$25 -> 0 | I12: 0 | J12: 0.4 | K12: 8 | L12: 0 | M12: Incomplete
A13: 8 | B13: ='8. Wayfinding'!$D$1 -> Wayfinding Inside and Outside | C13: ='8. Wayfinding'!$E$29 -> 11 | D13: ='8. Wayfinding'!$E$30 -> 18 | E13: ='8. Wayfinding'!$E$31 -> 0 | F13: ='8. Wayfinding'!$E$32 -> 18 | G13: ='8. Wayfinding'!$I$30 -> 33 | H13: ='8. Wayfinding'!$I$29 -> 0 | I13: 0 | J13: 0.4 | K13: 8 | L13: 0 | M13: Incomplete
A14: 9 | B14: ='9. Comfort'!$D$1 -> Comfort and Miscellaneous | C14: ='9. Comfort'!$E$49 -> 13 | D14: ='9. Comfort'!$E$50 -> 33 | E14: ='9. Comfort'!$E$51 -> 0 | F14: ='9. Comfort'!$E$52 -> 33 | G14: ='9. Comfort'!$I$50 -> 44 | H14: ='9. Comfort'!$I$49 -> 3 | I14: 0.06818181818 | J14: 0.3 | K14: 8 | L14: 0.5454545455 | M14: Incomplete
A15: 10 | B15: ='10. Energy Environment'!$D$1 -> Energy and Environment | C15: ='10. Energy Environment'!$E$31 -> 11 | D15: ='10. Energy Environment'!$E$32 -> 0 | E15: ='10. Energy Environment'!$E$33 -> 0 | F15: ='10. Energy Environment'!$E$34 -> 0 | G15: ='10. Energy Environment'!$I$32 -> 38 | H15: ='10. Energy Environment'!$I$31 -> 0 | I15: 0 | J15: 0.2 | K15: 10 | L15: 0 | M15: Fail
A16: =Tags!B50 -> Subtotals | C16: =SUM(C7:C15) -> 93 | D16: 162 | E16: 0 | F16: 162 | G16: 332 | H16: 3 | K16: =SUM(K7:K15) -> 100 | L16: =SUM(L7:L15) -> 0.5454545455
A18: =Minus!$A$1 -> M | B18: =Minus!$D$1 -> Minus Points | C18: =Minus!$E$34 -> 8 | D18: =Minus!$E$35 -> 23 | E18: =Minus!$E$36 -> 0 | F18: =Minus!$E$37 -> 23 | G18: =Minus!I35 -> -62 | H18: =Minus!I34 -> 0 | I18: =H18/G18 -> 0 | K18: -15 | L18: =K18*I18 -> 0
A19: =Bonus!$A$1 -> B | B19: =Bonus!$D$1 -> Bonus Points | C19: =Bonus!$E$32 -> 13 | D19: =Bonus!$E$33 -> 23 | E19: =Bonus!$E$34 -> 0 | F19: =Bonus!$E$35 -> 23 | G19: =Bonus!I33 -> 24 | H19: =Bonus!I32 -> 0 | I19: =H19/G19 -> 0 | K19: 15 | L19: =I19*K19 -> 0
A20: =A16 -> Subtotals | C20: =SUM(C18:C19) -> 21 | D20: =SUM(D18:D19) -> 46 | E20: 0 | F20: 46 | G20: -38 | H20: 0 | K20: =SUM(K18:K19) -> 0 | L20: =SUM(L18:L19) -> 0
A22: =Tags!B51 -> Totals | C22: =C20+C16 -> 114 | D22: 208 | E22: 0 | F22: 208 | G22: 294 | H22: 3 | K22: =K16+K20 -> 100 | L22: =L16+L20 -> 0.5454545455
A24: =UPPER(Tags!B52) -> MINIMUM REQUIREMENT FOR ESPA AWARD | E24: 0.5 | F24: =UPPER(B4) -> MANDATORY MINIMUM CONDITIONS | J24: =IF(M4=pass,"OK",IF(M4=fail,"KO","-")) -> KO | K24: =UPPER(Tags!B54) -> ESPA AWARD
A27: =UPPER(Tags!B44) -> % OBTAINED | E27: =L22/K22 -> 0.005454545455 | F27: =UPPER(Tags!B53) -> CATEGORIES MINIMUM POINTS | J27: =IF(COUNTIF(M7:M15,pass)<9,"KO","OK") -> KO | K27: =UPPER(IF(AND(E27>=E24,J24="OK",J27="OK"),yes,IF(OR(E27<E24,J24="KO",J27="KO"),no,"NA"))) -> NO

Sheet 1. Mandatory Conditions
A1: 1 | B1: 1 | C1: =VLOOKUP(B1,Questions!$D$4:$F$418,3,FALSE) -> Mandatory Minimum Conditions | G1: =IF(E18>0,Tags!B21,Tags!B20) -> Incompleted
A3: # | B3: 52 | C3: =VLOOKUP(B3,Tags!$A$4:$B$152,2) -> Item List | E3: =Tags!B22 -> Compliant | F3: =Tags!B23 -> Comments
A4: 1.1 | B4: 1.1 | C4: =VLOOKUP(B4,Questions!$D$4:$F$418,3,FALSE) -> Car park must be for public use
A5: 1.2 | B5: 1.2 | C5: =VLOOKUP(B5,Questions!$D$4:$F$418,3,FALSE) -> Minimum headroom = 1.90 m, generally in the public areas. Incidental lower obstacles must be clearly marked.
A6: 1.3 | B6: 1.3 | C6: =VLOOKUP(B6,Questions!$D$4:$F$418,3,FALSE) -> There must be at least one dedicated entry and exit lane although additional tidal flow lanes are allowed.
A7: 1.4 | B7: 1.4 | C7: =VLOOKUP(B7,Questions!$D$4:$F$418,3,FALSE) -> 70% of bays must be at least 2.30m wide. For renovated car parks, over ten years old, minimum bay width of 2.25m is allowed (in that case a penalty applies - check M8).
A8: 1.5 | B8: 1.5 | C8: =VLOOKUP(B8,Questions!$D$4:$F$418,3,FALSE) -> All straight ramps for unidirectional traffic must be minimum 2.7 metres wide. Bidirectional ramps must be at least 6m wide with lane markings. Ramp width is measured between walls or pillars
A9: 1.6 | B9: 1.6 | C9: =VLOOKUP(B9,Questions!$D$4:$F$418,3,FALSE) -> Curved ramps for single directional traffic must have an external radius of minimum 8.00 metres with lane width of minimum 3.5 metres. For bidirectional curved ramps this applies for the inner driving lane. The outside driving lane must be minimum 3.5 metres wide as well.
A10: 1.7 | B10: 1.7 | C10: =VLOOKUP(B10,Questions!$D$4:$F$418,3,FALSE) -> Ramp gradients must not exceed 20% , to be measured at the middle of driving lane. At bidirectional curved ramps this applies for the inner (steepest) driving lane.
A11: 1.8 | B11: 1.8 | C11: =VLOOKUP(B11,Questions!$D$4:$F$418,3,FALSE) -> If the car park has paid parking and access control by barriers or gates, staff must be contactable at the pay point/exit point and secured pedestrian entries.
A12: 1.9 | B12: 1.9 | C12: =VLOOKUP(B12,Questions!$D$4:$F$418,3,FALSE) -> Receipt for payment must be provided when requested.
A13: 1.10 | B13: 1.10 | C13: =VLOOKUP(B13,Questions!$D$4:$F$418,3,FALSE) -> All turning movements must be capable of being completed without reversing (moving in/out the parking bay and cul-de-sacs excluded)
A14: 1.11 | B14: 1.11 | C14: =VLOOKUP(B14,Questions!$D$4:$F$418,3,FALSE) -> Average light levels on parking area at floor is at minimum 20 Lux
B16: 24 | D16: =VLOOKUP(B16,Tags,2) -> Pass | E16: =COUNTIF($E$4:$E$14,Answers!B20) -> 0 | G16: ='Detailed Results'!M4 -> Fail
B17: 25 | D17: =VLOOKUP(B17,Tags,2) -> Fail | E17: =COUNTIF($E$4:$E$14,Answers!B21) -> 0
B18: 23 | D18: =VLOOKUP(B18,Tags,2) -> Not Evaluated: | E18: =COUNTA(A4:A14)-E17-E16 -> 11
A19: =Tags!B60 -> Notes

Sheet 2. Lighting
A1: 2 | B1: 2 | D1: =VLOOKUP(A1,Questions!$D$4:$F$418,3,FALSE) -> Lighting | G1: =IF(E27>0,Tags!B21,Tags!B20) -> Incompleted | H1: Points: | I1: =I26*I27 -> 0 | J1: =I26 -> 0
B3: 52 | C3: =VLOOKUP(B3,Questions!$D$4:$F$418,2) -> 0 | D3: =VLOOKUP(B3,Tags!$A$4:$B$152,2) -> Item List | E3: =Tags!B56 -> Measured value | F3: =G25 -> Maximum Score | G3: =G24 -> Score | H3: =Tags!B57 -> Maximum Contribuition for Final Score | I3: =Tags!B58 -> Contribuition for Final Score | J3: =Tags!B59 -> Remarks
A4: 2.1 | B4: 2.1 | C4: =VLOOKUP(B4,Questions!$D$4:$F$418,2) -> Item | D4: =VLOOKUP(B4,Questions!$D$4:$F$418,3,FALSE) -> Vehicular entry area; at floor level • Above 200 Lux = 5; • Between 75– 200 Lux: 0,04 pt per Lux over 75 • Below 75 Lux = 0 | F4: 5 | G4: =IF(E4>200,5,IF(E4<=75,0,(E4-75)*0.04)) -> 0 | H4: =F4/$I$25*$I$27 -> 1.739130435 | I4: =G4/$I$25*$I$27 -> 0
A5: 2.2 | B5: 2.2 | C5: =VLOOKUP(B5,Questions!$D$4:$F$418,2) -> Item | D5: =VLOOKUP(B5,Questions!$D$4:$F$418,3,FALSE) -> Entry; at 1 m height near ticket-machine • Above 200 Lux = 3; • Between100– 200 Lux: 0,03 pt per Lux over 100 • Below 100 Lux = 0 | F5: 3 | G5: =IF(E5>200,3,IF(E5<=100,0,(E5-100)*0.03)) -> 0 | H5: =F5/$F$13*$I$27 -> 1.043478261 | I5: 0
A6: 2.3 | B6: 2.3 | C6: =VLOOKUP(B6,Questions!$D$4:$F$418,2) -> Item | D6: =VLOOKUP(B6,Questions!$D$4:$F$418,3,FALSE) -> Exit; at 1 m height near barrier/ticket-machine • Above 200 Lux = 3; • Between100– 200 Lux: 0,03 pt per Lux over 100 • Below 100 Lux= 0 | F6: 3 | G6: =IF(E6>100,(IF(E6<200,(E6-100)*0.03,3)),0) -> 0 | H6: 1.043478261 | I6: 0
A7: 2.4 | B7: 2.4 | C7: =VLOOKUP(B7,Questions!$D$4:$F$418,2) -> Item | D7: =VLOOKUP(B7,Questions!$D$4:$F$418,3,FALSE) -> At pay-machine; at 1 m height • Above 200 Lux =4; • Between100– 200 Lux: 0,04 pt per Lux over 100 • Below 100 Lux= 0; • No Pay Machines : same as exit (enter zero if this is the case) | F7: 4 | G7: =IF(E7>100,(IF(E7<200,(E7-100)*0.04,4)),IF(AND(ISNUMBER(E7),E7=0),G6,0)) -> 0 | H7: 1.391304348 | I7: 0
A8: 2.5 | B8: 2.5 | C8: =VLOOKUP(B8,Questions!$D$4:$F$418,2) -> Item | D8: =VLOOKUP(B8,Questions!$D$4:$F$418,3,FALSE) -> At cashier; at counter height • Above 200 Lux =4; • Between100– 200 Lux: 0,04 pt per Lux over 100 • Below 100 Lux= 0; • No cashier = 3 (enter zero if this is the case) | F8: 4 | G8: =IF(E8>100,(IF(E8<200,(E8-100)*0.04,4)),IF(AND(ISNUMBER(E8),(E8=0)),3,0)) -> 0 | H8: 1.391304348 | I8: 0
A9: 2.6 | B9: 2.6 | C9: =VLOOKUP(B9,Questions!$D$4:$F$418,2) -> Item | D9: =VLOOKUP(B9,Questions!$D$4:$F$418,3,FALSE) -> In elevator; at floor level • Above 70 Lux = 4; • Between30– 70 Lux: 0,1 pt per Lux over 30 • Below 30 Lux = 0; • Single level without elevator = 3 (enter zero if this is the case) | F9: 4 | G9: =IF(E9>30,(IF(E9<70,(E9-30)*0.1,4)),IF(AND(ISNUMBER(E9),(E9=0)),3,0)) -> 0 | H9: 1.391304348 | I9: 0
A10: 2.7 | B10: 2.7 | C10: =VLOOKUP(B10,Questions!$D$4:$F$418,2) -> Item | D10: =VLOOKUP(B10,Questions!$D$4:$F$418,3,FALSE) -> In staircases and all other exclusive pedestrian routes; at floor level • Above 90 Lux = 3; • Between30– 90 Lux: 0,05 pt per Lux over 30 • Below 30 Lux = 0; | F10: 3 | G10: =IF(E10>30,(IF(E10<90,(E10-30)*0.05,3)),0) -> 0 | H10: 1.043478261 | I10: 0
A11: 2.8 | B11: 2.8 | C11: =VLOOKUP(B11,Questions!$D$4:$F$418,2) -> Item | D11: =VLOOKUP(B11,Questions!$D$4:$F$418,3,FALSE) -> Light levels on parking area at floor level: (plesase fill grid below) Average light level of grid: • Above 100 Lux= 10; • Between20– 100 Lux: 0,125 pt per Lux over 20 • Below 20 Lux= 0 | E11: =IF(ISERROR(AVERAGE(F17:G21)),0,AVERAGE(F17:G21)) -> 0 | F11: 20 | G11: =IF(E11>20,(IF(E11<100,(E11-20)*0.125,10)),0) -> 0 | H11: 6.956521739 | I11: 0
A12: 2.9 | B12: 2.9 | C12: =VLOOKUP(B12,Questions!$D$4:$F$418,2) -> 0 | D12: =VLOOKUP(B12,Questions!$D$4:$F$418,3,FALSE) -> Uniformity of light levels in grid as standard deviation • Under 25% of avg light level = 10; • Between25– 50%: 0,4 pt per % under 50% • Above 50% = 0 | E12: =IF(ISERROR(_xlfn.STDEV.S(F17:G21)/E11),0,_xlfn.STDEV.S(F17:G21)/E11) -> 0 | G12: =IF(ISERROR(_xlfn.STDEV.S(F17:G21)/E11),0,IF(E12>0.5,0,IF(E12<0.25,10,(0.5-E12)*40))) -> 0 | I12: =G12/$F$13*$I$27 -> 0
D13: =CONCATENATE(Tags!$B$50," ",$D$1) -> Subtotals Lighting | F13: =SUM(F4:F12) -> 46 | G13: =SUM(G4:G12) -> 0 | H13: =SUM(H4:H12) -> 16 | I13: =SUM(I4:I12) -> 0
B16: 2.8.0 | D16: =VLOOKUP(B16,Questions!$D$4:$F$418,3,FALSE) -> Auxiliary Grid for 2.8 | E16: =VLOOKUP(C16,Questions!$D$4:$F$418,3,FALSE) ->  | F16: =VLOOKUP(D16,Questions!$D$4:$F$418,3,FALSE) -> 
B17: 2.8.1 | D17: =VLOOKUP(B17,Questions!$D$4:$F$418,3,FALSE) -> End of parking space under/between light fitting | E17: =VLOOKUP(C17,Questions!$D$4:$F$418,3,FALSE) -> 
B18: 2.8.2 | D18: =VLOOKUP(B18,Questions!$D$4:$F$418,3,FALSE) -> Halfway parking space under/between light fitting | E18: =VLOOKUP(C18,Questions!$D$4:$F$418,3,FALSE) -> 
B19: 2.8.3 | D19: =VLOOKUP(B19,Questions!$D$4:$F$418,3,FALSE) -> Edge of driveway under/between light fitting | E19: =VLOOKUP(C19,Questions!$D$4:$F$418,3,FALSE) -> 
B20: 2.8.4 | D20: =VLOOKUP(B20,Questions!$D$4:$F$418,3,FALSE) -> Center of driveway under/between light fitting | E20: =VLOOKUP(C20,Questions!$D$4:$F$418,3,FALSE) -> 
B21: 2.8.5 | D21: =VLOOKUP(B21,Questions!$D$4:$F$418,3,FALSE) -> Other edge of driveway under/between light fitting | E21: =VLOOKUP(C21,Questions!$D$4:$F$418,3,FALSE) -> 
D24: =Tags!B30 -> Total Items | E24: 8 | G24: =Tags!B34 -> Score | I24: =G13 -> 0 | J24: ='Detailed Results'!M7 -> Incomplete
D25: =Tags!B31 -> Total Items + SubItems | E25: 17 | G25: =Tags!B35 -> Maximum Score | I25: =F13 -> 46
D26: =Tags!B32 -> Itens Completed | E26: =COUNTIF(F17:G21,">=0")+COUNTIF(E4:E10,">=0") -> 0 | G26: =Tags!B36 -> Percentage | I26: =I24/I25 -> 0
D27: =Tags!B33 -> Not measured | E27: =E25-E26 -> 17 | G27: =Tags!B37 -> Category Value | I27: =VLOOKUP(A1,'Detailed Results'!$A$7:$M$15,11) -> 16
A29: =Tags!B60 -> Notes

Sheet 3. Entry Exit
A1: 3 | B1: 3 | D1: =VLOOKUP(B1,Questions!$D$4:$F$418,3,FALSE) -> Car Entry / Car Exit | G1: =IF(E38>0,Tags!B21,Tags!B20) -> Incompleted | H1: Points: | I1: =I37*I38 -> 0 | J1: =I37 -> 0
A3: 3 | B3: 52 | D3: =VLOOKUP(B3,Tags!$A$4:$B$152,2) -> Item List | E3: =Tags!B56 -> Measured value | F3: =G36 -> Maximum Score | G3: =G35 -> Score | H3: =Tags!B57 -> Maximum Contribuition for Final Score | I3: =Tags!B58 -> Contribuition for Final Score | J3: =Tags!B59 -> Remarks
A4: 3.1 | B4: 3.1.1 | C4: =VLOOKUP(B4,Questions!$D$4:$F$418,2) -> 0 | D4: =VLOOKUP(B4,Questions!$D$4:$F$418,3,FALSE) -> Car park headroom limit identified at entrance (yes=1, no=0) | H4: =F5/$F$33*$I$38 -> 0.7741935484 | I4: =IF(ISNUMBER(SUM(G5:G7)),SUM(G5:G7)/F5*$H$4,0) -> 0
B5: 3.1.2 | D5: =VLOOKUP(B5,Questions!$D$4:$F$418,3,FALSE) -> Correct sign at entrance (yes=1, no=0) | F5: 3 | G5: =IF(COUNTIF(Question_YN_Yes,E5)>0,1,IF(COUNTIF(Question_YN_No,E5)>0,0,"NA")) -> NA
B6: 3.1.3 | D6: =VLOOKUP(B6,Questions!$D$4:$F$418,3,FALSE) -> Height barrier (yes=1, no=0) | G6: =IF(COUNTIF(Question_YN_Yes,E6)>0,1,IF(COUNTIF(Question_YN_No,E6)>0,0,"NA")) -> NA
B7: 3.1.4 | D7: =VLOOKUP(B7,Questions!$D$4:$F$418,3,FALSE) -> Rubber lip to prevent damage (yes=1, no=0) | G7: =IF(COUNTIF(Question_YN_Yes,E7)>0,1,IF(COUNTIF(Question_YN_No,E7)>0,0,"NA")) -> NA
A8: 3.2 | B8: 3.2 | D8: =VLOOKUP(B8,Questions!$D$4:$F$418,3,FALSE) -> Height: (The car park should receive one point for each 10cm of height above 1.90m up to 2.20 m) | F8: 3 | G8: =IF(ISNUMBER(E8),IF(E8>1.9,(IF(E8<2.2,(E8-1.9)*10,3)),0),"NA") -> NA | H8: =F8/$F$33*$I$38 -> 0.7741935484 | I8: =IF(ISNUMBER(SUM(G8)),SUM(G8)/F8*$H$8,0) -> 0
A9: 3.3 | B9: 3.3 | D9: =VLOOKUP(B9,Questions!$D$4:$F$418,3,FALSE) -> Traffic signs to define limitations in use of facility. • Clear signing = 3 • Incomplete signing = 2 • No signing = 0 | F9: 3 | G9: =IF(COUNTIF(Q_3_3_Clear_Signing,E9)>0,3,(IF(COUNTIF(Q_3_3_Incomplete_Signing,E9)>0,2,(IF(COUNTIF(Q_3_3_No_Signing,E9)>0,0,"NA"))))) -> NA | H9: =F9/$F$33*$I$38 -> 0.7741935484 | I9: =IF(ISNUMBER(SUM(G9)),SUM(G9)/F9*$H$9,0) -> 0
A10: 3.4 | B10: 3.4.1 | D10: =VLOOKUP(B10,Questions!$D$4:$F$418,3,FALSE) -> Information on: | H10: =F11/$F$33*$I$38 -> 1.032258065 | I10: =IF(ISNUMBER(SUM(G11:G14)),SUM(G11:G14)/F11*$H$10,0) -> 0
B11: 3.4.2 | D11: =VLOOKUP(B11,Questions!$D$4:$F$418,3,FALSE) -> Operators terms & conditions within the car park | F11: 4 | G11: =IF(COUNTIF(Question_YN_Yes,E11)>0,1,IF(COUNTIF(Question_YN_No,E11)>0,0,"NA")) -> NA
B12: 3.4.3 | D12: =VLOOKUP(B12,Questions!$D$4:$F$418,3,FALSE) -> Daily opening hours | G12: =IF(COUNTIF(Question_YN_Yes,E12)>0,1,IF(COUNTIF(Question_YN_No,E12)>0,0,"NA")) -> NA
B13: 3.4.4 | D13: =VLOOKUP(B13,Questions!$D$4:$F$418,3,FALSE) -> Scale of tariffs | G13: =IF(COUNTIF(Question_YN_Yes,E13)>0,1,IF(COUNTIF(Question_YN_No,E13)>0,0,"NA")) -> NA
B14: 3.4.5 | D14: =VLOOKUP(B14,Questions!$D$4:$F$418,3,FALSE) -> Readibility of tariff system | G14: =IF(COUNTIF(Question_YN_Yes,E14)>0,1,IF(COUNTIF(Question_YN_No,E14)>0,0,"NA")) -> NA
A15: 3.5 | B15: 3.5.1 | D15: =VLOOKUP(B15,Questions!$D$4:$F$418,3,FALSE) -> Design entry/exit area | H15: =F16/$F$33*$I$38 -> 0.5161290323 | I15: =IF(ISNUMBER(SUM(G16:G17)),SUM(G16:G17)/F16*$H$15,0) -> 0
B16: 3.5.2 | D16: =VLOOKUP(B16,Questions!$D$4:$F$418,3,FALSE) -> Entry ticket- machine easy to reach: | F16: 2 | G16: =IF(COUNTIF(Question_YN_Yes,E16)>0,1,IF(COUNTIF(Question_YN_No,E16)>0,0,"NA")) -> NA
B17: 3.5.3 | D17: =VLOOKUP(B17,Questions!$D$4:$F$418,3,FALSE) -> Exit ticket- machine easy to reach: | G17: =IF(COUNTIF(Question_YN_Yes,E17)>0,1,IF(COUNTIF(Question_YN_No,E17)>0,0,"NA")) -> NA
A18: 3.6 | B18: 3.6.1 | D18: =VLOOKUP(B18,Questions!$D$4:$F$418,3,FALSE) -> Longitudinal slope at the ticket machines | H18: =F19/$F$33*$I$38 -> 0.5161290323 | I18: =IF(ISNUMBER(SUM(G19:G20)),SUM(G19:G20)/F19*$H$18,0) -> 0
B19: 3.6.2 | D19: =VLOOKUP(B19,Questions!$D$4:$F$418,3,FALSE) -> Entry lane: • 0-2% (car doesn’t move without brake) = 1 • 2-5% = 0 • Above 5% = -1 | F19: 2 | G19: =IF(COUNTIF(Q_3_6_0_to_2,E19)>0,1,(IF(COUNTIF(Q_3_6_2_to_5,E19)>0,0,(IF(COUNTIF(Q_3_6_above_5,E19)>0,-1,"NA"))))) -> NA
B20: 3.6.3 | D20: =VLOOKUP(B20,Questions!$D$4:$F$418,3,FALSE) -> Exit lane: • 0-2% (car doesn’t move without brake) = 1 • 2-5% = 0 • Above 5% = -1 | G20: =IF(COUNTIF(Q_3_6_0_to_2,E20)>0,1,(IF(COUNTIF(Q_3_6_2_to_5,E20)>0,0,(IF(COUNTIF(Q_3_6_above_5,E20)>0,-1,"NA"))))) -> NA
A21: 3.7 | B21: 3.7 | D21: =VLOOKUP(B21,Questions!$D$4:$F$418,3,FALSE) -> Kerb design to avoid damage to average vehicle’s wheels: (Yes = 2, No protection = 0, No kerbs in entry/exit area = 2) | F21: 2 | G21: =IF(COUNTIF(Q_3_7_Yes,E21)>0,2,(IF(COUNTIF(Q_3_7_no_protection,E21)>0,0,(IF(COUNTIF(Q_3_7_no_kerbs,E21)>0,2,"NA"))))) -> NA | H21: =F21/$F$33*$I$38 -> 0.5161290323 | I21: =IF(ISNUMBER(SUM(G21)),SUM(G21)/F21*$H$21,0) -> 0
A22: 3.8 | B22: 3.8 | D22: =VLOOKUP(B22,Questions!$D$4:$F$418,3,FALSE) -> Anti slip surfaces access/egress ramps: (Anti slip = 1, Slippery when wet = 0) | F22: 1 | G22: =IF(COUNTIF(Q_3_8_Anti_Slip,E22)>0,1,(IF(COUNTIF(Q_3_8_slippery_when_wet,E22)>0,0,"NA"))) -> NA | H22: =F22/$F$33*$I$38 -> 0.2580645161 | I22: =IF(ISNUMBER(SUM(G22)),SUM(G22)/F22*$H$22,0) -> 0
A23: 3.9 | B23: 3.9.1 | D23: =VLOOKUP(B23,Questions!$D$4:$F$418,3,FALSE) -> Access security | H23: =F24/$F$33*$I$38 -> 1.548387097 | I23: =IF(ISNUMBER(SUM(G24:G29)),SUM(G24:G29)/F24*$H$23,0) -> 0
B24: 3.9.2 | D24: =VLOOKUP(B24,Questions!$D$4:$F$418,3,FALSE) -> Barrier | F24: 6 | G24: =IF(COUNTIF(Question_YN_Yes,E24)>0,1,IF(COUNTIF(Question_YN_No,E24)>0,0,"NA")) -> NA
B25: 3.9.3 | D25: =VLOOKUP(B25,Questions!$D$4:$F$418,3,FALSE) -> Intercom | G25: NA
B26: 3.9.4 | D26: =VLOOKUP(B26,Questions!$D$4:$F$418,3,FALSE) -> CCTV | G26: NA
B27: 3.9.5 | D27: =VLOOKUP(B27,Questions!$D$4:$F$418,3,FALSE) -> Licence Plate Recognition | G27: NA
B28: 3.9.6 | D28: =VLOOKUP(B28,Questions!$D$4:$F$418,3,FALSE) -> Full height fast closing gates | G28: NA
B29: 3.9.7 | D29: =VLOOKUP(B29,Questions!$D$4:$F$418,3,FALSE) -> Staffed access(Entry or exit) | G29: NA
A30: 3.10 | B30: 3.10 | D30: =VLOOKUP(B30,Questions!$D$4:$F$418,3,FALSE) -> Exit barrier opens automatically when paid at paystation, based on ANPR: Yes = 2 , no = 0 | F30: 2 | G30: =IF(COUNTIF(Question_YN_Yes,E30)>0,2,IF(COUNTIF(Question_YN_No,E30)>0,0,"NA")) -> NA | H30: =F30/$F$33*$I$38 -> 0.5161290323 | I30: =IF(ISNUMBER(SUM(G30)),SUM(G30)/F30*$H$30,0) -> 0
A31: 3.11 | B31: 3.11 | D31: =VLOOKUP(B31,Questions!$D$4:$F$418,3,FALSE) -> Entry/Exit of the building: width between structure (per lane) (< 3 m =0, 3 – 3.3 m =1, > 3.3 m = 2) | F31: 2 | G31: =IF(COUNTIF(Q_3_11_less_than_3,E31)>0,0,(IF(COUNTIF(Q_3_11_3_to_3_30,E31)>1,1,(IF(COUNTIF(Q_3_11_above_3_30,E31)>0,2,"NA"))))) -> NA | H31: =F31/$F$33*$I$38 -> 0.5161290323 | I31: =IF(ISNUMBER(SUM(G31)),SUM(G31)/F31*$H$31,0) -> 0
A32: 3.12 | B32: 3.12 | D32: =VLOOKUP(B32,Questions!$D$4:$F$418,3,FALSE) -> Exit: exit slope ends at least 5 meters before crossing traffic (pedestrians/cyclists): | F32: 1 | G32: =IF(COUNTIF(Question_YN_Yes,E32)>0,1,IF(COUNTIF(Question_YN_No,E32)>0,0,"NA")) -> NA | H32: =F32/$F$33*$I$38 -> 0.2580645161 | I32: =IF(ISNUMBER(SUM(G32)),SUM(G32)/F32*$H$32,0) -> 0
D33: =CONCATENATE(Tags!$B$50," ",$D$1) -> Subtotals Car Entry / Car Exit | F33: =SUM(F24:F32,F19:F22,F16,F5:F9,F11) -> 31 | G33: =SUM(G5:G9,G11:G14,G16:G17,G19:G22,G24:G32) -> 0 | H33: =SUM(H4:H32) -> 8 | I33: =SUM(I4:I32) -> 0
D35: =Tags!B30 -> Total Items | E35: 12 | G35: =Tags!B34 -> Score | I35: =G33 -> 0 | J35: ='Detailed Results'!M8 -> Incomplete
D36: =Tags!B31 -> Total Items + SubItems | E36: 24 | G36: =Tags!B35 -> Maximum Score | I36: =F33 -> 31
D37: =Tags!B32 -> Itens Completed | E37: =COUNTA(E5:E9,E11:E14,E16:E17,E19:E22,E24:E32) -> 0 | G37: =Tags!B36 -> Percentage | I37: =I35/I36 -> 0
D38: =Tags!B33 -> Not measured | E38: =E36-E37 -> 24 | G38: =Tags!B37 -> Category Value | I38: =VLOOKUP(A1,'Detailed Results'!$A$7:$M$15,11) -> 8
A40: =Tags!B60 -> Notes

Sheet 4. Parking Area
A1: 4 | B1: 4 | D1: =VLOOKUP(A1,Questions!$D$4:$F$418,3,FALSE) -> Parking Area | G1: =IF(E41>0,Tags!B21,Tags!B20) -> Incompleted | H1: Points: | I1: =I41*I40 -> 0 | J1: =I40 -> 0
A3: 4 | B3: 3 | D3: =Tags!B55 -> Item List | E3: =Tags!B56 -> Measured value | F3: =G39 -> Maximum Score | G3: =G38 -> Score | H3: =Tags!B57 -> Maximum Contribuition for Final Score | I3: =Tags!B58 -> Contribuition for Final Score | J3: =Tags!B59 -> Remarks
A4: 4.1 | B4: 4.1 | D4: =VLOOKUP(B4,Questions!$D$4:$F$418,3,FALSE) -> Pillar placement for at least 85% of bays: • does not intrude into the parking area = 8 • at beginning of stall = 0 • next to car door = 0 • at back of stall but intrudes into the parking area = 4 | F4: 8 | G4: =IF(COUNTIF(Q_4_1_Pillar_Does_Not_Intrude,E4)>0,8,(IF(COUNTIF(Q_4_1_Pillar_Beginning_Stall,E4)>0,0,(IF(COUNTIF(Q_4_1_Pillar_next_car_door,E4)>0,0,(IF(COUNTIF(Q_4_1_Pillar_at_Back_of_Stall,E4)>0,4,"NA"))))))) -> NA | H4: =F4/$F$35*$I$41 -> 3.130434783 | I4: =IF(ISNUMBER(G4),G4/$I$39*$I$41,0) -> 0
A5: 4.2 | B5: 4.2 | D5: =VLOOKUP(B5,Questions!$D$4:$F$418,3,FALSE) -> Protection at pillars to avoid car damage: good quality=2, basic quality=1, none=0, irrelevant=2) | F5: 2 | G5: =IF(COUNTIF(Q_4_2_Good_Quality,E5)>0,2,(IF(COUNTIF(Q_4_2_Basic_Quality,E5)>0,1,(IF(COUNTIF(Q_4_2_None,E5)>0,0,IF(COUNTIF(Q_4_2_No_Pillars,E5),2,"NA")))))) -> NA | H5: =F5/$F$35*$I$41 -> 0.7826086957 | I5: =IF(ISNUMBER(G5),G5/$I$39*$I$41,0) -> 0
A6: 4.3 | B6: 4.3 | D6: =VLOOKUP(B6,Questions!$D$4:$F$418,3,FALSE) -> Visibility (many/few dead corners, walls in the car park etc.) Good=4, Medium=2 or Bad=0 | F6: 4 | G6: =IF(COUNTIF(Q_4_3_Good,E6)>0,4,(IF(COUNTIF(Q_4_3_Medium,E6)>0,2,(IF(COUNTIF(Q_4_3_Bad,E6)>0,0,"NA"))))) -> NA | H6: =F6/$F$35*$I$41 -> 1.565217391 | I6: =IF(ISNUMBER(G6),G6/$I$39*$I$41,0) -> 0
A7: 4.4 | B7: 4.4.0 | D7: =VLOOKUP(B7,Questions!$D$4:$F$418,3,FALSE) -> Signage | H7: =(F9+F11+F15)/$F$35*$I$41 -> 2.739130435 | I7: =IF(ISNUMBER(SUM(G9,G11:G13,G15:G17)),SUM(G9,G11:G13,G15:G17)/(F9+F11+F15)*H7,"NA") -> 0
B8: 4.4.1 | D8: =VLOOKUP(B8,Questions!$D$4:$F$418,3,FALSE) -> Signage for car driver:
B9: 4.4.2 | D9: =VLOOKUP(B9,Questions!$D$4:$F$418,3,FALSE) -> Do traffic signs conform to national road code? | F9: 1 | G9: =IF(COUNTIF(Question_YN_Yes,E9)>0,1,IF(COUNTIF(Question_YN_No,E9)>0,0,"NA")) -> NA
B10: 4.4.3 | D10: =VLOOKUP(B10,Questions!$D$4:$F$418,3,FALSE) -> Routing and turn signs: Is signage clear, complete and unambiguous? | G10: =IF(E10=yes,1,IF(E10=no,0,"NA")) -> NA
B11: 4.4.4 | D11: =VLOOKUP(B11,Questions!$D$4:$F$418,3,FALSE) -> Complete ? | F11: 3 | G11: =IF(COUNTIF(Question_YN_Yes,E11)>0,1,IF(COUNTIF(Question_YN_No,E11)>0,0,"NA")) -> NA
B12: 4.4.5 | D12: =VLOOKUP(B12,Questions!$D$4:$F$418,3,FALSE) -> Easy to see ? | G12: =IF(COUNTIF(Question_YN_Yes,E12)>0,1,IF(COUNTIF(Question_YN_No,E12)>0,0,"NA")) -> NA
B13: 4.4.6 | D13: =VLOOKUP(B13,Questions!$D$4:$F$418,3,FALSE) -> Unambiguous ? | G13: =IF(COUNTIF(Question_YN_Yes,E13)>0,1,IF(COUNTIF(Question_YN_No,E13)>0,0,"NA")) -> NA
B14: 4.4.7 | D14: =VLOOKUP(B14,Questions!$D$4:$F$418,3,FALSE) -> Exit signs in the car park: Is signage clear, complete and unambiguous?
B15: 4.4.8 | D15: =VLOOKUP(B15,Questions!$D$4:$F$418,3,FALSE) -> Complete ? | F15: 3 | G15: =IF(COUNTIF(Question_YN_Yes,E15)>0,1,IF(COUNTIF(Question_YN_No,E15)>0,0,"NA")) -> NA
B16: 4.4.9 | D16: =VLOOKUP(B16,Questions!$D$4:$F$418,3,FALSE) -> Easy to see ? | G16: =IF(COUNTIF(Question_YN_Yes,E16)>0,1,IF(COUNTIF(Question_YN_No,E16)>0,0,"NA")) -> NA
B17: 4.4.10 | D17: =VLOOKUP(B17,Questions!$D$4:$F$418,3,FALSE) -> Unambiguous ? | G17: =IF(COUNTIF(Question_YN_Yes,E17)>0,1,IF(COUNTIF(Question_YN_No,E17)>0,0,"NA")) -> NA
A18: 4.5 | B18: 4.5.1 | D18: =VLOOKUP(B18,Questions!$D$4:$F$418,3,FALSE) -> Parking bay marks | F18: 2 | G18: =IF(E18=yes,1,IF(E18=no,0,"NA")) -> NA | H18: =(F19)/$F$35*$I$41 -> 0.7826086957 | I18: =IF(ISNUMBER(SUM(G19:G20)),SUM(G19:G20)/(F19)*H18,"NA") -> 0
B19: 4.5.2 | D19: =VLOOKUP(B19,Questions!$D$4:$F$418,3,FALSE) -> Parking bays are clearly marked ? | F19: 2 | G19: =IF(COUNTIF(Question_YN_Yes,E19)>0,1,IF(COUNTIF(Question_YN_No,E19)>0,0,"NA")) -> NA
B20: 4.5.3 | D20: =VLOOKUP(B20,Questions!$D$4:$F$418,3,FALSE) -> Bay markings extend up walls to assist driver ? | G20: =IF(COUNTIF(Question_YN_Yes,E20)>0,1,IF(COUNTIF(Question_YN_No,E20)>0,0,"NA")) -> NA
A21: 4.6 | B21: 4.6.1 | D21: =VLOOKUP(B21,Questions!$D$4:$F$418,3,FALSE) -> Are Road Markings: | F21: 3 | G21: NA | H21: =(F22)/$F$35*$I$41 -> 1.173913043 | I21: =IF(ISNUMBER(SUM(G22:G24)),SUM(G22:G24)/(F22)*H21,"NA") -> 0
B22: 4.6.2 | D22: =VLOOKUP(B22,Questions!$D$4:$F$418,3,FALSE) -> Complete ? | F22: 3 | G22: =IF(COUNTIF(Question_YN_Yes,E22)>0,1,IF(COUNTIF(Question_YN_No,E22)>0,0,"NA")) -> NA
B23: 4.6.3 | D23: =VLOOKUP(B23,Questions!$D$4:$F$418,3,FALSE) -> Easy to see ? | G23: =IF(COUNTIF(Question_YN_Yes,E23)>0,1,IF(COUNTIF(Question_YN_No,E23)>0,0,"NA")) -> NA
B24: 4.6.4 | D24: =VLOOKUP(B24,Questions!$D$4:$F$418,3,FALSE) -> Unambiguous ? | G24: =IF(COUNTIF(Question_YN_Yes,E24)>0,1,IF(COUNTIF(Question_YN_No,E24)>0,0,"NA")) -> NA
A25: 4.7 | B25: 4.7.0 | D25: =VLOOKUP(B25,Questions!$D$4:$F$418,3,FALSE) -> Disabled Spaces | H25: =(F26)/$F$35*$I$41 -> 1.956521739 | I25: =IF(ISNUMBER(SUM(G26:G30)),SUM(G26:G30)/(F26)*H25,"NA") -> 0
B26: 4.7.1 | D26: =VLOOKUP(B26,Questions!$D$4:$F$418,3,FALSE) -> Availability of spaces for disabled with wheelchair access anounced at the entrance the car park: | F26: 5 | G26: =IF(COUNTIF(Question_YN_Yes,E26)>0,1,IF(COUNTIF(Question_YN_No,E26)>0,0,"NA")) -> NA
B27: 4.7.2 | D27: =VLOOKUP(B27,Questions!$D$4:$F$418,3,FALSE) -> Accessible for wheelchair ? | G27: =IF(COUNTIF(Question_YN_Yes,E27)>0,1,IF(COUNTIF(Question_YN_No,E27)>0,0,"NA")) -> NA
B28: 4.7.3 | D28: =VLOOKUP(B28,Questions!$D$4:$F$418,3,FALSE) -> Bays minimum 3.5 m wide ? | G28: =IF(COUNTIF(Question_YN_Yes,E28)>0,1,IF(COUNTIF(Question_YN_No,E28)>0,0,"NA")) -> NA
B29: 4.7.4 | D29: =VLOOKUP(B29,Questions!$D$4:$F$418,3,FALSE) -> Close to pedestrian exit ? | G29: =IF(COUNTIF(Question_YN_Yes,E29)>0,1,IF(COUNTIF(Question_YN_No,E29)>0,0,"NA")) -> NA
B30: 4.7.5 | D30: =VLOOKUP(B30,Questions!$D$4:$F$418,3,FALSE) -> Guidance to disabled spaces ? | G30: =IF(COUNTIF(Question_YN_Yes,E30)>0,1,IF(COUNTIF(Question_YN_No,E30)>0,0,"NA")) -> NA
A31: 4.8 | B31: 4.8 | D31: =VLOOKUP(B31,Questions!$D$4:$F$418,3,FALSE) -> Parking angle at 85 % of bays: (Angle 76-90° = 0, Angle 45-75° = 2) | F31: 2 | G31: =IF(COUNTIF(Q_4_8_75_90,E31)>0,0,IF(COUNTIF(Q_4_8_45_75,E31)>0,2,"NA")) -> NA | H31: =F31/$I$39*$I$41 -> 0.7826086957 | I31: =IF(ISNUMBER(G31),G31/$I$39*$I$41,0) -> 0
A32: 4.9 | B32: 4.9 | D32: =VLOOKUP(B32,Questions!$D$4:$F$418,3,FALSE) -> Width of bays (85 % of bays), A or B: A: Parking angle 76 – 90 degrees (2.25m = -5, 2.30m = 0, 2.35m = 2, 2.40m = 4, 2.45m = 6, 2.50m = 8) B: Parking angle 45-75 degrees (2.25m = -5, 2.30m = 1, 2.35m = 3, 2.40m = 5, 2.45m = 8) Width of 2.25m only applies for renovated car parks, new car parks must be minimum 2.30m | F32: 8 | G32: =IF(G31=2,IF(E32>=2.45,8,IF(E32>=2.4,5,IF(E32>=2.35,3,IF(E32>=2.3,1,IF(ISBLANK(E31),0,-5))))),IF(E32>=2.5,8,IF(E32>=2.45,6,IF(E32>=2.4,4,IF(E32>=2.35,2,IF(E32>=2.3,0,IF(ISBLANK(E31),0,-5))))))) -> 0 | H32: =F32/$I$39*$I$41 -> 3.130434783 | I32: =IF(ISNUMBER(G32),G32/$I$39*$I$41,0) -> 0
A33: 4.10 | B33: 4.10 | D33: =VLOOKUP(B33,Questions!$D$4:$F$418,3,FALSE) -> Total unit measure of one way isle width and depth of two parking bays, depending on parking angle and bay width: Bay width: 2.50m / 2.45m / 2.40m / 2.35m / 2.30m 90° : 16.00 / 16.30 / 16.60 / 16.90 / 17.30 85° : 15.70 / 16.00 / 16.30 / 16.60 / 16.95 80° : 15.40 / 15.70 / 16.00 / 16.30 / 16.60 75° : 14.95 / 15.25 / 15.55 / 15.85 / 16.15 70° : 14.50 / 14.80 / 15.10 / 15.40 / 15.70 65° : 14.40 / 14.40 / 14.55 / 14.80 / 15.10 60° : 14.30 / 14.30 / 14.30 / 14.30 / 14.50 55° : 14.00 / 14.00 / 14.00 / 14.00 / 14.10 50° : 13.75 / 13.75 / 13.75 / 13.75 / 13.75 45° : 13.50 / 13.50 / 13.50 / 13.50 / 13.50 Total unit measure as above qualifies for 3 points. Up to 30 cm less qualifies for 2 points Up to 60 cm less qualifies for 1 point More than 60 cm less: no points given | F33: 3 | G33: =IF(COUNTIF(Q_4_10_Compliant_with_Table,E33)>0,3,(IF(COUNTIF(Q_4_10_up_30_less,E33)>0,2,(IF(COUNTIF(Q_4_10_up_60_less,E33)>0,1,(IF(COUNTIF(Q_4_10_more_60,E33)>0,0,"NA"))))))) -> NA | H33: =F33/$I$39*$I$41 -> 1.173913043 | I33: =IF(ISNUMBER(G33),G33/$I$39*$I$41,0) -> 0
A34: 4.11 | B34: 4.11 | D34: =VLOOKUP(B34,Questions!$D$4:$F$418,3,FALSE) -> Kerb design to avoid damage to average vehicle’s wheels • Yes = 2, No protection = 0 , No kerbs = 2 | F34: 2 | G34: =IF(COUNTIF(option_yes_Kerbs,E34)>0,2,(IF(COUNTIF(option_No_protection_kerbs,E34)>0,0,(IF(COUNTIF(optiob_no_kerbs,E34)>0,2,"NA"))))) -> NA | H34: =F34/$I$39*$I$41 -> 0.7826086957 | I34: =IF(ISNUMBER(G34),G34/$I$39*$I$41,0) -> 0
D35: =CONCATENATE(Tags!$B$50," ",$D$1) -> Subtotals Parking Area | F35: =F34+F33+F32+F31+F26+F22+F19+F15+F11+F9+F6+F5+F4 -> 46 | G35: =SUM(G4:G6,G9,G11:G13,G15:G17,G19:G20,G22:G24,G26:G34) -> 0 | H35: =SUM(H4:H33) -> 17.2173913 | I35: =SUM(I4:I33) -> 0
D38: =Tags!B30 -> Total Items | E38: 11 | G38: =Tags!B34 -> Score | I38: =G35 -> 0 | J38: ='Detailed Results'!M9 -> Incomplete
D39: =Tags!B31 -> Total Items + SubItems | E39: 24 | G39: =Tags!B35 -> Maximum Score | I39: =H36+F35 -> 46
D40: =Tags!B32 -> Itens Completed | E40: =COUNTA(E4:E6,E9,E11:E13,E15:E17,E19:E20,E22:E24,E26:E34) -> 0 | G40: =Tags!B36 -> Percentage | I40: =I38/I39 -> 0
D41: =Tags!B33 -> Not measured | E41: =E39-E40 -> 24 | G41: =Tags!B37 -> Category Value | I41: =VLOOKUP(A1,'Detailed Results'!$A$7:$M$15,11) -> 18
A43: =Tags!B60 -> Notes
E64: Coluna | F64: =IF(opt_angle=F75,2,IF(opt_angle=F76,3,4)) -> 4 | H64: Option 4_8: | I64: =MATCH('4. Parking Area'!$E$31,$E$67:$E$72) -> 
F66: Opção | G66: 76-90 | H66: 45-75 | I66: Column2
E67: =Answers!B63 -> 2.25 m - 2.30 m | F67: 1 | G67: -5 | H67: -5 | I67: NA
E68: =Answers!B64 -> 2.30 m - 2.35 m | F68: 2 | G68: 0 | H68: 1 | I68: NA
E69: =Answers!B65 -> 2.35 m - 2.40 m | F69: 3 | G69: 2 | H69: 3 | I69: NA
E70: =Answers!B66 -> 2.40 m - 2.45 m | F70: 4 | G70: 4 | H70: 5 | I70: NA
E71: =Answers!B67 -> 2.45 m - 2.50 m | F71: 5 | G71: 6 | H71: 8 | I71: NA
E72: =Answers!B68 -> above 2.50 m | F72: 6 | G72: 8 | H72: 8 | I72: NA
G73: NA | H73: NA | I73: NA
E75: 4.7: | F75: =Answers!B60 -> Angle 76°-90°
F76: =Answers!B61 -> Angle 45°-75°

Sheet 5. Ramps
A1: 5 | B1: 5 | D1: =VLOOKUP(A1,Questions!$D$4:$F$418,3,FALSE) -> Vehicle Ramps | G1: =IF(E17>0,Tags!B21,Tags!B20) -> Incompleted | H1: Points: | I1: =I16*I17 -> 0 | J1: =I16 -> 0
B3: 3 | D3: =Tags!B55 -> Item List | E3: =Tags!B56 -> Measured value | F3: =G15 -> Maximum Score | G3: =G14 -> Score | H3: =Tags!B57 -> Maximum Contribuition for Final Score | I3: =Tags!B58 -> Contribuition for Final Score | J3: =Tags!B59 -> Remarks
A4: 5.1 | B4: 5.1 | D4: =VLOOKUP(B4,Questions!$D$4:$F$418,3,FALSE) -> Ramp surface between parking areas (Anti slip 1, Smooth 0, no ramps 1) | F4: 1 | G4: =IF(COUNTIF(Q_5_1_Antislip,E4)>0,1,(IF(COUNTIF(Q_5_1_Smooth,E4)>0,0,(IF(COUNTIF(Q_5_1_NoRamps,E4)>0,1,"NA"))))) -> NA | H4: =F4/$I$15*$I$17 -> 0.5714285714 | I4: =IF(ISNUMBER(G4),G4/$I$15*$I$17,0) -> 0
A5: 5.2 | B5: 5.2 | D5: =VLOOKUP(B5,Questions!$D$4:$F$418,3,FALSE) -> Ramp longitudinal gradient connecting ramps (not used for parking) • <10%=3, 10-15%=1, >15%=0, no ramps=3 | F5: 3 | G5: =IF(COUNTIF(Q_5_2_less10,E5)>0,3,(IF(COUNTIF(Q_5_2_10_to_15,E5)>0,1,(IF(COUNTIF(Q_5_2_More_than_15,E5)>0,0,(IF(COUNTIF(Q_5_2_No_Ramps,E5)>0,3,"NA"))))))) -> NA | H5: =F5/$I$15*$I$17 -> 1.714285714 | I5: =IF(ISNUMBER(G5),G5/$I$15*$I$17,0) -> 0
A6: 5.3 | B6: 5.3.1 | D6: =VLOOKUP(B6,Questions!$D$4:$F$418,3,FALSE) -> Ramp width (between kerbs) all ramps measured at narrowest point | F6: 3 | G6: =IF(COUNTIF(Q_5_3_Less_than_3,E8)>0,0,(IF(COUNTIF(Q_5_3_3_to_330,E8)>0,1,(IF(COUNTIF(Q_5_3_more_than_33,E8)>0,3,(IF(COUNTIF(Q_5_3_noramps,E8)>0,3,(IF(COUNTIF(Q_3_3_Alt_less_then_4,E8)>0,0,(IF(COUNTIF(Q_5_3_Alt_4_to_43,E8)>0,1,(IF(COUNTIF(Q_5_3_Alt_more_then_43,E8)>0,3,"#NA"))))))))))))) -> #NA | H6: =F6/$I$15*$I$17 -> 1.714285714 | I6: =IF(ISNUMBER(G6),G5/$I$15*$I$17,0) -> 0
B7: 5.3.2 | D7: =VLOOKUP(B7,Questions!$D$4:$F$418,3,FALSE) -> Curved ramps must be 1 m wider for same score. Are the ramps curbed?
B8: 5.3.3 | D8: =IF(rampsCurved=yes,VLOOKUP(Questions!$D$102,Questions!$D$4:$F$418,3,FALSE),VLOOKUP(B8,Questions!$D$4:$F$418,3,FALSE)) -> Please choose width. < 3m=0, 3-3.3m=1, >3.3m=3, no ramps=3
A9: 5.4 | B9: 5.4 | D9: =VLOOKUP(B9,Questions!$D$4:$F$418,3,FALSE) -> Ramp curvature (external radius) curved ramps • up to 9m=0, 9–10 m=1, >10m=2, no ramps=2 At dual way ramps this measure refers to the inner lane. | F9: 2 | G9: =IF(COUNTIF(Q_5_4_less_than_9m,E9)>0,0,(IF(COUNTIF(Q_5_4_9_to_10,E9)>0,1,(IF(COUNTIF(Q_5_4_more_than_10,E9)>0,2,(IF(COUNTIF(Q_5_4_No_Ramps,E9)>0,2,"NA"))))))) -> NA | H9: =F9/$I$15*$I$17 -> 1.142857143 | I9: =IF(ISNUMBER(G9),G9/$I$15*$I$17,0) -> 0
A10: 5.5 | B10: 5.5 | D10: =VLOOKUP(B10,Questions!$D$4:$F$418,3,FALSE) -> Approach curve to straight ramps • <7.5m=0, 7.5–9m=1, >9m=2, no ramps=2 | F10: 2 | G10: =IF(COUNTIF(Q_5_5_less_75,E10)>0,0,(IF(COUNTIF(Q_5_5_75_to_9,E10)>0,1,(IF(COUNTIF(Q_5_5_more_then_9,E10)>0,2,(IF(COUNTIF(Q_5_5_No_Ramps,E10)>0,2,"NA"))))))) -> NA | H10: =F10/$I$15*$I$17 -> 1.142857143 | I10: =IF(ISNUMBER(G10),G10/$I$15*$I$17,0) -> 0
A11: 5.6 | B11: 5.6 | D11: =VLOOKUP(B11,Questions!$D$4:$F$418,3,FALSE) -> Ramped parking floor longitudinal gradient • <5%=3, 5-7 =1, >7%=0, no gradient=3 | F11: 3 | G11: =IF(COUNTIF(Q_5_6_Less_than_5,E11)>0,3,(IF(COUNTIF(Q_5_6_5_to_7,E11)>0,1,(IF(COUNTIF(Q_5_6_more_than_7,E11)>0,0,(IF(COUNTIF(Q_5_6_No_Gradient,E11)>0,3,"NA"))))))) -> NA | H11: =F11/$I$15*$I$17 -> 1.714285714 | I11: =IF(ISNUMBER(G11),G11/$I$15*$I$17,0) -> 0
D12: =CONCATENATE(Tags!$B$50," ",$D$1) -> Subtotals Vehicle Ramps | F12: =SUM(F4:F11) -> 14 | G12: =SUM(G4:G11) -> 0 | H12: =SUM(H4:H11) -> 8 | I12: =SUM(I4:I11) -> 0
D14: =Tags!B30 -> Total Items | E14: 6 | G14: =Tags!B34 -> Score | I14: =G12 -> 0 | J14: ='Detailed Results'!M10 -> Incomplete
D15: =Tags!B31 -> Total Items + SubItems | E15: 7 | G15: =Tags!B35 -> Maximum Score | I15: =F12 -> 14
D16: =Tags!B32 -> Itens Completed | E16: =COUNTA(E7:E11,E4:E5) -> 0 | G16: =Tags!B36 -> Percentage | I16: =I14/I15 -> 0
D17: =Tags!B33 -> Not measured | E17: =+E15-E16 -> 7 | G17: =Tags!B37 -> Category Value | I17: =VLOOKUP(A1,'Detailed Results'!$A$7:$M$15,11) -> 8
A19: =Tags!B60 -> Notes
A40: Auxiliar for 5.3
A42: =IF($E$7=no,Answers!B88,Answers!B93) -> Less than 4m
A43: =IF($E$7=no,Answers!B89,Answers!B94) -> 4m - 4.3m
A44: =IF($E$7=no,Answers!B90,Answers!B95) -> More than 4.3 m
A45: =IF($E$7=no,Answers!B91,Answers!B96) -> no ramps

Sheet 6. Pedestrian Access
A1: 6 | B1: 6 | D1: =VLOOKUP(A1,Questions!$D$4:$F$418,3,FALSE) -> Pedestrian Access | G1: =IF(E36>0,Tags!B21,Tags!B20) -> Incompleted | H1: Points: | I1: =I35*I36 -> 0 | J1: =I35 -> 0
A3: 6 | B3: 3 | D3: =Tags!B55 -> Item List | E3: =Tags!B56 -> Measured value | F3: =G34 -> Maximum Score | G3: =G33 -> Score | H3: =Tags!B57 -> Maximum Contribuition for Final Score | I3: =Tags!B58 -> Contribuition for Final Score | J3: =Tags!B59 -> Remarks
B4: 6.0.1 | D4: =VLOOKUP(B4,Questions!$D$4:$F$418,3,FALSE) -> Is this a Single level car park at ground floor, (not open surface) ? | F4: 25 | G4: =IF(COUNTIF(Question_YN_Yes,slcp)>0,25,IF(COUNTIF(Question_YN_No,slcp)>0,0,"NA")) -> NA | H4: =F4/$I$34*$I$36 -> 9.302325581 | I4: =IF(ISNUMBER(G4),G4/$I$34*$I$36,0) -> 0
B5: 6.0.2 | D5: =VLOOKUP(B5,Questions!$D$4:$F$418,3,FALSE) -> Is there elevators serving street level?
B6: 6.0.3 | D6: =VLOOKUP(B6,Questions!$D$4:$F$418,3,FALSE) -> Are elevators the main vertical connection? (stairs only secondary or escape) | I6: =IF(ISNUMBER(G6),G6/$I$34*$I$36,0) -> 0
A7: 6.1 | B7: 6.1 | D7: =VLOOKUP(B7,Questions!$D$4:$F$418,3,FALSE) -> Headroom for pedestrians - excluding doors • <2.00m = 0 • 2.00m – 2.10m = 1 • 2.10m – 2.20m = 2 • > 2.20m = 3 | F7: 3 | G7: =IF(COUNTIF(Q_6_1_Less_Than_2,E7)>0,0,(IF(COUNTIF(Q_6_1_2_to_210,E7)>0,1,(IF(COUNTIF(Q_6_1_210_to_220,E7)>0,2,(IF(COUNTIF(Q_6_1_more_than_220,E7)>0,3,"NA"))))))) -> NA | H7: =F7/$I$34*$I$36 -> 1.11627907 | I7: 0
A8: 6.2 | B8: 6.2 | D8: =VLOOKUP(B8,Questions!$D$4:$F$418,3,FALSE) -> Separate walking route (i.e. heightened; zebra stripes or colours) (yes = 2, no = 0) | F8: 2 | G8: =IF(COUNTIF(Question_YN_Yes,E8)>0,2,IF(COUNTIF(Question_YN_No,E8)>0,0,"NA")) -> NA | H8: 0.7441860465 | I8: 0
A9: 6.3 | B9: 6.3 | D9: =VLOOKUP(B9,Questions!$D$4:$F$418,3,FALSE) -> Are pedestrian entrance doors easy to use? (Yes, automatic or open connection = 4, Easy to open = 2, No = 0) | F9: 4 | G9: =IF(COUNTIF(Q_6_3_Yes_Automatic,E9)>0,4,(IF(COUNTIF(Q_6_3_Easy_to_Open,E9)>0,2,(IF(COUNTIF(Q_6_3_No,E9)>0,1,"NA"))))) -> NA | H9: 1.488372093 | I9: 0
A10: 6.4 | B10: 6.4 | D10: =VLOOKUP(B10,Questions!$D$4:$F$418,3,FALSE) -> Pedestrian access controlled by ticket/pass card when car park open (Yes=1, No=0) | F10: 1 | G10: =IF(COUNTIF(Question_YN_Yes,E10)>0,1,IF(COUNTIF(Question_YN_No,E10)>0,0,"NA")) -> NA | H10: 0.3720930233 | I10: 0
A11: 6.5 | B11: 6.5 | D11: =VLOOKUP(B11,Questions!$D$4:$F$418,3,FALSE) -> Number of Elevators at street level: (1 elevator = 1, 2 + elevators = 5) | F11: 5 | G11: =IF(OR(G4=25,COUNTIF(Question_YN_No,essl)>0),0,IF(COUNTIF(Q_6_5_One_Elevator,E11)>0,1,IF(COUNTIF(Q_6_5_More_Elevators,E11)>0,5,"NA"))) -> NA | H11: 1.860465116 | I11: 0
A12: 6.6 | B12: 6.6 | D12: =VLOOKUP(B12,Questions!$D$4:$F$418,3,FALSE) -> Size of elevators: (More Than 8 people = 3, 4-8 people = 1, less than 4 = 0) | F12: 3 | G12: =IF(OR(G4=25,COUNTIF(Question_YN_No,essl)>0),0,IF(COUNTIF(Q_6_6_More_Then_8,E12)>0,3,(IF(COUNTIF(Q_6_6_4_to_8,E12)>0,1,(IF(COUNTIF(Q_6_6_Less_Then_4,E12)>0,1,"NA")))))) -> NA | H12: 1.11627907 | I12: 0
A13: 6.7 | B13: 6.7 | D13: =VLOOKUP(B13,Questions!$D$4:$F$418,3,FALSE) -> Visibility from elevator inside to hall/parking area (no visibility from elevator = 0, glazed doors/walls = 3, no elevator = 0) | F13: 3 | G13: =IF(G4=25,0,IF(COUNTIF(Q_6_7_No_Visibility,E13)>0,0,(IF(COUNTIF(Q_6_7_Glazed_Doors,E13)>0,3,(IF(COUNTIF(Q_6_7_No_Elevator,E13)>0,0,"NA")))))) -> NA | H13: 1.11627907 | I13: 0
A14: 6.8 | B14: 6.8.1 | D14: =VLOOKUP(B14,Questions!$D$4:$F$418,3,FALSE) -> Level indication: | H14: =F15/$I$34*$I$36 -> 0.7441860465 | I14: =IF(ISNUMBER(SUM(G15:G16)),SUM(G15:G16)/$I$34*$I$36,0) -> 0
B15: 6.8.2 | D15: =VLOOKUP(B15,Questions!$D$4:$F$418,3,FALSE) -> in elevator: | F15: 2 | G15: =IF(G4=25,0,IF(COUNTIF(Question_YN_Yes,E15)>0,1,IF(COUNTIF(Question_YN_No,E15)>0,0,"NA"))) -> NA
B16: 6.8.3 | D16: =VLOOKUP(B16,Questions!$D$4:$F$418,3,FALSE) -> in elevator foyer: | G16: =IF(G4=25,0,IF(COUNTIF(Question_YN_Yes,E16)>0,1,IF(COUNTIF(Question_YN_No,E16)>0,0,"NA"))) -> NA
A17: 6.9 | B17: 6.9 | D17: =VLOOKUP(B17,Questions!$D$4:$F$418,3,FALSE) -> Elevator control buttons at wheelchair height • Yes = 1, No = 0 | F17: 1 | G17: =IF(G4=25,0,IF(COUNTIF(Question_YN_Yes,E17)>0,1,IF(COUNTIF(Question_YN_No,E17)>0,0,"NA"))) -> NA | H17: =F17/$I$34*$I$36 -> 0.3720930233 | I17: =IF(ISNUMBER(G17),G17/$I$34*$I$36,0) -> 0
A18: 6.10 | B18: 6.10.1 | D18: =VLOOKUP(B18,Questions!$D$4:$F$418,3,FALSE) -> Doors directly to parking area | H18: =F19/$I$34*$I$36 -> 2.604651163 | I18: =IF(ISNUMBER(SUM(G19:G21)),SUM(G19:G21)/$I$34*$I$36,0) -> 0
B19: 6.10.2 | D19: =VLOOKUP(B19,Questions!$D$4:$F$418,3,FALSE) -> Width (<90 cm =0, >=90 cm = 2) | F19: 7 | G19: =IF(G4=25,0,IF(COUNTIF(Q_6_10_1_lee_than_90,E19)>0,0,IF(COUNTIF(Q_6_10_1_more_then_90,E19)>0,2,"NA"))) -> NA
B20: 6.10.3 | D20: =VLOOKUP(B20,Questions!$D$4:$F$418,3,FALSE) -> Emergency door, standard open (Yes=2, No= 0) | G20: =IF(G4=25,0,IF(COUNTIF(Question_YN_Yes,E20)>0,2,IF(COUNTIF(Question_YN_No,E20)>0,0,"NA"))) -> NA
B21: 6.10.4 | D21: =VLOOKUP(B21,Questions!$D$4:$F$418,3,FALSE) -> Visibility (Glazed door/wall = 3, No Glass = 0) | G21: =IF(G4=25,0,IF(COUNTIF(Q_6_10_3_Glazed,E21)>0,3,IF(COUNTIF(Q_6_10_3_No_Glass,E21)>0,0,"NA"))) -> NA
A22: 6.11 | B22: 6.11.1 | D22: =VLOOKUP(B22,Questions!$D$4:$F$418,3,FALSE) -> Stairwells (visibility and orientation) | H22: =F23/$I$34*$I$36 -> 0.7441860465 | I22: =IF(ISNUMBER(SUM(G23:G24)),SUM(G23:G24)/$I$34*$I$36,0) -> 0
B23: 6.11.2 | D23: =VLOOKUP(B23,Questions!$D$4:$F$418,3,FALSE) -> Clear View (Yes = 1, No = 0, Irrelevant = 1) | F23: 2 | G23: =IF(OR(G4=25,COUNTIF(Question_YN_Yes,emvc)>0),0,IF(COUNTIF(Question_YN_Yes,E23)>0,1,(IF(COUNTIF(Question_YN_No,E23)>0,0,(IF(COUNTIF(Question_Irrelevant,E23)>0,1,"NA")))))) -> NA
B24: 6.11.3 | D24: =VLOOKUP(B24,Questions!$D$4:$F$418,3,FALSE) -> Level Indication (Yes = 1, No = 0, Irrelevant = 1) | G24: =IF(OR(G4=25,COUNTIF(Question_YN_Yes,emvc)>0),0,IF(COUNTIF(Question_YN_Yes,E24)>0,1,(IF(COUNTIF(Question_YN_No,E24)>0,0,(IF(COUNTIF(Question_Irrelevant,E24)>0,1,"NA")))))) -> NA
A25: 6.12 | B25: 6.12.1 | D25: =VLOOKUP(B25,Questions!$D$4:$F$418,3,FALSE) -> Stairs (incl. heightened visibility of steps) | H25: =F26/$I$34*$I$36 -> 2.976744186 | I25: =IF(ISNUMBER(SUM(G26:G29)),SUM(G26:G29)/$I$34*$I$36,0) -> 0
B26: 6.12.2 | D26: =VLOOKUP(B26,Questions!$D$4:$F$418,3,FALSE) -> Width (< 1.5 m = 0, > 1.5m = 2) | F26: 8 | G26: =IF(OR(G4=25,COUNTIF(Question_YN_Yes,emvc)>0),0,IF(COUNTIF(Q_6_12_1_less,E26)>0,0,IF(COUNTIF(Q_6_12_1_more,E26)>0,2,"NA"))) -> NA
B27: 6.12.3 | D27: =VLOOKUP(B27,Questions!$D$4:$F$418,3,FALSE) -> Hand Rails (No hand rail =0, One Side = 1, Two sides=2) | G27: =IF(OR(G4=25,COUNTIF(Question_YN_Yes,emvc)>0),0,IF(COUNTIF(Q_6_12_2_No_handrail,E27)>0,0,(IF(COUNTIF(Q_6_12_2_One_Side,E27)>0,1,(IF(COUNTIF(Q_6_12_2_two_sides,E27)>0,2,"NA")))))) -> NA
B28: 6.12.4 | D28: =VLOOKUP(B28,Questions!$D$4:$F$418,3,FALSE) -> Heightened visibility of steps for people with poor eyesight (Yes = 2, No = 0) | G28: =IF(OR(G4=25,COUNTIF(Question_YN_Yes,emvc)>0),0,IF(COUNTIF(Question_YN_Yes,E28)>0,2,IF(COUNTIF(Question_YN_No,E28)>0,0,"NA"))) -> NA
B29: 6.12.5 | D29: =VLOOKUP(B29,Questions!$D$4:$F$418,3,FALSE) -> Anti-slip surfacing on stairs: (Yes = 2, No = 0) | G29: =IF(OR(G4=25,COUNTIF(Question_YN_Yes,emvc)>0),0,IF(COUNTIF(Question_YN_Yes,E29)>0,2,IF(COUNTIF(Question_YN_No,E29)>0,0,"NA"))) -> NA
A30: 6.13 | B30: 6.13 | D30: =VLOOKUP(B30,Questions!$D$4:$F$418,3,FALSE) -> External openings in stairwell (window/grilled to outside or car park =2, none =0) | F30: 2 | G30: =IF(OR(G4=25,COUNTIF(Question_YN_Yes,emvc)>0),0,IF(COUNTIF(Q_6_13_Window_Grill,E30)>0,2,IF(COUNTIF(Q_6_13_None,E30)>0,0,"NA"))) -> NA | H30: =F30/$I$34*$I$36 -> 0.7441860465 | I30: =IF(ISNUMBER(G30),G30/$I$34*$I$36,0) -> 0
D31: =CONCATENATE(Tags!$B$50," ",$D$1) -> Subtotals Pedestrian Access | F31: =SUM(F7:F30) -> 43 | G31: =SUM(G4,G5:G13,G15:G17,G19:G21,G26:G29,G30,G23:G24) -> 0 | H31: =SUM(H7:H10,H11:H21,H22:H30) -> 16 | I31: =SUM(I7:I30) -> 0
D33: =Tags!B30 -> Total Items | E33: 13 | G33: =Tags!B34 -> Score | I33: =G31 -> 0 | J33: ='Detailed Results'!M11 -> Incomplete
D34: =Tags!B31 -> Total Items + SubItems | E34: =IF(slcp=yes,5,23-2*(essl=no)-7*(emvc=yes)) -> 23 | G34: =Tags!B35 -> Maximum Score | I34: =F31 -> 43
D35: =Tags!B32 -> Itens Completed | E35: =COUNTA(E7:E10,E4:E4)+COUNTA(E5:E6,E11:E30)*(slcp=no)-COUNTA(E11:E12)*(essl=no)-COUNTA(E23:E30)*(emvc=yes) -> 0 | G35: =Tags!B36 -> Percentage | I35: =I33/I34 -> 0
D36: =Tags!B33 -> Not measured | E36: =E34-E35 -> 23 | G36: =Tags!B37 -> Category Value | I36: =VLOOKUP(A1,'Detailed Results'!$A$7:$M$15,11) -> 16
A38: =Tags!B60 -> Notes

Sheet 7. Security equipment
A1: 7 | B1: 7 | D1: =VLOOKUP(A1,Questions!$D$4:$F$418,3,FALSE) -> Security Equipment | G1: =IF(E28>0,Tags!B21,Tags!B20) -> Incompleted | H1: Points: | I1: =I27*I28 -> 0 | J1: =I27 -> 0
A3: 7 | B3: 3 | D3: =Tags!B55 -> Item List | E3: =Tags!B56 -> Measured value | F3: =G26 -> Maximum Score | G3: =G25 -> Score | H3: =Tags!B57 -> Maximum Contribuition for Final Score | I3: =Tags!B58 -> Contribuition for Final Score | J3: =Tags!B59 -> Remarks
A4: 7.1 | B4: 7.1 | D4: =VLOOKUP(B4,Questions!$D$4:$F$418,3,FALSE) -> CCTV with notice at entrance = 3, No CCTV =0 | F4: 3 | G4: =IF(COUNTIF(Question_YN_Yes,E4)>0,3,IF(COUNTIF(Question_YN_No,E4)>0,0,"NA")) -> NA | H4: =F4/$I$26*$I$28 -> 0.6486486486 | I4: =IF(ISNUMBER(G4),G4/$I$26*$I$28,0) -> 0
A5: 7.2 | B5: 7.2 | D5: =VLOOKUP(B5,Questions!$D$4:$F$418,3,FALSE) -> Staff surveillance (on-site or remote) • Yes = 5, No = 0 | F5: 5 | G5: =IF(COUNTIF(Question_YN_Yes,E5)>0,5,IF(COUNTIF(Question_YN_No,E5)>0,0,"NA")) -> NA | H5: =F5/$I$26*$I$28 -> 1.081081081 | I5: =IF(ISNUMBER(G5),G5/$I$26*$I$28,0) -> 0
A6: 7.3 | B6: 7.3.1 | D6: =VLOOKUP(B6,Questions!$D$4:$F$418,3,FALSE) -> CCTV at: | G6: =IF(ISERROR(G7+G8+G9+G10+G11+G12+G13+G14),"NA",SUM(G7:G14)) -> NA | H6: =F7/$I$26*$I$28 -> 2.162162162 | I6: =IF(ISNUMBER(G6),G6/$I$26*$I$28,0) -> 0
B7: 7.3.2 | D7: =VLOOKUP(B7,Questions!$D$4:$F$418,3,FALSE) -> Car Entry: Yes =1, No =0 | F7: 10 | G7: =IF(COUNTIF(Question_YN_Yes,E7)>0,1,IF(COUNTIF(Question_YN_No,E7)>0,0,"NA")) -> NA
B8: 7.3.3 | D8: =VLOOKUP(B8,Questions!$D$4:$F$418,3,FALSE) -> Car Exit: Yes =1, No =0 | G8: NA
B9: 7.3.4 | D9: =VLOOKUP(B9,Questions!$D$4:$F$418,3,FALSE) -> Pay Machine: Yes =1, No =0 | G9: NA
B10: 7.3.5 | D10: =VLOOKUP(B10,Questions!$D$4:$F$418,3,FALSE) -> Elevator Hall, every level: Yes =1, No =0 | G10: NA
B11: 7.3.6 | D11: =VLOOKUP(B11,Questions!$D$4:$F$418,3,FALSE) -> Stairwells, every level: Yes =1, No =0 | G11: NA
B12: 7.3.7 | D12: =VLOOKUP(B12,Questions!$D$4:$F$418,3,FALSE) -> Pedestrian Entrances: Yes =1, No =0 | G12: NA
B13: 7.3.8 | D13: =VLOOKUP(B13,Questions!$D$4:$F$418,3,FALSE) -> Most of Parking Area (65%):Yes =3, No =0 | G13: =IF(COUNTIF(Question_YN_Yes,E13)>0,3,IF(COUNTIF(Question_YN_No,E13)>0,0,"NA")) -> NA
B14: 7.3.9 | D14: =VLOOKUP(B14,Questions!$D$4:$F$418,3,FALSE) -> Ramps: Yes = 1, No = 0 | G14: =IF(COUNTIF(Question_YN_Yes,E14)>0,1,IF(COUNTIF(Question_YN_No,E14)>0,0,"NA")) -> NA
A15: 7.4 | B15: 7.4.1 | D15: =VLOOKUP(B15,Questions!$D$4:$F$418,3,FALSE) -> Staff contactable via: | G15: =IF(ISERROR(G16+G17),"NA",SUM(G16:G17)) -> NA | H15: =F16/$I$26*$I$28 -> 1.297297297 | I15: =IF(ISNUMBER(G15),G15/$I$26*$I$28,0) -> 0
B16: 7.4.2 | D16: =VLOOKUP(B16,Questions!$D$4:$F$418,3,FALSE) -> Intercom at pay machine and/or controlled entries (24/7=3, All access hours if not 24/7= 2, Part time/not available = 0) | F16: 6 | G16: =IF(COUNTIF(Q_7_4_24_7,E16)>0,3,(IF(COUNTIF(Q_7_4_All_Access_Hours,E16)>0,2,(IF(COUNTIF(Q_7_4_PartTime,E16)>0,0,"NA"))))) -> NA
B17: 7.4.3 | D17: =VLOOKUP(B17,Questions!$D$4:$F$418,3,FALSE) -> Emergency call system in parking area (24/7=3, All access hours if not 24/7= 2, Part time/not available = 0) | G17: =IF(COUNTIF(Q_7_4_24_7,E17)>0,3,(IF(COUNTIF(Q_7_4_All_Access_Hours,E17)>0,2,(IF(COUNTIF(Q_7_4_PartTime,E17)>0,0,"NA"))))) -> NA
A18: 7.5 | B18: 7.5 | D18: =VLOOKUP(B18,Questions!$D$4:$F$418,3,FALSE) -> Recognizable staff present and patrolling car park (24/7 = 3, During access Hours = 2, Less than access Hours = 1, No = 0) | F18: 3 | G18: =IF(COUNTIF(Q_7_5_24_7,E18)>0,3,(IF(COUNTIF(Q_7_5_Access_Times,E18)>0,2,(IF(COUNTIF(Q_7_5_Less_Then,E18)>0,1,(IF(COUNTIF(Q_7_5_No,E18)>0,0,"NA"))))))) -> NA | H18: =F18/$I$26*$I$28 -> 0.6486486486 | I18: =IF(ISNUMBER(G18),G18/$I$26*$I$28,0) -> 0
A19: 7.6 | B19: 7.6 | D19: =VLOOKUP(B19,Questions!$D$4:$F$418,3,FALSE) -> Lockable vehicle exit/entry: (Closed gate/rolling shutter after access hours = 2, Secured: fast opening gate during day = 4, Secured: slow opening gate during day = 2, No provisions = 0) | F19: 4 | G19: =IF(COUNTIF(Q_7_6_Closed,E19)>0,2,(IF(COUNTIF(Q_7_6_Secured,E19)>0,4,(IF(COUNTIF(Q_7_6_Slow_Opening,E19)>0,2,(IF(COUNTIF(Q_7_6_No_Provisions,E19)>0,0,"NA"))))))) -> NA | H19: =F19/$I$26*$I$28 -> 0.8648648649 | I19: =IF(ISNUMBER(G19),G19/$I$26*$I$28,0) -> 0
A20: 7.7 | B20: 7.7 | D20: =VLOOKUP(B20,Questions!$D$4:$F$418,3,FALSE) -> Lockable pedestrian exit/entry (after opening hours). (Door/gate/rolling shutter <= 15cm maximum aperture = 2, over 15 cm = 0, no provisions = 0, Irrelevant (24 hours opening) = 4) | F20: 4 | G20: =IF(COUNTIF(Q_7_7_Less_then_15,E20)>0,2,(IF(COUNTIF(Q_7_7_more_than_15,E20)>0,0,(IF(COUNTIF(Q_7_7_No_Provisions,E20)>0,0,(IF(COUNTIF(Q_7_7_Irrelevant,E20)>0,2,"NA"))))))) -> NA | H20: =F20/$I$26*$I$28 -> 0.8648648649 | I20: =IF(ISNUMBER(G20),G20/$I$26*$I$28,0) -> 0
A21: 7.8 | B21: 7.8 | D21: =VLOOKUP(B21,Questions!$D$4:$F$418,3,FALSE) -> Grilles on external openings & security grilles (<= 15 cm = 2, > 15 cm or no protection= 0, Irrelevant (no external openings) = 2) | F21: 2 | G21: =IF(COUNTIF(Q_7_8_Less_than_15,E21)>0,2,(IF(COUNTIF(Q_7_8_More_than_15,E21)>0,0,(IF(COUNTIF(Q_7_8_Irrelevant,E21)>0,2,"NA"))))) -> NA | H21: =F21/$I$26*$I$28 -> 0.4324324324 | I21: =IF(ISNUMBER(G21),G21/$I$26*$I$28,0) -> 0
D22: =CONCATENATE(Tags!$B$50," ",$D$1) -> Subtotals Security Equipment | F22: =SUM(F4:F21) -> 37 | G22: =SUM(G18:G21,G15,G4:G6) -> 0 | H22: =SUM(H4:H21) -> 8 | I22: =SUM(I4:I21) -> 0
D25: =Tags!B30 -> Total Items | E25: 8 | G25: =Tags!B34 -> Score | I25: =G22 -> 0 | J25: ='Detailed Results'!M12 -> Incomplete
D26: =Tags!B31 -> Total Items + SubItems | E26: 16 | G26: =Tags!B35 -> Maximum Score | I26: =F22 -> 37
D27: =Tags!B32 -> Itens Completed | E27: =COUNTA(E4:E5,E7:E14,E16:E21) -> 0 | G27: =Tags!B36 -> Percentage | I27: =I25/I26 -> 0
D28: =Tags!B33 -> Not measured | E28: =E26-E27 -> 16 | G28: =Tags!B37 -> Category Value | I28: =VLOOKUP(A1,'Detailed Results'!$A$7:$M$15,11) -> 8

Sheet 8. Wayfinding
A1: 8 | B1: 8 | D1: =VLOOKUP(A1,Questions!$D$4:$F$418,3,FALSE) -> Wayfinding Inside and Outside | G1: =IF(ISERROR(G2+#REF!+G3),"NA",SUM(G2:G3)) -> NA | H1: Points: | I1: =I31*I32 -> 0 | J1: =I31 -> 0
A3: 8 | D3: =Tags!B55 -> Item List | E3: =Tags!B56 -> Measured value | F3: =G30 -> Maximum Score | G3: =G29 -> Score | H3: =Tags!B57 -> Maximum Contribuition for Final Score | I3: =Tags!B58 -> Contribuition for Final Score | J3: =Tags!B59 -> Remarks
A4: 8.1 | B4: 8.1 | D4: =VLOOKUP(B4,Questions!$D$4:$F$418,3,FALSE) -> Identification of Vacant Parking Spaces | H4: =F5/$I$30*$I$32 -> 1.212121212 | I4: =IF(ISNUMBER(SUM(G5:G7)),SUM(G5:G7)/$I$30*$I$32,0) -> 0
B5: 8.1.1 | D5: =VLOOKUP(B5,Questions!$D$4:$F$418,3,FALSE) -> Parking floor level (yes/good = 2, no/bad = 0) | F5: 5 | G5: =IF(COUNTIF(Q_8_1_Parking_Floor,E5)>0,2,IF(COUNTIF(Q_8_1_Parking_Floor_Bad,E5)>0,0,"NA")) -> NA
B6: 8.1.2 | D6: =VLOOKUP(B6,Questions!$D$4:$F$418,3,FALSE) -> Parking row (yes/good = 1, no/bad = 0) | G6: =IF(COUNTIF(Q_8_1_Parking_Floor,E6)>0,1,IF(COUNTIF(Q_8_1_Parking_Floor_Bad,E6)>0,0,"NA")) -> NA
B7: 8.1.3 | D7: =VLOOKUP(B7,Questions!$D$4:$F$418,3,FALSE) -> Individual stall indication (yes/good = 2, no/bad = 0) | G7: =IF(COUNTIF(Q_8_1_Parking_Floor,E7)>0,2,IF(COUNTIF(Q_8_1_Parking_Floor_Bad,E7)>0,0,"NA")) -> NA
A8: 8.2 | B8: 8.2 | D8: =VLOOKUP(B8,Questions!$D$4:$F$418,3,FALSE) -> Way Finding (vehicles) | H8: =F9/$I$30*$I$32 -> 1.454545455 | I8: =IF(ISNUMBER(SUM(G9:G10)),SUM(G9:G10)/$I$30*$I$32,0) -> 0
B9: 8.2.1 | D9: =VLOOKUP(B9,Questions!$D$4:$F$418,3,FALSE) -> Are floors clearly and separately identified for drivers? (Good =3, Adequate =2, Poor =1, No =0) | F9: 6 | G9: =IF(COUNTIF(Q_8_2_Good,E9)>0,3,(IF(COUNTIF(Q_8_2_Adequate,E9)>0,2,(IF(COUNTIF(Q_8_2_Poor,E9)>0,1,(IF(COUNTIF(Q_8_2_No,E9)>0,0,"NA"))))))) -> NA
B10: 8.2.2 | D10: =VLOOKUP(B10,Questions!$D$4:$F$418,3,FALSE) -> Are sub-areas of floors clearly identified for drivers? (Good =3, Adequate =2, Poor =1, No =0) | G10: =IF(COUNTIF(Q_8_2_Good,E10)>0,3,(IF(COUNTIF(Q_8_2_Adequate,E10)>0,2,(IF(COUNTIF(Q_8_2_Poor,E10)>0,1,(IF(COUNTIF(Q_8_2_No,E10)>0,0,"NA"))))))) -> NA
A11: 8.3 | B11: 8.3 | D11: =VLOOKUP(B11,Questions!$D$4:$F$418,3,FALSE) -> Are fire escapes and escape routes clearly marked • Clear from all locations = 3 • most locations= 2 • some locations=1 • No marking of escape routes=0) | F11: 3 | G11: =IF(COUNTIF(Q_8_3_all,E11)>0,3,(IF(COUNTIF(Q_8_3_most,E11)>0,2,(IF(COUNTIF(Q_8_3_some,E11)>0,1,(IF(COUNTIF(Q_8_3_no,E11)>0,0,"NA"))))))) -> NA | H11: =F11/$I$30*$I$32 -> 0.7272727273 | I11: =IF(ISNUMBER(G11),G11/$I$30*$I$32,0) -> 0
A12: 8.4 | B12: 8.4 | D12: =VLOOKUP(B12,Questions!$D$4:$F$418,3,FALSE) -> Are floor levels clearly marked? (good =3, adequate=2, poor=1, none =0. Single level car parks = 3) | F12: 3 | G12: =IF(OR(COUNTIF(Q_8_4_good,E12)>0,COUNTIF(Q_8_4_SLCP,E12)>0),3,(IF(COUNTIF(Q_8_4_Adequate,E12)>0,2,(IF(COUNTIF(Q_8_4_poor,E12)>0,1,(IF(COUNTIF(Q_8_4_none,E12)>0,0,"NA"))))))) -> NA | H12: =F12/$I$30*$I$32 -> 0.7272727273 | I12: =IF(ISNUMBER(G12),G12/$I$30*$I$32,0) -> 0
A13: 8.5 | B13: 8.5 | D13: =VLOOKUP(B13,Questions!$D$4:$F$418,3,FALSE) -> Is there additional signing or prompts to orient the pedestrian on the parking deck (good =2, some =1, none = 0) | F13: 2 | G13: =IF(COUNTIF(Q_8_5_Good,E13)>0,2,(IF(COUNTIF(Q_8_5_Some,E13)>0,1,(IF(COUNTIF(Q_8_5_None,E13)>0,0,"NA"))))) -> NA | H13: =F13/$I$30*$I$32 -> 0.4848484848 | I13: =IF(ISNUMBER(G13),G13/$I$30*$I$32,0) -> 0
A14: 8.6 | B14: 8.6 | D14: =VLOOKUP(B14,Questions!$D$4:$F$418,3,FALSE) -> Are parking spaces individually numbered (Numbered including floor identification =2, Just numbers =1, none =0) | F14: 2 | G14: =IF(COUNTIF(Q_8_6_nifi,E14)>0,2,(IF(COUNTIF(Q_8_6_just_numbers,E14)>0,1,(IF(COUNTIF(Q_8_6_none,E14)>0,0,"NA"))))) -> NA | H14: =F14/$I$30*$I$32 -> 0.4848484848 | I14: =IF(ISNUMBER(G14),G14/$I$30*$I$32,0) -> 0
A15: 8.7 | B15: 8.7 | D15: =VLOOKUP(B15,Questions!$D$4:$F$418,3,FALSE) -> Use of colours for way finding (Yes= 1, No= 0) | F15: 1 | G15: =IF(COUNTIF(Question_YN_Yes,E15)>0,1,IF(COUNTIF(Question_YN_No,E15)>0,0,"NA")) -> NA | H15: =F15/$I$30*$I$32 -> 0.2424242424 | I15: =IF(ISNUMBER(G15),G15/$I$30*$I$32,0) -> 0
A16: 8.8 | B16: 8.8 | D16: =VLOOKUP(B16,Questions!$D$4:$F$418,3,FALSE) -> Guidance sign posting for cars on roads to car park | H16: =F17/$I$30*$I$32 -> 0.7272727273 | I16: =IF(ISNUMBER(SUM(G17:G18)),SUM(G17:G18)/$I$30*$I$32,0) -> 0
B17: 8.8.1 | D17: =VLOOKUP(B17,Questions!$D$4:$F$418,3,FALSE) -> Static sign system only (Yes = 1, No = 0) | F17: 3 | G17: =IF(COUNTIF(Question_YN_Yes,E17)>0,1,IF(COUNTIF(Question_YN_No,E17)>0,0,"NA")) -> NA
B18: 8.8.2 | D18: =VLOOKUP(B18,Questions!$D$4:$F$418,3,FALSE) -> Dynamic sign system additionally (Available spaces = 2, Full/Free = 1, No = 0) | G18: =IF(COUNTIF(Q_8_8_2_Available,E18)>0,2,(IF(COUNTIF(Q_8_8_2_Full_Free,E18)>0,1,(IF(COUNTIF(Q_8_8_2_None,E18)>0,0,"NA"))))) -> NA
A19: 8.9 | B19: 8.9 | D19: =VLOOKUP(B19,Questions!$D$4:$F$418,3,FALSE) -> Illuminated signage at car park entrance | H19: =F20/$I$30*$I$32 -> 0.9696969697 | I19: =IF(ISNUMBER(SUM(G20:G22)),SUM(G20:G22)/$I$30*$I$32,0) -> 0
B20: 8.9.1 | D20: =VLOOKUP(B20,Questions!$D$4:$F$418,3,FALSE) -> Signal green arrow, red cross for direction (Yes = 1, No = 0) | F20: 4 | G20: =IF(COUNTIF(Question_YN_Yes,E20)>0,1,IF(COUNTIF(Question_YN_No,E20)>0,0,"NA")) -> NA
B21: 8.9.2 | D21: =VLOOKUP(B21,Questions!$D$4:$F$418,3,FALSE) -> Dynamic information additionally (Available spaces = 2, Full/Free = 1, No = 0) | G21: =IF(COUNTIF(Q_8_8_2_Available,E21)>0,2,(IF(COUNTIF(Q_8_8_2_Full_Free,E21)>0,1,(IF(COUNTIF(Q_8_8_2_None,E21)>0,0,"NA"))))) -> NA
B22: 8.9.3 | D22: =VLOOKUP(B22,Questions!$D$4:$F$418,3,FALSE) -> Signage at pedestrian entrance (Yes = 1, No = 0) | G22: =IF(COUNTIF(Question_YN_Yes,E22)>0,1,IF(COUNTIF(Question_YN_No,E22)>0,0,"NA")) -> NA
A23: 8.10 | B23: 8.10 | D23: =VLOOKUP(B23,Questions!$D$4:$F$418,3,FALSE) -> City plan at a central location in car park: (On Every pedestrian exit = 2, One location = 1, No = 0) | F23: 2 | G23: =IF(COUNTIF(Q_8_10_Every,E23)>0,2,(IF(COUNTIF(Q_8_10_One,E23)>0,1,(IF(COUNTIF(Q_8_10_No,E23)>0,0,"NA"))))) -> NA | H23: =F23/$I$30*$I$32 -> 0.4848484848 | I23: =IF(ISNUMBER(G23),G23/$I$30*$I$32,0) -> 0
A24: 8.11 | B24: 8.11 | D24: =VLOOKUP(B24,Questions!$D$4:$F$418,3,FALSE) -> Guidance: | H24: =F25/$I$30*$I$32 -> 0.4848484848 | I24: =IF(ISNUMBER(SUM(G25:G26)),SUM(G25:G26)/$I$30*$I$32,0) -> 0
B25: 8.11.1 | D25: =VLOOKUP(B25,Questions!$D$4:$F$418,3,FALSE) -> to key attractions around the car park at pedestrian exit (Yes=1, No=0): | F25: 2 | G25: =IF(COUNTIF(Question_YN_Yes,E25)>0,1,IF(COUNTIF(Question_YN_No,E25)>0,0,"NA")) -> NA
B26: 8.11.2 | D26: =VLOOKUP(B26,Questions!$D$4:$F$418,3,FALSE) -> around the car park to pedestrian entrances (Yes=1, No=0): | G26: =IF(COUNTIF(Question_YN_Yes,E26)>0,1,IF(COUNTIF(Question_YN_No,E26)>0,0,"NA")) -> NA
D27: =CONCATENATE(Tags!$B$50," ",$D$1) -> Subtotals Wayfinding Inside and Outside | F27: =SUM(F25,F20:F23,F17,F9:F15,F5) -> 33 | G27: =SUM(G5:G7,G9:G15,G17:G18,G20:G23,G25:G26) -> 0 | H27: =+H24+H23+H19+H16+H15+H14+H13+H12+H11+H8+H4 -> 8 | I27: =SUM(I4:I26) -> 0
D29: =Tags!B30 -> Total Items | E29: 11 | G29: =Tags!B34 -> Score | I29: =G27 -> 0 | J29: ='Detailed Results'!M13 -> Incomplete
D30: =Tags!B31 -> Total Items + SubItems | E30: 18 | G30: =Tags!B35 -> Maximum Score | I30: =F27 -> 33
D31: =Tags!B32 -> Itens Completed | E31: =COUNTA(E5:E7,E9:E15,E17:E18,E20:E23,E25:E26) -> 0 | G31: =Tags!B36 -> Percentage | I31: =I29/I30 -> 0
D32: =Tags!B33 -> Not measured | E32: =E30-E31 -> 18 | G32: =Tags!B37 -> Category Value | I32: =VLOOKUP(A1,'Detailed Results'!$A$7:$M$15,11) -> 8
A35: =Tags!B60 -> Notes

Sheet 9. Comfort
A1: 9 | D1: =VLOOKUP(A1,Questions!$D$4:$F$418,3,FALSE) -> Comfort and Miscellaneous | G1: =IF(E52>0,Tags!B21,Tags!B20) -> Incompleted | H1: Points: | I1: =I51*I52 -> 0.5454545455 | J1: =I51 -> 0.06818181818
A3: 9 | D3: =Tags!B55 -> Item List | E3: =Tags!B56 -> Measured value | F3: =G50 -> Maximum Score | G3: =G49 -> Score | H3: =Tags!B57 -> Maximum Contribuition for Final Score | I3: =Tags!B58 -> Contribuition for Final Score | J3: =Tags!B59 -> Remarks
A4: 9.1 | B4: 9.1.0 | D4: =VLOOKUP(B4,Questions!$D$4:$F$418,3,FALSE) -> Notice-board at pedestrian entrance/exit showing: | H4: =F5/$I$50*$I$52 -> 0.5454545455 | I4: =IF(ISNUMBER(SUM(G5:G7)),SUM(G5:G7)/$I$50*$I$52,0) -> 0
B5: 9.1.1 | D5: =VLOOKUP(B5,Questions!$D$4:$F$418,3,FALSE) -> Access hours normal/special (yes = 1, no = 0) | F5: 3 | G5: =IF(COUNTIF(Question_YN_Yes,E5)>0,1,IF(COUNTIF(Question_YN_No,E5)>0,0,"NA")) -> NA
B6: 9.1.2 | D6: =VLOOKUP(B6,Questions!$D$4:$F$418,3,FALSE) -> Readable & understandable tariff board (yes = 1, no = 0) | G6: =IF(COUNTIF(Question_YN_Yes,E6)>0,1,IF(COUNTIF(Question_YN_No,E6)>0,0,"NA")) -> NA
B7: 9.1.3 | D7: =VLOOKUP(B7,Questions!$D$4:$F$418,3,FALSE) -> Operators terms and conditions (yes = 1, no = 0) | G7: =IF(COUNTIF(Question_YN_Yes,E7)>0,1,IF(COUNTIF(Question_YN_No,E7)>0,0,"NA")) -> NA
A8: 9.2 | B8: 9.2.0 | D8: =VLOOKUP(B8,Questions!$D$4:$F$418,3,FALSE) -> Payment options (pay at exit/pay at pay station): | H8: =F9/$I$50*$I$52 -> 1.272727273 | I8: =IF(ISNUMBER(SUM(G9:G13)),SUM(G9:G13)/$I$50*$I$52,0) -> 0.5454545455
B9: 9.2.1 | D9: =VLOOKUP(B9,Questions!$D$4:$F$418,3,FALSE) -> Accepts cash? (yes =1, no =0) | F9: 7 | G9: =IF(COUNTIF(Question_YN_Yes,E9)>0,1,IF(COUNTIF(Question_YN_No,E9)>0,0,"NA")) -> NA
B10: 9.2.2 | D10: =VLOOKUP(B10,Questions!$D$4:$F$418,3,FALSE) -> Accepts National Bank Cards? (yes=1, no=0) | G10: =IF(COUNTIF(Question_YN_Yes,E10)>0,1,IF(COUNTIF(Question_YN_No,E10)>0,0,"NA")) -> NA
B11: 9.2.3 | D11: =VLOOKUP(B11,Questions!$D$4:$F$418,3,FALSE) -> Accepts International Debit and Credit Cards (yes=1, no=0) | G11: =IF(COUNTIF(Question_YN_Yes,E11)>0,1,IF(COUNTIF(Question_YN_No,E11)>0,0,"NA")) -> NA
B12: 9.2.4 | D12: =VLOOKUP(B12,Questions!$D$4:$F$418,3,FALSE) -> Payment by Smartphone? (yes =1, no =0) | G12: =IF(COUNTIF(Question_YN_Yes,E12)>0,1,IF(COUNTIF(Question_YN_No,E12)>0,0,"NA")) -> NA
B13: 9.2.5 | D13: =VLOOKUP(B13,Questions!$D$4:$F$418,3,FALSE) -> Accept Other Payment Schemes ? How many? (1 point per additional option up to 3) | G13: =MAX(0,MIN(E13,3)) -> 3
A14: 9.3 | B14: 9.3.0 | D14: =VLOOKUP(B14,Questions!$D$4:$F$418,3,FALSE) -> Payment options at exit: | H14: =F15/$I$50*$I$52 -> 1.090909091 | I14: =IF(ISNUMBER(SUM(G15:G20)),SUM(G15:G20)/$I$50*$I$52,0) -> 0
B15: 9.3.1 | D15: =VLOOKUP(B15,Questions!$D$4:$F$418,3,FALSE) -> Bank cards, national (yes =1, no =0) | F15: 6 | G15: =IF(COUNTIF(Question_YN_Yes,E15)>0,1,IF(COUNTIF(Question_YN_No,E15)>0,0,"NA")) -> NA
B16: 9.3.2 | D16: =VLOOKUP(B16,Questions!$D$4:$F$418,3,FALSE) -> International debit & credit cards (yes =1, no =0) | G16: NA
B17: 9.3.3 | D17: =VLOOKUP(B17,Questions!$D$4:$F$418,3,FALSE) -> License plate recognition connected to bankaccount or app (yes =1, no =0). | G17: NA
B18: 9.3.4 | D18: =VLOOKUP(B18,Questions!$D$4:$F$418,3,FALSE) -> RFID device connected to bankaccount or app (yes =1, no =0). | G18: NA
B19: 9.3.5 | D19: =VLOOKUP(B19,Questions!$D$4:$F$418,3,FALSE) -> Accept national general traffic scheme (i.e. Tolling, public transport) (yes =1, no =0 | G19: NA
B20: 9.3.6 | D20: =VLOOKUP(B20,Questions!$D$4:$F$418,3,FALSE) -> Payment by smart phone? (yes =1, no =0) | G20: NA
A21: 9.4 | B21: 9.4 | D21: =VLOOKUP(B21,Questions!$D$4:$F$418,3,FALSE) -> Opening barrier at entry automatically starts ticketless parking transaction with automatic payment: Remote control by app, attached to bank account Yes=1, no=0 Based on ANPR attached to bank account Yes=1 additional | F21: 2 | G21: =IF(COUNTIF(Q_9_4_Yes,E21)>0,1,(IF(COUNTIF(Q_9_4_No,E21)>0,0,(IF(COUNTIF(Q_9_4_ANPR,E21)>0,2,"NA"))))) -> NA | H21: =F21/$I$50*$I$52 -> 0.3636363636 | I21: =IF(ISNUMBER(SUM(G21)),SUM(G21)/$I$50*$I$52,0) -> 0
A22: 9.5 | B22: 9.5.0.0 | D22: =VLOOKUP(B22,Questions!$D$4:$F$418,3,FALSE) -> Pay points
B23: 9.5.0 | D23: =VLOOKUP(B23,Questions!$D$4:$F$418,3,FALSE) -> Is this a Pay and Display Car Park? | H23: =F24/$I$50*$I$52 -> 0.5454545455 | I23: =IF(ISNUMBER(IF(E23=Answers!B23,'9. Comfort'!G25,IF(E23=Answers!B24,'9. Comfort'!G24,0))),IF(E23=Answers!B23,'9. Comfort'!G25,IF(E23=Answers!B24,'9. Comfort'!G24,0))/$I$50*$I$52,0) -> 0
B24: 9.5.1 | D24: =VLOOKUP(B24,Questions!$D$4:$F$418,3,FALSE) -> Number of Pay points for Barrier controlled car parks: (One pay station = 0, More than one =1, One at each pedestrian entrance, excluding fire escapes =2, More than one at each pedestrian entrance =3) | F24: 3 | G24: =IF(COUNTIF(Q_9_5_1_One,E24)>0,0,(IF(COUNTIF(Q_9_5_1_more_than_one,E24)>0,1,(IF(COUNTIF(Q_9_5_1_One_each,E24)>0,2,(IF(COUNTIF(Q_9_5_1_more_than_one_Each,E24)>0,3,"NA"))))))) -> NA
B25: 9.5.2 | D25: =VLOOKUP(B25,Questions!$D$4:$F$418,3,FALSE) -> Number of Pay points for Pay and Display Car Parks (One =0, < 1 for every 50 spaces =2, >1 for every 50 spaces =3) | G25: =IF(COUNTIF(Q_9_5_2_One,E25)>0,0,(IF(COUNTIF(Q_9_5_2_One_every_50,E25)>0,2,(IF(COUNTIF(Q_9_5_2_More_One_Every_50,E25)>0,3,"NA"))))) -> NA
A26: 9.6 | B26: 9.6.0 | D26: =VLOOKUP(B26,Questions!$D$4:$F$418,3,FALSE) -> Customer toilets: | H26: =F27/$I$50*$I$52 -> 0.9090909091 | I26: =IF(ISNUMBER(SUM(G27:G30)),SUM(G27:G30)/$I$50*$I$52,0) -> 0
B27: 9.6.1 | D27: =VLOOKUP(B27,Questions!$D$4:$F$418,3,FALSE) -> Exist? (yes= 2, no= 0) | F27: 5 | G27: =IF(COUNTIF(Question_YN_Yes,E27)>0,2,IF(COUNTIF(Question_YN_No,E27)>0,0,"NA")) -> NA
B28: 9.6.2 | D28: =VLOOKUP(B28,Questions!$D$4:$F$418,3,FALSE) -> Disabled toilet? (yes=1, no= 0) | G28: =IF(COUNTIF(Question_YN_Yes,E28)>0,1,IF(COUNTIF(Question_YN_No,E28)>0,0,"NA")) -> NA
B29: 9.6.3 | D29: =VLOOKUP(B29,Questions!$D$4:$F$418,3,FALSE) -> unisex = 0, male/female separated = 1 | G29: =IF(COUNTIF(Q_9_6_3_Unisex,E29)>0,0,IF(COUNTIF(Q_9_6_3_Mafe_Female,E29)>0,1,"NA")) -> NA
B30: 9.6.4 | D30: =VLOOKUP(B30,Questions!$D$4:$F$418,3,FALSE) -> attendant: yes=1, no= 0 | G30: =IF(COUNTIF(Question_YN_Yes,E30)>0,1,IF(COUNTIF(Question_YN_No,E30)>0,0,"NA")) -> NA
A31: 9.7 | B31: 9.7.0 | D31: =VLOOKUP(B31,Questions!$D$4:$F$418,3,FALSE) -> Use of colours/ embellishing works | H31: =F32/$I$50*$I$52 -> 0.3636363636 | I31: =IF(ISNUMBER(SUM(G32:G33)),SUM(G32:G33)/$I$50*$I$52,0) -> 0
B32: 9.7.1 | D32: =VLOOKUP(B32,Questions!$D$4:$F$418,3,FALSE) -> Coloured pillars =1, no/concrete grey = 0 | F32: 2 | G32: =IF(COUNTIF(Q_9_7_1_Colored_Pillars,E32)>0,1,IF(COUNTIF(Q_9_7_1_No_Concrete_Grey,E32)>0,0,"NA")) -> NA
B33: 9.7.2 | D33: =VLOOKUP(B33,Questions!$D$4:$F$418,3,FALSE) -> Coloured walls =1, no/concrete grey = 0 | G33: =IF(COUNTIF(Q_9_7_2_Colored_Walls,E33)>0,1,IF(COUNTIF(Q_9_7_2_Concrete_Grey,E33)>0,0,"NA")) -> NA
A34: 9.8 | B34: 9.8.0 | D34: =VLOOKUP(B34,Questions!$D$4:$F$418,3,FALSE) -> Extra embellishment | H34: =F35/$I$50*$I$52 -> 0.7272727273 | I34: =IF(ISNUMBER(SUM(G35:G37)),SUM(G35:G37)/$I$50*$I$52,0) -> 0
B35: 9.8.1 | D35: =VLOOKUP(B35,Questions!$D$4:$F$418,3,FALSE) -> Artwork: (Yes = 2, No = 0) | F35: 4 | G35: =IF(COUNTIF(Question_YN_Yes,E35)>0,2,IF(COUNTIF(Question_YN_No,E35)>0,0,"NA")) -> NA
B36: 9.8.2 | D36: =VLOOKUP(B36,Questions!$D$4:$F$418,3,FALSE) -> Planters: (Yes = 1, No = 0) | G36: =IF(COUNTIF(Question_YN_Yes,E36)>0,1,IF(COUNTIF(Question_YN_No,E36)>0,0,"NA")) -> NA
B37: 9.8.3 | D37: =VLOOKUP(B37,Questions!$D$4:$F$418,3,FALSE) -> Other: (Yes = 1, No = 0) | G37: =IF(COUNTIF(Question_YN_Yes,E37)>0,1,IF(COUNTIF(Question_YN_No,E37)>0,0,"NA")) -> NA
A38: 9.9 | B38: 9.9 | D38: =VLOOKUP(B38,Questions!$D$4:$F$418,3,FALSE) -> Mobile phone coverage (Yes = 2, No = 0) | F38: 2 | G38: =IF(COUNTIF(Question_YN_Yes,E38)>0,2,IF(COUNTIF(Question_YN_No,E38)>0,0,"NA")) -> NA | H38: =F38/$I$50*$I$52 -> 0.3636363636 | I38: =IF(ISNUMBER(G38),G38/$I$50*$I$52,0) -> 0
A39: 9.10 | B39: 9.10 | D39: =VLOOKUP(B39,Questions!$D$4:$F$418,3,FALSE) -> Continuity of radio signals (Yes = 1, No = 0) | F39: 4 | G39: =IF(COUNTIF(Question_YN_Yes,E39)>0,1,IF(COUNTIF(Question_YN_No,E39)>0,0,"NA")) -> NA | H39: =F39/$I$50*$I$52 -> 0.7272727273 | I39: =IF(ISNUMBER(G39),G39/$I$50*$I$52,0) -> 0
A40: 9.11 | B40: 9.11.0 | D40: =VLOOKUP(B40,Questions!$D$4:$F$418,3,FALSE) -> Music | H40: =F41/$I$50*$I$52 -> 0.5454545455 | I40: =IF(ISNUMBER(SUM(G41:G42)),SUM(G41:G42)/$I$50*$I$52,0) -> 0
B41: 9.11.1 | D41: =VLOOKUP(B41,Questions!$D$4:$F$418,3,FALSE) -> Background music: yes = 2, No = 0 | F41: 3 | G41: =IF(COUNTIF(Question_YN_Yes,E41)>0,2,IF(COUNTIF(Question_YN_No,E41)>0,0,"NA")) -> NA
B42: 9.11.2 | D42: =VLOOKUP(B42,Questions!$D$4:$F$418,3,FALSE) -> Differentiation for way finding : yes =1, No = 0 | G42: =IF(COUNTIF(Question_YN_Yes,E42)>0,1,IF(COUNTIF(Question_YN_No,E42)>0,0,"NA")) -> NA
A43: 9.12 | B43: 9.12.0 | D43: =VLOOKUP(B43,Questions!$D$4:$F$418,3,FALSE) -> Litter Bins | H43: =F44/$I$50*$I$52 -> 0.3636363636 | I43: =IF(ISNUMBER(SUM(G44:G45)),SUM(G44:G45)/$I$50*$I$52,0) -> 0
B44: 9.12.1 | D44: =VLOOKUP(B44,Questions!$D$4:$F$418,3,FALSE) -> Litter bins at pedestrian entry/staircase area Yes =1, no=0 | F44: 2 | G44: =IF(COUNTIF(Question_YN_Yes,E44)>0,1,IF(COUNTIF(Question_YN_No,E44)>0,0,"NA")) -> NA
B45: 9.12.2 | D45: =VLOOKUP(B45,Questions!$D$4:$F$418,3,FALSE) -> Litter bins at parking floor (>1 per 100 spaces) Yes=1, no=0 | G45: =IF(COUNTIF(Question_YN_Yes,E45)>0,1,IF(COUNTIF(Question_YN_No,E45)>0,0,"NA")) -> NA
A46: 9.13 | B46: 9.13 | D46: =VLOOKUP(B46,Questions!$D$4:$F$418,3,FALSE) -> Pick-up point for local and on-line deliveries: yes=1, no =0 | F46: 1 | G46: =IF(COUNTIF(Question_YN_Yes,E46)>0,1,IF(COUNTIF(Question_YN_No,E46)>0,0,"NA")) -> NA | H46: =F46/$I$50*$I$52 -> 0.1818181818 | I46: =IF(ISNUMBER(G46),G46/$I$50*$I$52,0) -> 0
D47: =CONCATENATE(Tags!$B$50," ",$D$1) -> Subtotals Comfort and Miscellaneous | F47: =SUM(F4:F46) -> 44 | G47: =SUM(G44:G46,G41:G42,G35:G39,G32:G33,G27:G30,G24:G25,G15:G21,G9:G13,G5:G7) -> 3 | H47: =SUM(H4:H46) -> 8 | I47: =SUM(I4:I42) -> 0.5454545455
D49: =Tags!B30 -> Total Items | E49: 13 | G49: =Tags!B34 -> Score | I49: =G47 -> 3 | J49: ='Detailed Results'!M13 -> Incomplete
D50: =Tags!B31 -> Total Items + SubItems | E50: 33 | G50: =Tags!B35 -> Maximum Score | I50: =F47 -> 44
D51: =Tags!B32 -> Itens Completed | E51: =COUNTA(E5:E7,E9:E13,E15:E21,E24:E25,E27:E30,E32:E33,E35:E39,E41:E42,E44:E46) -> 0 | G51: =Tags!B36 -> Percentage | I51: =I49/I50 -> 0.06818181818
D52: =Tags!B33 -> Not measured | E52: =E50-E51 -> 33 | G52: =Tags!B37 -> Category Value | I52: =VLOOKUP(A1,'Detailed Results'!$A$7:$M$15,11) -> 8
A54: =Tags!B60 -> Notes

Sheet 10. Energy Environment
A1: 10 | D1: =VLOOKUP(A1,Questions!$D$4:$F$418,3,FALSE) -> Energy and Environment | G1: =IF(E34>0,Tags!B21,Tags!B20) -> Completed | H1: Points: | I1: =I33*I34 -> 0 | J1: =I33 -> 0
A4: 10 | D4: =Tags!B55 -> Item List | E4: =Tags!B56 -> Measured value | F4: =G32 -> Maximum Score | G4: =G31 -> Score | H4: =Tags!B58 -> Contribuition for Final Score | I4: =Tags!B59 -> Remarks | J4: =Tags!B60 -> Notes
A5: 10.1 | B5: 10.1.0 | D5: =VLOOKUP(B5,Questions!$D$4:$F$418,3,FALSE) -> Energy Saving Lighting Systems | F5: 2 | G5: =IF(ISERROR(G6+G7),"NA",SUM(G6:G7)) -> NA | H5: =F6/$I$32*$I$34 -> 0.5263157895 | I5: =IF(ISNUMBER(SUM(G6:G7)),SUM(G6:G7)/$I$32*$I$34,0) -> 0
B6: 10.1.1 | D6: =VLOOKUP(B6,Questions!$D$4:$F$418,3,FALSE) -> Power Factor Compensation (Yes=1, No=0) | F6: 2 | G6: =IF(COUNTIF(Question_YN_Yes,E6)>0,1,IF(COUNTIF(Question_YN_No,E6)>0,0,"NA")) -> NA
B7: 10.1.2 | D7: =VLOOKUP(B7,Questions!$D$4:$F$418,3,FALSE) -> Other Systems (Yes=1, No=0) | G7: =IF(COUNTIF(Question_YN_Yes,E7)>0,1,IF(COUNTIF(Question_YN_No,E7)>0,0,"NA")) -> NA
A8: 10.2 | B8: 10.2 | D8: =VLOOKUP(B8,Questions!$D$4:$F$418,3,FALSE) -> Movement detection variable lights, remaining quality (yes= 2, no= 0) | F8: 2 | G8: =IF(COUNTIF(Question_YN_Yes,E8)>0,2,IF(COUNTIF(Question_YN_No,E8)>0,0,"NA")) -> NA | H8: =F8/$I$32*$I$34 -> 0.5263157895 | I8: =IF(ISNUMBER(G8),G8/$I$32*$I$34,0) -> 0
A9: 10.3 | B9: 10.3 | D9: =VLOOKUP(B9,Questions!$D$4:$F$418,3,FALSE) -> Adaptable lighting for daylight compensation at entrance area (yes= 2, no= 0) | F9: 2 | G9: =IF(COUNTIF(Question_YN_Yes,E9)>0,2,IF(COUNTIF(Question_YN_No,E9)>0,0,"NA")) -> NA | H9: 0.5263157895 | I9: 0
A10: 10.4 | B10: 10.4 | D10: =VLOOKUP(B10,Questions!$D$4:$F$418,3,FALSE) -> Adaptable lighting for ambient light conditions at parking floor from daylight (yes= 2, no= 0, Irrelevant (below ground) =2) | F10: 2 | G10: =IF(COUNTIF(Q_10_4_Yes,E10)>0,2,(IF(COUNTIF(Q_10_4_No,E10)>0,0,(IF(COUNTIF(Q_10_4_Irrelevant,E10)>0,2,"NA"))))) -> NA | H10: 0.5263157895 | I10: 0
A11: 10.5 | B11: 10.5 | D11: =VLOOKUP(B11,Questions!$D$4:$F$418,3,FALSE) -> Solar panels on the roof or other green energy initiatives (yes= 2, no= 0) | F11: 2 | G11: =IF(COUNTIF(Question_YN_Yes,E11)>0,2,IF(COUNTIF(Question_YN_No,E11)>0,0,"NA")) -> NA | H11: 0.5263157895 | I11: 0
A12: 10.6 | B12: 10.6 | D12: =VLOOKUP(B12,Questions!$D$4:$F$418,3,FALSE) -> Special treatment of cleaning water: • yes= 2, no= 0 | F12: 2 | G12: =IF(COUNTIF(Question_YN_Yes,E12)>0,2,IF(COUNTIF(Question_YN_No,E12)>0,0,"NA")) -> NA | H12: 0.5263157895 | I12: 0
A13: 10.7 | B13: 10.7 | D13: =VLOOKUP(B13,Questions!$D$4:$F$418,3,FALSE) -> Grey water or re-use of rain water • yes= 2, no= 0 | F13: 2 | G13: =IF(COUNTIF(Question_YN_Yes,E13)>0,2,IF(COUNTIF(Question_YN_No,E13)>0,0,"NA")) -> NA | H13: 0.5263157895 | I13: 0
A14: 10.8 | B14: 10.8.0 | D14: =VLOOKUP(B14,Questions!$D$4:$F$418,3,FALSE) -> Electric Vehicles public recharging points: | H14: =F15/$I$32*$I$34 -> 3.421052632 | I14: =IF(ISNUMBER(SUM(G15:G19)),SUM(G15:G19)/$I$32*$I$34,0) -> 0
B15: 10.8.1 | D15: =VLOOKUP(B15,Questions!$D$4:$F$418,3,FALSE) -> more than 10% of spaces equipped with EV charge point = 4, 5%-10% of spaces = 3, 2%-5% of spaces = 2, less than 2% of spaces=1, None=0 | F15: 13 | G15: =IF(COUNTIF(Q_10_8_1_more_10,E15)>0,4,(IF(COUNTIF(Q_10_8_1_5_to_10,E15)>0,3,(IF(COUNTIF(Q_10_8_1_2_to_5,E15)>0,2,(IF(COUNTIF(Q_10_8_1_less_2,E15)>0,1,IF(COUNTIF(Q_10_8_1_none,E15)>0,0,"NA")))))))) -> NA
B16: 10.8.2 | D16: =VLOOKUP(B16,Questions!$D$4:$F$418,3,FALSE) -> Average capacity per charge point <4kW=0, 4-10kW=1, 10-20kW=2, >20kW=3. Fast chargers >50kW= 1 additional point | G16: =IF(COUNTIF(Q_10_8_2_less_4,E16)>0,0,(IF(COUNTIF(Q_10_8_2_4_to_20,E16)>0,1,(IF(COUNTIF(Q_10_8_2_10_to_20,E16)>0,2,(IF(COUNTIF(Q_10_8_2_more_20,E16)>0,3,IF(COUNTIF(Q_10_8_2_more_50,E16)>0,4,"NA")))))))) -> NA
B17: 10.8.3 | D17: =VLOOKUP(B17,Questions!$D$4:$F$418,3,FALSE) -> Total smart power per 100 spaces <50kW=0, 50-100kW=1, 100-200kW=2, >200 kW=3 | G17: =IF(COUNTIF(Q_10_8_3_less_50,E17)>0,0,(IF(COUNTIF(Q_10_8_3_50_to_100,E17)>0,1,(IF(COUNTIF(Q_10_8_3_100_to_200,E17)>0,2,(IF(COUNTIF(Q_10_8_3_more_200,E17)>0,3,"NA"))))))) -> NA
B18: 10.8.4 | D18: =VLOOKUP(B18,Questions!$D$4:$F$418,3,FALSE) -> Charging points concentrated around entry for safer firefighting access (yes =1, no =0) | G18: =IF(COUNTIF(Question_YN_Yes,E18)>0,1,IF(COUNTIF(Question_YN_No,E18)>0,0,"NA")) -> NA
B19: 10.8.5 | D19: =VLOOKUP(B19,Questions!$D$4:$F$418,3,FALSE) -> Optional reservation of charging point integrated with booking system: (yes =1, no =0) | G19: =IF(COUNTIF(Question_YN_Yes,E19)>0,1,IF(COUNTIF(Question_YN_No,E19)>0,0,"NA")) -> NA
A20: 10.9 | B20: 10.9.0 | D20: =VLOOKUP(B20,Questions!$D$4:$F$418,3,FALSE) -> Mobility Hubs | H20: =F21/$I$32*$I$34 -> 2.105263158 | I20: =IF(ISNUMBER(SUM(G21:G25)),SUM(G21:G25)/$I$32*$I$34,0) -> 0
B21: 10.9.1 | D21: =VLOOKUP(B21,Questions!$D$4:$F$418,3,FALSE) -> Car sharing designated spaces >10 space = 3, 5-10 spaces =2, 1-5 spaces = 1, none =0 | F21: 8 | G21: =IF(COUNTIF(Q_10_9_1_more_10,E21)>0,3,(IF(COUNTIF(Q_10_9_1_5_to_10,E21)>0,2,(IF(COUNTIF(Q_10_9_1_1_to_5,E21)>0,1,(IF(COUNTIF(Q_10_9_1_none,E21)>0,0,"NA"))))))) -> NA
B22: 10.9.2 | D22: =VLOOKUP(B22,Questions!$D$4:$F$418,3,FALSE) -> Serviced hub with cleaning: 1 point | G22: =IF(COUNTIF(Question_YN_Yes,E22)>0,1,IF(COUNTIF(Question_YN_No,E22)>0,0,"NA")) -> NA
B23: 10.9.3 | D23: =VLOOKUP(B23,Questions!$D$4:$F$418,3,FALSE) -> Hub for shared bikes and/ or e-scooters, separated from parking area: >10 units =2, 1-10 units =1, none =0 | G23: =IF(COUNTIF(Q_10_9_3_more_10,E23)>0,2,(IF(COUNTIF(Q_10_9_3_1_to_10,E23)>0,1,(IF(COUNTIF(Q_10_9_3_none,E23)>0,0,"NA"))))) -> NA
B24: 10.9.4 | D24: =VLOOKUP(B24,Questions!$D$4:$F$418,3,FALSE) -> Charging points for light e-vehicles: >10 =2, 1-10 =1, none =0, | G24: =IF(COUNTIF(Q_10_9_3_more_10,E24)>0,2,(IF(COUNTIF(Q_10_9_3_1_to_10,E24)>0,1,(IF(COUNTIF(Q_10_9_3_none,E24)>0,0,"NA"))))) -> NA
B25: 10.9.5 | D25: =VLOOKUP(B25,Questions!$D$4:$F$418,3,FALSE) -> Bikes share access through parking floor/ car zone: 1 point less | G25: =IF(COUNTIF(Question_YN_Yes,E25)>0,-1,IF(COUNTIF(Question_YN_No,E25)>0,0,"NA")) -> NA
A26: 10.10 | B26: 10.10 | D26: =VLOOKUP(B26,Questions!$D$4:$F$418,3,FALSE) -> New car park built according recycling guidelines (yes =1, no =0) | F26: 1 | G26: =IF(COUNTIF(Question_YN_Yes,E26)>0,1,IF(COUNTIF(Question_YN_No,E26)>0,0,"NA")) -> NA | H26: =F26/$I$32*$I$34 -> 0.2631578947 | I26: =IF(ISNUMBER(G26),G26/$I$32*$I$34,0) -> 0
A27: 10.11 | B27: 10.11 | D27: =VLOOKUP(B27,Questions!$D$4:$F$418,3,FALSE) -> Other environmental initiatives: (yes =2, no =0) | F27: 2 | G27: =IF(COUNTIF(Question_YN_Yes,E27)>0,2,IF(COUNTIF(Question_YN_No,E27)>0,0,"NA")) -> NA | H27: =F27/$I$32*$I$34 -> 0.5263157895 | I27: =IF(ISNUMBER(G27),G27/$I$32*$I$34,0) -> 0
D28: =CONCATENATE(Tags!$B$50," ",$D$1) -> Subtotals Energy and Environment | F28: =SUM(F21:F27,F15,F6:F13) -> 38 | G28: =SUM(G21:G27,G15:G19,G6:G13) -> 0 | H28: =SUM(H5:H27) -> 10 | I28: =SUM(I5:I27) -> 0
D31: =Tags!B30 -> Total Items | E31: 11 | G31: =Tags!B34 -> Score | I31: =G28 -> 0 | J31: ='Detailed Results'!M15 -> Fail
D32: =Tags!B31 -> Total Items + SubItems | E32: =COUNTA(E21:E27,E15:E19,E6:E13) -> 0 | G32: =Tags!B35 -> Maximum Score | I32: =F28 -> 38
D33: =Tags!B32 -> Itens Completed | E33: =COUNTA(E6:E27) -> 0 | G33: =Tags!B36 -> Percentage | I33: =I31/I32 -> 0
D34: =Tags!B33 -> Not measured | E34: =E32-E33 -> 0 | G34: =Tags!B37 -> Category Value | I34: =VLOOKUP(A1,'Detailed Results'!$A$7:$M$15,11) -> 10
A36: =Tags!B60 -> Notes

Sheet Minus
A1: M | D1: =VLOOKUP(A1,Questions!$D$4:$F$418,3,FALSE) -> Minus Points | G1: =IF(E37>0,Tags!B21,Tags!B20) -> Incompleted | H1: Points: | I1: =I36*I37 -> 0 | J1: =I36 -> 0
A3: M | D3: =Tags!B55 -> Item List | E3: =Tags!B56 -> Measured value | F3: =G35 -> Maximum Score | G3: =G34 -> Score | H3: =Tags!B57 -> Maximum Contribuition for Final Score | I3: =Tags!B58 -> Contribuition for Final Score | J3: =Tags!B59 -> Remarks
A4: M.1 | B4: M.1.0 | D4: =VLOOKUP(B4,Questions!$D$4:$F$418,3,FALSE) -> Presence of Graffiti | H4: =F5/$I$35*$I$37 -> -2.419354839 | I4: =IF(ISNUMBER(SUM(G5:G9)),SUM(G5:G9)/$I$35*$I$37,0) -> 0
B5: M.1.1 | D5: =VLOOKUP(B5,Questions!$D$4:$F$418,3,FALSE) -> Stairwells (Yes= -2, No= 0) | F5: -10 | G5: =IF(COUNTIF(Question_YN_Yes,E5)>0,-2,IF(COUNTIF(Question_YN_No,E5)>0,0,"NA")) -> NA
B6: M.1.2 | D6: =VLOOKUP(B6,Questions!$D$4:$F$418,3,FALSE) -> Elevator (Yes= -2, No= 0) | G6: =IF(COUNTIF(Question_YN_Yes,E6)>0,-2,IF(COUNTIF(Question_YN_No,E6)>0,0,"NA")) -> NA
B7: M.1.3 | D7: =VLOOKUP(B7,Questions!$D$4:$F$418,3,FALSE) -> Toilets (Yes= -2, No= 0) | G7: =IF(COUNTIF(Question_YN_Yes,E7)>0,-2,IF(COUNTIF(Question_YN_No,E7)>0,0,"NA")) -> NA
B8: M.1.4 | D8: =VLOOKUP(B8,Questions!$D$4:$F$418,3,FALSE) -> Parking area (Yes= -2, No= 0) | G8: =IF(COUNTIF(Question_YN_Yes,E8)>0,-2,IF(COUNTIF(Question_YN_No,E8)>0,0,"NA")) -> NA
B9: M.1.5 | D9: =VLOOKUP(B9,Questions!$D$4:$F$418,3,FALSE) -> Outside walls (Yes= -2, No= 0) | G9: =IF(COUNTIF(Question_YN_Yes,E9)>0,-2,IF(COUNTIF(Question_YN_No,E9)>0,0,"NA")) -> NA
A10: M.2 | B10: M.2.0 | D10: =VLOOKUP(B10,Questions!$D$4:$F$418,3,FALSE) -> Presence of dirt | H10: =F11/$I$35*$I$37 -> -2.419354839 | I10: =IF(ISNUMBER(SUM(G11:G15)),SUM(G11:G15)/$I$35*$I$37,0) -> 0
B11: M.2.1 | D11: =VLOOKUP(B11,Questions!$D$4:$F$418,3,FALSE) -> Stairwells (Yes= -2, No= 0) | F11: -10 | G11: =IF(COUNTIF(Question_YN_Yes,E11)>0,-2,IF(COUNTIF(Question_YN_No,E11)>0,0,"NA")) -> NA
B12: M.2.2 | D12: =VLOOKUP(B12,Questions!$D$4:$F$418,3,FALSE) -> Elevator (Yes= -2, No= 0) | G12: =IF(COUNTIF(Question_YN_Yes,E12)>0,-2,IF(COUNTIF(Question_YN_No,E12)>0,0,"NA")) -> NA
B13: M.2.3 | D13: =VLOOKUP(B13,Questions!$D$4:$F$418,3,FALSE) -> Toilets (Yes= -2, No= 0) | G13: =IF(COUNTIF(Question_YN_Yes,E13)>0,-2,IF(COUNTIF(Question_YN_No,E13)>0,0,"NA")) -> NA
B14: M.2.4 | D14: =VLOOKUP(B14,Questions!$D$4:$F$418,3,FALSE) -> Parking area (Yes= -2, No= 0) | G14: =IF(COUNTIF(Question_YN_Yes,E14)>0,-2,IF(COUNTIF(Question_YN_No,E14)>0,0,"NA")) -> NA
B15: M.2.5 | D15: =VLOOKUP(B15,Questions!$D$4:$F$418,3,FALSE) -> Outside of entrance for pedestrians + cars (Yes= -2, No= 0) | G15: =IF(COUNTIF(Question_YN_Yes,E15)>0,-2,IF(COUNTIF(Question_YN_No,E15)>0,0,"NA")) -> NA
A16: M.3 | B16: M.3.0 | D16: =VLOOKUP(B16,Questions!$D$4:$F$418,3,FALSE) -> Poor quality of paint work | H16: =F17/$I$35*$I$37 -> -1.935483871 | I16: =IF(ISNUMBER(SUM(G17:G20)),SUM(G17:G20)/$I$35*$I$37,0) -> 0
B17: M.3.1 | D17: =VLOOKUP(B17,Questions!$D$4:$F$418,3,FALSE) -> Stairwells (Yes= -2, No= 0) | F17: -8 | G17: =IF(COUNTIF(Question_YN_Yes,E17)>0,-2,IF(COUNTIF(Question_YN_No,E17)>0,0,"NA")) -> NA
B18: M.3.2 | D18: =VLOOKUP(B18,Questions!$D$4:$F$418,3,FALSE) -> Elevator (Yes= -2, No= 0) | G18: =IF(COUNTIF(Question_YN_Yes,E18)>0,-2,IF(COUNTIF(Question_YN_No,E18)>0,0,"NA")) -> NA
B19: M.3.3 | D19: =VLOOKUP(B19,Questions!$D$4:$F$418,3,FALSE) -> Parking area (Yes= -2, No= 0) | G19: =IF(COUNTIF(Question_YN_Yes,E19)>0,-2,IF(COUNTIF(Question_YN_No,E19)>0,0,"NA")) -> NA
B20: M.3.4 | D20: =VLOOKUP(B20,Questions!$D$4:$F$418,3,FALSE) -> Horizontal markings (Yes= -2, No= 0) | G20: =IF(COUNTIF(Question_YN_Yes,E20)>0,-2,IF(COUNTIF(Question_YN_No,E20)>0,0,"NA")) -> NA
A21: M.4 | B21: M.4.0 | D21: =VLOOKUP(B21,Questions!$D$4:$F$418,3,FALSE) -> Poor quality/lack of maintenance (pot holes ,damages) | H21: =F22/$I$35*$I$37 -> -1.451612903 | I21: =IF(ISNUMBER(SUM(G22:G24)),SUM(G22:G24)/$I$35*$I$37,0) -> 0
B22: M.4.1 | D22: =VLOOKUP(B22,Questions!$D$4:$F$418,3,FALSE) -> Floors (Yes= -2, No= 0) | F22: -6 | G22: =IF(COUNTIF(Question_YN_Yes,E22)>0,-2,IF(COUNTIF(Question_YN_No,E22)>0,0,"NA")) -> NA
B23: M.4.2 | D23: =VLOOKUP(B23,Questions!$D$4:$F$418,3,FALSE) -> Walls (Yes= -2, No= 0) | G23: =IF(COUNTIF(Question_YN_Yes,E23)>0,-2,IF(COUNTIF(Question_YN_No,E23)>0,0,"NA")) -> NA
B24: M.4.3 | D24: =VLOOKUP(B24,Questions!$D$4:$F$418,3,FALSE) -> Evidence of standing water (Yes= -2, No= 0) | G24: =IF(COUNTIF(Question_YN_Yes,E24)>0,-2,IF(COUNTIF(Question_YN_No,E24)>0,0,"NA")) -> NA
A25: M.5 | B25: M.5.0 | D25: =VLOOKUP(B25,Questions!$D$4:$F$418,3,FALSE) -> Evidence of bad smells | H25: =F26/$I$35*$I$37 -> -1.451612903 | I25: =IF(ISNUMBER(SUM(G26:G28)),SUM(G26:G28)/$I$35*$I$37,0) -> 0
B26: M.5.1 | D26: =VLOOKUP(B26,Questions!$D$4:$F$418,3,FALSE) -> Elevators (Yes= -2, No= 0) | F26: -6 | G26: =IF(COUNTIF(Question_YN_Yes,E26)>0,-2,IF(COUNTIF(Question_YN_No,E26)>0,0,"NA")) -> NA
B27: M.5.2 | D27: =VLOOKUP(B27,Questions!$D$4:$F$418,3,FALSE) -> Stairwells (Yes= -2, No= 0) | G27: =IF(COUNTIF(Question_YN_Yes,E27)>0,-2,IF(COUNTIF(Question_YN_No,E27)>0,0,"NA")) -> NA
B28: M.5.3 | D28: =VLOOKUP(B28,Questions!$D$4:$F$418,3,FALSE) -> Parking deck (Yes= -2, No= 0) | G28: =IF(COUNTIF(Question_YN_Yes,E28)>0,-2,IF(COUNTIF(Question_YN_No,E28)>0,0,"NA")) -> NA
A29: M.6 | B29: M.6.1 | D29: =VLOOKUP(B29,Questions!$D$4:$F$418,3,FALSE) -> Over 15% of parking spaces in cul-de-sac without occupancy indication. (Yes= -5, No=0) | F29: -5 | G29: =IF(COUNTIF(Question_YN_Yes,E29)>0,-5,IF(COUNTIF(Question_YN_No,E29)>0,0,"NA")) -> NA | H29: =F29/$I$35*$I$37 -> -1.209677419 | I29: =IF(ISNUMBER(G29),G29/$I$35*$I$37,0) -> 0
A30: M.7 | B30: M.7.1 | D30: =VLOOKUP(B30,Questions!$D$4:$F$418,3,FALSE) -> Various points of criticism (to explain!) [E.g. hollow sound, squeaking tyres, unintended visitors, etc.] up to -10 | F30: -10 | G30: =IF(ISNUMBER(E30),E30,"NA") -> NA | H30: =F30/$I$35*$I$37 -> -2.419354839 | I30: =IF(ISNUMBER(G30),G30/$I$35*$I$37,0) -> 0
A31: M.8 | B31: M.8.1 | D31: =VLOOKUP(B31,Questions!$D$4:$F$418,3,FALSE) -> Penalty for Mandatory Condition 1.4 Applies | F31: -5 | G31: =IF(COUNTIF(Question_YN_Yes,E31)>0,-5,IF(COUNTIF(Question_YN_No,E31)>0,0,"NA")) -> NA | H31: =F31/$I$35*$I$37 -> -1.209677419 | I31: =IF(ISNUMBER(G31),G31/$I$35*$I$37,0) -> 0
D32: =CONCATENATE(Tags!$B$50," ",$D$1) -> Subtotals Minus Points | F32: =F5+F11+F17+F17+F26+F29+F30+F31 -> -62 | G32: =SUM(G29:G30,G25,G21,G16,G10,G4) -> 0 | H32: =SUM(H4:H30) -> -13.30645161 | I32: =SUM(I4:I30) -> 0
D34: =Tags!B30 -> Total Items | E34: 8 | G34: =Tags!B34 -> Score | I34: =G32 -> 0
D35: =Tags!B31 -> Total Items + SubItems | E35: 23 | G35: =Tags!B35 -> Maximum Score | I35: =F32 -> -62
D36: =Tags!B32 -> Itens Completed | E36: =COUNTA(E5:E9,E11:E15,E17:E20,E22:E24,E26:E31) -> 0 | G36: =Tags!B36 -> Percentage | I36: =I34/I35 -> 0
D37: =Tags!B33 -> Not measured | E37: =E35-E36 -> 23 | G37: =Tags!B37 -> Category Value | I37: ='Detailed Results'!K18 -> -15
A39: =Tags!B60 -> Notes

Sheet Bonus
A1: B | D1: =VLOOKUP(A1,Questions!$D$4:$F$418,3,FALSE) -> Bonus Points | G1: =IF(E35>0,Tags!B21,Tags!B20) -> Incompleted | H1: Points: | I1: =I34*I35 -> 0 | J1: =I34 -> 0
A3: B | D3: =Tags!B55 -> Item List | E3: =Tags!B56 -> Measured value | F3: =G33 -> Maximum Score | G3: =G32 -> Score | H3: =Tags!B57 -> Maximum Contribuition for Final Score | I3: =Tags!B58 -> Contribuition for Final Score | J3: =Tags!B59 -> Remarks
A4: B.1 | B4: B.1.0 | D4: =VLOOKUP(B4,Questions!$D$4:$F$418,3,FALSE) -> Extra provisions in car park | H4: =F5/$I$33*$I$35 -> 6.875 | I4: =IF(ISNUMBER(SUM(G5:G15)),SUM(G5:G15)/$I$33*$I$35,0) -> 0
B5: B.1.1 | D5: =VLOOKUP(B5,Questions!$D$4:$F$418,3,FALSE) -> Special motorcycle area (Yes= 1, No= 0) | F5: 11 | G5: =IF(COUNTIF(Question_YN_Yes,E5)>0,1,IF(COUNTIF(Question_YN_No,E5)>0,0,"NA")) -> NA
B6: B.1.2 | D6: =VLOOKUP(B6,Questions!$D$4:$F$418,3,FALSE) -> Lockers for customers’ use (Yes= 1, No= 0) | G6: NA
B7: B.1.3 | D7: =VLOOKUP(B7,Questions!$D$4:$F$418,3,FALSE) -> Other aids (Yes= 1, No= 0) | G7: NA
B8: B.1.4 | D8: =VLOOKUP(B8,Questions!$D$4:$F$418,3,FALSE) -> Bicycle rent (Yes= 1, No= 0) | G8: NA
B9: B.1.5 | D9: =VLOOKUP(B9,Questions!$D$4:$F$418,3,FALSE) -> Other Driver Assistance (Yes= 1, No= 0) | G9: NA
B10: B.1.6 | D10: =VLOOKUP(B10,Questions!$D$4:$F$418,3,FALSE) -> Vending Machines (Yes= 1, No= 0) | G10: NA
B11: B.1.7 | D11: =VLOOKUP(B11,Questions!$D$4:$F$418,3,FALSE) -> Heart Defibrillator (Yes= 1, No= 0) | G11: NA
B12: B.1.8 | D12: =VLOOKUP(B12,Questions!$D$4:$F$418,3,FALSE) -> First aid trained staff (Yes= 1, No= 0) | G12: NA
B13: B.1.9 | D13: =VLOOKUP(B13,Questions!$D$4:$F$418,3,FALSE) -> Real time traffic data (Yes= 1, No= 0) | G13: NA
B14: B.1.10 | D14: =VLOOKUP(B14,Questions!$D$4:$F$418,3,FALSE) -> Parking Data exchange using APDS standard (Yes=1, no=0) | G14: NA
B15: B.1.11 | D15: =VLOOKUP(B15,Questions!$D$4:$F$418,3,FALSE) -> Other real time accessible information (e.g. local events) (Yes= 1, No= 0) | G15: NA
A16: B.2 | B16: B.2.1 | D16: =VLOOKUP(B16,Questions!$D$4:$F$418,3,FALSE) -> Measures to avoid traffic queues at peak hours (i.e. tidal lane at car entry/exit) - (Yes= 3, No= 0) | F16: 3 | G16: =IF(COUNTIF(Question_YN_Yes,E16)>0,3,IF(COUNTIF(Question_YN_No,E16)>0,0,"NA")) -> NA | H16: =F16/$I$33*$I$35 -> 1.875 | I16: =IF(ISNUMBER(G16),G16/$I$33*$I$35,0) -> 0
A17: B.3 | B17: B.3.1 | D17: =VLOOKUP(B17,Questions!$D$4:$F$418,3,FALSE) -> Turn around possibility for cars before height barrier or full sign to prevent reversing (Yes= 3, No= 0) | F17: 3 | G17: =IF(COUNTIF(Question_YN_Yes,E17)>0,3,IF(COUNTIF(Question_YN_No,E17)>0,0,"NA")) -> NA | H17: 1.875 | I17: 0
A18: B.4 | B18: B.4.1 | D18: =VLOOKUP(B18,Questions!$D$4:$F$418,3,FALSE) -> Customer service desk (Yes= 1, No= 0) | F18: 1 | G18: =IF(COUNTIF(Question_YN_Yes,E18)>0,1,IF(COUNTIF(Question_YN_No,E18)>0,0,"NA")) -> NA | H18: 0.625 | I18: 0
A19: B.5 | B19: B.5.1 | D19: =VLOOKUP(B19,Questions!$D$4:$F$418,3,FALSE) -> Escalators and/or travellators (To/from all levels =5, To/from some levels =3, No Escalators or Travellators = 0) | F19: 5 | G19: =IF(COUNTIF(Q_B_5_All_Levels,E19)>0,5,(IF(COUNTIF(Q_B_5_Some_Levels,E19)>0,3,(IF(COUNTIF(Q_B_5_None,E19)>0,0,"NA"))))) -> NA | H19: 3.125 | I19: 0
A20: B.6 | B20: B.6.1 | D20: =VLOOKUP(B20,Questions!$D$4:$F$418,3,FALSE) -> Localisation of parked cars by ticket or license plate (Yes= 1, No= 0) | F20: 1 | G20: =IF(COUNTIF(Question_YN_Yes,E20)>0,1,IF(COUNTIF(Question_YN_No,E20)>0,0,"NA")) -> NA | H20: 0.625 | I20: 0
A21: B.7 | B21: B.7.1 | D21: =VLOOKUP(B21,Questions!$D$4:$F$418,3,FALSE) -> Barrierless parking with ANPR control: 1 point extra | F21: 1 | G21: =IF(COUNTIF(Question_YN_Yes,E21)>0,1,IF(COUNTIF(Question_YN_No,E21)>0,0,"NA")) -> NA | H21: 0.625 | I21: 0
A22: B.8 | B22: B.8.1 | D22: =VLOOKUP(B22,Questions!$D$4:$F$418,3,FALSE) -> Park&ride/public transport node at pedestrian exit yes=1, no=0, actual departure times displayed in the car park: 1 point extra | F22: 2 | G22: =IF(COUNTIF(Q_B_8_Yes,E22)>0,1,(IF(COUNTIF(Q_B_8_No,E22)>0,0,(IF(COUNTIF(Q_B_8_Departure_Times,E22)>0,2,"NA"))))) -> NA | H22: 1.25 | I22: 0
A23: B.9 | B23: B.9.1 | D23: =VLOOKUP(B23,Questions!$D$4:$F$418,3,FALSE) -> Support of autonomous valet parking (AVP) in dedicated zone of the car park: Yes=5, no=0 | F23: 5 | G23: =IF(COUNTIF(Question_YN_Yes,E23)>0,5,IF(COUNTIF(Question_YN_No,E23)>0,0,"NA")) -> NA | H23: 3.125 | I23: 0
A24: B.10 | B24: B.10.1 | D24: =VLOOKUP(B24,Questions!$D$4:$F$418,3,FALSE) -> Other positive points e.g. extra services, friendly staff, tiled walls/floors, good fit of the car park in cityscape etc up to ten additional bonus points. To be explicitly identified. | F24: 10 | G24: =IF(ISNUMBER(E24),E24,"NA") -> NA | H24: 6.25 | I24: 0
A25: B.11 | B25: B.11.1 | D25: =VLOOKUP(B25,Questions!$D$4:$F$418,3,FALSE) -> Is a life-care plan for the building published and maintained? Yes=1, no=0) | F25: 1 | G25: =IF(COUNTIF(Question_YN_Yes,E25)>0,1,IF(COUNTIF(Question_YN_No,E25)>0,0,"NA")) -> NA | H25: 0.625 | I25: 0
A26: B.12 | B26: B.12.1 | D26: =VLOOKUP(B26,Questions!$D$4:$F$418,3,FALSE) -> Is a sustainability plan (including an end of life recycling strategy) in place and implemented? Yes=1, no=0 | F26: 1 | G26: =IF(COUNTIF(Question_YN_Yes,E26)>0,1,IF(COUNTIF(Question_YN_No,E26)>0,0,"NA")) -> NA | H26: 0.625 | I26: 0
A27: B.13 | B27: B.13.1 | D27: =VLOOKUP(B27,Questions!$D$4:$F$418,3,FALSE) -> Is daily, monthly and anually energy use displayed at the pedestrian area? Yes=1, no=0 | F27: 1 | G27: =IF(COUNTIF(Question_YN_Yes,E27)>0,1,IF(COUNTIF(Question_YN_No,E27)>0,0,"NA")) -> NA | H27: 0.625 | I27: 0
D28: =CONCATENATE(Tags!$B$50," ",$D$1) -> Subtotals Bonus Points | F28: =SUM(F4:F20) -> 24 | G28: =SUM(G15:G20,G4) -> 0 | H28: =SUM(H4:H27) -> 28.125 | I28: =SUM(I4:I27) -> 0
D32: =Tags!B30 -> Total Items | E32: 13 | G32: =Tags!B34 -> Score | I32: =G28 -> 0
D33: =Tags!B31 -> Total Items + SubItems | E33: =COUNTA(D5:D27) -> 23 | G33: =Tags!B35 -> Maximum Score | I33: =F28 -> 24
D34: =Tags!B32 -> Itens Completed | E34: =COUNTA(E5:E27) -> 0 | G34: =Tags!B36 -> Percentage | I34: =I32/I33 -> 0
D35: =Tags!B33 -> Not measured | E35: =E33-E34 -> 23 | G35: =Tags!B37 -> Category Value | I35: ='Detailed Results'!K19 -> 15
A38: =Tags!B60 -> Notes

Sheet Mandatory Conditions Gold Award
A1: =Tags!B71 -> Global Evaluation - Gold Award | H1: =Tags!B49 -> % Completion: | I1: =E9/3 -> 0
A3: =Tags!B69 -> Mandatory Conditions for Gold Award | E3: ='1. Mandatory Conditions'!E3 -> Compliant | F3: =Tags!B23 -> Comments
A4: 1.2 | B4: G.1 | D4: =VLOOKUP(B4,Questions!$D$4:$F$418,3,FALSE) -> Minimum headroom = 2,00 m, generally in the public areas. Incidental lower obstacles must be clearly marked.
A5: 1.4 | B5: G.2 | D5: =VLOOKUP(B5,Questions!$D$4:$F$418,3,FALSE) -> 70% of bays must be at least 2.40m wide.
A6: 1.11 | B6: G.3 | D6: =VLOOKUP(B6,Questions!$D$4:$F$418,3,FALSE) -> Average light levels on parking area at floor is at minimum 50 Lux
A8: =Tags!B39 -> Category | E8: =Tags!B41 -> Number of Oks | F8: =Tags!B42 -> Number of Fails | I8: =+'Detailed Results'!M6 -> Status
A9: 1 | D9: ='1. Mandatory Conditions'!C1 -> Mandatory Minimum Conditions | E9: =COUNTIF($E$4:$E$6,Answers!B20) -> 0 | F9: =COUNTIF($E$4:$E$6,Answers!B21) -> 0 | I9: =IF('Detailed Results'!M4=pass,IF(F9>0,fail,IF(E9=3,pass,incomplete)),'Detailed Results'!M4) -> Fail

Sheet Questions (hidden)
A1: ='Languages Available'!B1 -> 1 | B1: Language Selected: | C1: ='Languages Available'!B1 -> 1 | F1: ='General Info'!C4 -> English
F2: 1 | H2: 1 | I2: 2 | J2: 3 | K2: 4 | L2: 5 | M2: 6 | N2: 7 | O2: 8
B3: Active Language | D3: Numer | E3: Type | F3: =VLOOKUP(F2,'Languages Available'!$A$3:$B$23,2) -> English | H3: =VLOOKUP(H2,'Languages Available'!$A$3:$B$12,2,0) -> English | I3: =VLOOKUP(I2,'Languages Available'!$A$3:$B$12,2,0) -> Dutch | J3: =VLOOKUP(J2,'Languages Available'!$A$3:$B$12,2,0) -> Français | K3: =VLOOKUP(K2,'Languages Available'!$A$3:$B$12,2,0) -> Deutsch | L3: =VLOOKUP(L2,'Languages Available'!$A$3:$B$12,2,0) -> Portuguese | M3: =VLOOKUP(M2,'Languages Available'!$A$3:$B$12,2,0) -> Turkish | N3: =VLOOKUP(N2,'Languages Available'!$A$3:$B$12,2,0) -> Polish | O3: =VLOOKUP(O2,'Languages Available'!$A$3:$B$12,2,0) -> Italian
A4: =C4 -> 1 | B4: =IF(ISBLANK(VLOOKUP(A4,$C$4:$T$9877,1+$A$1)),F4,VLOOKUP(A4,$C$4:$T$9877,1+$A$1)) -> 1 | C4: 1 | D4: 1 | E4: Title | F4: =OFFSET(G4,0,$C$1) -> Mandatory Minimum Conditions | H4: Mandatory Minimum Conditions | I4: Verplichte minimum eisen | J4: Conditions minimales obligatoires | K4: Erforderliche Mindestkriterien | L4: Condições Mínimas Necessárias | M4: Zorunlu Asgari Şartlar | N4: Wymagane warunki minimalne. | O4: Condizioni minime obbligatorie
A5: 2 | B5: 1.1 | C5: =+C4+1 -> 2 | D5: 1.1 | E5: Item | F5: =OFFSET(G5,0,$C$1) -> Car park must be for public use | H5: Car park must be for public use | I5: Garage moet publiek toegankelijk zijn | J5: Le parking doit être à usage public | K5: Die Parkeinrichtung muss öffentlich sein. | L5: Parque de estacionamento para uso público | M5: Otopark halka açık olmalı | N5: Parking musi być przeznaczony do użytku publicznego. | O5: Il parcheggio deve essere ad uso pubblico
A6: 3 | B6: 1.2 | C6: =+C5+1 -> 3 | D6: 1.2 | E6: Item | F6: =OFFSET(G6,0,$C$1) -> Minimum headroom = 1.90 m, generally in the public areas. Incidental lower obstacles must be clearly marked. | H6: Minimum headroom = 1.90 m, generally in the public areas. Incidental lower obstacles must be clearly marked. | I6: Minimale inrijhoogte 1,90 m. Incidentele plaatsen met lagere hoogte moeten duidelijk gemarkeerd zijn. | J6: Hauteur minimum au plafond = 1,90m dans la majorité des espaces dédiés au public; Les quelques éventuels passages plus bas doivent être clairement signalés. | K6: Mindestdurchfahrtshöhe = 1,90m im öffentlich zugänglichen Bereich. Einzelne niedrigere Stellen müssen deutlich gekennzeichnet sein. | L6: Pé-direito mínimo = 1,90 m, geralmente nas áreas públicas. Eventuais obstáculos a menor altura devem estar claramente identificados. | M6: Halka açık alanlarda asgari yükseklik,1.90 m olmalıdır. Bunun altındaki alçak kısımlar işaretlenmelidir / belirtilmelidir. | N6: Minimalny prześwit = 1,90 m. Przypadkowe niżej położone przeszkody muszą być wyraźnie oznaczone. | O6: Altezza libera minima = 1,90 m, generalmente nelle aree pubbliche. Gli ostacoli inferiori accidentali devono essere chiaramente contrassegnati
A7: 4 | B7: 1.3 | C7: 4 | D7: 1.3 | E7: Item | F7: There must be at least one dedicated entry and exit lane although additional tidal flow lanes are allowed. | H7: There must be at least one dedicated entry and exit lane although additional tidal flow lanes are allowed. | I7: Er moet ten minste één gescheiden inrit en uitrit zijn, extra wisselstroken zijn toegestaan. | J7: Il doit y avoir au minimum une voie d'entrée et une voie de sortie, une troisième voie bidirectionnelle (alternative) est autorisé. | K7: Es muss mindestens eine getrennte Ein- und Ausfahrtsspur vorhanden sein. Zusätzliche, tageszeitlich in wechselnder Fahrtrichtung genutzte Wechselspuren sind zulässig. | L7: Deve existir pelo menos um acesso exclusivo para entradas e um acesso exclusivo para saídas, apesar de poderem existir vias de fluxo bidirecional adicionais. | M7: Giriş ve çıkış için ayrılmış birer adet şerit olmalıdır, trafik akışını sağlamak için ilave şeritler kullanılabilir. | N7: Musi istnieć co najmniej jeden wydzielony pas wjazdu i wyjazdu, chociaż dozwolone są także dodatkowe pasy. | O7: Deve esserci almeno una corsia di ingresso e uscita dedicata, sebbene siano consentite corsie aggiuntive per gestire flussi maggiori
A8: 5 | B8: 1.4 | C8: 5 | D8: 1.4 | E8: Item | F8: 70% of bays must be at least 2.30m wide. For renovated car parks, over ten years old, minimum bay width of 2.25m is allowed (in that case a penalty applies - check M8). | H8: 70% of bays must be at least 2.30m wide. For renovated car parks, over ten years old, minimum bay width of 2.25m is allowed (in that case a penalty applies - check M8). | I8: 70% van de parkeervakken moet minstens 2.30m breed zijn. Voor gerenoveerde garages, ouder dan tien jaar is een minimum breedte van 2.25m toegestaan. In dergelijke gevallen worden vijf punten in mindering gebracht, bij Malus-8 | J8: 70% des emplacements doivent faire au moins 2,30m de large. Pour des parkings rénovés de plus de 10 ans, une largeur minimum de 2,25m est tolérée (dans ce cas,une pénalité de 5 points est appliquée au point M8 (Malus) | K8: 70% der Stellplätze müssen zumindest 2,30m breit sein. Für renovierte Betriebe, die über 10 Jahre alt sind, beträgt die Mindestbreite 2,25 m ( in diesem Fall kommt ein Punkteabzug zur Anwendung - siehe M8) | L8: 70% dos lugares de estacionamento devem ter no mínimo 2.30m de largura. Para parques de estacionamento renovados, com mais de dez anos de idade, a largura mínima do lugar permitida é de 2.25m (neste caso aplica-se uma penalidade - ver M8). | M8: Park alanlarının en az %70'i, 2.30 m genişliğinde olmalıdır. 10 yaşın üzerindeki yenilenmiş otoparklarda 2.25'e izin verilmekle birlikte, M8 maddedeki ceza uygulanır. | N8: 70% zatok musi mieć szerokość co najmniej 2,30m. W przypadku remontowanych parkingów, starszych niż 10 lat, dopuszczalna jest minimalna szerokość zatoki 2,25m (w takim przypadku obowiązuje kara - sprawdź M8) | O8: Il 70% delle campate deve essere largo almeno 2,30 m. Per i parcheggi ristrutturati, di età superiore ai dieci anni, è consentita la larghezza minima della campata di 2,25 m (in tal caso si applica una penale - verificare M8).
A9: 6 | B9: 1.5 | C9: 6 | D9: 1.5 | E9: Item | F9: All straight ramps for unidirectional traffic must be minimum 2.7 metres wide. Bidirectional ramps must be at least 6m wide with lane markings. Ramp width is measured between walls or pillars | H9: All straight ramps for unidirectional traffic must be minimum 2.7 metres wide. Bidirectional ramps must be at least 6m wide with lane markings. Ramp width is measured between walls or pillars | I9: Alle hellingbanen voor auto's voor één richting moeten minstens 2,7 meter breed zijn; bij tweerichtingsverkeer minstens 6 meter breed met midden markering. De breedte wordt gemeten tussen wanden of kolommen. | J9: Toutes les rampes droites à traffic unidirectionnel doivent faire minimum 2,70m de large. En cas de rampes bidirectionnelles, celles-ci doivent faire minimum 6m de large avec marquage des voies. | K9: Alle geraden Rampen mit Einbahnverkehr müssen mindestens 2,70 m breit sein. Rampen mit Gegenverkehr müssen mindestens 6,00 m breit sein und eine Fahrbahnmarkierung aufweisen. Die Messung erfolgt zwischen den Wänden oder Säulen. | L9: Todas as rampas retas com tráfego unidirecional devem ter no mínimo 2.7 metros de largura. Rampas bidirecionais devem ter no mínimo 6m de largura, com marcações das faixas. A largura da rampa é medida entre paredes ou pilares | M9: Tek yönlü trafik için olan tüm düz rampalar en az 2.7 m. olmalıdır. Çift yönlü trafik için olan rampalar ise 6 m. genişliğinde olmalı ve şerit çizgisi olmalıdır. Rampa genişlikleri duvardan duvara ya da kolondan kolana ölçülür. | N9: Wszystkie proste rampy dla ruchu jednokierunkowego muszą mieć minimum 2,7 metra szerokości. Rampy dwukierunkowe muszą mieć co najmniej 6 m szerokości z oznaczeniami pasów ruchu. Szerokość rampy mierzona jest między ścianami lub filarami. | O9: Tutte le rampe rettilinee per il traffico unidirezionale devono avere una larghezza minima di 2,7 metri. Le rampe bidirezionali devono essere larghe almeno 6 m con segnaletica orizzontale. La larghezza della rampa viene misurata tra pareti o pilastri
A10: 7 | B10: 1.6 | C10: 7 | D10: 1.6 | E10: Item | F10: Curved ramps for single directional traffic must have an external radius of minimum 8.00 metres with lane width of minimum 3.5 metres. For bidirectional curved ramps this applies for the inner driving lane. The outside driving lane must be minimum 3.5 metres wide as well. | H10: Curved ramps for single directional traffic must have an external radius of minimum 8.00 metres with lane width of minimum 3.5 metres. For bidirectional curved ramps this applies for the inner driving lane. The outside driving lane must be minimum 3.5 metres wide as well. | I10: De buitenkant van een gebogen helling met eenrichtingsverkeer moet een straal van minstens 8 meter hebben met een rijstrook van minstens 3,5 meter breed. Bij hellingen met twee richtingsverkeer geldt dit voor de binnenste rijstrook.De buitenste rijstrook moet ook minstens 3,5 meter breed zijn. | J10: Les rampes courbes pour un traffic unidirectionnel doivent présenter un radius externe de minimim 8,00m avec des voies de minimum 3,50m de large. Pour des courbes bidirectionnelles, les mesures sont d'application pour la voie intérieure de la courbe. La voie extérieure doit être de minimum 3,50m de large. | K10: Gekrümmte Rampen mit Einbahnverkehr müssen einen äußeren Kurvenradius von mindestens 8,00 m und eine Fahrbahnbreite von mindestens 3,50 m aufweisen. Bei Rampen mit Gegenverkehr gilt dies für die innere Fahrspur, während die äußere Fahrspur ebenfalls mindestens 3,50 m breit sein muss. | L10: Rampas curvas para tráfego direcional único devem ter um raio externo mínimo de 8.00 m, com largura de faixa mínima de 3.50 m. (Para rampas curvas bidirecionais, aplica-se para a faixa de rodagem interior. A faixa de rodagem exterior também deve ter largura mínima de 3.50 m) | M10: Tek yönlü trafik için kavisli rampalar, minimum 3,5 m. şerit genişliğine ve en az 8,00 m. dış yarıçapa sahip olmalıdır. Bu ölçüler, çift yönlü kavisli rampalarda iç sürüş şeridi için geçerlidir. Dış sürüş şeridi için de minimum 3,5 m. genişlik olmalıdır. | N10: Zakrzywione rampy dla ruchu jednokierunkowego muszą mieć promień zewnętrzny minimum 8,00 metrów i szerokość pasa minimum 3,5 metra. W przypadku dwukierunkowych zakrzywionych ramp dotyczy to wewnętrznego pasa ruchu. Również zewnętrzny pas ruchu musi mieć szerokość minimum 3,5 metra. | O10: Le rampe curve per il traffico unidirezionale devono avere un raggio esterno minimo di 8,00 metri con larghezza della carreggiata minima di 3,5 metri. Per le rampe curve bidirezionali questo vale per la corsia di marcia interna. Anche la corsia di marcia esterna deve essere larga almeno 3,5 metri.
A11: 8 | B11: 1.7 | C11: 8 | D11: 1.7 | E11: Item | F11: Ramp gradients must not exceed 20% , to be measured at the middle of driving lane. At bidirectional curved ramps this applies for the inner (steepest) driving lane. | H11: Ramp gradients must not exceed 20% , to be measured at the middle of driving lane. At bidirectional curved ramps this applies for the inner (steepest) driving lane. | I11: Hellingbanen mogen niet steiler zijn dan 20%, gemeten in het midden van de rijbaan. Bij gebogen hellingen voor twee richtingsverkeer geldt dit voor de binnenste rijstrook. | J11: L'inclinaison de la rampe ne peut excéder 20%. Elle doit être mesurée au centre de la voie de circulation. Pour les rampes courbes bidirectionnelles, ceci s'applique à la voie intérieure la plus abrupte. | K11: Rampen dürfen eine Steigung von 20% nicht überschreiten. Die Messung erfolgt in der Mitte der Fahrspur. Bei gekrümmten Rampen mit Gegenverkehr gilt das für die innere (steilste) Spur. | L11: A inclinação das rampas não deve exceder 20%, medido no centro da faixa de rodagem. Em rampas curvas bidirecionais, aplica-se para a rampa interior (mais inclinada). | M11: Şeridin orta noktasından yapılacak ölçüme göre rampa eğimi %20'yi aşmamalıdır. Çift yönlü kavisli rampalarda ölçüm, iç sürüş şeridinin en dik noktasından yapılır. | N11: Nachylenie rampy nie może przekraczać 20%, mierzone na środku pasa ruchu. Na dwukierunkowych zakrzywionych rampach dotyczy to wewnętrznego (najbardziej stromego) pasa ruchu. | O11: Le pendenze della rampa non devono superare il 20%, da misurare a metà carreggiata. Alle rampe curve bidirezionali questo vale per la corsia di marcia interna (più ripida).
A12: 9 | B12: 1.8 | C12: 9 | D12: 1.8 | E12: Item | F12: If the car park has paid parking and access control by barriers or gates, staff must be contactable at the pay point/exit point and secured pedestrian entries. | H12: If the car park has paid parking and access control by barriers or gates, staff must be contactable at the pay point/exit point and secured pedestrian entries. | I12: Als de garage is uitgerust met slagbomen of afsluitpoorten voor betaald parkeren, moeten bij de betaalautomaten, uitritten en beveiligde toegangen voor voetgangers een intercom aanwezig zijn. | J12: Si le parking est payant et dispose d'un contrôle d'accès par barrières ou portails, un personnel de service doit pouvoir être contacté aux bornes de paiement, aux bornes de sorties et aux entrées piétons sécurisées. | K12: Wenn der Parkbetrieb entgeltlich geführt wird und die Bewirtschaftung über Schrankensysteme oder Tore erfolgt, muss Personal an den Bezahl-, Ausfahrts- und Zugangspunkten erreichbar sein. | L12: Se o parque de estacionamento tem estacionamento pago e controlo de acessos por barreiras ou portões, funcionários devem estar contactáveis a partir dos locais de pagamento, das saídas e de entradas pedonais com porta fechada. | M12: Eğer otopark ücreti ise ve bariyer ya da kapı ile giriş kontrolü varsa otopark çalışanları, ödeme noktalarından, giriş / çıkış noktalarından ve emniyet altına alınmış yaya girişlerinden erişilebilir durumda olmalıdır. | N12: Jeżeli parking jest płatny, a dostęp do niego jest kontrolowany przez szlabany lub bramy, pracownicy muszą być dostępni w punkcie poboru opłat/wyjazdu oraz przy zabezpieczonych wejściach dla pieszych. | O12: Se il parcheggio prevede il pagamento ed il controllo accessi tramite barriere o varchi, il personale deve essere contattabile alla cassa/uscita e agli ingressi pedonali protetti.
A13: 10 | B13: 1.9 | C13: 10 | D13: 1.9 | E13: Item | F13: Receipt for payment must be provided when requested. | H13: Receipt for payment must be provided when requested. | I13: Op verzoek moet een kwitantie voor de betaling worden verstrekt. | J13: Un reçu de paiement doit pouvoir être délivré en cas de demande. | K13: Eine Quittung muss (zumindest) auf Kundenanforderung ausgegeben werden. | L13: Recibo de pagamento deve ser fornecido quando solicitado. | M13: İstendiğinde, ödeme fişi/makbuzu verilebilmelidir. | N13: Na żądanie należy przedstawić dowód zapłaty za parking. | O13: La ricevuta del pagamento deve essere fornita quando richiesto.
A14: 11 | B14: 1.10 | C14: 11 | D14: 1.10 | E14: Item | F14: All turning movements must be capable of being completed without reversing (moving in/out the parking bay and cul-de-sacs excluded) | H14: All turning movements must be capable of being completed without reversing (moving in/out the parking bay and cul-de-sacs excluded) | I14: Alle voertuigbewegingen in de garage moeten zonder achteruitsteken uitgevoerd kunnen worden. (uitgezonderd in- en uitdraaien van een parkeervak en doodlopende rijstroken). | J14: Toutes les manoeuvres du véhicule doivent pouvoir être effectuées sans devoir effectuer une marche arrière (exception faite pour se garer ou sortir d'un emplacement ainsi que des culs-de-sac). | K14: Alle Fahrmanöver müssen ohne Zurücksetzen des Fahrzeugs möglich sein. Ausnahmen sind Ein- und Ausparkmanöver oder Sackgassen. | L14: Todas as manobras devem poder ser efectuadas sem necessidade de inversão de marcha (excluindo entradas/saídas de lugares e zonas sem saída) | M14: Tüm dönüş hareketleri geri gitmeden tamamlanabilmelidir (park alanına giriş/çıkış ve çıkmaz yollar hariç). | N14: Wszystkie manewry zawracania muszą być możliwe do wykonania bez konieczności cofania (z wyłączeniem wjazdu i wyjazdu z zatoki parkingowej i skrzyżowań). | O14: Tutti i movimenti di svolta devono poter essere completati senza retromarcia (esclusi ingresso/uscita dal parcheggio e strade senza uscita)
A15: 12 | B15: 1.11 | C15: 12 | D15: 1.11 | E15: Item | F15: Average light levels on parking area at floor is at minimum 20 Lux | H15: Average light levels on parking area at floor is at minimum 20 Lux | I15: gemiddeld lichtniveau op vloerhoogte is minimaal 20 Lux | J15: La moyenne de luminosité des emplacements au niveau du sol doit être de 20 lux. | K15: Die durchschnittliche Ausleuchtung der Parkfläche (am Boden gemessen) beträgt mind. 20 Lux. | L15: Níveis de luz médios na área de estacionamento, medidos ao nível do piso, são no mínimo de 20 Lux | M15: Park alanlarında zemindeki ortalama ışık seviyesi en az 20 Lüx olmalıdır. | N15: Średnie natężenie światła na parkingu przy podłodze musi wynosić co najmniej 20 luksów. | O15: Il livello medio di luce nell'area di parcheggio al piano è di almeno 20 Lux
A16: 13 | B16: 2 | C16: 13 | D16: 2 | E16: Title | F16: Lighting | H16: Lighting | I16: Verlichting | J16: Eclairage | K16: Beleuchtung | L16: Iluminação | M16: Aydınlatma | N16: Oświetlenie | O16: Illuminazione
A17: 14 | B17: 2.1 | C17: 14 | D17: 2.1 | E17: =E15 -> Item | F17: Vehicular entry area; at floor level • Above 200 Lux = 5; • Between 75– 200 Lux: 0,04 pt per Lux over 75 • Below 75 Lux = 0 | H17: Vehicular entry area; at floor level • Above 200 Lux = 5; • Between 75– 200 Lux: 0,04 pt per Lux over 75 • Below 75 Lux = 0 | I17: Ingangspartij; op vloerhoogte: • > 200 Lux = 5; • 75– 200 Lux = 0,04punt per Lux boven 75; • < 75 Lux = 0 | J17: Aire d'entrée des véhicules, mesures effectuées au niveau du sol • Plus de 200 Lux = 5; • Entre 75 et 200 Lux: 0,04 pt par Lux au-delà de 75 • Moins de 75 Lux = 0 | K17: Einfahrtsbereich; Messung am Boden • Über 200 Lux = 5; • Zwischen 75 - 200 Lux = 0,04 pt pro Lux über 75 • Unter 75 Lux = 0 | L17: Zona de entrada de veículos, ao nível do chão • Acima de 200 Lux = 5; • Entre 75 e 200 Lux: 0,04 pt por cada Lux acima de 75; • Abaixo de 75 Lux = 0; | M17: Araç giriş alanı; zemin seviyesinde • 200 Lüx'ün üzerinde = 5; • 75–200 Lüx arasında= 75'in üzerinde Lüx başına 0,04 puan; • 75 Lüks'ün altında = 0 | N17: Obszar wjazdu pojazdów; na poziomie podłogi: • Powyżej 200 Lux = 5, • Między 75– 200 Lux: 0,04 pkt za każdy Lux powyżej 75, • Poniżej 75 Lux = 0. | O17: Zona ingresso carrabile; a piano terra • Sopra 200 Lux = 5; • Tra 75–200 Lux: 0,04 pt per Lux oltre 75 • Sotto 75 Lux = 0
A18: 15 | B18: 2.2 | C18: 15 | D18: 2.2 | E18: =E17 -> Item | F18: Entry; at 1 m height near ticket-machine • Above 200 Lux = 3; • Between100– 200 Lux: 0,03 pt per Lux over 100 • Below 100 Lux = 0 | H18: Entry; at 1 m height near ticket-machine • Above 200 Lux = 3; • Between100– 200 Lux: 0,03 pt per Lux over 100 • Below 100 Lux = 0 | I18: Inrit kaartgever; op 1 m hoogte • > 200 Lux = 3; • 100-200 Lux = 0,03punt per Lux boven 100; • • < 100 Lux = 0 | J18: Entrée: à 1 m de hauteur près de la borne d'entrée (tickets) • Plus de 200 Lux = 3; • Entre 100 et 200 Lux: 0,03 pt par Lux au-delà de 100 • Moins 100 Lux = 0 | K18: Einfahrt; in 1 m Höhe neben dem Ticketgeber • Über 200 Lux = 3; • Zwischen 100 - 200 Lux = 0,03 pt pro Lux über 100 • Unter 100 Lux = 0 | L18: Zona de entrada de veículos, a 1 m de altura, perto da máquina de bilhetes • Acima de 200 Lux = 3; • Entre 100 e 200 Lux: 0,03 pt por cada Lux acima de 100; • Abaixo de 100 Lux = 0 | M18: Giriş; bilet makinesinin yanında 1 m. yükseklikte • 200 Lüx'ün üzerinde = 3; • 100–200 Lux arasında= 100'ün üzerinde Lux başına 0,03 puan; • 100 Lüks'ün altında = 0 | N18: Wjazd; na wysokości 1 m w pobliżu szlabanu/automatu biletowego: • Powyżej 200 Lux = 3, • Między 100 – 200 Lux: 0,03 pkt za każdy Lux powyżej 100, • Poniżej 100 Lux = 0. | O18: Entrata; a 1 m di altezza vicino alla biglietteria automatica • Sopra 200 Lux = 3; • Tra 100–200 Lux: 0,03 pt per Lux oltre 100 • Sotto 100 Lux = 0
A19: 16 | B19: 2.3 | C19: 16 | D19: 2.3 | E19: =E18 -> Item | F19: Exit; at 1 m height near barrier/ticket-machine • Above 200 Lux = 3; • Between100– 200 Lux: 0,03 pt per Lux over 100 • Below 100 Lux= 0 | H19: Exit; at 1 m height near barrier/ticket-machine • Above 200 Lux = 3; • Between100– 200 Lux: 0,03 pt per Lux over 100 • Below 100 Lux= 0 | I19: Uitrit kaartlezer; op 1 m hoogte • > 200 Lux = 3; • 100-200 Lux =0,03punt per Lux boven 100; • < 100 Lux = 0 | J19: Sortie: à 1 m de hauteur près de la borne de sortie (tickets) • Plus de 200 Lux = 3; • Entre 100 et 200 Lux: 0,03 pt par Lux au-delà de 100 • Moins 100 Lux = 0 | K19: Ausfahrt; in 1 m Höhe neben der Ausfahrtssäule • Über 200 Lux = 3; • Zwischen 100 - 200 Lux = 0,03 pt pro Lux über 100 • Unter 100 Lux = 0 | L19: Zona de saída de veículos, a 1 m de altura perto da máquina de leitura de bilhetes: • Acima de 200 Lux = 3; • Entre 100 e 200 Lux: 0,03 pt por cada Lux acima de 100; • Abaixo de 100 Lux= 0; | M19: Çıkış; bariyer/bilet makinesinin yanında 1m. yükseklikte • 200 Lüx'ün üzerinde = 3; • 100–200 Lüx arasında= 100'ün üzerinde Lüx başına 0,03 puan; • 100 Lüx'ün altında = 0 | N19: Wyjazd; na wysokości 1 m w pobliżu szlabanu/automatu biletowego: • Powyżej 200 Lux = 3, • Między 100– 200 Lux: 0,03 pkt za każdy Lux powyżej 100, • Poniżej 100 Lux = 0. | O19: Uscita; a 1 m di altezza in prossimità di sbarra/biglietteria • Sopra 200 Lux = 3; • Tra 100–200 Lux: 0,03 pt per Lux oltre 100 • Sotto 100 Lux= 0
A20: 17 | B20: 2.4 | C20: 17 | D20: 2.4 | E20: Item | F20: At pay-machine; at 1 m height • Above 200 Lux =4; • Between100– 200 Lux: 0,04 pt per Lux over 100 • Below 100 Lux= 0; • No Pay Machines : same as exit (enter zero if this is the case) | H20: At pay-machine; at 1 m height • Above 200 Lux =4; • Between100– 200 Lux: 0,04 pt per Lux over 100 • Below 100 Lux= 0; • No Pay Machines : same as exit (enter zero if this is the case) | I20: Bij betaalautomaat; op 1 m hoogte • > 200 Lux =4; • 100-200 Lux = 0,04punt per Lux boven 100; • < 100 Lux= 0; • Indien geen betaalautomaten: als bij uitrit (0 invullen) | J20: Bornes de paiement: à 1 m de hauteur • Plus de 200 Lux =4; • Entre 100 et 200 Lux: 0,04 pt par Lux au-delà de 100 • Moins de 100 Lux= 0; • Si pas de bornes de paiement : idem qu'en sortie (entrer zéro si tel est le cas) | K20: Am Bezahlautomaten; in 1 m Höhe • Über 200 Lux = 4; • Zwischen 100 - 200 Lux = 0,04 pt pro Lux über 100 • Unter 100 Lux = 0; • Kein Bezahlautomat = wie Ausfahrt (in diesem Fall "0" eingeben) | L20: Junto às Máquinas de Pagamento, a 1 m de altura: • Acima de 200 Lux = 4; • Entre 100 e 200 Lux: 0,04 pt por cada Lux acima de 100; • Abaixo de 100 Lux= 0; • Se não houver máquinas de pagamento, pontuação semelhamte à da saída. (introduza zero se for este o caso) | M20: Ödeme makinesinde; 1 m yükseklikte • 200 Lüx'ün üzerinde =4; • 100–200 Lüx arasında= 100'ün üzerinde Lüx başına 0,04 puan; • 100 Lüx'ün altında= 0; • Ödeme Makinesi Yok : 0 | N20: Przy automacie płatniczym, na wysokości 1 m: • Powyżej 200 Lux = 4, • Między 100–200 Lux: 0,04 pkt za każdy Lux powyżej 100, • Poniżej 100 Lux =0; • Brak automatów płatniczych: tak samo jak w przypadku wyjazdu (w takim przypadku wpisz zero). | O20: Al bancomat; a 1 m di altezza • Superiore a 200 Lux =4; • Tra 100–200 Lux: 0,04 pt per Lux oltre 100 • Sotto 100 Lux= 0; • No Pay Machines: uguale all'uscita (inserire zero se questo è il caso)
A21: 18 | B21: 2.5 | C21: 18 | D21: 2.5 | E21: Item | F21: At cashier; at counter height • Above 200 Lux =4; • Between100– 200 Lux: 0,04 pt per Lux over 100 • Below 100 Lux= 0; • No cashier = 3 (enter zero if this is the case) | H21: At cashier; at counter height • Above 200 Lux =4; • Between100– 200 Lux: 0,04 pt per Lux over 100 • Below 100 Lux= 0; • No cashier = 3 (enter zero if this is the case) | I21: Bij de kassier; op toonbankhoogte • > 200 Lux =4; • 100-200 Lux = 0,04punt per Lux boven 100; • < 100 Lux= 0; • Geen kassier = 3 (0 invullen) | J21: Auprès du caissier: à hauteur du comptoir • Plus de 200 Lux =4; • Entre 100 et 200 Lux: 0,04 pt par Lux au-delà de 100 • Moins de 100 Lux= 0; • Pas de caissier = 3 (entrer zéro si tel est le cas) | K21: An der Kasse; in Höhe des Kundenschalters • Über 200 Lux = 4; • Zwischen 100 - 200 Lux = 0,04 pt pro Lux über 100 • Unter 100 Lux = 0; • Keine Kassenstation = 3 (in diesem Fall "0" eingeben) | L21: Junto à Caixa Manual, à altura do balcão • Acima de 200 Lux = 4; • Entre 100 e 200 Lux: 0,04 pt por cada Lux acima de 100 • Abaixo de 100 Lux = 0; • Se não houver caixa manual = 3 (introduza zero se for este o caso); | M21: Ödeme noktası ; tezgah yüksekliğinde • 200 Lüx'ün üzerinde =4; • 100–200 Lüx arasında= 100'ün üzerinde Lüx başına 0,04 puan; • 100 Lüks'ün altında= 0; • ödeme noktası yok = 3 (bu durumda sıfır girin) | N21: U kasjera; na wysokości lady: • Powyżej 200 Lux =4, • Między 100–200 Lux: 0,04 pkt za każdy Lux powyżej 100, • Poniżej 100 Lux= 0, • Brak kasjera: 0 (w takim przypadku wpisz zero) | O21: Alla cassa;l'altezza del bancone • Superiore a 200 Lux =4; • Tra 100–200 Lux: 0,04 pt per Lux oltre 100 • Sotto 100 Lux= 0; • Nessun cassiere = 3 (inserire zero se questo è il caso)
A22: 19 | B22: 2.6 | C22: 19 | D22: 2.6 | E22: Item | F22: In elevator; at floor level • Above 70 Lux = 4; • Between30– 70 Lux: 0,1 pt per Lux over 30 • Below 30 Lux = 0; • Single level without elevator = 3 (enter zero if this is the case) | H22: In elevator; at floor level • Above 70 Lux = 4; • Between30– 70 Lux: 0,1 pt per Lux over 30 • Below 30 Lux = 0; • Single level without elevator = 3 (enter zero if this is the case) | I22: In lift; op vloerhoogte • > 70 Lux = 4; • 30-70 Lux = 0,1punt per Lux boven 30; • < 30 Lux = 0; • Eénlaags garage zonder lift = 3 (0 invullen) | J22: Ascenseurs: au niveau du sol • Plus de 70 Lux = 4; • Entre 30 – 70 Lux: 0,1 pt par Lux au-delà de 30 • Moins de 30 Lux = 0; • Pas d'ascenseur, parking sur un seul niveau = 3 (enrter zéro si tel est le cas) | K22: Im Aufzug; gesmessen am Boden • Über 70 Lux = 4; • Zwischen 30 - 70 Lux = 0,1 pt pro Lux über 30 • Unter 30 Lux = 0; • Nur eine Parkebene ohne Aufzug = 3 (in diesem Fall "0" eingeben) | L22: No elevador, ao nível do chão: • Acima de 70 Lux = 4; • Entre 30 e 70 Lux: 0,1 pt por cada Lux acima de 30; • Abaixo de 30 Lux = 0; • Parque sem elevador = 3 (introduza zero se for este o caso) | M22: Asansörde; zemin seviyesinde • 70 Lüx'ün üzerinde = 4; • 30–70 Lüx arasında= 30'un üzerinde Lüx başına 0,1 puan; • 30 Lüks'ün altında = 0; • Asansörsüz tek kat = 3 (bu durumda sıfır girin) | N22: W windzie, na poziomie podłogi: • Powyżej 70 Lux = 4, • Między 30–70 Lux: 0,1 pkt za każdy Lux powyżej 30, • Poniżej 30 Lux = 0, • Pojedynczy poziom bez windy: 0 (w takim przypadku wpisz zero). | O22: In ascensore; al piano terra • Sopra 70 Lux = 4; • Tra 30–70 Lux: 0,1 pt per Lux oltre i 30 • Sotto 30 Lux = 0; • Livello unico senza ascensore = 3 (inserire zero se questo è il caso)
A23: 20 | B23: 2.7 | C23: 20 | D23: 2.7 | E23: Item | F23: In staircases and all other exclusive pedestrian routes; at floor level • Above 90 Lux = 3; • Between30– 90 Lux: 0,05 pt per Lux over 30 • Below 30 Lux = 0; | H23: In staircases and all other exclusive pedestrian routes; at floor level • Above 90 Lux = 3; • Between30– 90 Lux: 0,05 pt per Lux over 30 • Below 30 Lux = 0; | I23: Trappenhuizen en andere voetgangersruimten; op vloerhoogte • > 90 Lux = 3; • 30-90 Lux = 0,05punt per Lux boven 30; • < 30 Lux = 0; | J23: Cages d'escalier et tout autre cheminement exclusivement réservé aux piétons: au niveau du sol. • Plus de 90 Lux = 3; • Entre 30 et 90 Lux: 0,05 pt par Lux au-delà de 30 • Moins de 30 Lux = 0 | K23: In Treppenhäusern und allen Fußgängerbereichen; gemessen am Boden • Über 90 Lux = 3; • Zwischen 30 - 90 Lux = 0,05 pt pro Lux über 30 • Unter 30 Lux = 0; | L23: Escadarias e todas os outros acessos pedonais exclusivos, ao nível do chão: • Acima de 90 Lux = 3; • Entre 30 e 90 Lux: 0,05 pt por cada Lux acima de 30; • Abaixo de 30 Lux = 0; | M23: Merdivenlerde ve diğer tüm yaya yollarında; kat seviyesinde • 90 Lüx'ün üzerinde = 3; • 30–90 Lüx arasında= 30'un üzerinde Lüx başına 0,05 puan; • 30 Lüks'ün altında = 0 | N23: Na klatkach schodowych i wszystkich innych ciągach pieszych; na poziomie podłogi: • Powyżej 90 Lux = 3, • Między 30–90 Lux: 0,05 pkt za każdy Lux powyżej 30, • Poniżej 30 Lux = 0. | O23: Nelle scale e in tutti gli altri percorsi pedonali esclusivi; a piano terra • Sopra 90 Lux = 3; • Tra 30–90 Lux: 0,05 pt per Lux oltre 30 • Sotto 30 Lux = 0;
A24: 21 | B24: 2.8 | C24: 21 | D24: 2.8 | E24: Item | F24: Light levels on parking area at floor level: (plesase fill grid below) Average light level of grid: • Above 100 Lux= 10; • Between20– 100 Lux: 0,125 pt per Lux over 20 • Below 20 Lux= 0 | H24: Light levels on parking area at floor level: (plesase fill grid below) Average light level of grid: • Above 100 Lux= 10; • Between20– 100 Lux: 0,125 pt per Lux over 20 • Below 20 Lux= 0 | I24: Lichtiniveau op vloerhoogte, gemiddelde van de metingen volgens onderstaand stramien: • > 100 Lux= 10; • 20-100 Lux = 0,125punt per Lux boven 20; • < 20 Lux= 0 | J24: Eclairage des aires de stationnement: au niveau du sol (remplissez la grille ci-dessous svp). Moyenne des mesures reprises dans la grille: • Plus de 100 Lux= 10; • Entre 20 et 100 Lux: 0,125 pt par Lux au-delà de 20 • Moins de 20 Lux= 0 | K24: Ausleuchtung der Parkfläche; gemessen am Boden: (Bitte die Tabelle ausfüllen) Durchschnittliche Ausleuchtung des Bereichs: • Über 100 Lux= 10; • Zwischen 20– 100 Lux: 0,125 pt pro Lux über 20 • Unter 20 Lux= 0 | L24: Níveis de luminosidade na área de estacionamento ao nível do piso: (por favor preencha grelha abaixo) Nível de luz média da grelha: • Acima 100 Lux = 10; • Entre 20 e 100 Lux: 0,125 pt por cada Lux acima de 20; • Abaixo de 20 Lux = 0; | M24: Katlardaki park alanındaki ışık seviyeleri: (lütfen aşağıdaki tabloyu doldurun) Kattaki ışık donatısının ortalama ışık seviyesi: • 100 Lüx'ün üzerinde= 10; • 20– 100 Lüx arasında= 20'nin üzerinde Lüx başına 0,125 puan; • 20 Lüx'ün altında = 0 | N24: Natężenie światła na parkingu na poziomie podłogi (proszę wypełnić poniższą tabelę): Średnie natężenie światła: • Powyżej 100 Lux= 10; • Między 20–100 Lux: 0,125 pkt za każdy Lux powyżej 20, • Poniżej 20 Lux= 0. | O24: Livelli di luce nell'area di parcheggio a livello del pavimento: (si prega di compilare la griglia di seguito) Livello medio di luce della griglia: • Superiore a 100 Lux= 10; • Tra 20–100 Lux: 0,125 pt per Lux oltre 20 • Sotto 20 Lux= 0
A25: 22 | B25: 2.9 | C25: 22 | D25: 2.9 | E25: Item | F25: Uniformity of light levels in grid as standard deviation • Under 25% of avg light level = 10; • Between25– 50%: 0,4 pt per % under 50% • Above 50% = 0 | H25: Uniformity of light levels in grid as standard deviation • Under 25% of avg light level = 10; • Between25– 50%: 0,4 pt per % under 50% • Above 50% = 0 | I25: Gelijkmatigheid van verlichtingsniveau in stramien als berekende standaard deviatie: • < 25% van het gemiddelde = 10; • 25%-50% = 0,04punt per % onder 50%; • > 50% = 0; | J25: Uniformité de l'éclairage selon les mesures reprises dans la grille: • Moins de 25% du niveau de luminosité moyen = 10; • Entre 25 et 50%: 0,4 pt par % en-dessous de 50% • Moins de 50% = 0 | K25: Gleichmäßigkeit der Ausleuchtung (Standardabweichung) • Unter 25% vom Durchschnitt = 10; • Zwischen 25 - 50% = 0,4 pt pro % unter 50% • Über 50% = 0 | L25: Uniformidade da luminosidade na grelha, (desvio padrão) • Inferior a 25% dos níveis médios de luminosidade = 10; • Entre 25% e 50% dos níveis médios de luminosidsde: 0,4 pt por cada ponto percentual abaixo de 50%; • Abaixo de 50% = 0 | M25: Standart sapma olarak ızgaradaki ışık seviyelerinin istikrarı • Ortalama ışık seviyesinin %25'inin altında = 10; • %25–50 arası: %50'nin altındaki her birim için 0,4 puan; • %50'nin üzerinde = 0 | N25: Jednolitość poziomów światła w siatce jako odchylenie standardowe: • Poniżej 25% średniego poziomu światła = 10, • Między 25– 50%: 0,4 pkt za każdy % poniżej 50%, • Powyżej 50% = 0. | O25: Uniformità dei livelli di luce nella griglia come deviazione standard • Sotto il 25% del livello medio di luce = 10; • Tra il 25 e il 50%: 0,4 pt per % sotto il 50% • Superiore al 50% = 0
C26: 23 | D26: 2.8.0 | F26: Auxiliary Grid for 2.8 | H26: Auxiliary Grid for 2.8 | I26: Aanvullend stramien voor 2.8 | J26: Grille annexe au point 2.8 | K26: Hilfsbereich für 2.8 | L26: Grelha Auxiliar para 2.8 | M26: 2.8 için Yardımcı Izgara (Destek Aydınlatma)??? | N26: Zakres pomocniczy dla 2.8 | O26: Griglia ausiliaria per 2.8
A27: 24 | B27: =IF(ISBLANK(VLOOKUP(A27,$C$4:$T$9877,1+$A$1)),F27,VLOOKUP(A27,$C$4:$T$9877,1+$A$1)) -> 2.8.1 | C27: 24 | D27: 2.8.1 | F27: End of parking space under/between light fitting | H27: End of parking space under/between light fitting | I27: Einde parkeervak, onder/tussen verlichtlingsarmatuur | J27: Fond aire de stationnement (sous/entre points lumineux) | K27: Ende des Stellplatzes unter / zwischen Leuchtmittel | L27: fim do espaço de estacionamento em/entre pontos de iluminação | M27: Park yerinin sonu aydınlatma armatürünün altında/arasında | N27: Koniec miejsca parkingowego pod / między światłami | O27: Fine del parcheggio sotto/tra l'impianto di illuminazione
A28: 25 | B28: 2.8.2 | C28: 25 | D28: 2.8.2 | F28: Halfway parking space under/between light fitting | H28: Halfway parking space under/between light fitting | I28: Halverwege parkeervak, onder/tussen verlichtlingsarmatuur | J28: Milieu aire de stationnement (sous/entre points lumineux) | K28: Mitte des Stellplatzes unter / zwischen Leuchtmittel | L28: espaço de estacionamento no meio do caminho em/entre pontos de iluminação | M28: Park yerinin yarısı aydınlatma armatürünün altında/arasında | N28: Środek miejsca parkingowego pod / pomiędzy światłami | O28: Posto auto a metà strada sotto/tra illuminazione
A29: 26 | B29: 2.8.3 | C29: 26 | D29: 2.8.3 | F29: Edge of driveway under/between light fitting | H29: Edge of driveway under/between light fitting | I29: Begin parkeervak/rand rijbaan, onder/tussen verlichtlingsarmatuur | J29: Début aire de stationnement (sous/entre points lumineux) | K29: Fahrbahnrand unter / zwischen Leuchtmittel | L29: linha entre lugar de estacionamento e via de circulação, sob/entre pontos de iluminação | M29: Araç yolunun kenarı aydınlatma armatürünün altında/arasında | N29: Przejście na jezdnię pod / pomiędzy światłami | O29: Bordo del vialetto sotto/tra l'impianto di illuminazione
A30: 27 | B30: 2.8.4 | C30: 27 | D30: 2.8.4 | F30: Center of driveway under/between light fitting | H30: Center of driveway under/between light fitting | I30: Midden rijbaan, onder/tussen verlichtlingsarmatuur | J30: Centre de la voie de circulation (sous/entre points lumineux) | K30: Fahrbahnmitte unter / zwischen Leuchtmittel | L30: centro de via de circulação sob/entre pontos de iluminação | M30: Araç yolunun ortası aydınlatma armatürünün altında/arasında | N30: Środek drogi pod / między światłami | O30: Centro del vialetto sotto/tra l'impianto di illuminazione
A31: 28 | B31: 2.8.5 | C31: 28 | D31: 2.8.5 | F31: Other edge of driveway under/between light fitting | H31: Other edge of driveway under/between light fitting | I31: Overzijde rand rijbaan/begin parkeervak, onder/tussen verlichtlingsarmatuur | J31: Voie de circulation (ou début aire stationnement) du côté opposé à l'aire de stationnement (sous/entre points lumineux) | K31: Gegenüberliegender Fahrbahnrand unter / zwischen Leuchtmittel | L31: outra extremidade da calçada sob/entre pontos de iluminação | M31: Araç yolunun diğer kenarı aydınlatma armatürünün altında/arasında | N31: Przeciwległe przejście na jezdnię pod / pomiędzy światłami | O31: Altro bordo del vialetto sotto/tra l'impianto di illuminazione
A32: 29 | B32: 3 | C32: 29 | D32: 3 | F32: Car Entry / Car Exit | H32: Car Entry / Car Exit | I32: In- en uitrit | J32: Entrée/Sorties des véhicules | K32: Einfahrt / Ausfahrt | L32: Entradas e Saídas de Veículos | M32: Araç Girişi / Araç Çıkışı | N32: Wejście / wyjście | O32: Entrata auto / Uscita auto
C33: 30 | D33: 3.0 | F33: Item List | H33: Item List | I33: Omschrijving | J33: Liste des points | K33: Inhalt | L33: Lista de itens | M33: Eşya Listesi | N33: Lista przedmiotów | O33: Elenco articoli
A34: 31 | B34: =IF(ISBLANK(VLOOKUP(A34,$C$4:$T$9877,1+$A$1)),F34,VLOOKUP(A34,$C$4:$T$9877,1+$A$1)) -> 3.1.1 | C34: 31 | D34: 3.1.1 | F34: Car park headroom limit identified at entrance (yes=1, no=0) | H34: Car park headroom limit identified at entrance (yes=1, no=0) | I34: Inrijhoogte aangegeven bij de inrit (ja=1, nee=0) | J34: Limite d'hauteur de plafond annoncée à l'entrée du parking (oui =1,non=0) | K34: Max. Durchfahrtshöhe ist an der Einfahrt angegeben (ja=1, nein=0) | L34: Limite de altura do parque de estacionamento identificado na entrada (Sim=1, Não=0) | M34: Girişte belirtilmiş otopark yükseklik sınırı (evet=1, hayır=0) | N34: Max. Wysokość prześwitu jest podana przy wejściu (tak=1, nie=0) | O34: Limite di altezza libera del parcheggio individuato all'ingresso (sì=1, no=0)
A35: 32 | B35: 3.1.2 | C35: 32 | D35: 3.1.2 | F35: Correct sign at entrance (yes=1, no=0) | H35: Correct sign at entrance (yes=1, no=0) | I35: Bord overeenkomstig RVV (ja=1, nee=0) | J35: Signalisation correcte à l'entrée (Oui=1,Non=0) | K35: Korrekte Einfahrtsbeschilderung (ja=1, nein=0) | L35: Sinal correto na entrada (Sim=1, Não=0) | M35: Girişte bulunan doğru işaret (evet=1, hayır=0) | N35: Prawidłowe oznakowanie wejścia (tak=1, nie=0) | O35: Segnaletica corretta all'ingresso (sì=1, no=0)
A36: 33 | B36: 3.1.3 | C36: 33 | D36: 3.1.3 | F36: Height barrier (yes=1, no=0) | H36: Height barrier (yes=1, no=0) | I36: Hoogtebalk (ja=1, nee=0) | J36: Barre d'hauteur (oui=1,Non=0) | K36: Höhenkontrollbalken (ja = 1; nein = 0) | L36: Barreira de altura (Sim=1, Não=0) | M36: Yükseklik bariyeri (evet=1, hayır=0) | N36: Kontrola wysokości (tak=1, nie=0) | O36: Barriera di altezza (sì=1, no=0)
A37: 34 | B37: 3.1.4 | C37: 34 | D37: 3.1.4 | F37: Rubber lip to prevent damage (yes=1, no=0) | H37: Rubber lip to prevent damage (yes=1, no=0) | I37: Rubber strip onderzijde hoogtebalk (ja=1, nee=0) | J37: Rebord caoutchouc sous barre pour prévenir dommages aux toits (oui=1,Non=0) | K37: Gummilippe , um Schaden zu verhindern (ja=1, nein=0) | L37: Proteção de borracha para evitar danos (Sim=1, Não=0) | M37: Hasarı önlemek için lastik kenar (evet=1, hayır=0) | N37: Gumowy odbój zabezpieczający przed uszkodzeniem (tak=1, nie=0) | O37: Barriera in gomma per prevenire danni (sì=1, no=0)
A38: 35 | B38: 3.2 | C38: 35 | D38: 3.2 | F38: Height: (The car park should receive one point for each 10cm of height above 1.90m up to 2.20 m) | H38: Height: (The car park should receive one point for each 10cm of height above 1.90m up to 2.20 m) | I38: Inrijhoogte: de garage krijgt één punt voor elke 10cm inrijhoogte boven 1.9m tot 2.2 m | J38: Hauteur (Le parking reçoit 1 point par tranche de 10cm au-delà de 1,90m jusqu'à 2,20m) | K38: Durchfahrtshöhe: (ein zusätzlicher Punkt je 10 cm über 1,90 m bis 2,20 m) | L38: Altura: (Parque de estacionamento deve receber um ponto por cada 10 cm de altura acima de 1.90m, até um máximo de 2.20m) | M38: Yükseklik: (1,90 m'den 2,20 m'ye kadar her 10 cm yükseklik için otoparka bir puan verilmelidir) | N38: Wysokość: (Parking powinien otrzymać jeden punkt za każde 10 cm wysokości powyżej 1,90 m do 2,20 m) | O38: Altezza: Il parcheggio dovrebbe ricevere un punto ogni 10 cm di altezza da 1,90 m fino a 2,20 m
A39: 36 | B39: 3.3 | C39: 36 | D39: 3.3 | F39: Traffic signs to define limitations in use of facility. • Clear signing = 3 • Incomplete signing = 2 • No signing = 0 | H39: Traffic signs to define limitations in use of facility. • Clear signing = 3 • Incomplete signing = 2 • No signing = 0 | I39: Verkeersborden voor beperkingen in de garage. • Duidelijk en compleet conform RVV = 3 • Gedeeltelijk complete bebording = 2 • Geen bebording = 0 | J39: Panneaux de signalisation stipulant les limites concernant le parking • Signalisation claire = 3 • Signalisation incomplète = 2 • Pas de signalisation = 0 | K39: Verkehrsleitsystem weist auf Benutzungseinschränkungen hin. • klare Ausschilderung = 3 • teilweise Ausschilderung = 2 • keine Ausschilderung = 0 | L39: Sinais de trânsito para definir o uso limitado das instalações. • Sinalização evidente = 3 • Sinalização incompleta = 2 • Sem sinalização = 0 | M39: Tesis kullanımındaki sınırlamaları tanımlamak için trafik işaretleri. • Açık ve belirgin işaretleme = 3 • Eksik işaretleme = 2 • İşaret yok = 0 | N39: System kierowania ruchem wskazuje na ograniczenia w użytkowaniu. - jasne oznakowanie = 3 - częściowe oznakowanie = 2 - brak oznakowania = 0 | O39: Segnaletica per definire le limitazioni nell'uso della struttura. • Chiara = 3 • Incompleta = 2 • Nessuna = 0
A40: 37 | B40: 3.4.1 | C40: 37 | D40: 3.4.1 | F40: Information on: | H40: Information on: | I40: Informatie bij de inrit: | J40: Information concernant: | K40: Informationen zu: | L40: Informações sobre: | M40: Bilgi: | N40: Informacje na temat: | O40: Informazioni su:
A41: 38 | B41: 3.4.2 | C41: 38 | D41: 3.4.2 | F41: Operators terms & conditions within the car park | H41: Operators terms & conditions within the car park | I41: Informatie algemene voorwaarden | J41: Règlement intérieur du parking | K41: Nutzungs- und Einstellbedingungen des Betreibers | L41: Regras de utilização do parque de estacionamento: | M41: İşletmecinin hüküm ve koşulları | N41: Warunki korzystania z usług operatora | O41: Termini e condizioni degli operatori all'interno del parcheggio
A42: 39 | B42: 3.4.3 | C42: 39 | D42: 3.4.3 | F42: Daily opening hours | H42: Daily opening hours | I42: Dagelijkse opening- en sluitingstijd | J42: Heures d'ouverture | K42: Tägliche Öffnungszeiten | L42: Horário de funcionamento: | M42: Günlük açılış saatleri | N42: Codzienne godziny otwarcia | O42: Orari di apertura giornalieri
A43: 40 | B43: 3.4.4 | C43: 40 | D43: 3.4.4 | F43: Scale of tariffs | H43: Scale of tariffs | I43: Tarieftabel | J43: Grille tarifaire | K43: Tarifauszeichnung | L43: Tarifário: | M43: Tarife | N43: Cennik | O43: Tariffario
A44: 41 | B44: 3.4.5 | C44: 41 | D44: 3.4.5 | F44: Readibility of tariff system | H44: Readibility of tariff system | I44: Duidelijkheid van het tariefsysteem | J44: Lisibilité de la grille tarifaire | K44: Lesbarkeit der Tarifauszeichnung | L44: Legibilidade do sistema tarifário: | M44: Tarife sisteminin (tabelasının) okunabilirliği | N44: Czytelność oznakowania taryfowego | O44: Leggibilità del sistema tariffario
A45: 42 | B45: 3.5.1 | C45: 42 | D45: 3.5.1 | F45: Design entry/exit area | H45: Design entry/exit area | I45: Ontwerp van de in- en uitrit | J45: Conception des zones d'entrée et de sortie | K45: Gestaltung des Ein-/Ausfahrtsbereiches | L45: Área da Entrada/saída | M45: Giriş/çıkış alanı tasarımı | N45: Oznakowanie strefy wejścia/wyjścia | O45: Indicazioni dell'area di ingresso/uscita
A46: 43 | B46: 3.5.2 | C46: 43 | D46: 3.5.2 | F46: Entry ticket- machine easy to reach: | H46: Entry ticket- machine easy to reach: | I46: Inrijzuil gemakkelijk bereikbaar | J46: Entrée: borne de tickets facilement atteignable | K46: Einfahrt: Gute Erreichbarkeit des Ticketgebers: | L46: Bilhete na máquina de entrada fácil de alcançar | M46: Giriş bilet makinesi erişim kolaylığı | N46: Stacja wjazdowa - łatwy dostęp | O46: Biglietteria automatica di entrata - facilmente raggiungibile:
A47: 44 | B47: 3.5.3 | C47: 44 | D47: 3.5.3 | F47: Exit ticket- machine easy to reach: | H47: Exit ticket- machine easy to reach: | I47: Uitrijzuil gemakkelijk bereikbaar | J47: Sortie: borne de tickets facilement atteignable | K47: Ausfahrt: Gute Erreichbarkeit des Ticketlesers: | L47: Validador de bilhete na máquina de saída fácil de alcançar | M47: Çıkış bilet makinesine erişim kolaylığı | N47: Stacja wyjazdowa - łatwy dostęp | O47: Biglietteria automatica di uscita - facilmente raggiungibile
A48: 45 | B48: 3.6.1 | C48: 45 | D48: 3.6.1 | F48: Longitudinal slope at the ticket machines | H48: Longitudinal slope at the ticket machines | I48: Is er een helling naar de kaartgever/lezer? | J48: Pente longitudinale de la voie au niveau des bornes de tickets | K48: Längsneigung bei den Ein- / Ausfahrtsterminals | L48: Inclinação longitudinal nas máquinas de bilhetes | M48: Bilet makinelerinin bulunduğu yerde dikey eğim | N48: Nachylenie podłużne przy automatach biletowych | O48: Pendenza longitudinale alle biglietterie automatiche
A49: 46 | B49: 3.6.2 | C49: 46 | D49: 3.6.2 | F49: Entry lane: • 0-2% (car doesn’t move without brake) = 1 • 2-5% = 0 • Above 5% = -1 | H49: Entry lane: • 0-2% (car doesn’t move without brake) = 1 • 2-5% = 0 • Above 5% = -1 | I49: Inrit: • < 2% (auto beweegt niet uit zichzelf) = 1 • 2-5% = 0 • > 5% = -1 | J49: Voie d'entrée: • 0-2% (le véhicule ne bouge pas sans poser le pied sur le frein) = 1 • 2-5% = 0 • Plus de 5% = -1 | K49: Einfahrt: • 0 - 2% (Fahrzeug bewegt sich ungebremst nicht) = 1 • 2 - 5% = 0 • Über 5% = -1 | L49: Via de entrada: • 0-2% (carro não se move sem travão) = 1 • 2-5% = 0 • Acima de 5% = -1 | M49: Giriş şeridi: • %0-2 (araç frensiz hareket etmez) = 1 • %2-5 = 0 • %5'in üzerinde = -1 | N49: Pas wjazdowy: - 0-2% (samochód nie rusza bez hamulca) = 1 - 2-5% = 0 - Powyżej 5% = -1 | O49: Corsia di ingresso: • 0-2% (l'auto non si muove senza freno) = 1 • 2-5% = 0 • Superiore al 5% = -1
A50: 47 | B50: 3.6.3 | C50: 47 | D50: 3.6.3 | F50: Exit lane: • 0-2% (car doesn’t move without brake) = 1 • 2-5% = 0 • Above 5% = -1 | H50: Exit lane: • 0-2% (car doesn’t move without brake) = 1 • 2-5% = 0 • Above 5% = -1 | I50: Uitrit: • < 2% (auto beweegt niet uit zichzelf) = 1 • 2-5% = 0 • > 5% = -1 | J50: Voie de sortie: • 0-2% (le véhicule ne bouge pas sans poser le pied sur le frein) = 1 • 2-5% = 0 • Plus de 5% = -1 | K50: Ausfahrt: • 0 - 2% (Fahrzeug bewegt sich ungebremst nicht) = 1 • 2 - 5% = 0 • Über 5% = -1 | L50: Via de saída: • 0-2% (carro não se move sem travão) = 1 • 2-5% = 0 • Acima de 5% = -1 | M50: Çıkış şeridi: • %0-2 (araç frensiz hareket etmez) = 1 • %2-5 = 0 • %5'in üzerinde = -1 | N50: Pas wyjazdowy: - 0-2% (samochód nie rusza bez hamulca) = 1 - 2-5% = 0 - Powyżej 5% = -1 | O50: Corsia di uscita: • 0-2% (l'auto non si muove senza freno) = 1 • 2-5% = 0 • Superiore al 5% = -1
A51: 48 | B51: 3.7 | C51: 48 | D51: 3.7 | F51: Kerb design to avoid damage to average vehicle’s wheels: (Yes = 2, No protection = 0, No kerbs in entry/exit area = 2) | H51: Kerb design to avoid damage to average vehicle’s wheels: (Yes = 2, No protection = 0, No kerbs in entry/exit area = 2) | I51: Stoeprand van eilanden met schuine kant ter bescherming van banden en velgen (ja=2, geen bescherming=0, geen stoeprand in in-en uitrit+2) | J51: Forme spécifique des bordures pour éviter tout domage aux jantes: (Oui=2, Pas de protection=0,Pas de bordures dans la zone d'entrée=2) | K51: Design der Schrammborde, um Schaden an den Fahrzeugrädern zu verhindern: (Ja = 2, kein Schutz = 0, keine Schrammborde in Ein-/Ausfahrt = 2) | L51: Proteção para evitar danos na rodas os veículos: (Sim = 2, Sem proteção = 0, Sem proteção na área de entrada/saída = 2) | M51: Ortalama bir araç tekerleğine zarar vermemek için tasarlanmış bordür: (Evet = 2, Koruma yok = 0, Giriş/çıkış alanında bordür yok = 2) | N51: Konstrukcja krawężnika pozwalająca uniknąć uszkodzenia kół przeciętnego pojazdu: (Tak = 2, Brak zabezpieczenia = 0, Brak krawężników w obszarze wjazdu/wyjazdu = 2) | O51: Design del cordolo per evitare danni alle ruote di un veicolo medio: (Sì = 2, Nessuna protezione = 0, Nessun cordolo in ingresso/uscita = 2)
A52: 49 | B52: 3.8 | C52: 49 | D52: 3.8 | F52: Anti slip surfaces access/egress ramps: (Anti slip = 1, Slippery when wet = 0) | H52: Anti slip surfaces access/egress ramps: (Anti slip = 1, Slippery when wet = 0) | I52: Ruw oppervlak op in- en uitrit helling Ruw = 1, Glad = 0, geen helling = 1 | J52: Surface anti-dérapante dans les rampes d'entrée/sortie: (Anti-dérapant=1,Glissant si mouillé=0) | K52: Rutschfeste Oberfläche in der Ein- und Ausfahrt: (vorhanden = 1, Rutschgefahr bei Nässe= 0) | L52: Superfíce antiderrapante nas rampas de acesso/saída: (Anti derrapante = 1, Escorregadio quando molhado = 0) | M52: Giriş /çıkış rampalarında kaymayı önleyici yüzey: (Kaymazlık = 1, Islakken kaygan = 0) | N52: Powierzchnie antypoślizgowe rampy dojazdowe/wejściowe: (Antypoślizgowe = 1, Śliskie, gdy mokre = 0) | O52: Superfici antiscivolo rampe di accesso/uscita: (Antiscivolo = 1, Scivoloso quando bagnato = 0)
A53: 50 | B53: 3.9.1 | C53: 50 | D53: 3.9.1 | F53: Access security | H53: Access security | I53: Toegangsbeveiliging | J53: Sécurité des accès | K53: Zufahrtskontrolle | L53: Segurança dos Acessos | M53: Erişim güvenliği | N53: Zabezpieczenie dostępu | O53: Sicurezza di accesso
A54: 51 | B54: 3.9.2 | C54: 51 | D54: 3.9.2 | F54: Barrier | H54: Barrier | I54: Slagboom | J54: Barrières | K54: Schranken | L54: Barreira | M54: Bariyer | N54: Bariera/szlaban | O54: Barriera
A55: 52 | B55: 3.9.3 | C55: 52 | D55: 3.9.3 | F55: Intercom | H55: Intercom | I55: Intercom | J55: Interphonie | K55: Sprechstelle | L55: Intercomunicador | M55: İnterkom | N55: Interkom | O55: Citofono
A56: 53 | B56: 3.9.4 | C56: 53 | D56: 3.9.4 | F56: CCTV | H56: CCTV | I56: CCTV | J56: Vidéosurveillance | K56: Videoüberwachung | L56: CCTV | M56: CCTV | N56: CCTV | O56: CCTV
A57: 54 | B57: 3.9.5 | C57: 54 | D57: 3.9.5 | F57: Licence Plate Recognition | H57: Licence Plate Recognition | I57: Kentekenherkenning | J57: Reconnaissance plaques d'immatriculation | K57: Kennzeichenerkennung | L57: Leitor de Matrícula | M57: Plaka Tanıma Sistemi | N57: Rozpoznawanie tablic rejestracyjnych | O57: Riconoscimento targa
A58: 55 | B58: 3.9.6 | C58: 55 | D58: 3.9.6 | F58: Full height fast closing gates | H58: Full height fast closing gates | I58: Snel sluitende hekken | J58: Grilles de fermeture sur la totalité de la hauteur | K58: Schnelllauftore | L58: Portões de Abertura Rápida | M58: Bütünüyle hızlı kapanan kapılar | N58: Szybkorozkładalne bramy o pełnej wysokości | O58: Full height fast closing gates
A59: 56 | B59: 3.9.7 | C59: 56 | D59: 3.9.7 | F59: Staffed access(Entry or exit) | H59: Staffed access(Entry or exit) | I59: Personeel (evt in de loge) bij de inrit/uitrit | J59: Personnel présent (en entrée ou en sortie) | K59: Personal vor Ort (Ein- oder Ausfahrt) | L59: Presença de Staff (Entrada ou saída) | M59: Personelli erişim (Giriş veya çıkış) | N59: Dostęp dla personelu (wejście lub wyjście) | O59: Accesso con personale (Entrata o Uscita)
A60: 57 | B60: 3.10 | C60: 57 | D60: 3.10 | F60: Exit barrier opens automatically when paid at paystation, based on ANPR: Yes = 2 , no = 0 | H60: Exit barrier opens automatically when paid at paystation, based on ANPR: Yes = 2 , no = 0 | I60: uitrij slagboom/hek opent automatisch, op kentekenherkenning als bij betaalautomaat is afgerekend (ja=2, nee=0) | J60: Si ticket payé à la caisse, ouverture automatique des barrières de sortie sur base de ANPR (reconnaissance plaque) : Oui=2, Non=1 | K60: Ausfahrtsschranke öffnet automatisch, wenn mittels Kennzeichenerkennung ein bezahltes Ticket erkannt wird: ja = 2, nein = 0 | L60: Barreira de saída abre automaticamente, baseado em leitura de matrícula (Sim=2, Não=0) | M60: PTS'ye göre ödeme istasyonunda ödeme yapıldığında çıkış bariyeri otomatik olarak açılır: Evet = 2 , hayır = 0 | N60: Szlaban wyjazdowy otwiera się automatycznie po zapłaceniu na stanowisku płatniczym, na podstawie ANPR: Tak = 2 , Nie = 0 | O60: La barriera di uscita si apre automaticamente quando viene pagata alla cassa, in base all'ANPR: Sì = 2 , no = 0
A61: 58 | B61: 3.11 | C61: 58 | D61: 3.11 | F61: Entry/Exit of the building: width between structure (per lane) (< 3 m =0, 3 – 3.3 m =1, > 3.3 m = 2) | H61: Entry/Exit of the building: width between structure (per lane) (< 3 m =0, 3 – 3.3 m =1, > 3.3 m = 2) | I61: Breedte in/uitrit tussen de constructie op spiegelhoogte, kolom, kozijn, poortconstructie o.i.d. (per strook) • < 3 m =0, 3 – 3.3 m =1, > 3.3 m = 2 | J61: Entrée/Sortie du bâtiment: largeur entre les équipements (par voie) (< 3 m =0, 3 – 3.3 m =1, > 3.3 m = 2) | K61: Ein- / Ausfahrtsbreiten: Durchfahrtsbreite zwischen Bauteilen/Schrammborden pro Spur (< 3 m = 0; 3 - 3,30 m = 1; > 3,30 m = 2) | L61: Entrada/saída do edifício: largura entre elementos da estrutura (por faixa) (< 3 m =0, 3 – 3.3 m =1, > 3.3 m = 2) | M61: Binanın Giriş / Çıkışı: yapı arasındaki genişlik (şerit başına) (< 3 m =0, 3 – 3,3 m =1, > 3,3 m = 2) | N61: Wejście/wyjście z budynku: szerokość między konstrukcją (na pas ruchu) (< 3 m =0, 3 - 3,3 m =1, > 3,3 m = 2) | O61: Entrata/Uscita dell'edificio: larghezza tra la struttura (per corsia) (< 3 m =0, 3 – 3,3 m =1, > 3,3 m = 2)
A62: 59 | B62: 3.12 | C62: 59 | D62: 3.12 | F62: Exit: exit slope ends at least 5 meters before crossing traffic (pedestrians/cyclists): | H62: Exit: exit slope ends at least 5 meters before crossing traffic (pedestrians/cyclists): | I62: Uitrithelling eindigt minstens vijf meter voor kruisend verkeer (fietsers, voetgangers): (ja=1, nee=0) | J62: Sortie: la pente de sortie s'arrête au plus tard 5m avant le croisement avec le traffic (piétons/cyclistes) | K62: Ausfahrt: Ausfahrtsspur endet mindestens 5 m vor Querverkehr (Fußgänger, Radfahrer): | L62: Saída: zona inclinação da rampa de saída termina pelo menos 5 metros antes de zona com tráfego (pedonal/ciclistas): | M62: Çıkış: Çıkış eğimi, trafiğe girmeden en az 5 metre önce biter (yayalar/bisikletliler): | N62: Wyjazd: skarpa wyjazdowa kończy się co najmniej 5 metrów przed skrzyżowaniem z ruchem ulicznym (piesi/rowerzyści): | O62: Uscita: la pendenza dell'uscita termina almeno 5 metri prima dell'attraversamento del traffico (pedoni/ciclisti):
A63: 60 | B63: 4 | C63: 60 | D63: 4 | F63: Parking Area | H63: Parking Area | I63: Parkeervloer | J63: Aires de stationnement | K63: Parkbereich | L63: Área do Estacionamento | M63: Park Alanı | N63: Parking | O63: Area parcheggio
A64: 61 | B64: 4.1 | C64: 61 | D64: 4.1 | F64: Pillar placement for at least 85% of bays: • does not intrude into the parking area = 8 • at beginning of stall = 0 • next to car door = 0 • at back of stall but intrudes into the parking area = 4 | H64: Pillar placement for at least 85% of bays: • does not intrude into the parking area = 8 • at beginning of stall = 0 • next to car door = 0 • at back of stall but intrudes into the parking area = 4 | I64: Kolomopstelling min 85% van de parkeervakken: • Kolommen compleet buiten de parkeervakken = 8 • Kolom aan het begin van het vak= 0 • Kolom naast het autoportier = 0 • Kolom achter in het vak maar binnen het vak = 4 | J64: Présence de piliers ( pour au moins 85% des emplacements): • n'empiètent pas sur l'aire de stationnement = 8 • au début de l'aire de stationnement = 0 • près de la portière de voiture = 0 • au fond de l'emplacement mais n'empiète pas sur celui-ci = 4 | K64: Position der Säulen bei mindestens 85% der Stellplätze: • ragen nicht in die Stellplätze = 8 • im vorderen Bereich der Stellplätze = 0 • in der Nähe der Fahrzeugtüren = 0 • im hinteren Bereich der Stellplätze, aber ragen in die Stellplätze = 4 | L64: Localização dos Pilares em, pelo menos, 85% dos lugares: • não invadem a área de estacionamento = 8 • no início do lugar = 0 • ao lado da porta do veículo = 0 • recuados, mas na área de estacionamento = 4 | M64: Park yerlerinin en az %85'i için sütun yerleşimi: • park alanına girmez = 8 • duraklamanın başında = 0 • araba kapısının yanında = 0 • aracın arkasında ancak park alanına giriyor = 4 | N64: Umieszczenie filarów dla co najmniej 85% zatok: - nie wkracza w obszar parkingu = 8 - na początku stanowiska = 0 - obok drzwi samochodu = 0 - z tyłu stanowiska, ale wkracza w obszar parkowania = 4 | O64: Posizionamento dei pilastri per almeno l'85% delle campate: • non si intromette nel parcheggio = 8 • all'inizio dello stallo = 0 • vicino alla portiera dell'auto = 0 • in fondo allo stallo ma si intromette nel parcheggio = 4
A65: =C65 -> 62 | B65: =IF(ISBLANK(VLOOKUP(A65,$C$4:$T$9877,1+$A$1)),F66,VLOOKUP(A65,$C$4:$T$9877,1+$A$1)) -> 4.2 | C65: 62 | D65: 4.2 | F65: Protection at pillars to avoid car damage: good quality=2, basic quality=1, none=0, irrelevant=2) | H65: Protection at pillars to avoid car damage: good quality=2, basic quality=1, none=0, irrelevant=2) | I65: Bescherming aan kolommen om schade aan auto's te voorkomen: goed=2, matig=1, geen=0, irrelevant, kolommen buiten parkeervak =2 | J65: Protection des piliers pour éviter des dommages aux carosseries: Qualité supérieure=2,Qualité satisfaisante=1,Absent=0, Sans rapport=2 | K65: Anfahrschutz an den Säulen: gute Qualität = 2; Standard = 1; keine = 0; irrelevant = 2) | L65: Proteção nos pilares para evitar danos em veículos (Boa qualidade = 2, qualidade básica = 1, nenhuma =0, irrelevante = 2) | M65: Araba hasarını önlemek için sütunlarda bulunan koruma: iyi kalite=2, temel kalite=1, yok=0, alakasız=2) | N65: Zabezpieczenie przy słupach w celu uniknięcia uszkodzenia samochodu: jakość dobra=2, jakość podstawowa=1, brak=0, nieistotne=2. | O65: Protezione ai pilastri per evitare danni alla vettura: buona qualità=2, qualità base=1, nessuna=0, irrilevante=2)
A66: 63 | B66: =IF(ISBLANK(VLOOKUP(A66,$C$4:$T$9877,1+$A$1)),F68,VLOOKUP(A66,$C$4:$T$9877,1+$A$1)) -> 4.3 | C66: 63 | D66: 4.3 | F66: Visibility (many/few dead corners, walls in the car park etc.) Good=4, Medium=2 or Bad=0 | H66: Visibility (many/few dead corners, walls in the car park etc.) Good=4, Medium=2 or Bad=0 | I66: Overzichtelijkheid (dode hoeken, wanden in de garage etc ) • Geen = 4, Hier en daar = 2, Veel = 0 | J66: Visibilité (beaucoup/peu d'angles morts, de murs dans le parking,etc..) Bien=4, Moyen=2 ou Mauvais=0 | K66: Übersichtlichkeit (viele / wenige tote Winkel, Zwischenwände, etc.) Gut = 4; Mittel = 2; Schlecht = 0 | L66: Visibilidade (muitos/poucos cantos mortos, paredes no parque de estacionamento, etc.) Bom=4, Médio=2 ou Mau=0 | M66: Görünürlük (çok/az ölü nokta, otoparktaki duvarlar vb.) İyi=4, Orta=2 veya Kötü=0 | N66: Widoczność (dużo/ mało martwych zakrętów, ściany na parkingu itp.) dobra=4, średnia=2 lub zła=0. | O66: Visibilità (molti/pochi angoli morti, muri nel parcheggio ecc.) Buono=4, Medio=2 o Cattivo=0
C67: 64 | D67: 4.4.0 | F67: Signage | H67: Signage | I67: Bebording | J67: Signalisation | K67: Beschilderung | L67: Sinalização rodoviária: | M67: Tabela | N67: Oznakowanie | O67: Segnaletica
A68: 65 | B68: =IF(ISBLANK(VLOOKUP(A68,$C$4:$T$9877,1+$A$1)),F69,VLOOKUP(A68,$C$4:$T$9877,1+$A$1)) -> 4.4.1 | C68: 65 | D68: 4.4.1 | F68: Signage for car driver: | H68: Signage for car driver: | I68: Bebording voor routing autoverkeer: | J68: Signalisation pour le conducteur | K68: Beschilderung für Autofahrer | L68: Sinalização para o condutor: | M68: Sürücüler için tabela: | N68: Oznakowanie dla kierowcy samochodu: | O68: Segnaletica per l'automobilista:
A69: 66 | B69: 4.4.2 | C69: 66 | D69: 4.4.2 | F69: Do traffic signs conform to national road code? | H69: Do traffic signs conform to national road code? | I69: Officiele verkeersborden overeenkomstig RVV? | J69: Les panneaux de signalisation sont-ils conformes au code de la route du pays? | K69: Entsprechen die Schilder dem nationalen Verkehrsrecht | L69: Os sinais de rânsito estão conforme o código da estrada? | M69: Trafik işaretleri ulusal yol kurallarına uygun mu? | N69: Czy znaki drogowe są zgodne z krajowym kodeksem drogowym? | O69: La segnaletica stradale è conforme al codice della strada nazionale?
A70: 67 | B70: 4.4.3 | C70: =+C69+1 -> 67 | D70: 4.4.3 | F70: Routing and turn signs: Is signage clear, complete and unambiguous? | H70: Routing and turn signs: Is signage clear, complete and unambiguous? | I70: Is bebording voor routing en bochten: | J70: Signalisation directionnelle: est-elle claire,complète,non équivoque | K70: Wegführung und Richtungsanzeigen: Ist die Beschilderung sauber, vollständig und eindeutig? | L70: Sinalização de circulação: A sinalização é clara, completa e inequívoca? | M70: Yönlendirme ve dönüş işaretleri: İşaretler açık, eksiksiz ve net mi? | N70: Oznakowanie trasy i zakrętów: Czy oznakowanie jest jasne, kompletne i jednoznaczne? | O70: Segnali stradali e di svolta: la segnaletica è chiara, completa e non ambigua?
A71: 68 | B71: 4.4.4 | C71: 68 | D71: 4.4.4 | F71: =OFFSET(G71,0,$C$1) -> Complete ? | H71: Complete ? | I71: Compleet? | J71: Complète | K71: Vollständig? | L71: Completa ? | M71: Tamam mı? | N71: Kompletne ? | O71: Completa?
A72: 69 | B72: 4.4.5 | C72: 69 | D72: 4.4.5 | F72: Easy to see ? | H72: Easy to see ? | I72: Goed zichtbaar? | J72: Facile à voir | K72: Gut erkennbar? | L72: Fácil de ver ? | M72: Görmek kolay mı? | N72: Łatwe do zobaczenia ? | O72: Facile da vedere?
A73: 70 | B73: 4.4.6 | C73: 70 | D73: 4.4.6 | F73: Unambiguous ? | H73: Unambiguous ? | I73: Eenduidig? | J73: Sans équivoque | K73: Eindeutig? | L73: Inequívoca ? | M73: Açık mı? | N73: Jednoznaczne? | O73: Non ambigua?
A74: 71 | B74: 4.4.7 | C74: 71 | D74: 4.4.7 | F74: Exit signs in the car park: Is signage clear, complete and unambiguous? | H74: Exit signs in the car park: Is signage clear, complete and unambiguous? | I74: Bebording naar de uitrit: | J74: La signalisation indiquant la sortie du parking, est-elle claire,complète et sans ambiguité? | K74: Ausfahrts- / Ausgangsbeschilderung: Ist die Beschilderung sauber, vollständig und eindeutig? | L74: Sinalização de saída do parque de estacionamento: A sinalização é clara, completa e inequívoca? | M74: Otoparktaki çıkış işaretleri: İşaretler açık, eksiksiz ve net mi? | N74: Znaki wyjazdowe na parkingu: Czy oznakowanie jest jasne, kompletne i jednoznaczne? | O74: Segnali di uscita nel parcheggio: la segnaletica è chiara, completa e inequivocabile?
A75: 72 | B75: 4.4.8 | C75: 72 | D75: 4.4.8 | F75: Complete ? | H75: Complete ? | I75: Compleet? | J75: Complète | K75: Vollständig? | L75: Completa ? | M75: Tamam mı? | N75: Kompletne ? | O75: Completa?
A76: 73 | B76: 4.4.9 | C76: 73 | D76: 4.4.9 | F76: Easy to see ? | H76: Easy to see ? | I76: Goed zichtbaar? | J76: Facile à voir | K76: Gut erkennbar? | L76: Fácil de ver ? | M76: Görmek kolay mı? | N76: Łatwe do zobaczenia ? | O76: Facile da vedere?
A77: 74 | B77: 4.4.10 | C77: 74 | D77: 4.4.10 | F77: Unambiguous ? | H77: Unambiguous ? | I77: Eenduidig? | J77: Sans équivoque | K77: Eindeutig? | L77: Inequívoca ? | M77: Açık mı? | N77: Jednoznaczne ? | O77: Non ambigua?
A78: 75 | B78: 4.5.1 | C78: 75 | D78: 4.5.1 | F78: Parking bay marks | H78: Parking bay marks | I78: Markering van de parkeervakken | J78: Marquage des emplacements | K78: Stellplatzmarkierung | L78: Marcação dos lugares de estacionamento | M78: Park yeri çizgileri | N78: Oznaczenia zatok parkingowych | O78: Segnaletica di parcheggio
A79: 76 | B79: 4.5.2 | C79: 76 | D79: 4.5.2 | F79: Parking bays are clearly marked ? | H79: Parking bays are clearly marked ? | I79: Parkeervakken duidelijk herkenbaar? | J79: Les emplacements sont-ils clairement marqués? | K79: Sind die Stellplätze deutlich gekennzeichnet? | L79: Lugares de estacionamento estão claramente marcados? | M79: Park yerleri açıkça belirtilmiş mi? | N79: Zatoki parkingowe są wyraźnie oznaczone ? | O79: I parcheggi sono chiaramente segnalati?
A80: 77 | B80: 4.5.3 | C80: 77 | D80: 4.5.3 | F80: Bay markings extend up walls to assist driver ? | H80: Bay markings extend up walls to assist driver ? | I80: Markering van parkeervakken doorgetrokken op de wand om orientatie te verbeteren? | J80: Le marquage des emplacements: est-il prolongé sur les murs pour assister le conducteur? | K80: Wird die Stellplatzmarkierung an der Wand zur Unterstützung des Fahrers fortgeführt? | L80: As marcações estendem-se até às paredes para ajudar os condutrores? | M80: Park yeri çizgileri, sürücüye yardımcı olmak için, duvarlara kadar uzuyor mu? | N80: Oznakowanie zatok sięga do ścian, aby pomóc kierowcy ? | O80: La segnaletica si estende sui muri per assistere il conducente?
A81: 78 | B81: 4.6.1 | C81: 78 | D81: 4.6.1 | F81: Are Road Markings: | H81: Are Road Markings: | I81: Rijstrookmarkeringen | J81: Le marquage routier est-il: | K81: Sind die Fahrbahnmarkierungen | L81: As marcações no pavimento são: | M81: Yol Çizgileri | N81: Czy oznaczenia dróg są: | O81: La segnaletica stradale è:
A82: 79 | B82: 4.6.2 | C82: 79 | D82: 4.6.2 | F82: Complete ? | H82: Complete ? | I82: Compleet? | J82: Complet? | K82: Vollständig? | L82: Completas ? | M82: Tamam mı? | N82: Kompletne ? | O82: Completa?
A83: 80 | B83: 4.6.3 | C83: 80 | D83: 4.6.3 | F83: Easy to see ? | H83: Easy to see ? | I83: Goed zichtbaar? | J83: Facile à voir? | K83: Gut erkennbar? | L83: Fáceis de ver ? | M83: Görmek kolay mı? | N83: Łatwe do zobaczenia ? | O83: Facile da vedere?
A84: 81 | B84: =IF(ISBLANK(VLOOKUP(A84,$C$4:$T$9877,1+$A$1)),F86,VLOOKUP(A84,$C$4:$T$9877,1+$A$1)) -> 4.6.4 | C84: 81 | D84: 4.6.4 | F84: Unambiguous ? | H84: Unambiguous ? | I84: Eenduidig? | J84: Sans équivoque? | K84: Eindeutig? | L84: Inequívocas ? | M84: Açık mı? | N84: Jednoznaczne? | O84: Non ambigua?
C85: 82 | D85: 4.7.0 | F85: Disabled Spaces | H85: Disabled Spaces | I85: Invalidenplaatsen | J85: Emplacements pour personnes à mobilité réduite | K85: Stellplätze für Personen mit Einschränkungen | L85: Lugares para pessoas com mobilidade condicionada | M85: Engelli Alanları | N85: Miejsca dla niepełnosprawnych | O85: Spazi per disabili
A86: 83 | B86: =IF(ISBLANK(VLOOKUP(A86,$C$4:$T$9877,1+$A$1)),F87,VLOOKUP(A86,$C$4:$T$9877,1+$A$1)) -> 4.7.1 | C86: 83 | D86: 4.7.1 | F86: Availability of spaces for disabled with wheelchair access anounced at the entrance the car park: | H86: Availability of spaces for disabled with wheelchair access anounced at the entrance the car park: | I86: Beschikbaarheid van invalidenplaatsen in de garage aangekondigd bij de inrit? | J86: Disponibilité de places pour personnes à mobilité réduite annoncée à l'entrée du parking | K86: Angabe von Stellplätzen mit barrierefreiem Zugang an der Einfahrt: | L86: Disponibilidade de lugares para pessoas com mobilidade condicionada anunciada na entrada do parque de estacionamento: | M86: Otopark girişinde duyurulan ve tekerlekli sandalye ile erişilen engelli alanlarının müsaitliği: | N86: Dostępność miejsc dla osób niepełnosprawnych z dostępem dla wózków inwalidzkich oznakowana przy wjeździe na parking: | O86: Disponibilità di posti per disabili con accesso in sedia a rotelle annunciata all'ingresso del parcheggio:
A87: 84 | B87: 4.7.2 | C87: 84 | D87: 4.7.2 | F87: Accessible for wheelchair ? | H87: Accessible for wheelchair ? | I87: Bereikbaar voor rolstoel? | J87: Accessibles en chaise roulantes | K87: Barrierefreier Zugang? | L87: Acessibilidade para cadeiras de rodas? | M87: Tekerlekli sandalye ile erişilebilir mi? | N87: Dostępne dla wózków inwalidzkich ? | O87: Accessibile per i soggetti con la sedia a rotelle?
A88: 85 | B88: 4.7.3 | C88: 85 | D88: 4.7.3 | F88: Bays minimum 3.5 m wide ? | H88: Bays minimum 3.5 m wide ? | I88: Vakken minimaal 3,5 m breed? | J88: Largeur des emplacements minimum 3,50m | K88: Mindeststellplatzbreite: 3,50 m? | L88: Lugares com mínimo de 3.5 m de largura ? | M88: En az 3,5 m genişliğinde park yeri var mı? | N88: Szerokość zatok minimum 3,5 m ? | O88: Accessi minimo 3,5 m di larghezza?
A89: 86 | B89: 4.7.4 | C89: 86 | D89: 4.7.4 | F89: Close to pedestrian exit ? | H89: Close to pedestrian exit ? | I89: Dichtbij de voetgangersuitgang? | J89: Près des sorties piétonnes | K89: Nahe zum Fußgängerausgang? | L89: Perto da saída para peões? | M89: Yaya çıkışına yakın mı? | N89: Blisko wyjścia dla pieszych ? | O89: Vicino all'uscita pedonale?
A90: 87 | B90: 4.7.5 | C90: 87 | D90: 4.7.5 | F90: Guidance to disabled spaces ? | H90: Guidance to disabled spaces ? | I90: Geleiding naar de invalidenplaatsen? | J90: Guidage vers les emplacements pour personnes à mobilité réduite | K90: Hinweisbeschilderung zu Stellplätzen für Personen mit Einschränkungen? | L90: Sinalização para pessoas com mobilidade condicionada? | M90: Engelli alanları için yönlendirme var mı? | N90: Wskazówki dotyczące miejsc dla osób niepełnosprawnych ? | O90: Guida agli spazi per disabili?
A91: 88 | B91: 4.8 | C91: 88 | D91: 4.8 | F91: Parking angle at 85 % of bays: (Angle 76-90° = 0, Angle 45-75° = 2) | H91: Parking angle at 85 % of bays: (Angle 76-90° = 0, Angle 45-75° = 2) | I91: Parkeerhoek bij 85 % van de vakken: 76-90° = 0, 45-75° = 2 | J91: Angles des emplacements (pour au moins 85% des emplacements): (Angle 76-90° = 0, Angle 45-75° = 2) | K91: Einstellwinkel bei mindestens 85% der Stellplätze: (76° - 90° = 0; 45° - 75° = 2) | L91: Ângulo de estacionamento em 85% dos lugares: (Ângulo 76-90° = 0, Ângulo 45-75° = 2) | M91: Park yerlerinin % 85'inde park açısı: (Açı 76-90° = 0, Açı 45-75° = 2) | N91: Kąt parkowania przy 85% zatok: (kąt 76-90° = 0, kąt 45-75° = 2) | O91: Angolo di parcheggio all'85 % dei posti auto: (Angolo 76-90° = 0, Angolo 45-75° = 2)
A92: 89 | B92: 4.9 | C92: 89 | D92: 4.9 | F92: Width of bays (85 % of bays), A or B: A: Parking angle 76 – 90 degrees (2.25m = -5, 2.30m = 0, 2.35m = 2, 2.40m = 4, 2.45m = 6, 2.50m = 8) B: Parking angle 45-75 degrees (2.25m = -5, 2.30m = 1, 2.35m = 3, 2.40m = 5, 2.45m = 8) Width of 2.25m only applies for renovated car parks, new car parks must be minimum 2.30m | H92: Width of bays (85 % of bays), A or B: A: Parking angle 76 – 90 degrees (2.25m = -5, 2.30m = 0, 2.35m = 2, 2.40m = 4, 2.45m = 6, 2.50m = 8) B: Parking angle 45-75 degrees (2.25m = -5, 2.30m = 1, 2.35m = 3, 2.40m = 5, 2.45m = 8) Width of 2.25m only applies for renovated car parks, new car parks must be minimum 2.30m | I92: Vakbreedte (85 % van de vakken), situatie A of B: A: Parkeerhoek 76 – 90 graden • breedte 2.25m = -5, 2.30m = 0, 2.35m = 2, 2.40m = 4, 2.45m = 6, 2.50m = 8. B: Parkeerhoek 45-75 graden • breedte 2.25m = -5, 2.30m = 1, 2.35m = 3, 2.40m = 5, 2.45m = 8 Breedte 2.25m alleen toelaatbaar bij gerenoveerde garages, bij nieuwe garages geldt de minimum vakbreedte 2.30m | J92: Largeur des emplacements (pour au moins 85 % de ceux-ci), A ou B: A: Angle de 76 à 90 degrés (2.25m = -5, 2.30m = 0, 2.35m = 2, 2.40m = 4, 2.45m = 6, 2.50m = 8) B: Angle de 45 à 75 degrés (2.25m = -5, 2.30m = 1, 2.35m = 3, 2.40m = 5, 2.45m = 8) La largeur de 2,25m est uniquement applicable pour d'anciens parkings rénovés, les nouveaux parkings doivent présenter une largeur minimum de 2,30m) | K92: Stellplatzbreite (85 % der Stellplätze), A or B: A: Einstellwinkel 76° - 90° (2,25m = -5; 2,30m = 0; 2,35m = 2; 2,40m = 4; 2,45m = 6; 2,50m = 8) B: Einstellwinkel 45° - 75° (2,25m = -5; 2,30m = 1; 2,35m = 3; 2,40m = 5; 2,45m = 8) Breite von 2,25m nur für renovierte Betriebe, neue Betrieben müssen mindestens 2,30m aufweisen. | L92: Largura dos lugares (85% dos lugares), A ou B: A: Ângulo Estacionamento 76 - 90 graus (2.25m = -5, 2.30m = 0, 2.35m = 2, 2.40m = 4, 2.45m = 6, 2.50m = 8) B: Ângulo Estacionamento 45-75 graus (2.25m = -5, 2.30m = 1, 2.35m = 3, 2.40m = 5, 2.45m = 8) A largura de 2,25m aplica-se apenas para os parques de estacionamento renovados, novos parques de estacionamento devem ter no mínimo 2,30m | M92: Park yerlerinin genişliği (en az %85'i), A veya B: A: Park açısı 76 – 90 derece (2.25m = -5, 2.30m = 0, 2.35m = 2, 2.40m = 4, 2.45m = 6, 2.50m = 8) B: Park açısı 45-75 derece (2.25m = -5, 2.30m = 1, 2.35m = 3, 2.40m = 5, 2.45m = 8) 2,25 m. genişlik sadece yenilenen otoparklar için geçerlidir, yeni otoparklar minimum 2,30 m. olmalıdır | N92: Szerokość zatok (85 % zatok), A lub B: A: Kąt parkowania 76 - 90 stopni (2,25m = -5, 2,30m = 0, 2,35m = 2, 2,40m = 4, 2,45m = 6, 2,50m = 8) B: Kąt parkowania 45-75 stopni (2,25m = -5, 2,30m = 1, 2,35m = 3, 2,40m = 5, 2,45m = 8) Szerokość 2,25m dotyczy tylko parkingów remontowanych, nowe parkingi muszą mieć minimum 2,30m | O92: Larghezza degli stalli (85 % degli stalli), A o B: A: Angolo di parcheggio 76 – 90 gradi (2,25 m = -5, 2,30 m = 0, 2,35 m = 2, 2,40 m = 4, 2,45 m = 6, 2,50 m = 8) B: Angolo di parcheggio 45-75 gradi (2,25 m = -5, 2,30 m = 1, 2,35 m = 3, 2,40 m = 5, 2,45 m = 8) La larghezza di 2,25 m si applica solo ai parcheggi rinnovati, i parcheggi nuovi devono essere almeno 2,30 m
A93: 90 | B93: 4.10 | C93: 90 | D93: 4.10 | F93: Total unit measure of one way isle width and depth of two parking bays, depending on parking angle and bay width: Bay width: 2.50m / 2.45m / 2.40m / 2.35m / 2.30m 90° : 16.00 / 16.30 / 16.60 / 16.90 / 17.30 85° : 15.70 / 16.00 / 16.30 / 16.60 / 16.95 80° : 15.40 / 15.70 / 16.00 / 16.30 / 16.60 75° : 14.95 / 15.25 / 15.55 / 15.85 / 16.15 70° : 14.50 / 14.80 / 15.10 / 15.40 / 15.70 65° : 14.40 / 14.40 / 14.55 / 14.80 / 15.10 60° : 14.30 / 14.30 / 14.30 / 14.30 / 14.50 55° : 14.00 / 14.00 / 14.00 / 14.00 / 14.10 50° : 13.75 / 13.75 / 13.75 / 13.75 / 13.75 45° : 13.50 / 13.50 / 13.50 / 13.50 / 13.50 Total unit measure as above qualifies for 3 points. Up to 30 cm less qualifies for 2 points Up to 60 cm less qualifies for 1 point More than 60 cm less: no points given | H93: Total unit measure of one way isle width and depth of two parking bays, depending on parking angle and bay width: Bay width: 2.50m / 2.45m / 2.40m / 2.35m / 2.30m 90° : 16.00 / 16.30 / 16.60 / 16.90 / 17.30 85° : 15.70 / 16.00 / 16.30 / 16.60 / 16.95 80° : 15.40 / 15.70 / 16.00 / 16.30 / 16.60 75° : 14.95 / 15.25 / 15.55 / 15.85 / 16.15 70° : 14.50 / 14.80 / 15.10 / 15.40 / 15.70 65° : 14.40 / 14.40 / 14.55 / 14.80 / 15.10 60° : 14.30 / 14.30 / 14.30 / 14.30 / 14.50 55° : 14.00 / 14.00 / 14.00 / 14.00 / 14.10 50° : 13.75 / 13.75 / 13.75 / 13.75 / 13.75 45° : 13.50 / 13.50 / 13.50 / 13.50 / 13.50 Total unit measure as above qualifies for 3 points. Up to 30 cm less qualifies for 2 points Up to 60 cm less qualifies for 1 point More than 60 cm less: no points given | I93: Totale maat van rijstrook voor éénrichtingsverkeer plus twee vakdieptes, afhankelijk van parkeerhoek en vakbreedte: Vakbreedte2.50m / 2.45m / 2.40m / 2.35m / 2.30m 90° : 16.00 / 16.30 / 16.60 / 16.90 / 17.30 85° : 15.70 / 16.00 / 16.30 / 16.60 / 16.95 80° : 15.40 / 15.70 / 16.00 / 16.30 / 16.60 75° : 14.95 / 15.25 / 15.55 / 15.85 / 16.15 70° : 14.50 / 14.80 / 15.10 / 15.40 / 15.70 65° : 14.40 / 14.40 / 14.55 / 14.80 / 15.10 60° : 14.30 / 14.30 / 14.30 / 14.30 / 14.50 55° : 14.00 / 14.00 / 14.00 / 14.00 / 14.10 50° : 13.75 / 13.75 / 13.75 / 13.75 / 13.75 45° : 13.50 / 13.50 / 13.50 / 13.50 / 13.50 Bovenstaande maat geeft 3 punten. Tot 30 cm minder geeft 2 punten Tot 60 cm minder geeft 1 punt Meer dan 60cm minder: geen punten | J93: Métrage total de la distance constitué par la longeur de deux emplacements et de la largeur de la voie de circulation entre les deux (en fonction de l'angle et de la largeur des emplacements) Largeur : 2.50m / 2.45m / 2.40m / 2.35m / 2.30m 90° : 16.00 / 16.30 / 16.60 / 16.90 / 17.30 85° : 15.70 / 16.00 / 16.30 / 16.60 / 16.95 80° : 15.40 / 15.70 / 16.00 / 16.30 / 16.60 75° : 14.95 / 15.25 / 15.55 / 15.85 / 16.15 70° : 14.50 / 14.80 / 15.10 / 15.40 / 15.70 65° : 14.40 / 14.40 / 14.55 / 14.80 / 15.10 60° : 14.30 / 14.30 / 14.30 / 14.30 / 14.50 55° : 14.00 / 14.00 / 14.00 / 14.00 / 14.10 50° : 13.75 / 13.75 / 13.75 / 13.75 / 13.75 45° : 13.50 / 13.50 / 13.50 / 13.50 / 13.50 Un métrage total égal aux cotes ci-dessus donne droit à 3 points. Jusqu'à 30 cm en-dessous des cotes donne droit à 2 points Jusqu'à 60 cm en-dessous des cotes donne droit à 1 point Plus de 60 cm en-dessous: pas de points attribués | K93: Fahrbahnbreite bei Einbahnbetrieb und zwei Stellplatzreihen, abhängig von Einstellwinkel und Stellplatzbreite: Stellplatzbreite: 2,50m / 2,45m / 2,40m / 2,35m / 2,30m 90° : 16,00 / 16,30 / 16,60 / 16,90 / 17,30 85° : 15,70 / 16,00 / 16,30 / 16,60 / 16,95 80° : 15,40 / 15,70 / 16,00 / 16,30 / 16,60 75° : 14,95 / 15,25 / 15,55 / 15,85 / 16,15 70° : 14,50 / 14,80 / 15,10 / 15,40 / 15,70 65° : 14,40 / 14,40 / 14,55 / 14,80 / 15,10 60° : 14,30 / 14,30 / 14,30 / 14,30 / 14,50 55° : 14,00 / 14,00 / 14,00 / 14,00 / 14,10 50° : 13,75 / 13,75 / 13,75 / 13,75 / 13,75 45° : 13,50 / 13,50 / 13,50 / 13,50 / 13,50 Die oben genannten Breiten qualifizieren für 3 Punkte. Bis 0,30 m unter den o.a. Werten: 2 Punkte Bis 0,60 m unter den o.a. Werten: 1 Punkt Mehr als 0,60 m unter den o.a. Werten: 0 Punkte | L93: Medida total de uma ilha com um lugar de largura e dois lugares de profundidade de dois lugares, dependendo do ângulo de estacionamento e largura do lugar: Largura do lugar: 2.50m / 2.45m / 2.40m / 2.35m / 2.30m 90° : 16.00 / 16.30 / 16.60 / 16.90 / 17.30 85° : 15.70 / 16.00 / 16.30 / 16.60 / 16.95 80° : 15.40 / 15.70 / 16.00 / 16.30 / 16.60 75° : 14.95 / 15.25 / 15.55 / 15.85 / 16.15 70° : 14.50 / 14.80 / 15.10 / 15.40 / 15.70 65° : 14.40 / 14.40 / 14.55 / 14.80 / 15.10 60° : 14.30 / 14.30 / 14.30 / 14.30 / 14.50 55° : 14.00 / 14.00 / 14.00 / 14.00 / 14.10 50° : 13.75 / 13.75 / 13.75 / 13.75 / 13.75 45° : 13.50 / 13.50 / 13.50 / 13.50 / 13.50 Se igual ou superior ao valor da tabela acima, 3 pontos. Até 30 cm menos, 2 pontos Até 60 cm menos, 1 ponto Mais de 60 cm a menos: 0 pontos. | M93: Tek yönlü ada genişliğinin toplam birim ölçüsü, park açısına ve park yeri genişliğine bağlı olarak iki park yerinin genişliği ve derinliği: Park yeri genişliği: 2.50m / 2.45m / 2.40m / 2.35m / 2.30m 90° : 16.00 / 16.30 / 16.60 / 16.90 / 17.30 85° : 15.70 / 16.00 / 16.30 / 16.60 / 16.95 80° : 15.40 / 15.70 / 16.00 / 16.30 / 16.60 75° : 14.95 / 15.25 / 15.55 / 15.85 / 16.15 70° : 14.50 / 14.80 / 15.10 / 15.40 / 15.70 65° : 14.40 / 14.40 / 14.55 / 14.80 / 15.10 60° : 14.30 / 14.30 / 14.30 / 14.30 / 14.50 55° : 14.00 / 14.00 / 14.00 / 14.00 / 14.10 50° : 13.75 / 13.75 / 13.75 / 13.75 / 13.75 45° : 13.50 / 13.50 / 13.50 / 13.50 / 13.50 Yukarıdaki niteliklerdeki gibi toplam birim ölçüsü 3 puandır. 30 cm'ye kadar daha az ise 2 puan uygundur. 60 cm'ye kadar daha az ise 1 puan uygundur. 60 cm'den daha az ise: puan verilmez. | N93: Całkowita jednostkowa miara szerokości wysepki jednokierunkowej i głębokość dwóch zatok postojowych, w zależności od kąta parkowania i szerokości zatoki: Szerokość zatoki: 2,50m / 2,45m / 2,40m / 2,35m / 2,30m 90° : 16.00 / 16.30 / 16.60 / 16.90 / 17.30 85° : 15.70 / 16.00 / 16.30 / 16.60 / 16.95 80° : 15.40 / 15.70 / 16.00 / 16.30 / 16.60 75° : 14.95 / 15.25 / 15.55 / 15.85 / 16.15 70° : 14.50 / 14.80 / 15.10 / 15.40 / 15.70 65° : 14.40 / 14.40 / 14.55 / 14.80 / 15.10 60° : 14.30 / 14.30 / 14.30 / 14.30 / 14.50 55° : 14.00 / 14.00 / 14.00 / 14.00 / 14.10 50° : 13.75 / 13.75 / 13.75 / 13.75 / 13.75 45° : 13.50 / 13.50 / 13.50 / 13.50 / 13.50 Łączny wymiar jak wyżej kwalifikuje się na 3 punkty. Do 30 cm mniej kwalifikuje się na 2 punkty Do 60 cm mniej otrzymuje 1 punkt. Więcej niż 60 cm mniej: nie przyznaje się punktów. | O93: Unità di misura totale della larghezza dell'isola a senso unico e profondità di due parcheggi, a seconda dell'angolo di parcheggio e della larghezza: Larghezza campata: 2.50m / 2.45m / 2.40m / 2.35m / 2.30m 90° : 16.00 / 16.30 / 16.60 / 16.90 / 17.30 85° : 15.70 / 16.00 / 16.30 / 16.60 / 16.95 80° : 15.40 / 15.70 / 16.00 / 16.30 / 16.60 75° : 14.95 / 15.25 / 15.55 / 15.85 / 16.15 70° : 14.50 / 14.80 / 15.10 / 15.40 / 15.70 65° : 14.40 / 14.40 / 14.55 / 14.80 / 15.10 60° : 14.30 / 14.30 / 14.30 / 14.30 / 14.50 55° : 14.00 / 14.00 / 14.00 / 14.00 / 14.10 50° : 13.75 / 13.75 / 13.75 / 13.75 / 13.75 45° : 13.50 / 13.50 / 13.50 / 13.50 / 13.50 L'unità di misura totale come sopra si qualifica per 3 punti. Fino a 30 cm in meno si qualificano per 2 punti Fino a 60 cm in meno si qualificano per 1 punto Più di 60 cm in meno: nessun punto assegnato
A94: 91 | B94: 4.11 | C94: 91 | D94: 4.11 | F94: Kerb design to avoid damage to average vehicle’s wheels • Yes = 2, No protection = 0 , No kerbs = 2 | H94: Kerb design to avoid damage to average vehicle’s wheels • Yes = 2, No protection = 0 , No kerbs = 2 | I94: Stoeprand met schuine kant ter bescherming van banden en velgen • Ja = 2, geen schuine kant = 0, geen stoepranden op parkeervloer =2 | J94: Bordures conçues pour éviter des dommages aux jantes Oui=2,Pas de protection/conception=0,Pas de bordures=2 | K94: Design der Schrammborde, um Schaden an den Fahrzeugrädern zu verhindern: (Ja = 2, kein Schutz = 0, keine Schrammborde = 2) | L94: Guias para evitar danos às rodas dos veículos • Sim = 2, Sem proteção = 0 | M94: Ortalama bir araç tekerleğine zarar vermemek için tasarlanmış bordür: • Evet = 2, Koruma yok = 0 , Bordür yok = 2 | N94: Konstrukcja krawężnika pozwalająca uniknąć uszkodzenia kół przeciętnego pojazdu - Tak = 2, Brak zabezpieczenia = 0 , Brak krawężników = 2 | O94: Design del cordolo per evitare danni alle ruote di un veicolo medio • Sì = 2, Nessuna protezione = 0 , Nessun cordolo = 2
A95: 92 | B95: =IF(ISBLANK(VLOOKUP(A95,$C$4:$T$9877,1+$A$1)),F97,VLOOKUP(A95,$C$4:$T$9877,1+$A$1)) -> 5 | C95: 92 | D95: 5 | F95: Vehicle Ramps | H95: Vehicle Ramps | I95: Hellingbanen | J95: Rampes pour véhicules | K95: Auf-/Abfahrtsrampen | L95: Rampas de Veículos | M95: Araç Rampaları | N95: Rampy dla pojazdów | O95: Rampe per veicoli
C96: 93 | D96: 5.0 | F96: Is this a single car with no ramps? | H96: Is this a single car with no ramps? | I96: Een garage met één parkeerlaag zonder hellingbanen of hellende parkeervloer krijgt standaard 10 punten. Is dit het geval? | J96: S'agit-il d'un parking d'un seul niveau sans rampes? | K96: Eingeschossiger Betrieb ohne Rampen? | L96: É um parque de estacionamento de um único piso, sem rampas? | M96: Bu rampası olmayan tek bir araba mı? | N96: Czy to jest pojedynczy samochód bez ramp? | O96: È un'auto singola senza rampe?
A97: 94 | B97: =IF(ISBLANK(VLOOKUP(A97,$C$4:$T$9877,1+$A$1)),F98,VLOOKUP(A97,$C$4:$T$9877,1+$A$1)) -> 5.1 | C97: 94 | D97: 5.1 | F97: Ramp surface between parking areas (Anti slip 1, Smooth 0, no ramps 1) | H97: Ramp surface between parking areas (Anti slip 1, Smooth 0, no ramps 1) | I97: Hellingbanen tussen parkeervloeren • Ruw = 1, Glad = 0, N.v.t. = 1 | J97: Surface des rampes entre les étages de stationnement (Anti-dérapant=1, Lisse=0, Pas de rampes=1) | K97: Bodenbelag der Rampen (rutschhemmend = 1; Glatt = 0; keine Rampe = 1) | L97: Superfície da rampa entre áreas de estacionamento (Antiderrapante 1, Liso 0, sem rampas 1) | M97: Park alanları arasındaki rampa yüzeyi (Kayma önleyici 1, Düz 0, rampasız 1) | N97: Powierzchnia rampy między parkingami (antypoślizgowa 1, gładka 0, bez ramp 1) | O97: Superficie rampa tra i parcheggi (Antiscivolo 1, Liscio 0, senza rampe 1)
A98: 95 | B98: =IF(ISBLANK(VLOOKUP(A98,$C$4:$T$9877,1+$A$1)),F99,VLOOKUP(A98,$C$4:$T$9877,1+$A$1)) -> 5.2 | C98: 95 | D98: 5.2 | F98: Ramp longitudinal gradient connecting ramps (not used for parking) • <10%=3, 10-15%=1, >15%=0, no ramps=3 | H98: Ramp longitudinal gradient connecting ramps (not used for parking) • <10%=3, 10-15%=1, >15%=0, no ramps=3 | I98: Hellingbanen tussen parkeervloeren (waarop niet wordt geparkeerd) • <10% =3, 10 -15% =1, > 15% =0, geen = 3 | J98: Inclinaison longitudinale des rampes de connexion (non utilisée pour du stationnement) • <10%=3, 10-15%=1, >15%=0, pas de rampes=3 | K98: Gefälle der Verbindungsrampen (keine Parkrampen) • < 10 % = 3; 10 - 15 % = 1; > 15 % = 0; keine Rampe = 3 | L98: A inclinação longitudinal das rampas é (não utilizado para estacionamento) • <10%=3, 10-15%=1, >15%=0, sem rampas=3 | M98: Rampa boylamasına eğim bağlantı rampaları (park için kullanılmaz) • <%10=3, %10-15=1, >%15=0, rampa yok=3 | N98: Pochylenie podłużne ramp łączących (niewykorzystywanych do parkowania) - <10%=3, 10-15%=1, >15%=0, brak ramp=3 | O98: Rampa di collegamento in pendenza longitudinale (non adibite a parcheggio) • <10%=3, 10-15%=1, >15%=0, nessuna rampa=3
A99: 96 | B99: =IF(ISBLANK(VLOOKUP(A99,$C$4:$T$9877,1+$A$1)),F100,VLOOKUP(A99,$C$4:$T$9877,1+$A$1)) -> 5.3.1 | C99: 96 | D99: 5.3.1 | F99: Ramp width (between kerbs) all ramps measured at narrowest point | H99: Ramp width (between kerbs) all ramps measured at narrowest point | I99: Breedte van rechte hellingbanen (tussen stoepranden) op het smalste punt | J99: Largeur des rampes (entre les bordures) mesurées aux points les plus étroits. | K99: Rampenbreite (zwischen Schrammborden) gemessen am engsten Punkt | L99: Largura da rampa, entre guias. Todas as rampas medidas no ponto mais estreito. | M99: Bordürler arası rampa genişliği. (En dar yerden ölçüm yapılır.) | N99: Szerokość rampy (pomiędzy krawężnikami) wszystkie rampy mierzone w najwęższym miejscu | O99: Larghezza rampa (tra i cordoli) tutte le rampe misurate nel punto più stretto
A100: 97 | B100: =IF(ISBLANK(VLOOKUP(A100,$C$4:$T$9877,1+$A$1)),F101,VLOOKUP(A100,$C$4:$T$9877,1+$A$1)) -> 5.3.2 | C100: 97 | D100: 5.3.2 | F100: Curved ramps must be 1 m wider for same score. Are the ramps curbed? | H100: Curved ramps must be 1 m wider for same score. Are the ramps curbed? | I100: Hellingbanen in een bocht? • moeten 1 m breder zijn voor dezelfde score. | J100: Les rampes courbes doivent être 1m plus large pour obtenir le même score. Les rampes sont-elles courbes? | K100: Geschwungene Rampen müssen 1 m breiter sein für dieselbe Punkteanzahl. Gibt es Schrammborde? | L100: As rampas curvas devem ser 1m de largura adicional para conseguir a mesma pontuação. As rampas são curvas? | M100: Aynı puan için eğimli rampalar 1 m daha geniş olmalıdır. Rampalar engellenmiş mi? | N100: Zakrzywione rampy muszą być o 1 m szersze, aby uzyskać ten sam wynik. Czy rampy są wyprofilowane? | O100: Le rampe curve devono essere 1 m più larghe per lo stesso punteggio. Le rampe sono frenate?
A101: 98 | B101: =IF(ISBLANK(VLOOKUP(A101,$C$4:$T$9877,1+$A$1)),F103,VLOOKUP(A101,$C$4:$T$9877,1+$A$1)) -> 5.3.3 | C101: 98 | D101: 5.3.3 | F101: Please choose width. < 3m=0, 3-3.3m=1, >3.3m=3, no ramps=3 | H101: Please choose width. < 3m=0, 3-3.3m=1, >3.3m=3, no ramps=3 | I101: Kies breedte van de rechte hellingbaan: < 3m=0, 3-3,3m=1, >3,3m=2, geen hellingbaan=3 | J101: Saisissez en fonction de. < 3m=0, 3-3.3m=1, >3.3m=3, pas de rampes=3 | K101: Bitte Breite auswählen. < 3,00 m = 0; 3,00 - 3,30 m = 1; > 3,30 m = 3; keine Rampe = 3 | L101: Selecionar a Largura < 3m=0, 3-3.3m=1, >3.3m=2, sem rampas=2 | M101: Lütfen genişliği seçin. < 3m=0, 3-3.3m=1, >3.3m=3, rampa yok=3 | N101: Proszę wybrać szerokość. < 3m=0, 3-3,3m=1, >3,3m=3, bez rampy=3 | O101: Si prega di scegliere la larghezza. < 3m=0, 3-3,3m=1, >3,3m=3, nessuna rampa=3
A102: 99 | B102: 5.3.3.Alt | C102: 99 | D102: 5.3.3.Alt | F102: =OFFSET(G102,0,$C$1) -> Please choose width. < 4m=0, 4-4.3m=1, >4.3m=3, no ramps=3 | H102: Please choose width. < 4m=0, 4-4.3m=1, >4.3m=3, no ramps=3 | I102: Kies breedte van de gebogen hellingbaan: < 4m=0, 4-4,3m=1, >4,3m=2, geen hellingbaan=3 | J102: Saississez en fonction de; < 4m=0, 4-4.3m=1, >4.3m=3, pas de rampes=3 | K102: Bitte Breite auswählen. < 4,00 m = 0; 4,00 - 4,30 m = 1; > 4,30 m; keine Rampe = 3 | L102: Selecionar a Largura < 4m=0, 4-4.3m=1, >4.3m=2, sem rampas=2 | M102: Lütfen genişliği seçin. < 4m=0, 4-4.3m=1, >4.3m=3, rampa yok=3 | N102: Proszę wybrać szerokość. < 4m=0, 4-4,3m=1, >4,3m=3, bez rampy=3 | O102: Si prega di scegliere la larghezza. < 4 m=0, 4-4,3 m=1, >4,3 m=3, nessuna rampa=3
A103: 100 | B103: =IF(ISBLANK(VLOOKUP(A103,$C$4:$T$9877,1+$A$1)),F104,VLOOKUP(A103,$C$4:$T$9877,1+$A$1)) -> 5.4 | C103: 100 | D103: 5.4 | F103: Ramp curvature (external radius) curved ramps • up to 9m=0, 9–10 m=1, >10m=2, no ramps=2 At dual way ramps this measure refers to the inner lane. | H103: Ramp curvature (external radius) curved ramps • up to 9m=0, 9–10 m=1, >10m=2, no ramps=2 At dual way ramps this measure refers to the inner lane. | I103: Straal buitenkant van gebogen hellingbanen: • < 9m =0, 9 – 10 m =1, > 10m = 2, Bij hellingbanen voor twee richtingen geldt deze maat voor de binnenste rijstrook. | J103: Rayon de courbure des rampes courbes (radius externe) • jusqu'à 9m=0, 9 –10 m=1, >10m=2, pas de rampes=2 Pour une rampe à double sens,cette mesure se réfère à la voie intérieure. | K103: Radius der Rampe (Außenradius) bei geschwungenen Rampen • < 9,00 m = 0; 9,00 - 10,00 m = 1; > 10,00 m = 2; keine Rampe = 2 Bei Rampen mit Gegenverkehr gilt die innere Fahrspur | L103: Raio de curvatura da rampa (raio externo) • até 9m=0, 9–10 m=1, >10m=2, sem rampas=2 Nas vias com rampas duplas esta medida refere-se à faixa interior. | M103: Rampa kavisi (dış yarıçap) kavisli rampalar • 9m'ye kadar=0, 9–10 m=1, >10m=2, rampa yok=2 Çift yönlü rampalarda bu ölçü iç şeride uygulanır | N103: Krzywizna rampy (promień zewnętrzny) rampy łukowe - do 9m=0, 9-10 m=1, >10m=2, brak ramp=2 Przy rampach dwukierunkowych miara ta odnosi się do wewnętrznego pasa ruchu. | O103: Si prega di scegliere la larghezza. < 4 m=0, 4-4,3 m=1, >4,3 m=3, nessuna rampa=3
A104: 101 | B104: =IF(ISBLANK(VLOOKUP(A104,$C$4:$T$9877,1+$A$1)),F105,VLOOKUP(A104,$C$4:$T$9877,1+$A$1)) -> 5.5 | C104: 101 | D104: 5.5 | F104: Approach curve to straight ramps • <7.5m=0, 7.5–9m=1, >9m=2, no ramps=2 | H104: Approach curve to straight ramps • <7.5m=0, 7.5–9m=1, >9m=2, no ramps=2 | I104: Straal buitenkant aanrijbocht naar een rechte hellingbaan: • <7,5m =0, 7,5 – 9m =1, > 9m = 2 | J104: Courbe d'approche vers une rampe droite • <7.5m=0, 7.5 –9m=1, >9m=2, pas de rampes=2 | K104: Eingangskurve zu geraden Rampen • < 7,50 m = 0; 7,50 – 9,00 m = 1; > 9,00 m = 2; keine Rampe = 2 | L104: Curva de abordagem para rampas retas • <7.5m=0, 7.5–9m=1, >9m=2, sem rampas=2 | M104: Düz rampalara yaklaşma kavisi • <7,5m=0, 7,5–9m=1, >9m=2, rampa yok=2 | N104: Podejście po łuku do prostych ramp - <7,5m=0, 7,5-9m=1, >9m=2, brak ramp=2 | O104: Curva di avvicinamento a rampe rettilinee • <7,5 m=0, 7,5–9 m=1, >9 m=2, nessuna rampa=2
A105: 102 | B105: =IF(ISBLANK(VLOOKUP(A105,$C$4:$T$9877,1+$A$1)),#REF!,VLOOKUP(A105,$C$4:$T$9877,1+$A$1)) -> 5.6 | C105: 102 | D105: 5.6 | F105: Ramped parking floor longitudinal gradient • <5%=3, 5-7 =1, >7%=0, no gradient=3 | H105: Ramped parking floor longitudinal gradient • <5%=3, 5-7 =1, >7%=0, no gradient=3 | I105: Hellende parkeervloeren: • <5% =3, 5-7% =1, >7% =0, vlakke vloer = 3 | J105: Inclinaison longitudinales pour rampe pourvue de places de stationnement • <5%=3, 5-7 =1, >7%=0, pas de places de stationnement=3 | K105: Parkebene mit Gefälle (Längsneigung) • < 5% = 3; 5% - 7% = 1; > 7% = 0; kein Gefälle = 3 | L105: Inclinação das rampas de estacionamento. • <5%=3, 5-7 =1, >7%=0, sem inclinação=3 | M105: Rampalı park zemini uzunluğuna eğim • <5%=3, 5-7 =1, >7%=0, eğim yok=3 | N105: Nachylenie podłużne posadzki parkingowej - <5%=3, 5-7 =1, >7%=0, brak nachylenia=3 | O105: Pendenza longitudinale del piano di parcheggio in rampa • <5%=3, 5-7 =1, >7%=0, nessuna pendenza=3
A106: 103 | B106: =IF(ISBLANK(VLOOKUP(A106,$C$4:$T$9877,1+$A$1)),#REF!,VLOOKUP(A106,$C$4:$T$9877,1+$A$1)) -> 6 | C106: 103 | D106: 6 | F106: Pedestrian Access | H106: Pedestrian Access | I106: Toegankelijkheid voor voetgangers | J106: Accès piétons | K106: Fußgängerzugang | L106: Acessos Pedonais | M106: Yaya Erişimi | N106: Dostęp dla pieszych | O106: Accesso pedonale
A107: 104 | B107: =IF(ISBLANK(VLOOKUP(A107,$C$4:$T$9877,1+$A$1)),F108,VLOOKUP(A107,$C$4:$T$9877,1+$A$1)) -> 6.0.1 | C107: 104 | D107: 6.0.1 | F107: Is this a Single level car park at ground floor, (not open surface) ? | H107: Is this a Single level car park at ground floor, (not open surface) ? | I107: Een garage met één parkeerlaag op straatniveau zonder trappen of liften? | J107: Est-ce un parking sur un seul niveau en rez-de chaussée (non clôturé)? | K107: Eingeschossige und ebenerdige Parkeinrichtung? (kein unüberdachter Parkplatz) | L107: Este parque tem apenas um piso, ao nível da entrada (não descoberto)? | M107: Zemin katta tek katlı kapalı bir otopark mı? | N107: Czy jest to parking jednopoziomowy na parterze, (nie na otwartej powierzchni) ? | O107: Si tratta di un singolo livello di parcheggio piano terra (non scoperto)?
A108: 105 | B108: 6.0.2 | C108: 105 | D108: 6.0.2 | F108: Is there elevators serving street level? | H108: Is there elevators serving street level? | I108: Gaan de aanwezige liften tot straatniveau? | J108: Les ascenseurs déservent-ils le niveau rez-de-chaussée? | K108: Führen Aufzüge auf das Straßenniveau? | L108: Os elevadores servem o nível de rua? | M108: Sokak seviyesine çıkan asansörler var mı? | N108: Czy windy są na poziomie ulicy? | O108: Ci sono ascensori che servono il livello della strada?
A109: 106 | B109: 6.0.3 | C109: 106 | D109: 6.0.3 | F109: Are elevators the main vertical connection? (stairs only secondary or escape) | H109: Are elevators the main vertical connection? (stairs only secondary or escape) | I109: Vormen liften de hoofdverbinding voor vertical verkeer (trappen alleen voor noodgevallen)? | J109: Les ascenseurs sont-ils le principal moyen de connexion entre les étages (les escaliers seulement en cas d'évacuation ou totalement secondaires)? | K109: Sind die Fahrstühle das primäre Etagenverbindung? (Treppen nur sekundär oder als Fluchtwege) | L109: Os elevadores são a principal forma de ligação entre pisos? (escadas são secundárias ou vias de escape) | M109: Asansörler ana dikey erişim unsuru mu? (Merdivenler sadece tali kullanım ve kaçış için) | N109: Czy windy są głównym połączeniem pionowym? (schody są tylko drugorzędne lub ewakuacyjne) | O109: Gli ascensori sono il principale collegamento verticale? (solo scale secondarie o di fuga)
A110: 107 | B110: 6.1 | C110: 107 | D110: 6.1 | F110: Headroom for pedestrians - excluding doors • <2.00m = 0 • 2.00m – 2.10m = 1 • 2.10m – 2.20m = 2 • > 2.20m = 3 | H110: Headroom for pedestrians - excluding doors • <2.00m = 0 • 2.00m – 2.10m = 1 • 2.10m – 2.20m = 2 • > 2.20m = 3 | I110: Hoogte voor voetgangers op de looproutes op de parkeervloer (excl. Deuren) • < 2,00 m = 0 • 2,00 – 2,10 m = 1 • 2,10 – 2,20 m = 2 • > 2,20 m = 3 | J110: Hauteur de plafond des zones piétonnes - portes exclues • <2.00m = 0 • 2.00m – 2.10m = 1 • 2.10m – 2.20m = 2 • > 2.20m = 3 | K110: Kopffreiheit für Fußgänger - außer unter Türen • < 2,00m = 0 • 2,00m - 2,10m = 1 • 2,10m - 2,20m = 2 • > 2,20m = 3 | L110: Pé direito nas zonas pedonais - excluindo portas • <2.00m = 0 • 2.00m – 2.10m = 1 • 2.10m – 2.20m = 2 • > 2.20m = 4 | M110: Yayalar için baş mesafesi - kapılar hariç • <2.00m = 0 • 2.00m – 2.10m = 1 • 2.10m – 2.20m = 2 • > 2,20m = 3 | N110: Wysokość głowy dla pieszych - bez drzwi - <2.00m = 0 - 2,00m - 2,10m = 1 - 2,10m - 2,20m = 2 - > 2.20m = 3 | O110: Spazio per i pedoni - porte escluse • <2,00 m = 0 • 2.00m – 2.10m = 1 • 2,10 m – 2,20 m = 2 • > 2,20 m = 3
A111: 108 | B111: 6.2 | C111: 108 | D111: 6.2 | F111: Separate walking route (i.e. heightened; zebra stripes or colours) (yes = 2, no = 0) | H111: Separate walking route (i.e. heightened; zebra stripes or colours) (yes = 2, no = 0) | I111: Gescheiden looproute ( bv verhoogd, zebra of afwijkende kleur) • ja = 2, nee = 0 | J111: Chemin piétons séparés (par ex. Surélevés, bandes zébrées ou de couleur,..) (Oui=2,Non=0) | K111: Separat ausgewiesene Fußgängerwege (z.B. erhöht, Zebrastreifen, farbige Kennzeichnung) (ja = 2; nein = 0) | L111: Via pedonal separada (pe, passeios, passadeiras ou faixas coloridas) (sim = 2, não = 0) | M111: Ayrılmış yaya yolu (Örneğin; yükseltilmiş, zebra çizgilerifarklı renkle boyama vs.) (evet = 2, hayır = 0) | N111: Wydzielony ciąg pieszy (np. podwyższony; pasy lub kolory zebry) (tak = 2, nie = 0) | O111: Percorso a piedi separato (es. intensificato; strisce o colori zebrati) (sì = 2, no = 0)
A112: 109 | B112: 6.3 | C112: 109 | D112: 6.3 | F112: Are pedestrian entrance doors easy to use? (Yes, automatic or open connection = 4, Easy to open = 2, No = 0) | H112: Are pedestrian entrance doors easy to use? (Yes, automatic or open connection = 4, Easy to open = 2, No = 0) | I112: Zijn deuren gemakkelijk te openen? • Ja: automatisch of open verbinding = 4 • Gemakkelijk te openen = 2 • Nee = 0 | J112: Les portes d'accès piétons sont-elles facile à utiliser? (Oui,portes automatiques ou passage ouvert = 4, Facile à ouvrir = 2, Non=0) | K112: Sind die Zugangstüren einfach zu bedienen? (ja, automatisch oder offen = 4; einfach zu öffnen = 2; nein = 0) | L112: As portas das entradas para peões são fáceis de usar? (Sim, automática ou aberta = 4, Fácil de abrir = 2, Não = 0) | M112: Yaya giriş kapılarının kullanımı kolay mı? (Evet, otomatik veya açık bağlantı = 4, Kolay açılır = 2, Hayır = 0) | N112: Czy drzwi wejściowe dla pieszych są łatwe w użyciu? (Tak, automatyczne lub otwarte połączenie = 4, Łatwe do otwarcia = 2, Nie = 0) | O112: Le porte d'ingresso pedonali sono facili da usare? (Sì, connessione automatica o aperta = 4, Facile da aprire = 2, No = 0)
A113: 110 | B113: 6.4 | C113: 110 | D113: 6.4 | F113: Pedestrian access controlled by ticket/pass card when car park open (Yes=1, No=0) | H113: Pedestrian access controlled by ticket/pass card when car park open (Yes=1, No=0) | I113: Voetgangerstoegang met kaartlezer tijdens openingsuren Ja=1, Nee=0 | J113: Accès piétons contrôlés par lecteurs de tickets/cartes durant les heures d'ouverture (Oui=1, Non=0) | K113: Zutrittskontrolle per Ticket / Medium (ja = 1; nein = 0) | L113: Acesso pedonal controlado por bilhete/cartão de passe quando parque de estacionamento aberto (Sim=1, Não=0) | M113: Otopark açıkken bilet/geçiş kartı ile kontrol edilen yaya girişi (Evet=1, Hayır=0) | N113: Dostęp dla pieszych kontrolowany za pomocą biletu/karty przy otwartym parkingu (Tak=1, Nie=0) | O113: Accesso pedonale controllato da biglietto/tessera a parcheggio aperto (Sì=1, No=0)
A114: 111 | B114: 6.5 | C114: 111 | D114: 6.5 | F114: Number of Elevators at street level: (1 elevator = 1, 2 + elevators = 5) | H114: Number of Elevators at street level: (1 elevator = 1, 2 + elevators = 5) | I114: Liften vanaf straatniveau • geen = 0, 1 lift = 1, • 2 of meer liften =5 | J114: Nombre d'ascenseurs au niveau rez-de-chaussée: (1 ascenseur = 1, 2 ascenseurs ou + = 5) | K114: Anzahl der Aufzüge auf Straßen-Niveau: (1 Aufzug = 1; 2 oder mehr Aufzüge = 5) | L114: Número de Elevadores que servem o nível da rua: (1 elevador = 1, + 2 elevadores = 5) | M114: Sokak seviyesindeki asansör sayısı: (1 asansör = 1; 2 + asansör = 5) | N114: Liczba wind na poziomie ulicy: (1 winda = 1, 2 + windy = 5) | O114: Numero di ascensori a piano strada: (1 ascensore = 1, 2 + ascensori = 5)
A115: 112 | B115: 6.6 | C115: 112 | D115: 6.6 | F115: Size of elevators: (More Than 8 people = 3, 4-8 people = 1, less than 4 = 0) | H115: Size of elevators: (More Than 8 people = 3, 4-8 people = 1, less than 4 = 0) | I115: Capaciteit van de liften • > 8 personen = 3; 4-8 personen = 1; <4 personen = 0 | J115: Taille des ascenseurs: (Plus de 8 personnes = 3, 4-8 personnes = 1, moins de 4 personnes = 0) | K115: Größe der Aufzüge: (Mehr als 8 Personen = 3; 4 - 8 Personen = 1; weniger als 4 = 0) | L115: Capacidade dos elevadores: (Mais de 8 pessoas = 3, 4-8 pessoas = 1, menos que 4 = 0) | M115: Asansörlerin boyutu: (8'den fazla kişi = 3; 4-8 kişi = 1; 4'ten az = 0) | N115: Wielkość wind: (Więcej niż 8 osób = 3, 4-8 osób = 1, mniej niż 4 = 0) | O115: Dimensioni degli ascensori: (Più di 8 persone = 3, 4-8 persone = 1, meno di 4 = 0)
A116: 113 | B116: 6.7 | C116: 113 | D116: 6.7 | F116: Visibility from elevator inside to hall/parking area (no visibility from elevator = 0, glazed doors/walls = 3, no elevator = 0) | H116: Visibility from elevator inside to hall/parking area (no visibility from elevator = 0, glazed doors/walls = 3, no elevator = 0) | I116: Zicht vanuit lift naar hal of parkeervloeren • Geen zicht vanuit de lift = 0; • Deur met glas/glazen wand = 3; • Geen lift = 0 | J116: Visibilité depuis l'ascenseur vers le hall ou le parking (pas de visibilité depuis l'ascenseur = 0, portes/parois vitrées = 3, pas d'ascenseur= 0) | K116: Sichtverbindung zwischen dem Aufzug und Vorraum/Parkebene (keine Sichtverbindung = 0; verglaste Türen / Wände = 3; kein Aufzug = 0) | L116: Visibilidade desde o elevador para o hall ou para a área de estacionamento: (nenhuma visibilidade do elevador = 0, portas de vidros/paredes = 3, sem elevador = 0) | M116: Asansör içinden park alanının görünüşü (asansörden görüş yok = 0, camlı kapılar/duvarlar = 3, asansör yok = 0) | N116: Widoczność z windy wewnątrz na hol/parking (brak widoczności z windy = 0, przeszklone drzwi/ściany = 3, brak windy = 0) | O116: Visibilità dall'ascensore interno alla hall/parcheggio (nessuna visibilità dall'ascensore = 0, porte/pareti vetrate = 3, nessun ascensore = 0)
A117: 114 | B117: 6.8.1 | C117: 114 | D117: 6.8.1 | F117: Level indication: | H117: Level indication: | I117: Verdieping indicatie: | J117: Indication de l'étage | K117: Anzeige der Parkebenen: | L117: Indicação do Piso ou Andar: | M117: Seviye göstergesi: | N117: Oznaczenie poziomu: | O117: Indicazione del livello:
A118: 115 | B118: 6.8.2 | C118: 115 | D118: 6.8.2 | F118: in elevator: | H118: in elevator: | I118: in de lift: (ja=1, nee=0) | J118: Dans l'ascenseur | K118: im Aufzug: | L118: no elevador: | M118: asansörde: | N118: w windzie: | O118: in ascensore:
A119: 116 | B119: 6.8.3 | C119: 116 | D119: 6.8.3 | F119: in elevator foyer: | H119: in elevator foyer: | I119: In de lifthal: (ja=1, nee=0) | J119: Dans le hall d'ascenseur | K119: im Vorraum zum Aufzug: | L119: no hall de entrada do elevador: | M119: asansör bekleme alanında: | N119: w foyer windy: | O119: nell'atrio dell'ascensore:
A120: 117 | B120: 6.9 | C120: 117 | D120: 6.9 | F120: Elevator control buttons at wheelchair height • Yes = 1, No = 0 | H120: Elevator control buttons at wheelchair height • Yes = 1, No = 0 | I120: Liftbediening op rolstoelhoogte • Ja = 1, Nee = 0 | J120: Les boutons de commande de l'ascenseur sont-il à hauteur d'une chaise roulante? • Oui = 1, Non = 0 | K120: Bedienelemente im Aufzug barrierefrei? (ja = 1; nein = 0) | L120: Botões de controle do elevador à altura da cadeira de rodas • Sim = 1, Outro = 0 | M120: Tekerlekli sandalye yüksekliğinde asansör kumanda düğmeleri • Evet = 1, Hayır = 0 | N120: Przyciski sterujące windą na wysokości wózka inwalidzkiego. - Tak = 1, Nie = 0 | O120: Pulsanti di comando dell'ascensore all'altezza della sedia a rotelle • Sì = 1, No = 0
A121: 118 | B121: 6.10.1 | C121: 118 | D121: 6.10.1 | F121: Doors directly to parking area | H121: Doors directly to parking area | I121: Toegangsdeuren tot de parkeervloeren | J121: Portes directement vers les aires de stationnement | K121: Verbindungstüren zum Parkbereich: | L121: As portas do elevador dão acesso direto à área de estacionamento | M121: Kapılar doğrudan park alanına açılır. | N121: Drzwi bezpośrednio na parking | O121: Porte che danno direttamente al parcheggio
A122: 119 | B122: 6.10.2 | C122: 119 | D122: 6.10.2 | F122: Width (<90 cm =0, >=90 cm = 2) | H122: Width (<90 cm =0, >=90 cm = 2) | I122: Breedte <90 cm =0, >90 cm = 2 | J122: Largeur (<90 cm =0, >=90 cm = 2) | K122: Lichte Breite (< 90 cm =0; >= 90 cm = 2) | L122: Largura (<90 cm =0, >=90 cm = 2) | M122: Genişlik (<90 cm =0, >=90 cm = 2) | N122: Szerokość (<90 cm =0, >=90 cm = 2) | O122: Larghezza (<90 cm =0, >=90 cm = 2)
A123: 120 | B123: 6.10.3 | C123: 120 | D123: 6.10.3 | F123: Emergency door, standard open (Yes=2, No= 0) | H123: Emergency door, standard open (Yes=2, No= 0) | I123: nooddeur standaard open of open verbinding = 2, nee =0 | J123: Portes de secours, en position ouverte (Yes=2, No= 0) | K123: Fluchttüren, generell offen (ja = 2; nein = 0) | L123: Portas de emergência estão abertas? (Sim=2, Não= 0) | M123: Acil durum kapısı, standart açılma (Evet=2, Hayır= 0) | N123: Drzwi awaryjne, standardowo otwierane (Tak=2, Nie= 0) | O123: Porta di emergenza, apertura standard (Sì=2, No= 0)
A124: 121 | B124: 6.10.4 | C124: 121 | D124: 6.10.4 | F124: Visibility (Glazed door/wall = 3, No Glass = 0) | H124: Visibility (Glazed door/wall = 3, No Glass = 0) | I124: Zichtbaarheid • Glazen deur/wand = 3, Niet doorzichtig = 0 | J124: Visibilité (Portes/Parois vitrées = 3, Pas de vitres = 0) | K124: Sichtverbindung (Glastüren / -wände = 3; kein Glas = 0) | L124: Visibilidade (Porta ou Muro envidraçados = 3, Sem visibilidade = 0) | M124: Görünürlük (Camlı kapı/duvar = 3, Camsız = 0) | N124: Widoczność (Przeszklone drzwi/ściana = 3, Brak przeszklenia = 0) | O124: Visibilità (porta/parete vetrata = 3, senza vetro = 0)
A125: 122 | B125: 6.11.1 | C125: 122 | D125: 6.11.1 | F125: Stairwells (visibility and orientation) | H125: Stairwells (visibility and orientation) | I125: Trappenhuizen: overzicht en orientatie | J125: Cages d'escaliers (visibilité et orientation) | K125: Treppenhäuser (Sichtbarkeit und Orientierung) | L125: Caixas de Escadas (visibilidade e orientação) | M125: Merdiven boşlukları (görünürlük ve yönlenme) | N125: Klatki schodowe (widoczność i orientacja) | O125: Scale (visibilità e orientamento)
A126: 123 | B126: 6.11.2 | C126: 123 | D126: 6.11.2 | F126: Clear View (Yes = 1, No = 0, Irrelevant = 1) | H126: Clear View (Yes = 1, No = 0, Irrelevant = 1) | I126: Duidelijk overzicht, geen dode hoeken • Ja = 1, Nee = 0, Irrelevant = 1 | J126: Vue dégagée (Oui = 1, Non = 0, Sans rapport = 1) | K126: Einfach Auffindbarkeit (ja = 1; nein = 0; irrelvant = 1) | L126: Vista limpa (Sim = 1, Não = 0, Irrelevante = 1) | M126: Net görüntü (Evet = 1, Hayır = 0, Alakasız = 1) | N126: Dobra widoczność (Tak = 1, Nie = 0, Nieistotne = 1) | O126: Visualizzazione chiara (Sì = 1, No = 0, Irrilevante = 1)
A127: 124 | B127: 6.11.3 | C127: 124 | D127: 6.11.3 | F127: Level Indication (Yes = 1, No = 0, Irrelevant = 1) | H127: Level Indication (Yes = 1, No = 0, Irrelevant = 1) | I127: Indicatie van de verdieping • Ja = 1, Nee = 0, Irrelevant = 1 | J127: Indication d'étage (Oui = 1, Non = 0, Sans rapport = 1) | K127: Geschosskennzeichnung (ja = 1; nein = 0; unzutreffend = 1) | L127: Indicação do piso ou andar (Sim = 1, Não = 0, Irrelevante = 1) | M127: Seviye Göstergesi (Evet = 1, Hayır = 0, Alakasız = 1) | N127: Wskazanie poziomu (Tak = 1, Nie = 0, Nieistotne = 1) | O127: Indicazione del livello (Sì = 1, No = 0, Irrilevante = 1)
A128: 125 | B128: 6.12.1 | C128: 125 | D128: 6.12.1 | F128: Stairs (incl. heightened visibility of steps) | H128: Stairs (incl. heightened visibility of steps) | I128: Trappen incl. veiligheid: | J128: Escaliers (y compris visibilité renforcée des marches) | K128: Treppen (inkl. verbesserter Sichtbarkeit der Treppenstufen) | L128: Escadas (incl. maior visibilidade dos degraus) | M128: Merdivenler (görünürlüğü arttırılmış basamaklar dahil) | N128: Schody (w tym podwyższona widoczność stopni) | O128: Scale (incl. maggiore visibilità dei gradini)
A129: 126 | B129: 6.12.2 | C129: 126 | D129: 6.12.2 | F129: Width (< 1.5 m = 0, > 1.5m = 2) | H129: Width (< 1.5 m = 0, > 1.5m = 2) | I129: Breedte < 1.5 m = 0, > 1.5m = 2 | J129: Largeur (< 1.5 m = 0, > 1.5m = 2) | K129: Breite (< 1,5 m = 0; > 1,5 m = 2) | L129: Largura (< 1.5 m = 0, > 1.5m = 2) | M129: Genişlik (< 1,5 m = 0, > 1,5 m = 2) | N129: Szerokość (< 1,5 m = 0, > 1,5 m = 2) | O129: Larghezza (< 1,5 m = 0, > 1,5 m = 2)
A130: 127 | B130: 6.12.3 | C130: 127 | D130: 6.12.3 | F130: Hand Rails (No hand rail =0, One Side = 1, Two sides=2) | H130: Hand Rails (No hand rail =0, One Side = 1, Two sides=2) | I130: Geen handreling =0, Eén zijde = 1, Twee zijden=2 | J130: Main courante (Aucune =0, D'un seul côté = 1, Des deux côtés=2) | K130: Handläufe (keine = 0; einseitig = 1; beidseitig = 2) | L130: Corrimão (Não tem corrimão = 0, Um lado = 1, Dois lados = 2) | M130: Trabzan (Tutunma yok =0, Tek Taraf = 1, Çift Taraf=2) | N130: Poręcze (brak poręczy =0, jedna strona = 1, dwie strony=2) | O130: Corrimano (nessun corrimano = 0, un lato = 1, due lati = 2)
A131: =C131 -> 128 | B131: 6.12.4 | C131: 128 | D131: 6.12.4 | F131: Heightened visibility of steps for people with poor eyesight (Yes = 2, No = 0) | H131: Heightened visibility of steps for people with poor eyesight (Yes = 2, No = 0) | I131: Extra markering van treden voor slechtzienden • Ja = 2, Nee = 0 | J131: Visibilité renforcée des marches pour personnes souffrant d'une déficience de la vue (Oui = 2, Non = 0) | K131: Erhöhte Sichtbarkeit der Treppenstufen für Personen mit eingeschränkter Sehkraft (ja = 2; nein = 0) | L131: Maior visibilidade dos degraus para pessoas com deficiência visual (Sim = 2, Não = 0) | M131: Görme bozukluğu olan kişiler için adımların görünürlüğünün artması (Evet = 2, Hayır = 0) | N131: Lepsza widoczność stopni dla osób o słabym wzroku (Tak = 2, Nie = 0) | O131: Maggiore visibilità dei gradini per persone con problemi di vista (Sì = 2, No = 0)
A132: 129 | B132: 6.12.5 | C132: 129 | D132: 6.12.5 | F132: Anti-slip surfacing on stairs: (Yes = 2, No = 0) | H132: Anti-slip surfacing on stairs: (Yes = 2, No = 0) | I132: Anti-slip op trappen: • Ja = 2, Nee = 0 | J132: Surface anti-dérapante sur les marches: (Oui = 2, Non = 0) | K132: Rutschfeste Beschichtung/Oberfläche der Treppenstufen (ja = 2; nein = 0) | L132: Antiderrapante à superfície em escadas: (Sim = 2, Não = 0) | M132: Merdivenlerde kaymaz kaplama: (Evet = 2, Hayır = 0) | N132: Antypoślizgowa powierzchnia na schodach: (Tak = 2, Nie = 0) | O132: Pavimentazione antiscivolo su scale: (Sì = 2, No = 0)
A133: 130 | B133: =IF(ISBLANK(VLOOKUP(A133,$C$4:$T$9877,1+$A$1)),#REF!,VLOOKUP(A133,$C$4:$T$9877,1+$A$1)) -> 6.13 | C133: 130 | D133: 6.13 | F133: External openings in stairwell (window/grilled to outside or car park =2, none =0) | H133: External openings in stairwell (window/grilled to outside or car park =2, none =0) | I133: Daglicht toetreding in trappenhuis • Raam of rooster opening =2 • geen =0 | J133: Ouvertures extérieures des cages d'escalier (fenêtres ou grilles vers l'extérieur ou vers le parking =2, Pas d'ouvertures =0) | K133: Öffnungen in den Treppenhauswänden (Fenster / Gitter nach außen oder zu den Parkebenen = 2; nein = 0) | L133: Aberturas externas nas Caixas de Escadas (janela / grelha para fora do parque de estacionamento =2, nenhum =0) | M133: Merdiven boşluğundaki dış açıklıklar (pencere/otopark içine veya dışına ızgara =2, yok =0) | N133: Otwory zewnętrzne w klatce schodowej (okno/okno na zewnątrz lub parking =2, brak =0) | O133: Aperture esterne nel vano scala (finestra/grigliata verso l'esterno o parcheggio =2, nessuno =0)
A134: 131 | B134: =IF(ISBLANK(VLOOKUP(A134,$C$4:$T$9877,1+$A$1)),#REF!,VLOOKUP(A134,$C$4:$T$9877,1+$A$1)) -> 7 | C134: =+C133+1 -> 131 | D134: 7 | F134: Security Equipment | H134: Security Equipment | I134: Veiligheidstechniek | J134: Equipement de sécurité | K134: Sicherheitsausstattung | L134: Equipamentos de Segurança | M134: Güvenlik ekipmanı | N134: Urządzenia zabezpieczające | O134: Attrezzatura di sicurezza
A135: 132 | B135: =IF(ISBLANK(VLOOKUP(A135,$C$4:$T$9877,1+$A$1)),F136,VLOOKUP(A135,$C$4:$T$9877,1+$A$1)) -> 7.1 | C135: 132 | D135: 7.1 | F135: CCTV with notice at entrance = 3, No CCTV =0 | H135: CCTV with notice at entrance = 3, No CCTV =0 | I135: • CCTV met aanduiding bij de inrit = 3, • Geen CCTV =0 | J135: Vidéosurveillance avec affichage légal à l'entrée = 3, Pas de vidéosurveillance = 0 | K135: Videoüberwachung mit Hinweis an den Eingängen = 3; keine Videoüberwachung = 0 | L135: CCTV com aviso na entrada = 3, Não tem CCTV = 0 | M135: Girişte uyarı tabelalı CCTV = 3, CCTV yok =0 | N135: CCTV z informacją przy wejściu = 3, Brak CCTV=0 | O135: CCTV con avviso all'ingresso = 3, No CCTV =0
A136: 133 | B136: 7.2 | C136: 133 | D136: 7.2 | F136: Staff surveillance (on-site or remote) • Yes = 5, No = 0 | H136: Staff surveillance (on-site or remote) • Yes = 5, No = 0 | I136: Toezicht door personeel (ter plaatse of op afstand) • Ja = 5, Nee = 0 | J136: Sous surveillance par du personnel (sur place ou à distance) • Oui = 5, Non = 0 | K136: Kontrollpersonal (vor Ort oder per Fernüberwachung) ja = 5; nein = 0 | L136: Presença de Staff (no local ou remoto) • Sim = 5, Não = 0 | M136: Personel gözetimi (yerinde veya uzaktan) • Evet = 5, Hayır = 0 | N136: Nadzór nad pracownikami (na miejscu lub zdalnie) - Tak = 5, Nie = 0 | O136: Sorveglianza del personale (in loco oa distanza) • Sì = 5, No = 0
A137: 134 | B137: 7.3.1 | C137: 134 | D137: 7.3.1 | F137: CCTV at: | H137: CCTV at: | I137: CCTV bij: | J137: Vidéosurveillance de: | K137: Videoüberwachung bei: | L137: CCTV em: | M137: CCTV'de: | N137: CCTV przy: | O137: CCTV a:
A138: 135 | B138: 7.3.2 | C138: 135 | D138: 7.3.2 | F138: =OFFSET(G138,0,$C$1) -> Car Entry: Yes =1, No =0 | H138: Car Entry: Yes =1, No =0 | I138: Inrit: Ja =1, Nee =0 | J138: Entrées véhicules: Oui =1, Non =0 | K138: Einfahrt: ja = 1; nein = 0 | L138: Entrada de Veículos: Sim =1, Não =0 | M138: Araç Girişinde: Evet =1, Hayır =0 | N138: Wjazd samochodu: Tak =1, Nie =0 | O138: Ingresso auto: Sì = 1, No = 0
A139: 136 | B139: 7.3.3 | C139: 136 | D139: 7.3.3 | F139: Car Exit: Yes =1, No =0 | H139: Car Exit: Yes =1, No =0 | I139: Uitrit: Ja =1, Nee =0 | J139: Sorties véhicules: Oui =1, Non =0 | K139: Ausfahrt: ja = 1; nein = 0 | L139: Saída de Veículos: Sim =1, Não =0 | M139: Araç Çıkışında: Evet =1, Hayır =0 | N139: Wyjazd z samochodu: Tak =1, Nie =0 | O139: Uscita auto: Sì =1, No =0
A140: 137 | B140: 7.3.4 | C140: 137 | D140: 7.3.4 | F140: Pay Machine: Yes =1, No =0 | H140: Pay Machine: Yes =1, No =0 | I140: Betaalautomaat: Ja =1, Nee =0 | J140: Bornes de paiement: Oui =1, Non =0 | K140: Kassenautomaten: ja = 1; nein = 0 | L140: Máquina Pagamento: Sim =1, Não =0 | M140: Ödeme Makinesinde: Evet =1, Hayır =0 | N140: Automat do płacenia: Tak =1, Nie =0 | O140: Macchina a pagamento: Sì =1, No =0
A141: 138 | B141: 7.3.5 | C141: 138 | D141: 7.3.5 | F141: Elevator Hall, every level: Yes =1, No =0 | H141: Elevator Hall, every level: Yes =1, No =0 | I141: Voetgangers/lifthal op elke verdieping: Ja =1, Nee =0 | J141: Hall d'ascenseurs,chaque étage: Oui=1, Non =0 | K141: Aufzugsräume, jedes Ebene: ja = 1; nein = 0 | L141: Hall do Elevador, todos os níveis: Sim =1, Não =0 | M141: her kattaki asansör bekleme alanında: Evet =1, Hayır =0 | N141: Hala windowa, każdy poziom: Tak =1, Nie =0 | O141: Ascensore Hall, ogni livello: Sì =1, No =0
A142: 139 | B142: 7.3.6 | C142: 139 | D142: 7.3.6 | F142: Stairwells, every level: Yes =1, No =0 | H142: Stairwells, every level: Yes =1, No =0 | I142: Trappenhuizen op elke verdieping: Ja =1, Nee =0 | J142: Cages d'escalier, chaque étage: Oui =1, Non =0 | K142: Treppenhäuser, jede Ebene: ja = 1; nein = 0 | L142: Caixa de escadas, todos os níveis: Sim =1, Não =0 | M142: Her kattaki merdiven boşluklarında: Evet =1, Hayır =0 | N142: Klatki schodowe, każdy poziom: Tak =1, Nie =0 | O142: Scale, ogni livello: Sì =1, No =0
A143: 140 | B143: 7.3.7 | C143: 140 | D143: 7.3.7 | F143: Pedestrian Entrances: Yes =1, No =0 | H143: Pedestrian Entrances: Yes =1, No =0 | I143: Voetgangerstoegang: Ja =1, Nee =0 | J143: Entrées piétons: Oui =1, Non =0 | K143: Fußgängerzugang: ja = 1; nein = 0 | L143: Entradas Pedonais: Sim =1, Não =0 | M143: Yaya Girişlerinde: Evet =1, Hayır =0 | N143: Wejścia dla pieszych: Tak =1, Nie =0 | O143: Ingressi pedonali: Sì =1, No =0
A144: 141 | B144: 7.3.8 | C144: 141 | D144: 7.3.8 | F144: Most of Parking Area (65%):Yes =3, No =0 | H144: Most of Parking Area (65%):Yes =3, No =0 | I144: Parkeervloeren 65%: Ja =3, Nee =0 | J144: La plupart des aires de stationnement (65%):Oui =3, Non =0 | K144: Überwiegender Parkbereich (65%): ja = 3; nein = 0 | L144: Maioria da Área de Estacionamento (65%):Sim =3, Não =0 | M144: Otopark Alanının Çoğunda (%65):Evet =3, Hayır =0 | N144: Większość powierzchni parkingowej (65%): Tak=3, Nie=0 | O144: La maggior parte dell'area di parcheggio (65%): Sì = 3, No = 0
A145: 142 | B145: 7.3.9 | C145: 142 | D145: 7.3.9 | F145: Ramps: Yes = 1, No = 0 | H145: Ramps: Yes = 1, No = 0 | I145: Hellingbanen: Ja = 1, Nee = 0 | J145: Rampes: Oui = 1, Non = 0 | K145: Rampen: ja = 1; nein = 0 | L145: Rampas: Sim = 1, Não = 0 | M145: Rampalarda: Evet = 1, Hayır = 0 | N145: Rampy: Tak = 1, Nie = 0 | O145: Rampe: Sì = 1, No = 0
A146: 143 | B146: 7.4.1 | C146: 143 | D146: 7.4.1 | F146: Staff contactable via: | H146: Staff contactable via: | I146: Assistentie oproepbaar via: | J146: Personnel joignable via:: | K146: Kontaktaufnahme zu Personal via: | L146: Staff contactável via: | M146: Personel ile iletişime geçilebilecek araçlar: | N146: Możliwość kontaktu z personelem poprzez: | O146: Personale contattabile tramite:
A147: 144 | B147: 7.4.2 | C147: 144 | D147: 7.4.2 | F147: Intercom at pay machine and/or controlled entries (24/7=3, All access hours if not 24/7= 2, Part time/not available = 0) | H147: Intercom at pay machine and/or controlled entries (24/7=3, All access hours if not 24/7= 2, Part time/not available = 0) | I147: Intercom bij betaalautomaat, slagbomen etc • 24 uur/7 dagen per week=3 • Openingsuren indien niet 24/7= 2 • Niet of onduidelijk = 0 | J147: Interphonie aux bornes de paiement et/ou aux entrées sous contrôle (24H/24 7j/7=3, Durant les heures d'ouverture si pas 24h/24= 2, Partiellement ou absent = 0) | K147: Sprechstellen an den Kassenautomaten und/oder gesicherten Zugängen (24/7 = 3; zu den Öffnungszeiten (wenn nicht 24/7) = 2; teilweise/gar nicht = 0) | L147: Intercomunicador na máquina de pagamento e/ou entradas controladas (24/7=3, Todas as horas de acesso, se não 24/7= 2, Part-time/não disponível = 0) | M147: Ödeme makinesinde ve/veya kontrollü girişlerde interkom (7/24=3, 7/24 değilse tüm erişim saatleri= 2, Yarı zamanlı/mevcut değil = 0) | N147: Interkom przy automacie płatniczym i/lub kontrolowanych wjazdach (24/7=3, Wszystkie godziny dostępu, jeśli nie 24/7= 2, W niepełnym wymiarze godzin/niedostępne = 0) | O147: Citofono alla cassa e/o ingressi controllati (24/7=3, Tutti gli orari di accesso se non 24/7= 2, Part time/non disponibile = 0)
A148: 145 | B148: 7.4.3 | C148: 145 | D148: 7.4.3 | F148: Emergency call system in parking area (24/7=3, All access hours if not 24/7= 2, Part time/not available = 0) | H148: Emergency call system in parking area (24/7=3, All access hours if not 24/7= 2, Part time/not available = 0) | I148: Noodoproep op de parkeervloeren • 24 uur/7 dagen per week=3 • Openingsuren indien niet 24/7= 2 • Niet of onduidelijk = 0 | J148: Système d'appel d'urgence dans les aires de stationnement (24h/24 7j/7 =3, Durant les heures d'ouverture si pas 24h/24 = 2, Partiellement ou absent = 0) | K148: Notrufsystem im Parkbereich (24/7 = 3; zu den Öffnungszeiten (wenn nicht 24/7) = 2; teilweise/gar nicht = 0) | L148: Sistema de chamada de emergência na área de estacionamento (24/7=3, Todas as horas de acesso, se não 24/7= 2, Part-time/não disponível = 0) | M148: Otopark acil çağrı sistemi (7/24=3, 7/24 değilse tüm erişim saatleri= 2, Yarı zamanlı/mevcut değil = 0) | N148: System wzywania pomocy na parkingu (24/7=3, Wszystkie godziny dostępu, jeśli nie 24/7= 2, W niepełnym wymiarze godzin/niedostępne = 0) | O148: Sistema di chiamata di emergenza in area parcheggio (24/7=3, Tutti gli orari di accesso se non 24/7= 2, Part time/non disponibile = 0)
A149: 146 | B149: 7.5 | C149: 146 | D149: 7.5 | F149: Recognizable staff present and patrolling car park (24/7 = 3, During access Hours = 2, Less than access Hours = 1, No = 0) | H149: Recognizable staff present and patrolling car park (24/7 = 3, During access Hours = 2, Less than access Hours = 1, No = 0) | I149: Herkenbaar toeziend personeel in de garage • 24 uur/7 dagen per week=3 • Openingsuren indien niet 24/7= 2 • Af en toe = 1 • Niet = 0 | J149: Personnel présent reconnaissable et patrouillant dans le parking (24h/24 7j/7 = 3, Durant les heurs d'ouverture = 2, artiellement durant les heures d'ouverture = 1, Pas de présence = 0) | K149: Ausgewiesenes Parkhauspersonal ist präsent und patroulliert durch die Parkeinrichtung (24/7 = 3; zu den Öffnungszeiten (wenn nicht 24/7) = 2; teilweise = 1; gar nicht = 0) | L149: Presença de pessoal do Staff fardado e patrulhamento do parque de estacionamento (24/7 = 3, Durante Horário de acesso = 2, Após Horário de acesso = 1, Não = 0) | M149: Otoparkta devriye gezen ve farkedilebilir personel mevcut (7/24 = 3, Erişim Saati sırasında = 2, Erişimden az Saat = 1, Hayır = 0) | N149: Rozpoznawalny personel obecny na parkingu i patrolujący (24/7 = 3, Wszystkie godziny dostęu, jeśli nie 24/7 = 2, W niepełnym wymiarze godzin= 1, No = 0) | O149: Personale riconoscibile presente e di pattuglia al parcheggio (24/7 = 3, Durante l'accesso Ore = 2, Meno dell'accesso Ore = 1, No = 0)
A150: 147 | B150: 7.6 | C150: 147 | D150: 7.6 | F150: Lockable vehicle exit/entry: (Closed gate/rolling shutter after access hours = 2, Secured: fast opening gate during day = 4, Secured: slow opening gate during day = 2, No provisions = 0) | H150: Lockable vehicle exit/entry: (Closed gate/rolling shutter after access hours = 2, Secured: fast opening gate during day = 4, Secured: slow opening gate during day = 2, No provisions = 0) | I150: Afsluitbare in/uitrit • Hek of rolpoort na openingsuren= 2 • Snelsluitend hek overdag= 4 • Langzaam sluitend hek of rolpoort overdag= 2 • Geen afsluiting= 0 | J150: Fermeture des entrées/sorties des véhicules: (Portail ou volets fermés après heures d'ouverture = 2, Mécanisme de fermeture sécurisé rapide durant les heures d'ouverture = 4, Mécanisme de fermeture sécurisé lent durant les heures d'ouverture = 2, Pas de mécanisme = 0) | K150: Verschließbare Ein-/Ausfahrten: (geschlossene Tore/Rollgitter außerhalb der Öffnungszeiten = 2; Schnelllauftore während der Öffnungszeiten = 4; langsam öffnende/schließende Tore während der Öffnungszeiten = 2; keine Sicherung = 0) | L150: Saída/entrada de veículos bloqueável: (Portão fechado/portão de enrolar depois de horas de acesso = 2, seguro: rápida abertura do portão durante o dia = 4, seguro: portão de abertura lenta durante o dia = 2, Não previsto = 0) | M150: Kilitlenebilir araç girişi ve çıkışı: (Erişim saatlerinden sonra kapalı kapı/sarmal kepenk = 2, Güvenli: gün içinde hızlı açılan kapı = 4, Güvenli: gündüz yavaş açılan kapı = 2, Hüküm yok = 0) | N150: Zamykany wyjazd/wjazd dla pojazdów: (Zamknięta brama/roleta po godzinach dostępu = 2, Zabezpieczona: szybko otwierana brama w ciągu dnia = 4, Zabezpieczona: wolno otwierana brama w ciągu dnia = 2, Brak zamknięcia = 0) | O150: Uscita/ingresso del veicolo con serratura: (Cancello chiuso/tapparella dopo ore di accesso = 2, Sicuro: cancello ad apertura rapida di giorno = 4, Sicuro: cancello ad apertura lenta di giorno = 2, Nessuna disposizione = 0)
A151: 148 | B151: 7.7 | C151: 148 | D151: 7.7 | F151: Lockable pedestrian exit/entry (after opening hours). (Door/gate/rolling shutter <= 15cm maximum aperture = 2, over 15 cm = 0, no provisions = 0, Irrelevant (24 hours opening) = 4) | H151: Lockable pedestrian exit/entry (after opening hours). (Door/gate/rolling shutter <= 15cm maximum aperture = 2, over 15 cm = 0, no provisions = 0, Irrelevant (24 hours opening) = 4) | I151: Afsluitbare voetgangerstoegang buiten openingtijd • Rolhek of deur met openingen < 15cm = 2 • Rolhek of deur met grotere openingen= 0 • Geen afsluiting= 0 • Irrelevant (24 uur opening) = 4 | J151: Fermeture des entrés/sorties Piétons (après les heures d'ouverture). (Porte/portail/volet avec <= 15cm d'espace maximum entre les barreaux = 2, au-delà de 15 cm = 0, Aucune disposition = 0, Pas d'application (ouverture 24h/24) = 4) | K151: Verschließbare Fußgängerzu-/ausgänge (außerhalb der Öffnungszeiten): (Türen, Tore oder Rollgitter mit Öffnungen <= 15cm = 2; > 15cm = 0; keine Sicherung = 0; irrelevant (24 Std.-Betrieb) = 4) | L151: Saída/entrada de caminhos pedonais (depois do horário de funcionamento). (Porta/portão/portão de enrolar <= 15cm abertura máxima = 2, mais de 15 cm = 0, não previsto = 0, Irrelevante (24 hours de abertura) = 2) | M151: Kilitlenebilir yaya çıkışı/girişi (çalışma saatlerinden sonra). (Kapı/sarmal kepenk <= 15cm maksimum açıklık = 2, 15 cm üzerinde = 0, hüküm yok = 0, İlgisiz (24 saat açma) = 4) | N151: Zamykane wyjście/wejście dla pieszych (po godzinach otwarcia). (Drzwi/bramy/rolety <= 15cm = 2, powyżej 15 cm = 0, brak postanowień = 0, Nieistotne (otwarcie 24 godziny) = 4) | O151: Uscita/ingresso pedonale chiudibile a chiave (dopo l'orario di apertura). (Porta/cancello/tapparella <= 15 cm apertura massima = 2, oltre 15 cm = 0, nessuna disposizione = 0, Irrilevante (24 ore di apertura) = 4)
A152: 149 | B152: 7.8 | C152: 149 | D152: 7.8 | F152: Grilles on external openings & security grilles (<= 15 cm = 2, > 15 cm or no protection= 0, Irrelevant (no external openings) = 2) | H152: Grilles on external openings & security grilles (<= 15 cm = 2, > 15 cm or no protection= 0, Irrelevant (no external openings) = 2) | I152: Roosters in externe openingen & afsluithekken • <= 15 cm = 2, > 15 cm of geen rooster= 0, irrelevant (geen externe openingen)=2 | J152: Grilles vers ouvertures extérieures & grilles de sécurité (<= 15 cm = 2, > 15 cm ou pas de protection= 0, Pas d'application (pas d'ouvertures extérieures) = 2) | K152: Vergitterung von Öffnungen nach außen und Sicherheitsgitter (<= 15cm = 2; > 15cm oder keine Vorkehrung = 0; irrelevant (keine Öffnungen nach außen) = 2) | L152: Grelhas em aberturas externas e grades de segurança (<= 15 cm = 2, > 15 cm ou sem proteção= 0, Irrelevante (sem aberturas externas) = 2) | M152: Dış açıklıklardaki ızgaralar ve güvenlik ızgaralarında (<= 15 cm = 2, > 15 cm veya korumasız= 0, İlgisiz (dış açıklık yok) = 2) | N152: Kraty na otworach zewnętrznych & kraty zabezpieczające (<= 15 cm = 2, > 15 cm lub brak zabezpieczenia= 0, Nieistotne (brak otworów zewnętrznych) = 2) | O152: Griglie su aperture esterne e grate di sicurezza (<= 15 cm = 2, > 15 cm o nessuna protezione= 0, Irrilevante (nessuna apertura esterna) = 2)
A153: 150 | B153: =IF(ISBLANK(VLOOKUP(A153,$C$4:$T$9877,1+$A$1)),#REF!,VLOOKUP(A153,$C$4:$T$9877,1+$A$1)) -> 8 | C153: 150 | D153: 8 | F153: Wayfinding Inside and Outside | H153: Wayfinding Inside and Outside | I153: Orientatie binnen en buiten de garage | J153: Trouver son chemin dans et à l'extérieur du parking | K153: Wegweisung innerhalb/außerhalb der Parkeinrichtung | L153: Sinalética (Interior e Exterior) | M153: İçeride ve Dışarıda Yön Bulma | N153: Oznakowanie (wewnętrzne i zewnętrzne) | O153: Orientamento dentro e fuori
A154: 151 | C154: 151 | D154: 8.1 | F154: Identification of Vacant Parking Spaces | H154: Identification of Vacant Parking Spaces | I154: Weergave vrije plaatsen binnen de garage | J154: Identification des places libres | K154: Anzeige von freien Stellplätzen | L154: Identificação de lugares de estacionamento vagos | M154: Boş Park Yerlerinin Belirlenmesi | N154: Identyfikacja wolnych miejsc parkingowych | O154: Identificazione dei posti auto liberi
A155: 152 | C155: 152 | D155: 8.1.1 | F155: Parking floor level (yes/good = 2, no/bad = 0) | H155: Parking floor level (yes/good = 2, no/bad = 0) | I155: Op vloer niveau • Ja/goed = 2, nee/slecht = 0 | J155: Par étage (oui/bon= 2, non/mauvais = 0) | K155: etagenweise (ja/gut = 2; nein/schlecht = 0) | L155: Nível do piso de estacionamento (sim/bom = 2, não/mau = 0) | M155: Park yeri katı (evet/iyi = 2, hayır/kötü = 0) | N155: Poziom podłogi parkingu (tak/dobrze = 2, nie/źle = 0) | O155: Piano parcheggio (sì/buono = 2, no/cattivo = 0)
A156: 153 | C156: 153 | D156: 8.1.2 | F156: Parking row (yes/good = 1, no/bad = 0) | H156: Parking row (yes/good = 1, no/bad = 0) | I156: Per parkeer rij • Ja/goed = 1, nee/slecht = 0 | J156: Par rangée (oui/bon= 2, non/mauvais = 0) | K156: gassenweise (ja/gut = 2; nein/schlecht = 0) | L156: Por fila de estacionamento (sim/bom = 2 = 1, não/mau = 0) | M156: Park sırası (evet/iyi = 1, hayır/kötü = 0) | N156: Rzędy postojowe (tak/dobrze = 1, nie/źle = 0) | O156: Fila di parcheggi (sì/buono = 1, no/cattivo = 0)
A157: 154 | C157: 154 | D157: 8.1.3 | F157: Individual stall indication (yes/good = 2, no/bad = 0) | H157: Individual stall indication (yes/good = 2, no/bad = 0) | I157: Per plaats • Ja/goed = 2, nee/slecht = 0 | J157: Par place individuelle (oui/bon= 2, non/mauvais = 0) | K157: Einzelstellplatzanzeige (ja/gut = 2; nein/schlecht = 0) | L157: Lugar a Lugar (sim/bom = 2, não/mau = 0) | M157: Bireysel durma göstergesi (evet/iyi = 2, hayır/kötü = 0) | N157: Oznaczenie poszczególnych stanowisk (tak/dobrze = 2, nie/źle = 0) | O157: Indicazione di stallo individuale (sì/buono = 2, no/cattivo = 0)
A158: 155 | C158: 155 | D158: 8.2 | F158: Way Finding (vehicles) | H158: Way Finding (vehicles) | I158: Orientatie vanuit de auto | J158: Trouver son chemin (au volant de son véhicule) | K158: Verkehrsleitsystem (Fahrzeuge) | L158: Sinalética para veículos | M158: Araçlar İçin Yol Bulma | N158: Wyszukiwanie drogi (pojazdy) | O158: Orientamento (veicoli)
A159: 156 | C159: 156 | D159: 8.2.1 | F159: Are floors clearly and separately identified for drivers? (Good =3, Adequate =2, Poor =1, No =0) | H159: Are floors clearly and separately identified for drivers? (Good =3, Adequate =2, Poor =1, No =0) | I159: Is elke parkeerlaag duidelijk herkenbaar? • goed =3, acceptabel =2, matig =1, nee =0 | J159: Les étages sont-ils clairement et séparément identifiables pour le conducteur? (Bon =3, Adequat =2, Faible =1, Non =0) | K159: Sind die Parkebenen für den Fahrer klar verständlich gekennzeichnet? (gut = 3; angemessen = 2; schlecht = 1; nein = 0) | L159: Os pisos estão identificados de forma clara para os condutores? (Bom =3, Adequado =2, Pobre =1, Não =0) | M159: Sürücüler için katlar açıkça ve ayrı ayrı tanımlanmış mı? (İyi =3, Yeterli =2, Zayıf =1, Hayır =0) | N159: Czy piętra są wyraźnie i oddzielnie oznaczone dla kierowców? (Dobry =3, Dostateczny =2, Słaby =1, Brak =0) | O159: I piani sono identificati in modo chiaro e separato per i conducenti? (Buono =3, Adeguato =2, Scarso =1, No =0)
A160: 157 | C160: 157 | D160: 8.2.2 | F160: Are sub-areas of floors clearly identified for drivers? (Good =3, Adequate =2, Poor =1, No =0) | H160: Are sub-areas of floors clearly identified for drivers? (Good =3, Adequate =2, Poor =1, No =0) | I160: Zijn delen per parkeerlaag duidelijk gemarkeerd en herkenbaar? • goed =3, acceptabel =2, matig =1, nee =0 | J160: Les sous-sections par étages sont-elles clairement identifiables pour le conducteur? (Bon =3, Adequat =2, Faible =1, Non =0) | K160: Gibt es auf (großen) Parkebenen durch Markierungen abgegrenzte Parkbereiche zur besseren Orientierung? Sind diese für den Fahrer klar verständlich? (gut = 3; angemessen = 2; schlecht = 1; nein = 0) | L160: As sub-áreas dos pisos estão identificadas de forma clara para os condutores? (Bom =3, Adequado =2, Pobre =1, Não =0) | M160: Sürücüler için katların içerisindeki alanlar açıkça tanımlanmış mı? (İyi =3, Yeterli =2, Zayıf =1, Hayır =0) | N160: Czy podobszary piętra są jasno określone dla kierowców? (Dobry =3, Odpowiedni =2, Słaby =1, Nie =0) | O160: Le aree dei piani sotterranei sono chiaramente identificate per i conducenti? (Buono =3, Adeguato =2, Scarso =1, No =0)
A161: 158 | B161: =IF(ISBLANK(VLOOKUP(A161,$C$4:$T$9877,1+$A$1)),F162,VLOOKUP(A161,$C$4:$T$9877,1+$A$1)) -> 8.3 | C161: 158 | D161: 8.3 | F161: Are fire escapes and escape routes clearly marked • Clear from all locations = 3 • most locations= 2 • some locations=1 • No marking of escape routes=0) | H161: Are fire escapes and escape routes clearly marked • Clear from all locations = 3 • most locations= 2 • some locations=1 • No marking of escape routes=0) | I161: Zijn nooduitgangen en vluchtroutes duidelijk gemarkeerd? • Zichtbaar vanaf elke plek = 3 • Zichtbaar vanaf de meeste plekken = 2 • Zichtbaar vanaf sommige plekken =1 • Geen aanduiding van vluchtroutes = 0 | J161: Les sorties de secours et les chemins d'évacuation sont-ils clairement identifiables? • Clairement depuis tous les endroits = 3 • Depuis la plupart des endroits = 2 • Depuis certains endroits =1 • Pas de signalisation des chemins d'évacuation =0) | K161: Sind die Notausgänge und Fluchtwege klar gekennzeichnet und sichtbar: • von allen Punkten = 3 • an dem meisten Punkten = 2 • an einigen Punkten =1 • keine Anzeige =0) | L161: As saídas de emergência e os caminhos de fuga estão claramente marcados • A partir de todos os locais = 3 • maioria dos locais= 2 • alguns locais=1 • Sem identificação dos caminhos de fuga=0) | M161: Yangın merdivenleri ve kaçış yolları açıkça işaretlenmiş mi? • Tüm konumlardan açıkça görülür = 3 • çoğu konumdan açıkça görülür= 2 • bazı konumlardan açıkça görülür=1 • Kaçış yolları işareti yok=0) | N161: Czy drogi ewakuacyjne i ucieczki są wyraźnie oznaczone? - Wyraźne ze wszystkich miejsc = 3 - większość miejsc= 2 - niektóre miejsca=1 - Brak oznakowania dróg ewakuacyjnych=0 | O161: Le scale antincendio e le vie di fuga sono chiaramente segnalate • Cancella da tutte le posizioni = 3 • la maggior parte delle località= 2 • alcune località=1 • Nessuna segnaletica delle vie di fuga=0)
A162: 159 | B162: 8.4 | C162: 159 | D162: 8.4 | F162: Are floor levels clearly marked? (good =3, adequate=2, poor=1, none =0. Single level car parks = 3) | H162: Are floor levels clearly marked? (good =3, adequate=2, poor=1, none =0. Single level car parks = 3) | I162: Zijn verdiepingen duidelijk aangegeven? • goed =3, acceptabel=2 • matig=1, geen =0 • Garage met één verdieping = 3 | J162: Les étages sont-ils clairement identifiables? (Bon =3, adequat=2, faible=1, non =0, parking à un seul niveau = 3) | K162: Sind die Ebenen deutlich gekennzeichnet? (gut = 3; angemessen = 2; schlecht = 1; nein = 0; nur eine Ebene: = 3) | L162: Os nívies dos pisos estão marcados de forma clara? (bom =3, adequado=2, pobre=1, nenhum =0. Parque com um único piso = 3) | M162: Zemin açıkça işaretlenmiş mi? (iyi =3, yeterli=2, zayıf=1, yok =0. Tek katlı otoparklar = 3) | N162: Czy poziomy posadzek są wyraźnie oznaczone? (dobre =3, wystarczające=2, słabe=1, brak =0. Parkingi jednopoziomowe = 3) | O162: I livelli dei pavimenti sono chiaramente indicati? (buono =3, adeguato=2, scarso=1, nessuno =0. Parcheggi a un piano = 3)
A163: 160 | B163: 8.5 | C163: 160 | D163: 8.5 | F163: Is there additional signing or prompts to orient the pedestrian on the parking deck (good =2, some =1, none = 0) | H163: Is there additional signing or prompts to orient the pedestrian on the parking deck (good =2, some =1, none = 0) | I163: Is er extra bebording of markering om voetgangers op de parkeervloer te geleiden? • goed =2, hier en daar =1, geen = 0 | J163: Y a-t-il une identification ou un marquage au sol spécifique pour aider les piétons à trouver leur chemin? (Bon =2, Par-çi, par-là =1, Absent = 0) | K163: Gibt es zusätzliche Wegweiser für Fußgänger (gut = 2; teilweise = 1; keine = 0) | L163: Existe sinalização adicional ou instruções para orientar os peões no piso de estacionamento (bom =2, alguns =1, nenhum = 0) | M163: Park zemininde yayayı yönlendirmek için ek işaretler veya anımsatıcı var mı? (iyi =2, biraz =1, yok = 0) | N163: Czy jest dodatkowe oznakowanie lub podpowiedzi dla pieszego na parkingu? (dobre =2, niektóre =1, brak = 0) | O163: C'è un'ulteriore segnaletica o indicazioni per orientare il pedone sul parcheggio (buono =2, alcuni =1, nessuno = 0)
A164: 161 | B164: 8.6 | C164: 161 | D164: 8.6 | F164: Are parking spaces individually numbered (Numbered including floor identification =2, Just numbers =1, none =0) | H164: Are parking spaces individually numbered (Numbered including floor identification =2, Just numbers =1, none =0) | I164: Zijn parkeervakken voorzien van identificatie? • Nummering incl vloeraanduiding=2 • Alleen nummering=1 • Geen=0 | J164: Les aires de stationnement sont-elles numérotées individuellement (Numérotation inclus la référence de l'étage=2, Juste une numérotation =1, Absent =0) | K164: Sind die Stellplätze einzeln nummeriert (nummeriert einschließlich Ebene = 2; nummeriert = 1; nein = 0) | L164: Os lugares de estacionamento estão individualmente numerados (Numerados, incluindo identificação no chão =2, Apenas número =1, nada =0) | M164: Park yerleri ayrı ayrı numaralandırılmış mı? (Kat tanımlaması dahil numaralandırılmış =2, Sadece sayılar =1, yok =0) | N164: Czy miejsca parkingowe są indywidualnie numerowane? (Numerowane z uwzględnieniem identyfikacji piętra =2, Tylko numery =1, brak =0) | O164: I parcheggi sono numerati individualmente (Numerato comprensivo di identificazione del piano =2, solo numeri =1, nessuno =0)
A165: 162 | B165: 8.7 | C165: 162 | D165: 8.7 | F165: Use of colours for way finding (Yes= 1, No= 0) | H165: Use of colours for way finding (Yes= 1, No= 0) | I165: Gebruik van kleuren voor oriëntatie • Ja= 1, Nee= 0 | J165: Utilisation de couleurs pour trouver son chemin (Oui= 1, Non= 0) | K165: Verwendung von Farben zur besseren Orientierung (ja =1; nein = 0) | L165: Utilização de cores para localização (Sim= 1, Não= 0) | M165: Yolu bulmak için renklerin kullanımı (Evet= 1, Hayır= 0) | N165: Wykorzystanie kolorów w celu znalezienia drogi (Tak= 1, Nie= 0) | O165: Uso dei colori per trovare la strada (Sì= 1, No= 0)
A166: 163 | B166: 8.8 | C166: 163 | D166: 8.8 | F166: Guidance sign posting for cars on roads to car park | H166: Guidance sign posting for cars on roads to car park | I166: Bewegwijzering naar de garage voor auto’s op weg naar de garage | J166: Signalisation en rue à l'attention des conducteurs pour trouver le chemin vers le parking | K166: (Städtisches) Parkleitsystem | L166: Há sinalização a indicar a entrada do parque de estacionamento nas estradas circundantes ao mesmo? | M166: Otoparka giden yollarda arabalar için yönlendirme levhası | N166: Znaki orientacyjne dla samochodów na drogach prowadzących do parkingu | O166: Segnaletica di orientamento per le auto sulle strade per il parcheggio
A167: 164 | B167: 8.8.1 | C167: 164 | D167: 8.8.1 | F167: Static sign system only (Yes = 1, No = 0) | H167: Static sign system only (Yes = 1, No = 0) | I167: Alleen statische borden • Ja = 1, Nee = 0 | J167: Uniquement signalisation statique (Oui = 1, Non = 0) | K167: statisches Leitsystem (ja = 1; nein = 0) | L167: Somente sinais estáticos (Sim = 1, Não = 0) | M167: Yalnızca statik işaret sistemi (Evet = 1, Hayır = 0) | N167: Tylko system znaków statycznych (Tak = 1, Nie = 0) | O167: Solo sistema di segnaletica statica (Sì = 1, No = 0)
A168: 165 | B168: =IF(ISBLANK(VLOOKUP(A168,$C$4:$T$9877,1+$A$1)),#REF!,VLOOKUP(A168,$C$4:$T$9877,1+$A$1)) -> 8.8.2 | C168: 165 | D168: 8.8.2 | F168: Dynamic sign system additionally (Available spaces = 2, Full/Free = 1, No = 0) | H168: Dynamic sign system additionally (Available spaces = 2, Full/Free = 1, No = 0) | I168: Dynamische aanduiding vol/vrij of plaatsen, extra: • aantal beschikbare plaatsen = 2, vol/vrij = 1, Nee = 0 | J168: Signalisation dynamique supplémentaire (Nombre de places disponibles = 2, Libre/Complet = 1, Absent = 0) | K168: zusätzliches dynamisches Leitsystem (freie Plätze = 2; Frei / Besetzt = 1; nein = 0) | L168: Adicionalmente sinalização dinâmica (Lugares Disponíveis = 2, Livre/Completo = 1, Não = 0) | M168: Ek olarak dinamik işaret sistemi (Mevcut alanlar = 2, Dolu/Boş = 1, Yok = 0) | N168: System dynamicznego oznakowania dodatkowo (Dostępne miejsca = 2, Pełne/wolne = 1, Nie = 0) | O168: Sistema di segnaletica dinamica aggiuntivo (Spazi disponibili = 2, Pieno/Libero = 1, No = 0)
C169: 166 | D169: 8.8.3 | F169: Guidance to Car Park in Navigation Apps (yes = 2, no= 0) | H169: Guidance to Car Park in Navigation Apps (yes = 2, no= 0) | I169: Geleiding naar de garage in navigatie-apps • Ja = 2, Nee = 0 | J169: Guidance to Car Park in Navigation Apps (yes = 2, no= 0) | K169: Standort in Navigationssysteme integriert? (ja = 2; nein = 0) | L169: Localização do Estacionamento nas aplicações de GPS | M169: Navigasyon Uygulamalarında Otopark Rehberi (evet = 2, hayır= 0) | N169: Wskazówki dotyczące parkingu w aplikacjach nawigacyjnych (tak = 2, nie = 0) | O169: Guida al parcheggio nelle app di navigazione (sì = 2, no= 0)
A170: 167 | B170: =IF(ISBLANK(VLOOKUP(A170,$C$4:$T$9877,1+$A$1)),F171,VLOOKUP(A170,$C$4:$T$9877,1+$A$1)) -> 8.9 | C170: 167 | D170: 8.9 | F170: Illuminated signage at car park entrance | H170: Illuminated signage at car park entrance | I170: Verlichte aanduiding bij de inrit: | J170: Signalisation lumineuse à l'entrée du parking | K170: Leuchtschilder an der Einfahrt | L170: Sinalização iluminada na entrada do parque de estacionamento | M170: Otopark girişinde ışıklı tabela | N170: Podświetlane oznakowanie przy wjeździe na parking | O170: Segnaletica luminosa all'ingresso del parcheggio
A171: 168 | B171: 8.9.1 | C171: 168 | D171: 8.9.1 | F171: Signal green arrow, red cross for direction (Yes = 1, No = 0) | H171: Signal green arrow, red cross for direction (Yes = 1, No = 0) | I171: Signaal kruis/pijl aanduiding rijrichting • Ja = 1, Nee = 0 | J171: Flèche verte - Croix rouge pour indiquer la direction (Oui = 1, Non = 0) | K171: grüne Pfeile / rote Kreuze (ja = 1; nein = 0) | L171: Sinal direcional (seta verde, cruz vermelha) (Sim = 1, Não = 0) | M171: Sinyal yeşil ok, yön için kırmızı çarpı (Evet = 1, Hayır = 0) | N171: Sygnał zielonej strzałki, czerwony krzyż dla kierunku jazdy (tak = 1, nie = 0) | O171: Segnale freccia verde, croce rossa per la direzione (Sì = 1, No = 0)
A172: 169 | B172: 8.9.2 | C172: 169 | D172: 8.9.2 | F172: Dynamic information additionally (Available spaces = 2, Full/Free = 1, No = 0) | H172: Dynamic information additionally (Available spaces = 2, Full/Free = 1, No = 0) | I172: Aanduiding aantal beschikbare plaatsen = 2, vol/vrij = 1, Nee = 0 | J172: Signalisation dynamique supplémentaire (Nombre de places disponibles = 2, Libre/Complet = 1, Absent = 0) | K172: zusätzliches dynamisches Leitsystem (freie Plätze = 2; Frei / Besetzt = 1; nein = 0) | L172: Informação Dinâmica Adicional (Espaços Disponíveis = 2, Livre/Completo = 1, Não = 0) | M172: Ek olarak dinamik bilgi (Mevcut alanlar = 2, Dolu/Boş = 1, Hayır = 0) | N172: Dodatkowo informacja dynamiczna (Dostępne miejsca = 2, Pełne/wolne = 1, Nie = 0) | O172: Informazioni dinamiche aggiuntive (Spazi disponibili = 2, Pieno/Libero = 1, No = 0)
A173: 170 | B173: 8.9.3 | C173: 170 | D173: 8.9.3 | F173: Signage at pedestrian entrance (Yes = 1, No = 0) | H173: Signage at pedestrian entrance (Yes = 1, No = 0) | I173: Aanduiding voetgangerstoegang • Ja = 1, Nee = 0 | J173: Signalisation des entrées piétons (Oui = 1, Non = 0) | K173: Beschilderung am Fußgängerzugang (ja = 1; nein = 0) | L173: Sinalização na entrada pedonal (Sim = 1, Não = 0) | M173: Yaya girişinde tabela (Evet = 1, Hayır = 0) | N173: Oznakowanie przy wejściu dla pieszych (Tak = 1, Nie = 0) | O173: Segnaletica all'ingresso pedonale (Sì = 1, No = 0)
A174: 171 | B174: 8.10 | C174: 171 | D174: 8.10 | F174: City plan at a central location in car park: (On Every pedestrian exit = 2, One location = 1, No = 0) | H174: City plan at a central location in car park: (On Every pedestrian exit = 2, One location = 1, No = 0) | I174: Stadsplattegrond op centrale plek in de garage: • Bij elke voetgangersuitgang=2, op één plek = 1, nee = 0 | J174: Plan de ville à un endroit de passage: (A chaque sortie piétons = 2, A un endroit = 1, Absent = 0) | K174: Stadtplan an zentraler Stelle in der Parkeinrichtung: (an jedem Ausgang = 2; an einer Stelle = 1; keiner = 0) | L174: Mapa da cidade: (Em todos os acessos pedonais = 2, num local = 1; Não = 0) | M174: Otoparkta merkezi bir yerde şehir planı: (Her yaya çıkışında = 2, Bir konum = 1, Hayır = 0) | N174: Plan miasta w centralnym miejscu na parkingu: (Przy każdym wyjściu dla pieszych = 2, Jedna lokalizacja = 1, Brak = 0) | O174: Piano della città in posizione centrale nel parcheggio: (Su ogni uscita pedonale = 2, Una posizione = 1, No = 0)
A175: 172 | B175: 8.11 | C175: 172 | D175: 8.11 | F175: Guidance: | H175: Guidance: | I175: Bewegwijzering | J175: Guidage: | K175: Informationen zu: | L175: Orientação: | M175: Yönlendirme: | N175: Wskazówki: | O175: Guida:
A176: 173 | B176: 8.11.1 | C176: 173 | D176: 8.11.1 | F176: to key attractions around the car park at pedestrian exit (Yes=1, No=0): | H176: to key attractions around the car park at pedestrian exit (Yes=1, No=0): | I176: Bewegwijzering bij voetgangersuitgang naar belangrijke bestemmingen • Ja = 1, Nee = 0 | J176: A la sortie piétons vers les principaux points d'attraction autour du parking (Oui=1, Non=0) | K176: zu wichtigen Sehenswürdigkeiten in der Nähe der Parkeinrichtung an den Ausgängen (ja = 1; nein = 0) | L176: Nas saídas de peões em torno do estacionamento, para os principais pontos de atração? (Sim=1, Não=0): | M176: yaya çıkışında otoparkın çevresindeki ilgi çekici noktalarda (Evet=1, Hayır=0): | N176: do kluczowych atrakcji wokół parkingu przy wyjściach dla pieszych (Tak=1, Nie=0): | O176: alle principali attrazioni intorno al parcheggio all'uscita pedonale (Sì=1, No=0):
A177: =C177 -> 174 | B177: 8.11.2 | C177: 174 | D177: 8.11.2 | F177: around the car park to pedestrian entrances (Yes=1, No=0): | H177: around the car park to pedestrian entrances (Yes=1, No=0): | I177: Bewegwijzering naar voetgangerstoegang • Ja = 1, Nee = 0 | J177: Autour du parking vers les entrées piétons (Oui=1, Non=0) | K177: zu den Fußgängerzugängen rund um die Parkeinrichtung (ja = 1; nein = 0) | L177: Ao redor do parque de estacionamento para as entradas de peões? (Sim=1, Não=0): | M177: otopark çevresinde yaya girişlerine yakın (Evet=1, Hayır=0): | N177: wokół parkingu do wejść dla pieszych (Yes=1, No=0): | O177: intorno al parcheggio agli ingressi pedonali (Sì=1, No=0):
A178: =C178 -> 175 | B178: 9 | C178: 175 | D178: 9 | F178: Comfort and Miscellaneous | H178: Comfort and Miscellaneous | I178: Comfort en diversen | J178: Confort et Divers | K178: Komfort und Verschiedenes | L178: Conforto / Diversos | M178: Konfor ve Diğer | N178: Komfort i Różne | O178: Comodità e Varie
A179: 176 | B179: 9.1.0 | C179: 176 | D179: 9.1.0 | F179: Notice-board at pedestrian entrance/exit showing: | H179: Notice-board at pedestrian entrance/exit showing: | I179: Informatiebord bij voetgangerstoegang met: | J179: Panneau d'affichage aux entrées/sorties piétons indiquant: | K179: Hinweisbeschilderung an den Fußgängerzu-/ausgängen bzgl.: | L179: Placas informativas nas entradas/saídas pedonais: | M179: Yaya giriş/çıkışlarında aşağıdakileri gösteren duyuru panosu: | N179: Tablica informacyjna przy wejściu/wyjściu dla pieszych pokazująca: | O179: Bacheca ingresso/uscita pedonale riportante:
A180: 177 | B180: 9.1.1 | C180: 177 | D180: 9.1.1 | F180: Access hours normal/special (yes = 1, no = 0) | H180: Access hours normal/special (yes = 1, no = 0) | I180: Openingstijden normale en bijzondere dagen • Ja = 1, Nee = 0 | J180: Heures d'ouverture normale/spécifique (oui = 1, non = 0) | K180: normale/besondere Öffnungszeitene (ja = 1; nein = 0) | L180: Horário de funcionamento normal/especial (sim = 1, não = 0) | M180: Çalışma saatleri normal/özel (evet=1 hayır=0) | N180: Godziny dostępu normalne/specjalne (tak = 1, nie = 0) | O180: Orario di accesso normale/speciale (si = 1, no = 0)
A181: 178 | B181: 9.1.2 | C181: 178 | D181: 9.1.2 | F181: Readable & understandable tariff board (yes = 1, no = 0) | H181: Readable & understandable tariff board (yes = 1, no = 0) | I181: Duidelijke tarieftabel • Ja = 1, Nee = 0 | J181: Affichage du tarif lisible et compréhensible (oui = 1, non = 0) | K181: Lesbare und verständliche Tarifauszeichnung (ja = 1; nein = 0) | L181: Tarifário legível e compreensível (sim = 1, não = 0) | M181: Okunabilir ve anlaşılır tarife panosu (evet = 1, hayır = 0) | N181: Czytelna i zrozumiała tablica z taryfami (tak = 1, nie = 0) | O181: Scheda tariffaria leggibile e comprensibile (sì = 1, no = 0)
A182: 179 | B182: 9.1.3 | C182: 179 | D182: 9.1.3 | F182: Operators terms and conditions (yes = 1, no = 0) | H182: Operators terms and conditions (yes = 1, no = 0) | I182: Algemene Voorwaarden Exploitant • Ja = 1, Nee = 0 | J182: Règlement interne et conditions (oui = 1, non = 0) | K182: Geschäftsbedingungen des Betreibers (ja = 1; nein = 0) | L182: Termos e Condições do Operador (sim = 1, não = 0) | M182: İşletmeci hüküm ve koşulları (evet = 1, hayır = 0) | N182: Warunki działania operatorów/regulamin (tak = 1, nie = 0) | O182: Termini e condizioni degli operatori (sì = 1, no = 0)
A183: 180 | B183: 9.2.0 | C183: 180 | D183: 9.2.0 | F183: Payment options (pay at exit/pay at pay station): | H183: Payment options (pay at exit/pay at pay station): | I183: Betaalmogelijkheden (automaat en uitrit): | J183: Moyens de paiement (paiement à la borne d'encaissement): | K183: Bezahlmöglichkeiten (Bezahlung an der Ausfahrt / am Kassenautomaten): | L183: Opções de pagamento (pagamento na saída/pagamento na caixa de pagamento): | M183: Ödeme seçenekleri (çıkışta ödeme/otomatik ödeme istasyonunda ödeme): | N183: Opcje płatności (zapłata przy wyjściu/płatność na stacji benzynowej): | O183: Opzioni di pagamento (paga all'uscita/paga alla cassa):
A184: 181 | B184: =IF(ISBLANK(VLOOKUP(A184,$C$4:$T$9877,1+$A$1)),F187,VLOOKUP(A184,$C$4:$T$9877,1+$A$1)) -> 9.2.1 | C184: 181 | D184: 9.2.1 | F184: Accepts cash? (yes =1, no =0) | H184: Accepts cash? (yes =1, no =0) | I184: Cash: Ja =1, nee =0 | J184: Cash accepté? (oui =1, non =0) | K184: Bargeld (ja = 1; nein = 0) | L184: Aceita notas/moedas? (sim =1, não =0) | M184: Nakit kabul ediyor mu? (evet =1, hayır =0) | N184: Akceptuje gotówkę? (tak =1, nie =0) | O184: Accetta contanti? (sì =1, no =0)
C185: 182 | D185: 9.2.2 | F185: Accepts National Bank Cards? (yes=1, no=0) | H185: Accepts National Bank Cards? (yes=1, no=0) | I185: PIN-pas, Maestro: Ja =1, nee =0 | J185: Carte de banque nationale acceptée? (oui=1, non=0) | K185: Nationale Bankkarten (ja = 1; nein = 0) | L185: Aceita cartões bancários? (sim =1, não =0) | M185: Ulusal Banka Kartlarını Kabul Eder mi? (evet=1, hayır=0) | N185: Akceptuje karty Banku Narodowego? (tak=1, nie=0) | O185: Accetta carte di credito nazionali? (sì=1, no=0)
C186: 183 | D186: 9.2.3 | F186: Accepts International Debit and Credit Cards (yes=1, no=0) | H186: Accepts International Debit and Credit Cards (yes=1, no=0) | I186: Credit cards: Ja =1, nee =0 | J186: Carte de débit et de crédit internationale acceptée (oui=1, non=0) | K186: Internationale Debit und Kreditkarten (ja = 1; nein = 0) | L186: Aceita cartões de débito/crédito internacionais? (sim =1, não =0) | M186: Uluslararası Banka ve Kredi Kartlarını Kabul Ediyor mu? (evet=1, hayır=0) | N186: Akceptuje międzynarodowe karty debetowe i kredytowe (tak=1, nie=0) | O186: Accetta carte di debito e credito internazionali (sì=1, no=0)
A187: =C187 -> 184 | B187: =IF(ISBLANK(VLOOKUP(A187,$C$4:$T$9877,1+$A$1)),F188,VLOOKUP(A187,$C$4:$T$9877,1+$A$1)) -> 9.2.4 | C187: 184 | D187: 9.2.4 | F187: Payment by Smartphone? (yes =1, no =0) | H187: Payment by Smartphone? (yes =1, no =0) | I187: smartphone-apps: Ja =1, nee =0 | J187: Paiemant par téléphone mobile? (oui =1, non =0) | K187: Bezahlung über Smartphone (ja = 1; nein = 0) | L187: Pagamento por telemóvel? (sim =1, não =0) | M187: Akıllı Telefonla Ödeme yapılabiliyor mu? (evet =1, hayır =0) | N187: Płatność smartfonem? (tak =1, nie =0) | O187: Pagamento con Smartphone? (sì =1, no =0)
A188: =C188 -> 185 | B188: =IF(ISBLANK(VLOOKUP(A188,$C$4:$T$9877,1+$A$1)),#REF!,VLOOKUP(A188,$C$4:$T$9877,1+$A$1)) -> 9.2.5 | C188: 185 | D188: 9.2.5 | F188: Accept Other Payment Schemes ? How many? (1 point per additional option up to 3) | H188: Accept Other Payment Schemes ? How many? (1 point per additional option up to 3) | I188: Andere betaalmogelijkheden: • 1 punt per extra mogelijkheid tot max 3 | J188: Autres moyens de paiement acceptés ? Combien? (1 point par option additionnelle jusqu'à 3) | K188: andere Bezahlmöglichkeiten? Wie viele? (1 Punkt für jede zusätzliche Option, max. 3 Punkte) | L188: Aceita Oitros Meios de Pagamento? Quantos? (1 ponto por cada meio adicional com máximo de 3 pontos) | M188: Diğer Ödeme Biçimlerini Kabul Ediyor mu? Kaç tane? (3'e kadar ek seçenek başına 1 puan) | N188: Akceptacja innych systemów płatności ? Ile (1 punkt za każdą dodatkową opcję do 3) | O188: Accetta altri metodi di pagamento? Quanti? (1 punto per opzione aggiuntiva fino a 3)
C189: =+C188+1 -> 186 | D189: 9.3.0 | F189: Payment options at exit: | H189: Payment options at exit: | I189: Betaalmogelijkheden aan de uitrit: | J189: Moyens de paiement (paiement à la borne de sortie): | K189: Bezahlmöglichkeiten an der Ausfahrt: | L189: Possibilidade de pagamento na barreira de saída: | M189: Çıkışta ödeme seçenekleri: | N189: Opcje płatności przy wyjściu: | O189: Opzioni di pagamento all'uscita:
C190: 187 | D190: 9.3.1 | F190: Bank cards, national (yes =1, no =0) | H190: Bank cards, national (yes =1, no =0) | I190: PIN-pas, Maestro: Ja =1, nee =0 | J190: Cartes de banque nationale (oui =1, non =0) | K190: Nationale Bankkarten (ja = 1; nein = 0) | L190: Aceita cartões bancários? (sim =1, não =0) | M190: Banka kartları, ulusal kredi kartları geçerli mi? (evet =1, hayır =0) | N190: Karty bankowe, krajowe (tak =1, nie =0) | O190: Carte bancarie, nazionali (sì =1, no =0)
C191: 188 | D191: 9.3.2 | F191: International debit & credit cards (yes =1, no =0) | H191: International debit & credit cards (yes =1, no =0) | I191: Credit cards: Ja =1, nee =0 | J191: Cartes de débit et de crédit internationales (oui =1, non =0) | K191: Internationale Debit und Kreditkarten (ja = 1; nein = 0) | L191: Aceita cartões de débito/crédito internacionais? (sim =1, não =0) | M191: Uluslararası banka ve kredi kartları geçerli mi?(evet =1, hayır =0) | N191: Międzynarodowe karty debetowe i kredytowe (tak =1, nie =0) | O191: Carte di debito e credito internazionali (sì =1, no =0)
C192: 189 | D192: 9.3.3 | F192: License plate recognition connected to bankaccount or app (yes =1, no =0). | H192: License plate recognition connected to bankaccount or app (yes =1, no =0). | I192: Kentekenherkenning met app: Ja =1, nee =0 | J192: Reconnaissance de plaque connectée à un compte bancaire ou un application (oui =1, non =0). | K192: Kennzeichenerkennung verbunden mit einem Kunden-/Bankkonto oder einer App (ja = 1; nein = 0) | L192: Leitura de matrícula ligada a conta bancária ou app? (sim = 1, não = 0) | M192: Banka hesabına veya uygulamaya bağlı plaka tanıma var mı?(evet =1, hayır =0). | N192: Rozpoznawanie tablic rejestracyjnych połączone z kontem bankowym lub aplikacją (tak =1, nie =0). | O192: Riconoscimento targa collegato a conto corrente o app (si =1, no =0).
C193: 190 | D193: 9.3.4 | F193: RFID device connected to bankaccount or app (yes =1, no =0). | H193: RFID device connected to bankaccount or app (yes =1, no =0). | I193: RFID-herkenning met automatische afrekening: Ja =1, nee =0 | J193: Système RFID connecté à un compte bancaire ou un application (oui =1, non =0). | K193: RFID Einheit verbunden mit einem Kunden-/Bankkonto oder einer App (ja = 1; nein = 0) | L193: Sistemas RFID ligado a conta bancária ou app (sim=1, não = 0) | M193: Banka hesabına veya uygulamaya bağlı RFID cihazı (evet =1, hayır =0). | N193: Urządzenie RFID połączone z kontem bankowym lub aplikacją (tak =1, nie =0). | O193: Dispositivo RFID connesso a conto corrente bancario o app (sì =1, no =0).
C194: 191 | D194: 9.3.5 | F194: Accept national general traffic scheme (i.e. Tolling, public transport) (yes =1, no =0 | H194: Accept national general traffic scheme (i.e. Tolling, public transport) (yes =1, no =0 | I194: landelijk systeem voor tolwegen of openbaar vervoer : Ja =1, nee =0 | J194: Autres cartes nationales acceptées (par.ex: péage,transport public) (Oui =1, Non =0) | K194: Akzeptanz eines nationalen allgemeinen Verkehrsdienstes (z.B. Mautsystem, Öffentlicher Verkehr) (ja = 1 ; nein = 0) | L194: Aceita sistemas usados a nível nacional (pe, pagamento de portagens, transportes público)? (sim = 1, não = 0) | M194: Ulusal trafik düzenini kabul ediyor mu? (ör. Ücretli geçiş, toplu taşıma) (evet =1, hayır =0) | N194: Akceptacja krajowego ogólnego systemu ruchu (np. opłaty za przejazd, transport publiczny) (tak =1, nie =0) | O194: Accetta il regime di traffico generale nazionale (ad es. Pedaggio, trasporto pubblico) (sì =1, no =0)
C195: 192 | D195: 9.3.6 | F195: Payment by smart phone? (yes =1, no =0) | H195: Payment by smart phone? (yes =1, no =0) | I195: smartphone-apps: Ja =1, nee =0 | J195: Paiement par téléphone mobile? (oui =1, non =0) | K195: Bezahlung über Smartphone (ja = 1; nein = 0) | L195: Pagamento por telemóvel? (sim =1, não =0) | M195: Akıllı telefonla ödeme yapılabiliyor mu? (evet =1, hayır =0) | N195: Płatność za pomocą smartfona (tak =1, nie =0) | O195: Pagamento con smartphone? (sì =1, no =0)
C196: 193 | D196: 9.4 | F196: Opening barrier at entry automatically starts ticketless parking transaction with automatic payment: Remote control by app, attached to bank account Yes=1, no=0 Based on ANPR attached to bank account Yes=1 additional | H196: Opening barrier at entry automatically starts ticketless parking transaction with automatic payment: Remote control by app, attached to bank account Yes=1, no=0 Based on ANPR attached to bank account Yes=1 additional | I196: Bij inrijden wordt ticket aan kenteken gekoppeld: na betaling aan automaat opent aan de uitrit de slagboom automatisch: Ja =1, nee =0. automatisch kenetkenherkenning met koppeling bankrekening: 1 punt extra. | J196: L'ouverture de la barrière à l'entrée lance automatiquement la transaction de stationnement sans ticket avec paiement automatique : Contrôle via une application connectée à un compte bancaire (oui=1,non=0) - 1 point supplémentaire en cas d'utilisation d'un système de reconnaissance de plaque d'immatriculation | K196: Schrankenöffnung an der Einfahrt startet automatisch eine ticketlose Transaktion mit automatischer Bezahlung: Steuerung über App, angeschlossen an ein Bezahlmittel ja = 1, nein = 0; bei Einsatz einer Kennzeichenerkennung: 1 Punkt zusätzlich | L196: Barreira de entrada abre automaticamente e inicia transação com pagamento automática, com ligação a app ou conta bancária? (Sim = 1, não = 0). Se baseado em leitura de matrícula, 1 ponto adicional. | M196: Otomatik ödemelibiletsiz park işleminde giriş bariyeri otomatik olarak açılır: Uygulama ile uzaktan kontrol, banka hesabına bağlı Evet=1, hayır=0 Banka hesabına bağlı ANPR'ye göre Evet=1 ek | N196: Otwarcie szlabanu przy wjeździe automatycznie uruchamia transakcję parkowania bezbiletowego z automatyczną płatnością: Zdalne sterowanie przez aplikację, podpięte do konta bankowego Tak=1, nie=0 Na podstawie ANPR podpiętego do konta bankowego Tak=1 dodatkowe | O196: L'apertura della barriera all'ingresso avvia automaticamente la transazione di parcheggio senza biglietto con pagamento automatico: Controllo remoto tramite app, collegato a conto corrente bancario Sì=1, no=0 Basato su ANPR collegato a conto bancario Sì=1 aggiuntivo
C197: 194 | D197: 9.5.0.0 | F197: Pay points | H197: Pay points | I197: Betaalpunten | J197: Points de paiement | K197: Bezahlpunkte | L197: Locais de pagamento | M197: Ödeme Noktaları | N197: Miejsca płatności | O197: Pay points
C198: 195 | D198: 9.5.0 | F198: Is this a Pay and Display Car Park? | H198: Is this a Pay and Display Car Park? | I198: Pay and Display/ticketautomaten? | J198: Est-ce un parking sans barrières (paiement à une borne)? | K198: Bewirtschaftung mit Parkscheinautomaten (Pay & Display)? | L198: É um Parque de Estacionamento sem barreiras? | M198: Öde ve Göster Otoparkı mı? | N198: Czy jest to parking typu Pay and Display? | O198: Is this a Pay and Display Car Park?
C199: 196 | D199: 9.5.1 | F199: Number of Pay points for Barrier controlled car parks: (One pay station = 0, More than one =1, One at each pedestrian entrance, excluding fire escapes =2, More than one at each pedestrian entrance =3) | H199: Number of Pay points for Barrier controlled car parks: (One pay station = 0, More than one =1, One at each pedestrian entrance, excluding fire escapes =2, More than one at each pedestrian entrance =3) | I199: Aantal betaalpunten bij garages met slagbomen • Eén = 0, Meer dan één =1 • Eén bij iedere voetgangerstoegang =2 • Meer dan gemiddeld één per voetgangerstoegang =3 | J199: Nombre de bornes de paiement parking équipés de barrières: (Une borne de paiement = 0, Plus que une =1, Une à chaque entrée piéton excepté les portes de secours =2, Plus que une à chaque entrée piétons =3) | K199: Anzahl der Bezahlmöglichkeiten in einer Parkeinrichtung mit Schrankenanlage (eine Bezahlmöglichkeit = 0; mehr als eine = 1; eine an jedem Zugang für Fußgänger außer Notausgänge = 2; mehr als einer an jedem Zugang für Fußgänger = 3) | L199: Número de pontos de Pagamento por Barreira controlada no parque de estacionamento: (Um ponto de pagamento = 0, Mais do que um = 1, um em cada entrada pedonal, excluindo escadas de incêndio = 2, mais do que um em cada entrada pedonal = 3) | M199: Bariyer kontrollü otoparklar için ödeme noktası sayısı: (Bir ödeme istasyonu = 0, Birden fazla =1, Yangın merdivenleri hariç her yaya girişinde bir tane =2, Her yaya girişinde birden fazla =3)" | N199: Liczba punktów płatności dla parkingów z barierą: (Jedno stanowisko płatne = 0, Więcej niż jedno =1, Jedno przy każdym wejściu dla pieszych, z wyłączeniem dróg przeciwpożarowych =2, Więcej niż jedno przy każdym wejściu dla pieszych =3) | O199: Numero di Pay point per parcheggi a Barriera: (Una cassa = 0, Più di una =1, Una per ogni ingresso pedonale, escluse le scale antincendio =2, Più di una per ogni ingresso pedonale =3)
C200: 197 | D200: 9.5.2 | F200: Number of Pay points for Pay and Display Car Parks (One =0, < 1 for every 50 spaces =2, >1 for every 50 spaces =3) | H200: Number of Pay points for Pay and Display Car Parks (One =0, < 1 for every 50 spaces =2, >1 for every 50 spaces =3) | I200: Pay and Display/ticketautomaten • Eén=0, • <1/50 plaatsen=2, • >1/50 plaatsen=3 | J200: Nombre de bornes de paiement parking sans barrières (Une =0, < 1 par 50 emplacements =2, >1 par 50 emplacements =3) | K200: Anzahl der Bezahlmöglichkeien in einer Parkeinrichtung mit Parkscheinautomaten (1 = 0; < 1 pro 50 Stellplätze = 2; > 1 pro 50 Stellplätze = 3) | L200: Número de pontos de Pagamento para parques de estacionamento sem barreiras (Um = 0, <1 para cada 50 lugares = 2,> 1 para cada 50 lugares = 3) | M200: Öde ve Göster Otoparklar için Ödeme Noktası Sayısı (Bir =0, < Her 50 park yeri için 1 =2, >Her 50 park yeri için 1 =3) | N200: Liczba punktów płatności dla parkingów typu Pay and Display: (Jeden =0, < 1 na każde 50 miejsc =2, >1 na każde 50 miejsc =3)" | O200: Number of Pay points for Pay and Display Car Parks (One =0, < 1 for every 50 spaces =2, >1 for every 50 spaces =3)
... 103 more rows

Sheet Languages Old (hidden)
A1: ='Languages Available'!B1 -> 1 | B1: Language Selected: | D1: ='General Info'!C4 -> English
D2: 1 | E2: 2 | F2: 3 | G2: 4 | H2: 5 | I2: 6
B3: Active Language | D3: =VLOOKUP(D2,'Languages Available'!$A$3:$B$23,2) -> English | E3: =VLOOKUP(E2,'Languages Available'!$A$3:$B$23,2) -> Dutch | F3: =VLOOKUP(F2,'Languages Available'!$A$3:$B$23,2) -> Français | G3: =VLOOKUP(G2,'Languages Available'!$A$3:$B$23,2) -> Deutsch | H3: =VLOOKUP(H2,'Languages Available'!$A$3:$B$23,2) -> Portuguese | I3: =VLOOKUP(I2,'Languages Available'!$A$3:$B$23,2) -> Turkish
A4: =C4 -> 1 | B4: =IF(ISBLANK(VLOOKUP(A4,$C$4:$V$9989,1+$A$1)),D4,VLOOKUP(A4,$C$4:$V$9989,1+$A$1)) -> Mandatory Minimum Conditions | C4: 1 | D4: Mandatory Minimum Conditions | E4: Verplichte minimum eisen | F4: Conditions minimales obligatoires | G4: Erforderliche Mindestkriterien | H4: Condiciones mínimas obligatorias | I4: Condições Mínimas Necessárias
A5: 2 | B5: Car park must be for public use | C5: =C4+1 -> 2 | D5: Car park must be for public use | E5: Garage moet publiek toegankelijk zijn | F5: Le parking doit être à usage public | G5: Die Parkeinrichtung muss öffentlich sein. | H5: El aparcamiento debe ser de uso público | I5: Parque de estacionamento para uso público
A6: 3 | B6: Minimum headroom = 1.90 m, generally in the public areas. Incidental lower obstacles must be clearly marked. | C6: =C5+1 -> 3 | D6: Minimum headroom = 1.90 m, generally in the public areas. Incidental lower obstacles must be clearly marked. | E6: Minimale inrijhoogte 1,90 m. Incidentele plaatsen met lagere hoogte moeten duidelijk gemarkeerd zijn. | F6: Hauteur minimale au plafond=1.90m dans la majorité des espaces dédiés au public. Les quelques éventuels passages plus bas doivent être clairement signalés . | G6: Mindestdurchfahrtshöhe = 1,90m im öffentlich zugänglichen Bereich. Einzelne niedrigere Stellen müssen deutlich gekennzeichnet sein. | H6: Gálibo mínimo = 1.90 m, por regla general en las zonas públicas. Cualquier obstáculo eventual deberá estar claramente señalizado. | I6: Pé-direito mínimo = 1,90 m, geralmente nas áreas públicas. Eventuais obstáculos a menor altura devem estar claramente identificados.
A7: 4 | B7: Minimum headroom = 2,00 m, generally in the public areas. Incidental lower obstacles must be clearly marked. | C7: 4 | D7: Minimum headroom = 2,00 m, generally in the public areas. Incidental lower obstacles must be clearly marked. | E7: Minimale inrijhoogte 2,00 m. Incidentele plaatsen met lagere hoogte moeten duidelijk gemarkeerd zijn. | F7: Hauteur minimale au plafond=2,00m dans la majorité des espaces dédiés au public. Les quelques éventuels passages plus bas doivent être clairement signalés . | G7: Mindestdurchfahrtshöhe = 2,00 m im allgemein zugänglichen Bereich. Einzelne niedrigere Hindernisse müssen deutlich gekennzeichnet sein. | H7: Gálibo mínimo = 2.00 m, por regla general en las zonas públicas. Cualquier obstáculo eventual deberá estar claramente señalizado. | I7: Pé-direito mínimo = 2,00 m, geralmente nas áreas públicas. Eventuais obstáculos a menor altura devem estar claramente identificados.
A8: 5 | B8: There must be at least one dedicated entry and exit lane although additional tidal flow lanes are allowed. | C8: 5 | D8: There must be at least one dedicated entry and exit lane although additional tidal flow lanes are allowed. | E8: Er moet ten minste één gescheiden inrit en uitrit zijn, extra wisselstroken zijn toegestaan. | F8: Il doit y avoir minimum une voie d’entrée et une voie de sortie, une troisième voie bidirectionnelle est autorisée. | G8: Es muss mindestens eine getrennte Ein- und Ausfahrtsspur vorhanden sein. Zusätzliche, tageszeitlich in wechselnder Fahrtrichtung genutzte Wechselspuren sind zulässig. | H8: Deberá haber al menos un carril exclusivo de entrada y otro de salida, si bien se permitirán carriles reversibles adicionales | I8: Deve existir pelo menos um acesso exclusivo para entradas e um acesso exclusivo para saídas, apesar de poderem existir vias de fluxo bidirecional adicionais.
A9: 6 | B9: 70% of bays must be at least 2.30m wide. For renovated car parks, over ten years old, minimum bay width of 2.25m is allowed (in that case a penalty applies - check M8). | C9: 6 | D9: 70% of bays must be at least 2.30m wide. For renovated car parks, over ten years old, minimum bay width of 2.25m is allowed (in that case a penalty applies - check M8). | E9: 70% van de parkeervakken moet minstens 2.30m breed zijn. Voor gerenoveerde garages, ouder dan tien jaar is een minimum breedte van 2.25m toegestaan. In dergelijke gevallen worden vijf punten in mindering gebracht, die elders gecompenseerd moeten worden | F9: 70% des emplacements doivent faire au moins 2.30m de large. Pour des parkings rénovés de plus de 10 ans, une largeur minimum de 2.25m est tolérée. Cependant, dans ce cas, une pénalité de 5 points est appliquée, à compenser ailleurs. | G9: 70% der Stellplätze müssen zumindest 2,30m breit sein. Für renovierte Betriebe, die über 10 Jahre alt sind, beträgt die Mindestbreite 2,25 m ( in diesem Fall kommt ein Punkteabzug zur Anwendung - siehe M8) | H9: El 70% de las plazas debe tener un ancho mínimo de 2.30m. Para aparcamientos renovados, de más de 10 años de antigüedad, se permite un ancho mínimo de 2.25m (en ese caso se aplica una penalización - ver M8) | I9: 70% dos lugares de estacionamento devem ter no mínimo 2.30m de largura. Para parques de estacionamento renovados, com mais de dez anos de idade, a largura mínima do lugar permitida é de 2.25m (neste caso aplica-se uma penalidade - ver M8).
A10: 7 | B10: 70% of bays must be at least 2.40m wide. | C10: 7 | D10: 70% of bays must be at least 2.40m wide. | E10: 70% van de parkeervakken moet minstens 2.40m breed zijn. | F10: 70% des emplacements doivent faire au moins 2.40m de large. | G10: 70% der Stellplätze müssen mindestens 2,40 m breit sein. | H10: El 70% de las plazas debe tener un ancho mínimo de 2.40m | I10: 70% dos lugares de estacionamento devem ter no mínimo de 2.40m de largura.
A11: 8 | B11: All straight ramps for unidirectional traffic must be minimum 2.7 metres wide. Bidirectional ramps must be at least 6m wide with lane markings. Ramp width is measured between walls or pillars | C11: 8 | D11: All straight ramps for unidirectional traffic must be minimum 2.7 metres wide. Bidirectional ramps must be at least 6m wide with lane markings. Ramp width is measured between walls or pillars | E11: Alle hellingbanen voor auto's voor één richting moeten minstens 2,7 meter breed zijn; bij tweerichtingsverkeer minstens 6 meter breed met midden markering. De breedte wordt gemeten tussen wanden of kolommen. | F11: Toutes les rampes droites à trafic unidirectionnel doivent faire minimum 2.70m de large. En cas de rampes bidirectionnelles, celles-ci doivent faire minimum 6m de large avec marquage des voies. La largeur des rampes est mesurée entre les murs ou piliers. | G11: Alle geraden Rampen mit Einbahnverkehr müssen mindestens 2,70 m breit sein. Rampen mit Gegenverkehr müssen mindestens 6,00 m breit sein und eine Fahrbahnmarkierung aufweisen. Die Messung erfolgt zwischen den Wänden oder Säulen. | H11: Las rampas rectas para tráfico unidireccional deben tener un ancho mínimo de 2.7m. Las rampas de doble sentido tendrán un ancho mínimo de 6m, con marcas viales de separación. El ancho de la rampa se mide entre paredes o pilares. | I11: Todas as rampas retas com tráfego unidirecional devem ter no mínimo 2.7 metros de largura. Rampas bidirecionais devem ter no mínimo 6m de largura, com marcações das faixas. A largura da rampa é medida entre paredes ou pilares
A12: 9 | B12: Curved ramps for single directional traffic must have an external radius of minimum 8.00 metres with lane width of minimum 3.5 metres. For bidirectional curved ramps this applies for the inner driving lane. The outside driving lane must be minimum 3.5 metres wide as well. | C12: 9 | D12: Curved ramps for single directional traffic must have an external radius of minimum 8.00 metres with lane width of minimum 3.5 metres. For bidirectional curved ramps this applies for the inner driving lane. The outside driving lane must be minimum 3.5 metres wide as well. | E12: De buitenkant van een gebogen helling met eenrichtingsverkeer moet een straal van minstens 8 meter hebben met een rijstrook van minstens 3,5 meter breed. Bij hellingen met twee richtingsverkeer geldt dit voor de binnenste rijstrook.De buitenste rijstrook moet ook minstens 3,5 meter breed zijn. | F12: Les rampes courbes pour un trafic unidirectionnel doivent présenter un radius externe de minimum 8m avec des voies de minimum 3.50m de large. Pour des rampes courbes bidirectionnelles, les mesures sont d’application pour la voie intérieure de la courbe.La voie extérieure doit être de minimum 3.50m de large. | G12: Gekrümmte Rampen mit Einbahnverkehr müssen einen äußeren Kurvenradius von mindestens 8,00 m und eine Fahrbahnbreite von mindestens 3,50 m aufweisen. Bei Rampen mit Gegenverkehr gilt dies für die innere Fahrspur, während die äußere Fahrspur ebenfalls mindestens 3,50 m breit sein muss. | H12: Las rampas curvas para tráfico unidreccional deben tener un radio exterior de al menos 8.00m con un ancho mínimo de carril de 3.5m. Para rampas curvas de doble sentido, lo anterior aplica al carril interior. El carril exterior debe tener también un ancho mínimo de 3.5m. | I12: Rampas curvas para tráfego direcional único devem ter um raio externo mínimo de 8.00 m, com largura de faixa mínima de 3.50 m. (Para rampas curvas bidirecionais, aplica-se para a faixa de rodagem interior. A faixa de rodagem exterior também deve ter largura mínima de 3.50 m)
A13: 10 | B13: Ramp gradients must not exceed 20% , to be measured at the middle of driving lane. At bidirectional curved ramps this applies for the inner (steepest) driving lane. | C13: 10 | D13: Ramp gradients must not exceed 20% , to be measured at the middle of driving lane. At bidirectional curved ramps this applies for the inner (steepest) driving lane. | E13: Hellingbanen mogen niet steiler zijn dan 20%, gemeten in het midden van de rijbaan. Bij gebogen hellingen voor twee richtingsverkeer geldt dit voor de binnenste rijstrook. | F13: L’inclinaison de la rampe ne peut excéder 20%.Il doit être mesurée au centre de la voie de circulation. Pour les rampes courbes bidirectionnelles, ceci s’applique à la voie intérieure la plus abrupte. | G13: Rampen dürfen eine Steigung von 20% nicht überschreiten. Die Messung erfolgt in der Mitte der Fahrspur. Bei gekrümmten Rampen mit Gegenverkehr gilt das für die innere (steilste) Spur. | H13: Las pendientes de las rampas no pueden superar el 20%, medidas sobre el eje del carril. En las rampas curvas de doble sentido, lo anterior aplica al carril interior (el de mayor pendiente). | I13: A inclinação das rampas não deve exceder 20%, medido no centro da faixa de rodagem. Em rampas curvas bidirecionais, aplica-se para a rampa interior (mais inclinada).
A14: 11 | B14: If the car park has paid parking and access control by barriers or gates, staff must be contactable at the pay point/exit point and secured pedestrian entries. | C14: 11 | D14: If the car park has paid parking and access control by barriers or gates, staff must be contactable at the pay point/exit point and secured pedestrian entries. | E14: Als de garage is uitgerust met slagbomen of afsluitpoorten voor betaald parkeren, moeten bij de betaalautomaten, uitritten en beveiligde toegangen voor voetgangers een intercom aanwezig zijn. | F14: Si le parking est payant et dispose d’un contrôle d’accès par barrières ou portails, un personnel de service doit pouvoir être contacté aux bornes de paiement, aux bornes de sorties et aux entrées piétons sécurisées. | G14: Wenn der Parkbetrieb entgeltlich geführt wird und die Bewirtschaftung über Schrankensysteme oder Tore erfolgt, muss Personal an den Bezahl-, Ausfahrts- und Zugangspunkten erreichbar sein. | H14: Si el aparcamiento es de pago y dispone de control de acceso a través de barreras y puertas, deberá ser posible contactar con el personal en el punto de pago/punto de salida y en los accesos peatonales | I14: Se o parque de estacionamento tem estacionamento pago e controlo de acessos por barreiras ou portões, funcionários devem estar contactáveis a partir dos locais de pagamento, das saídas e de entradas pedonais com porta fechada.
A15: 12 | B15: Receipt for payment must be provided when requested. | C15: 12 | D15: Receipt for payment must be provided when requested. | E15: Op verzoek moet een kwitantie voor de betaling worden verstrekt. | F15: Un reçu de paiement doit pouvoir être délivré en cas de demande. | G15: Eine Quittung muss (zumindest) auf Kundenanforderung ausgegeben werden. | H15: Se proporcionará recibo en caso de ser solicitado por el usuario | I15: Recibo de pagamento deve ser fornecido quando solicitado.
A16: 13 | B16: All turning movements must be capable of being completed without reversing (moving in/out the parking bay and cul-de-sacs excluded) | C16: 13 | D16: All turning movements must be capable of being completed without reversing (moving in/out the parking bay and cul-de-sacs excluded) | E16: Alle voertuigbewegingen in de garage moeten zonder achteruitsteken uitgevoerd kunnen worden. (uitgezonderd in- en uitdraaien van een parkeervak en doodlopende rijstroken). | F16: Tous les mouvements de véhicule doivent pouvoir être effectués sans devoir effectuer une marche arrière (exception faite pour se garer ou sortir d’un emplacement ainsi que les culs-de-sac). | G16: Alle Fahrmanöver müssen ohne Zurücksetzen des Fahrzeugs möglich sein. Ausnahmen sind Ein- und Ausparkmanöver oder Sackgassen. | H16: Todos los giros se podrán realizar sin necesidad de dar marcha atrás (se excluyen las maniobras de estacionamiento y la circulación en calles sin salida) | I16: Todos os movimentos de viragem devem poder ser concluídos necessidsde de inversão de marcha (manobras de estacionamento e becos sem saída estão excluídos).
A17: 14 | B17: Average light levels on parking area at floor is at minimum 20 Lux | C17: 14 | D17: Average light levels on parking area at floor is at minimum 20 Lux | E17: gemiddeld lichtniveau op vloerhoogte is minimaal 20 Lux | G17: Die durchschnittliche Ausleuchtung der Parkfläche (am Boden gemessen) beträgt mind. 20 Lux. | H17: Los niveles lumínicos medios en la plaza de estacionamiento a nivel del suelo serán de cómo mínimo 20 Lux | I17: Níveis de luz médios na área de estacionamento, medidos ao nível do piso, são no mínimo de 20 Lux
A18: 15 | B18: Average light levels on parking area at floor is at minimum 50 Lux | C18: 15 | D18: Average light levels on parking area at floor is at minimum 50 Lux | E18: gemiddeld lichtniveau op vloerhoogte is minimaal 50 Lux | G18: Die durchschnittliche Ausleuchtung der Parkfläche (am Boden gemessen) beträgt mind. 50 Lux. | H18: Los niveles lumínicos medios en la plaza de estacionamiento a nivel del suelo serán de cómo mínimo 50 Lux | I18: Níveis de luz médios na área de estacionamento, medidos ao nível do piso, são no mínimo de 50 Lux
A19: 16 | B19: Lighting | C19: 16 | D19: Lighting | E19: Verlichting | F19: Eclairage | G19: Beleuchtung | H19: Iluminación | I19: Iluminação
A20: 17 | B20: Item List (values in Lux, see user manual for measurement) | C20: 17 | D20: Item List (values in Lux, see user manual for measurement) | E20: Omschrijving (waardes in Lux) | F20: Liste des mesures à effectuer ( valeurs en Lux, se référer au manuel des mesures). | G20: Positionsliste (Werte in Lux, bezüglich der Messungen siehe Benutzungsanleitung) | H20: Lista de elementos (valores en Lux, ver manual de usuario para criterios de medida) | I20: Lista de Itens (valores em Lux, consulte o manual do utilizador para a medição)
A21: 18 | B21: Vehicular entry area; at floor level • Above 200 Lux = 5; • Between 75– 200 Lux: 0,04 pt per Lux over 75 • Below 75 Lux = 0 | C21: 18 | D21: Vehicular entry area; at floor level • Above 200 Lux = 5; • Between 75– 200 Lux: 0,04 pt per Lux over 75 • Below 75 Lux = 0 | E21: Ingangspartij; op vloerhoogte: • > 200 Lux = 5; • 75– 200 Lux = 0,04punt per Lux boven 75; • < 75 Lux = 0 | F21: Aire d’entrée des véhicules, mesures effectuées au niveau du sol. • Plus de 200 Lux = 5; • Entre 75– 200 Lux: 0,04 pt par Lux au-delà de 75 • Moins de 75 Lux = 0 | G21: Einfahrtsbereich; Messung am Boden • Über 200 Lux = 5; • Zwischen 75 - 200 Lux = 0,04 pt pro Lux über 75 • Unter 75 Lux = 0 | H21: Zona de acceso de vehículos; a nivel del suelo • Más de 200 Lux = 5; • Entre 75– 200 Lux: 0,04 pts por Lux por encima de 75 • Menos de 75 Lux = 0 | I21: Zona de entrada de veículos, ao nível do chão • Acima de 200 Lux = 5; • Entre 75 e 200 Lux: 0,04 pt por cada Lux acima de 75; • Abaixo de 75 Lux = 0;
A22: 19 | B22: Entry; at 1 m height near ticket-machine • Above 200 Lux = 3; • Between100– 200 Lux: 0,03 pt per Lux over 100 • Below 100 Lux = 0 | C22: 19 | D22: Entry; at 1 m height near ticket-machine • Above 200 Lux = 3; • Between100– 200 Lux: 0,03 pt per Lux over 100 • Below 100 Lux = 0 | E22: Inrit kaartgever; op 1 m hoogte • > 200 Lux = 3; • 100-200 Lux = 0,03punt per Lux boven 100; • • < 100 Lux = 0 | F22: Entrée ; à 1m de hauteur près de la borne d’entrée (tickets) • Plus de 200 Lux = 3; • Entre 100– 200 Lux: 0,03 pt par Lux au-delà de 100 • Moins de 100 Lux = 0 | G22: Einfahrt; in 1 m Höhe neben dem Ticketgeber • Über 200 Lux = 3; • Zwischen 100 - 200 Lux = 0,03 pt pro Lux über 100 • Unter 100 Lux = 0 | H22: Acceso; a 1 m de altura junto a la máquina expendedora de tickets • Más de 200 Lux = 3; • Entre 100– 200 Lux: 0,03 pts por Lux por encima de 100 • Menos de 100 Lux = 0 | I22: Zona de entrada de veículos, a 1 m de altura, perto da máquina de bilhetes • Acima de 200 Lux = 3; • Entre 100 e 200 Lux: 0,03 pt por cada Lux acima de 100; • Abaixo de 100 Lux = 0
A23: 20 | B23: Exit; at 1 m height near barrier/ticket-machine • Above 200 Lux = 3; • Between100– 200 Lux: 0,03 pt per Lux over 100 • Below 100 Lux= 0 | C23: 20 | D23: Exit; at 1 m height near barrier/ticket-machine • Above 200 Lux = 3; • Between100– 200 Lux: 0,03 pt per Lux over 100 • Below 100 Lux= 0 | E23: Uitrit kaartlezer; op 1 m hoogte • > 200 Lux = 3; • 100-200 Lux =0,03punt per Lux boven 100; • < 100 Lux = 0 | F23: Sortie ; à 1 m de hauteur près de la borne de sortie (tickets) • Plus de 200 Lux = 3; • Entre 100– 200 Lux: 0,03 pt par Lux au-delà de 100 • Moins de 100 Lux= 0 | G23: Ausfahrt; in 1 m Höhe neben der Ausfahrtssäule • Über 200 Lux = 3; • Zwischen 100 - 200 Lux = 0,03 pt pro Lux über 100 • Unter 100 Lux = 0 | H23: Salida; a 1 m de altura junto a la barrera/máquina de tickets • Más de 200 Lux = 3; • Entre 100– 200 Lux: 0,03 pts por Lux por encima de 100 • Menos de 100 Lux = 0 | I23: Zona de saída de veículos, a 1 m de altura perto da máquina de leitura de bilhetes: • Acima de 200 Lux = 3; • Entre 100 e 200 Lux: 0,03 pt por cada Lux acima de 100; • Abaixo de 100 Lux= 0;
A24: 21 | B24: At pay-machine; at 1 m height • Above 200 Lux =4; • Between100– 200 Lux: 0,04 pt per Lux over 100 • Below 100 Lux= 0; • No Pay Machines : same as exit (enter zero if this is the case) | C24: 21 | D24: At pay-machine; at 1 m height • Above 200 Lux =4; • Between100– 200 Lux: 0,04 pt per Lux over 100 • Below 100 Lux= 0; • No Pay Machines : same as exit (enter zero if this is the case) | E24: Bij betaalautomaat; op 1 m hoogte • > 200 Lux =4; • 100-200 Lux = 0,04punt per Lux boven 100; • < 100 Lux= 0; • Indien geen betaalautomaten: als bij uitrit (0 invullen) | F24: Au niveau des bornes de paiement , à 1m de hauteur • Plus de 200 Lux =4; • Entre 100– 200 Lux: 0,04 pt par Lux au-delà de 100 • Moins de 100 Lux= 0; • Si pas de bornes de paiement, identique qu’à la sortie | G24: Am Bezahlautomaten; in 1 m Höhe • Über 200 Lux = 4; • Zwischen 100 - 200 Lux = 0,04 pt pro Lux über 100 • Unter 100 Lux = 0; • Kein Bezahlautomat = wie Ausfahrt (in diesem Fall "0" eingeben) | H24: En la máquina de pago; a 1 m de altura • Más de 200 Lux = 4; • Entre 100– 200 Lux: 0,04 pts por Lux por encima de 100 • Menos de 100 Lux = 0; • Si no hay máquinas de pago: igual que en salida (poner "cero" si es el caso) | I24: Junto às Máquinas de Pagamento, a 1 m de altura: • Acima de 200 Lux = 4; • Entre 100 e 200 Lux: 0,04 pt por cada Lux acima de 100; • Abaixo de 100 Lux= 0; • Se não houver máquinas de pagamento, pontuação semelhamte à da saída. (introduza zero se for este o caso)
A25: 22 | B25: At cashier; at counter height • Above 200 Lux =4; • Between100– 200 Lux: 0,04 pt per Lux over 100 • Below 100 Lux= 0; • No cashier = 3 (enter zero if this is the case) | C25: 22 | D25: At cashier; at counter height • Above 200 Lux =4; • Between100– 200 Lux: 0,04 pt per Lux over 100 • Below 100 Lux= 0; • No cashier = 3 (enter zero if this is the case) | E25: Bij de kassier; op toonbankhoogte • > 200 Lux =4; • 100-200 Lux = 0,04punt per Lux boven 100; • < 100 Lux= 0; • Geen kassier = 3 | F25: Auprès du caissier, à hauteur du comptoir • Plus de 200 Lux =4; • Entre 100– 200 Lux: 0,04 pt par Lux au-delà de 100 • Moins de 100 Lux= 0; • Pas de caissier = 3 | G25: An der Kasse; in Höhe des Kundenschalters • Über 200 Lux = 4; • Zwischen 100 - 200 Lux = 0,04 pt pro Lux über 100 • Unter 100 Lux = 0; • Keine Kassenstation = 3 (in diesem Fall "0" eingeben) | H25: Pago manual; a la altura del mostrador • Más de 200 Lux = 4; • Entre 100 – 200 Lux: 0,04 pts por Lux por encima de 100 • Menos de 100 Lux = 0; • Si no hay pago manual = 3 (poner "cero" si es el caso) | I25: Junto à Caixa Manual, à altura do balcão • Acima de 200 Lux = 4; • Entre 100 e 200 Lux: 0,04 pt por cada Lux acima de 100 • Abaixo de 100 Lux = 0; • Se não houver caixa manual = 3 (introduza zero se for este o caso);
A26: 23 | B26: In elevator; at floor level • Above 70 Lux = 4; • Between30– 70 Lux: 0,1 pt per Lux over 30 • Below 30 Lux = 0; • Single level without elevator = 3 (enter zero if this is the case) | C26: 23 | D26: In elevator; at floor level • Above 70 Lux = 4; • Between30– 70 Lux: 0,1 pt per Lux over 30 • Below 30 Lux = 0; • Single level without elevator = 3 (enter zero if this is the case) | E26: In lift; op vloerhoogte • > 70 Lux = 4; • 30-70 Lux = 0,1punt per Lux boven 30; • < 30 Lux = 0; • Eénlaags garage zonder lift = 3 (0 invullen) | F26: Dans les ascenseurs, au niveau du sol • Plus de 70 Lux = 4; • Entre 30– 70 Lux: 0,1 pt par Lux au-delà de 30 • Moins de 30 Lux = 0; • Pas d’ascenseur, parking sur un niveau = 3 | G26: Im Aufzug; gesmessen am Boden • Über 70 Lux = 4; • Zwischen 30 - 70 Lux = 0,1 pt pro Lux über 30 • Unter 30 Lux = 0; • Nur eine Parkebene ohne Aufzug = 3 (in diesem Fall "0" eingeben) | H26: En ascensor; a nivel del suelo • Más de 70 Lux = 4; • Entre 30 – 70 Lux: 0,1 pts por Lux por encima de 30 • Menos de de 30 Lux = 0; • Planta única sin ascensor = 3 (poner "cero" si es el caso) | I26: No elevador, ao nível do chão: • Acima de 70 Lux = 4; • Entre 30 e 70 Lux: 0,1 pt por cada Lux acima de 30; • Abaixo de 30 Lux = 0; • Parque sem elevador = 3 (introduza zero se for este o caso)
A27: 24 | B27: In staircases and all other exclusive pedestrian routes; at floor level • Above 90 Lux = 3; • Between30– 90 Lux: 0,05 pt per Lux over 30 • Below 30 Lux = 0; | C27: 24 | D27: In staircases and all other exclusive pedestrian routes; at floor level • Above 90 Lux = 3; • Between30– 90 Lux: 0,05 pt per Lux over 30 • Below 30 Lux = 0; | E27: Trappenhuizen en andere voetgangersruimten; op vloerhoogte • > 90 Lux = 3; • 30-90 Lux = 0,05punt per Lux boven 30; • < 30 Lux = 0; | F27: Dans les cages d’escaliers et tout autre accès exclusivement réservé aux piétons, au niveau du sol • Plus de 90 Lux = 3; • Entre 30– 90 Lux: 0,05 pt par Lux au-delà de 30 • Moins de 30 Lux = 0; | G27: In Treppenhäusern und allen Fußgängerbereichen; gemessen am Boden • Über 90 Lux = 3; • Zwischen 30 - 90 Lux = 0,05 pt pro Lux über 30 • Unter 30 Lux = 0; | H27: En escaleras y otros accesos peatonales; a nivel del suelo • Más de 90 Lux = 3; • Entre 30 – 90 Lux: 0,05 pts por Lux por encima de 30 • Menos de 30 Lux = 0; | I27: Escadarias e todas os outros acessos pedonais exclusivos, ao nível do chão: • Acima de 90 Lux = 3; • Entre 30 e 90 Lux: 0,05 pt por cada Lux acima de 30; • Abaixo de 30 Lux = 0;
A28: 25 | B28: Light levels on parking area at floor level: (plesase fill grid below) Average light level of grid: • Above 100 Lux= 10; • Between20– 100 Lux: 0,125 pt per Lux over 20 • Below 20 Lux= 0 | C28: 25 | D28: Light levels on parking area at floor level: (plesase fill grid below) Average light level of grid: • Above 100 Lux= 10; • Between20– 100 Lux: 0,125 pt per Lux over 20 • Below 20 Lux= 0 | E28: Lichtiniveau op vloerhoogte, gemiddelde van de metingen volgens stramien (zie onder) • > 100 Lux= 10; • 20-100 Lux = 0,125punt per Lux boven 20; • < 20 Lux= 0 | F28: Eclairages des aires de stationnement, à mesurer au niveau du sol: (remplissez la grille ci-dessous svp) Moyenne des mesures reprises dans la grille: • Plus de 100 Lux= 10; • Entre 20– 100 Lux: 0,125 pt par Lux au-delà de 20 • Moins de 20 Lux= 0 | G28: Ausleuchtung der Parkfläche; gemessen am Boden: (Bitte die Tabelle ausfüllen) Durchschnittliche Ausleuchtung des Bereichs: • Über 100 Lux= 10; • Zwischen 20– 100 Lux: 0,125 pt pro Lux über 20 • Unter 20 Lux= 0 | H28: Niveles lumínicos en la zona de estacionamiento a nivel de suelo: (rellenar tabla más abajo) Nivel lumínico medio de la tabla: • Más de 100 Lux = 10; • Entre 20 – 100 Lux: 0,125 pts por Lux por encima de 20 • Menos de 20 Lux = 0 | I28: Níveis de luminosidade na área de estacionamento ao nível do piso: (por favor preencha grelha abaixo) Nível de luz média da grelha: • Acima 100 Lux = 10; • Entre 20 e 100 Lux: 0,125 pt por cada Lux acima de 20; • Abaixo de 20 Lux = 0;
A29: 26 | B29: Uniformity of light levels in grid as standard deviation • Under 25% of avg light level = 10; • Between25– 50%: 0,4 pt per % under 50% • Above 50% = 0 | C29: 26 | D29: Uniformity of light levels in grid as standard deviation • Under 25% of avg light level = 10; • Between25– 50%: 0,4 pt per % under 50% • Above 50% = 0 | E29: Gelijkmatigheid van verlichtingsniveau in stramien als berekende standaard deviatie: • < 25% van het gemiddelde = 10; • 25%-50% = 0,4 punt per % onder 50%; • > 50% = 0; | F29: Uniformité de l’éclairage selon les mesures rapportées sur la grille (calcul par écart-type) • Moins de 25% de la moyenne d’éclairage = 10; • Entre 25– 50%: 0,4 pt par % en dessous de 50% • Plus de 50% = 0 | G29: Gleichmäßigkeit der Ausleuchtung (Standardabweichung) • Unter 25% vom Durchschnitt = 10; • Zwischen 25 - 50% = 0,4 pt pro % unter 50% • Über 50% = 0 | H29: Uniformidad de los niveles lumínicos de la tabla, desviación estándar • Menos de 25% del nivel lumínico medio = 10; • Entre 25– 50%: 0,4 pts por % por debajo de 50% • Más de 50% = 0 | I29: Uniformidade da luminosidade na grelha, (desvio padrão) • Inferior a 25% dos níveis médios de luminosidade = 10; • Entre 25% e 50% dos níveis médios de luminosidsde: 0,4 pt por cada ponto percentual abaixo de 50%; • Abaixo de 50% = 0
A30: 27 | B30: Auxiliary Grid for 2.8 | C30: 27 | D30: Auxiliary Grid for 2.8 | E30: Aanvullend stramien voor 2.8 | F30: Grille annexe au point 2.8 | G30: Hilfsbereich für 2.8 | H30: Tabla auxiliar para 2.8 | I30: Grelha Auxiliar para 2.8
A31: 28 | B31: end of parking space under/between light fitting | C31: 28 | D31: end of parking space under/between light fitting | E31: Einde parkeervak, onder/tussen verlichtlingsarmatuur | F31: Fond aire de stationnement sous/entre points lumineux | G31: Ende des Stellplatzes unter / zwischen Leuchtmittel | H31: Fondo de plaza bajo/entre luminarias | I31: fim do espaço de estacionamento em/entre pontos de iluminação
A32: 29 | B32: halfway parking space under/between light fitting | C32: 29 | D32: halfway parking space under/between light fitting | E32: Halverwege parkeervak, onder/tussen verlichtlingsarmatuur | F32: Milieu aire de stationnement sous/entre points lumineux | G32: Mitte des Stellplatzes unter / zwischen Leuchtmittel | H32: Centro de plaza bajo/entre luminarias | I32: espaço de estacionamento no meio do caminho em/entre pontos de iluminação
A33: 30 | B33: edge of driveway under/between light fitting | C33: 30 | D33: edge of driveway under/between light fitting | E33: Begin parkeervak/rand rijbaan, onder/tussen verlichtlingsarmatuur | F33: Début aire de stationnement sous/entre points lumineux | G33: Fahrbahnrand unter / zwischen Leuchtmittel | H33: Límite entre inicio de plaza y vial de circulación bajo/entre luminarias | I33: linha entre lugar de estacionamento e via de circulação, sob/entre pontos de iluminação
A34: 31 | B34: center of driveway under/between light fitting | C34: 31 | D34: center of driveway under/between light fitting | E34: Midden rijbaan, onder/tussen verlichtlingsarmatuur | F34: Centre de la voie de circulation sous/entre points lumineux. | G34: Fahrbahnmitte unter / zwischen Leuchtmittel | H34: Centro de vial de circulación bajo/entre luminarias | I34: centro de via de circulação sob/entre pontos de iluminação
A35: 32 | B35: other edge of driveway under/between light fitting | C35: 32 | D35: other edge of driveway under/between light fitting | E35: Rand rijbaan/begin parkeervak overzijde, onder/tussen verlichtlingsarmatuur | F35: Voie de circulation côté opposé à l’aire de stationnement sous/entre points lumineux | G35: Gegenüberliegender Fahrbahnrand unter / zwischen Leuchtmittel | H35: Vial de circulación en el lado opuesto a la zona estacionamiento bajo/entre luminarias | I35: outra extremidade da calçada sob/entre pontos de iluminação
A36: 33 | B36: Car Entry / Car Exit | C36: 33 | D36: Car Entry / Car Exit | E36: In- en uitrit | F36: Entrée / Sortie des voitures | G36: Einfahrt / Ausfahrt | H36: Acceso y salida de vehículos | I36: Entradas e Saídas de Veículos
A37: 34 | B37: Car park headroom limit identified at entrance | C37: 34 | D37: Car park headroom limit identified at entrance | E37: Inrijhoogte aangegeven bij de inrit | F37: Limite d’hauteur de plafond annoncée à l’entrée du parking | G37: Max. Durchfahrtshöhe ist an der Einfahrt angegeben | H37: Gálibo máximo indicado a la entrada | I37: Limite de altura do parque de estacionamento identificado na entrada
A38: 35 | B38: Correct sign at entrance | C38: 35 | D38: Correct sign at entrance | E38: Bord overeenkomstig RVV | F38: Signalisation correcte à l’entrée | G38: Korrekte Einfahrtsbeschilderung | H38: Señal correcta a la entrada | I38: Sinal correto na entrada
A39: 36 | B39: Height barrier | C39: 36 | D39: Height barrier | E39: Hoogtebalk | F39: Barre d’hauteur | G39: Höhenkontrollbalken | H39: Delimitador de altura | I39: Barreira de altura
A40: 37 | B40: Rubber lip to prevent damage | C40: 37 | D40: Rubber lip to prevent damage | E40: Rubber strip onderzijde hoogtebalk | F40: Rebord caoutchouc sur barre pour prévenir dommages aux toits | G40: Gummilippe , um Schaden zu verhindern (ja=1, nein=0) | H40: Borde de goma para prevenir daños | I40: Lip de borracha para evitar danos
A41: 38 | B41: Height: (The car park should receive one point for each 10cm of height above 1.90m up to 2.20 m) | C41: 38 | D41: Height: (The car park should receive one point for each 10cm of height above 1.90m up to 2.20 m) | E41: Inrijhoogte: de garage krijgt één punt voor elke 10cm inrijhoogte boven 1.9m tot 2.2 m | F41: Hauteur (Le parking reçoit 1 point par tranche de 10cm au-delà de 1.90m jusqu’à 2.20m) | G41: Durchfahrtshöhe: (ein zusätzlicher Punkt je 10 cm über 1,90 m bis 2,20 m) | H41: Altura: (Se asigna al aparcamiento 1 punto por cada 10cm de altura por encima de 1.90m hasta 2.20m) | I41: Altura: (Parque de estacionamento deve receber um ponto por cada 10 cm de altura acima de 1.90m, até um máximo de 2.20m)
A42: 39 | B42: Traffic signs to define limitations in use of facility. • Clear signing = 3 • Incomplete signing = 2 • No signing = 0) | C42: 39 | D42: Traffic signs to define limitations in use of facility. • Clear signing = 3 • Incomplete signing = 2 • No signing = 0) | E42: Verkeersborden voor beperkingen in de garage. • Duidelijk en compleet conform RVV = 3 • Gedeeltelijk complete bebording = 2 • Geen bebording = 0 | F42: Panneaux de signalisation stipulant les limites concernant le parking. (Signalisation claire = 3, Signalisation incomplète = 2, Pas de signalisation = 0) | G42: Verkehrsleitsystem weist auf Benutzungseinschränkungen hin. • klare Ausschilderung = 3 • teilweise Ausschilderung = 2 • keine Ausschilderung = 0 | H42: Señales de tráfico para definir limitaciones en el uso de la instalación. • Señalización clara = 3 • Señalización incompleta = 2 • Sin señalización = 0 | I42: Sinais de trânsito para definir o uso limitado das instalações. • Sinalização evidente = 3 • Sinalização incompleta = 2 • Sem sinalização = 0
A43: 40 | B43: Information on: | C43: 40 | D43: Information on: | E43: Informatie bij de inrit: | F43: Information concernant: | G43: Informationen zu: | H43: Información sobre: | I43: Informações sobre:
A44: 41 | B44: Operators terms & conditions within the car park: | C44: 41 | D44: Operators terms & conditions within the car park: | E44: Informatie algemene voorwaarden | F44: Règlement intérieur du parking | G44: Nutzungs- und Einstellbedingungen des Betreibers | H44: Términos y condiciones en el interior del aparcamiento | I44: Regras de utilização do parque de estacionamento:
A45: 42 | B45: Daily opening hours: | C45: 42 | D45: Daily opening hours: | E45: Dagelijkse opening- en sluitingstijd | F45: Heures d’ouverture | G45: Tägliche Öffnungszeiten | H45: Horario de apertura: | I45: Horário de funcionamento:
A46: 43 | B46: Scale of tariffs: | C46: 43 | D46: Scale of tariffs: | E46: Tarieftabel | F46: Grille tarifaire | G46: Tarifauszeichnung | H46: Tarifas: | I46: Tarifário:
A47: 44 | B47: Readibility of tariff system: | C47: 44 | D47: Readibility of tariff system: | E47: Duidelijkheid van het tariefsysteem | F47: Lisibilité de la grille tarifaire | G47: Lesbarkeit der Tarifauszeichnung | H47: Facilidad de lectura del sistema de tarifas | I47: Legibilidade do sistema tarifário:
A48: 45 | B48: Design entry/exit area | C48: 45 | D48: Design entry/exit area | E48: Ontwerp van de in- en uitrit | F48: Conception des zones d’entrée et de sortie | G48: Gestaltung des Ein-/Ausfahrtsbereiches | H48: Diseño de la zona de acceso/salida | I48: Área da Entrada/saída
A49: 46 | B49: Entry ticket- machine easy to reach: | C49: 46 | D49: Entry ticket- machine easy to reach: | E49: Inrijzuil gemakkelijk bereikbaar | F49: Entrée: borne de tickets facilement atteignable | G49: Einfahrt: Gute Erreichbarkeit des Ticketgebers: | H49: Facilidad de acceso a la máquina de tickets de entrada | I49: Bilhete na máquina de entrada fácil de alcançar
A50: 47 | B50: Exit ticket- machine easy to reach: | C50: 47 | D50: Exit ticket- machine easy to reach: | E50: Uitrijzuil gemakkelijk bereikbaar | F50: Sortie: borne de tickets facilement atteignable | G50: Ausfahrt: Gute Erreichbarkeit des Ticketlesers: | H50: Facilidad de acceso a la máquina de tickets de salida | I50: Validador de bilhete na máquina de saída fácil de alcançar
A51: 48 | B51: Longitudinal slope at the ticket machines | C51: 48 | D51: Longitudinal slope at the ticket machines | E51: Is er een helling naar de kaartgever/lezer? | F51: Pente longitudinale de la voie près des bornes de tickets | G51: Längsneigung bei den Ein- / Ausfahrtsterminals | H51: Pendiente longitudinal en zona de máquinas de tickets | I51: Inclinação longitudinal nas máquinas de bilhetes
A52: 49 | B52: Entry lane: • 0-2% (car doesn’t move without brake) = 1 • 2-5% = 0 • Above 5% = -1 | C52: 49 | D52: Entry lane: • 0-2% (car doesn’t move without brake) = 1 • 2-5% = 0 • Above 5% = -1 | E52: Inrit: • < 2% (auto beweegt niet uit zichzelf) = 1 • 2-5% = 0 • > 5% = -1 | F52: Entrée: (0-2% (le véhicule ne bouge pas sans poser le pied sur le frein) = 1, 2-5% = 0, Plus de 5% = -1) | G52: Einfahrt: • 0 - 2% (Fahrzeug bewegt sich ungebremst nicht) = 1 • 2 - 5% = 0 • Über 5% = -1 | H52: Carril de entrada: • 0-2% (vehículo no se muede sin presionar el freno) = 1 • 2-5% = 0 • Más de 5% = -1 | I52: Via de entrada: • 0-2% (carro não se move sem travão) = 1 • 2-5% = 0 • Acima de 5% = -1
A53: 50 | B53: Exit lane: • 0-2% (car doesn’t move without brake) = 1 • 2-5% = 0 • Above 5% = -1 | C53: 50 | D53: Exit lane: • 0-2% (car doesn’t move without brake) = 1 • 2-5% = 0 • Above 5% = -1 | E53: Uitrit: • < 2% (auto beweegt niet uit zichzelf) = 1 • 2-5% = 0 • > 5% = -1 | F53: Sortie: (0-2% (le véhicule ne bouge pas sans poser le pied sur le frein) = 1, 2-5% = 0, Plus de 5% = -1) | G53: Ausfahrt: • 0 - 2% (Fahrzeug bewegt sich ungebremst nicht) = 1 • 2 - 5% = 0 • Über 5% = -1 | H53: Carril de salida: • 0-2% (vehículo no se muede sin presionar el freno) = 1 • 2-5% = 0 • Más de 5% = -1 | I53: Via de saída: • 0-2% (carro não se move sem travão) = 1 • 2-5% = 0 • Acima de 5% = -1
